Workbook

Sheet Introduction
C4: Joint Monitoring Programme for Water Supply, Sanitation and Hygiene
C6: Estimates on household water, sanitation and hygiene by wealth quintile and sub-national region in
C7: =+Water!B5 -> Bolivia (Plurinational State of)
C9: Updated May 2021
C11: Follow the links below to find the following information:
C13: JMP Estimates
C14: WASH status and trends by wealth quintile (customized quintiles made without water and sanitation assets)
C15: Water
C16: Sanitation
C17: Hygiene
C19: Data inputs
C20: customized wealth quintiles and subnational data:
C21: =IF(INDIRECT(CONCATENATE("Water","!B105"))=0,"",INDIRECT(CONCATENATE("Water","!B105"))) -> DHS03
C22: =IF(INDIRECT(CONCATENATE("Water","!B106"))=0,"",INDIRECT(CONCATENATE("Water","!B106"))) -> DHS08
C23: =IF(INDIRECT(CONCATENATE("Water","!B107"))=0,"",INDIRECT(CONCATENATE("Water","!B107"))) -> EDS16
C24: =IF(INDIRECT(CONCATENATE("Water","!B108"))=0,"",INDIRECT(CONCATENATE("Water","!B108"))) -> 
C25: =IF(INDIRECT(CONCATENATE("Water","!B109"))=0,"",INDIRECT(CONCATENATE("Water","!B109"))) -> 
C26: =IF(INDIRECT(CONCATENATE("Water","!B110"))=0,"",INDIRECT(CONCATENATE("Water","!B110"))) -> 
C27: =IF(INDIRECT(CONCATENATE("Water","!B111"))=0,"",INDIRECT(CONCATENATE("Water","!B111"))) -> 
C28: =IF(INDIRECT(CONCATENATE("Water","!B112"))=0,"",INDIRECT(CONCATENATE("Water","!B112"))) -> 
C29: =IF(INDIRECT(CONCATENATE("Water","!B113"))=0,"",INDIRECT(CONCATENATE("Water","!B113"))) -> 
C30: =IF(INDIRECT(CONCATENATE("Water","!B114"))=0,"",INDIRECT(CONCATENATE("Water","!B114"))) -> 
C31: =IF(INDIRECT(CONCATENATE("Water","!B115"))=0,"",INDIRECT(CONCATENATE("Water","!B115"))) -> 
C32: =IF(INDIRECT(CONCATENATE("Water","!B116"))=0,"",INDIRECT(CONCATENATE("Water","!B116"))) -> 
L55: =+IF(ISNUMBER(M48), "", "Insufficient data to estimate safely managed sanitation services at national level") -> Insufficient data to estimate safely managed sanitation services at national level

Sheet Water
A1: BGD
B4: Summary of trends in use of drinking water by wealth quintile (%)
B5: =IF(ISERROR(INDIRECT(CONCATENATE($B105,"!A2"))),"",INDIRECT(CONCATENATE($B105,"!A2"))) -> Bolivia (Plurinational State of)
B7: =B118 -> National use of drinking water sources, 2000–2020 | J7: =B218 -> Urban use of drinking water sources, 2000–2020 | R7: =B318 -> Rural use of drinking water sources, 2000–2020
B31: =IF(ISERROR(INDIRECT(CONCATENATE($B105,"!A2"))),"",INDIRECT(CONCATENATE($B105,"!A2"))) -> Bolivia (Plurinational State of) | F31: Poorest | J31: Poor | N31: Middle | R31: Rich | V31: Richest
F32: Basic | G32: Limited | H32: Unimproved | I32: Surface water | J32: Basic | K32: Limited | L32: Unimproved | M32: Surface water | N32: Basic | O32: Limited | P32: Unimproved | Q32: Surface water | R32: Basic | S32: Limited | T32: Unimproved | U32: Surface water | V32: Basic | W32: Limited | X32: Unimproved | Y32: Surface water
B33: NATIONAL | D33: Estimate | E33: =C99 -> 2000 | F33: =E99 -> 42.77853404 | G33: =F99 -> 0.2605185097 | H33: 23.93599347 | I33: 33.02495398 | J33: =J99 -> 69.69516686 | K33: =K99 -> 0.116265026 | L33: 19.28706897 | M33: 10.90149914 | N33: =O99 -> 91.50076565 | O33: =P99 -> 0.04018111428 | P33: 7.263735215 | Q33: 1.195318021 | R33: =T99 -> 96.86324681 | S33: =U99 -> 0.08138318549 | T33: 2.768606658 | U33: 0.2867633453 | V33: =Y99 -> 99.51386557 | W33: =Z99 -> 0.009482552541 | X33: 0.4766518763 | Y33: 0
E34: =C100 -> 2020 | F34: =E100 -> 81.76201693 | G34: 0.497925403 | H34: 5.951989801 | I34: 11.78806787 | J34: =J100 -> 98.2890188 | K34: 0.1639651046 | L34: 0.648798483 | M34: 0.8982176169 | N34: =O100 -> 98.59649415 | O34: 0.04329709124 | P34: 0 | Q34: 1.360208756 | R34: =T100 -> 99.66793213 | S34: 0.08373964404 | T34: 0 | U34: 0.2483282237 | V34: =Y100 -> 99.89194487 | W34: 0.009518579247 | X34: 0 | Y34: 0.09853655426
B36: URBAN | D36: Estimate | E36: =C199 -> 2000 | F36: =E199 -> 78.27723639 | G36: =F199 -> 0.1619243362 | H36: 18.64743301 | I36: 2.913406256 | J36: =J199 -> 93.88593873 | K36: =K199 -> 0.03115929062 | L36: 5.32489151 | M36: 0.7580104664 | N36: =O199 -> 96.91496443 | O36: =P199 -> 0.08683008245 | P36: 2.462079792 | Q36: 0.5361256964 | R36: =T199 -> 98.99003367 | S36: =U199 -> 0.008933314364 | T36: 0.9681464318 | U36: 0.03288658081 | V36: =Y199 -> 99.65143446 | W36: =Z199 -> 0.01375084998 | X36: 0.3296980653 | Y36: 0.005116621278
E37: =C200 -> 2020 | F37: =E200 -> 99.19230488 | G37: 0.2051892588 | H37: 0.6025058588 | I37: 0 | J37: =J200 -> 99.96682256 | K37: 0.03317744189 | L37: 0 | M37: 0 | N37: =O200 -> 99.91048611 | O37: 0.0895138929 | P37: 0 | Q37: 0 | R37: =T200 -> 99.98440838 | S37: 0.009023051296 | T37: 0 | U37: 0.006568565581 | V37: =Y200 -> 99.89942046 | W37: 0.01378506944 | X37: 0.05492746234 | Y37: 0.03186700945
B39: RURAL | D39: Estimate | E39: =C299 -> 2000 | F39: =E299 -> 37.4046777 | G39: =F299 -> 0.4011115905 | H39: 23.05660444 | I39: 39.13760627 | J39: =J299 -> 46.9010721 | K39: =K299 -> 0.3678759932 | L39: 23.75224954 | M39: 28.97880237 | N39: =O299 -> 56.42700093 | O39: =P299 -> 0.08951610992 | P39: 20.22998451 | Q39: 23.25349846 | R39: =T299 -> 68.99070261 | S39: =U299 -> 0.08810194424 | T39: 17.26032423 | U39: 13.66087122 | V39: =Y299 -> 87.11899028 | W39: =Z299 -> 0.07983564536 | X39: 11.16491475 | Y39: 1.636259318
E40: =C300 -> 2020 | F40: =E300 -> 71.79790504 | G40: 0.7699296894 | H40: 5.396272443 | I40: 22.03589283 | J40: =J300 -> 81.47168724 | K40: 0.6390360927 | L40: 5.279832927 | M40: 12.60944374 | N40: =O300 -> 88.06385596 | O40: 0.1397049937 | P40: 5.747268463 | Q40: 6.049170584 | R40: =T300 -> 94.44890292 | S40: 0.1206123675 | T40: 1.232571949 | U40: 4.197912762 | V40: =Y300 -> 95.03027021 | W40: 0.08708552436 | X40: 0 | Y40: 4.882644268
A97: NATIONAL | D97: Poorest | I97: Poor | N97: Middle | S97: Rich | X97: Richest
D98: Improved | E98: Basic | F98: Limited | G98: Unimproved | H98: Surface water | I98: Improved | J98: Basic | K98: Limited | L98: Unimproved | M98: Surface water | N98: Improved | O98: Basic | P98: Limited | Q98: Unimproved | R98: Surface water | S98: Improved | T98: Basic | U98: Limited | V98: Unimproved | W98: Surface water | X98: Improved | Y98: Basic | Z98: Limited | AA98: Unimproved | AB98: Surface water
A99: Forecast period: | C99: 2000 | D99: =IF((D101+H101)>100,D101*100/(D101+H101),D101) -> 43.03905255 | E99: =D99*AVERAGEIF(E105:E116,">0")/100 -> 42.77853404 | F99: =D99*(100-AVERAGEIF(E105:E116,">0"))/100 -> 0.2605185097 | G99: =100-(E99+F99+H99) -> 23.93599347 | H99: =IF((D101+H101)>100,H101*100/(D101+H101),H101) -> 33.02495398 | I99: =IF((I101+M101)>100,I101*100/(I101+M101),I101) -> 69.81143188 | J99: =I99*AVERAGEIF(J105:J116,">0")/100 -> 69.69516686 | K99: =I99*(100-AVERAGEIF(J105:J116,">0"))/100 -> 0.116265026 | L99: =100-(J99+K99+M99) -> 19.28706897 | M99: =IF((I101+M101)>100,M101*100/(I101+M101),M101) -> 10.90149914 | N99: =IF((N101+R101)>100,N101*100/(N101+R101),N101) -> 91.54094676 | O99: =N99*AVERAGEIF(O105:O116,">0")/100 -> 91.50076565 | P99: =N99*(100-AVERAGEIF(O105:O116,">0"))/100 -> 0.04018111428 | Q99: =100-(O99+P99+R99) -> 7.263735215 | R99: =IF((N101+R101)>100,R101*100/(N101+R101),R101) -> 1.195318021 | S99: =IF((S101+W101)>100,S101*100/(S101+W101),S101) -> 96.94463 | T99: =S99*AVERAGEIF(T105:T116,">0")/100 -> 96.86324681 | U99: =S99*(100-AVERAGEIF(T105:T116,">0"))/100 -> 0.08138318549 | V99: =100-(T99+U99+W99) -> 2.768606658 | W99: =IF((S101+W101)>100,W101*100/(S101+W101),W101) -> 0.2867633453 | X99: =IF((X101+AB101)>100,X101*100/(X101+AB101),X101) -> 99.52334812 | Y99: =X99*AVERAGEIF(Y105:Y116,">0")/100 -> 99.51386557 | Z99: =X99*(100-AVERAGEIF(Y105:Y116,">0"))/100 -> 0.009482552541 | AA99: =100-(Y99+Z99+AB99) -> 0.4766518763 | AB99: =IF((X101+AB101)>100,AB101*100/(X101+AB101),AB101) -> 0
C100: 2020 | D100: =IF((D102+H102)>100,D102*100/(D102+H102),D102) -> 82.25994233 | E100: =D100*AVERAGEIF(E105:E116,">0")/100 -> 81.76201693 | F100: =D100*(100-AVERAGEIF(E105:E116,">0"))/100 -> 0.497925403 | G100: =100-(E100+F100+H100) -> 5.951989801 | H100: =IF((D102+H102)>100,H102*100/(D102+H102),H102) -> 11.78806787 | I100: =IF((I102+M102)>100,I102*100/(I102+M102),I102) -> 98.4529839 | J100: =I100*AVERAGEIF(J105:J116,">0")/100 -> 98.2890188 | K100: =I100*(100-AVERAGEIF(J105:J116,">0"))/100 -> 0.1639651046 | L100: =100-(J100+K100+M100) -> 0.648798483 | M100: =IF((I102+M102)>100,M102*100/(I102+M102),M102) -> 0.8982176169 | N100: =IF((N102+R102)>100,N102*100/(N102+R102),N102) -> 98.63979124 | O100: =N100*AVERAGEIF(O105:O116,">0")/100 -> 98.59649415 | P100: =N100*(100-AVERAGEIF(O105:O116,">0"))/100 -> 0.04329709124 | Q100: =100-(O100+P100+R100) -> 0 | R100: =IF((N102+R102)>100,R102*100/(N102+R102),R102) -> 1.360208756 | S100: =IF((S102+W102)>100,S102*100/(S102+W102),S102) -> 99.75167178 | T100: =S100*AVERAGEIF(T105:T116,">0")/100 -> 99.66793213 | U100: =S100*(100-AVERAGEIF(T105:T116,">0"))/100 -> 0.08373964404 | V100: =100-(T100+U100+W100) -> 0 | W100: =IF((S102+W102)>100,W102*100/(S102+W102),W102) -> 0.2483282237 | X100: =IF((X102+AB102)>100,X102*100/(X102+AB102),X102) -> 99.90146345 | Y100: =X100*AVERAGEIF(Y105:Y116,">0")/100 -> 99.89194487 | Z100: =X100*(100-AVERAGEIF(Y105:Y116,">0"))/100 -> 0.009518579247 | AA100: =100-(Y100+Z100+AB100) -> 0 | AB100: =IF((X102+AB102)>100,AB102*100/(X102+AB102),AB102) -> 0.09853655426
A101: Regression period: | C101: =MinRegYear(C99,C105:C116) -> 2001 | D101: =IF(MAX(C105:C116)-MIN(C105:C116)<5,AVERAGEIF(C105:C116,">0",D105:D116), IF(FORECAST($C101,D$105:D$116,$C$105:$C$116)<0,0, IF(FORECAST($C101,D$105:D$116,$C$105:$C$116)>100,100, FORECAST($C101,D$105:D$116,$C$105:$C$116)))) -> 43.03905255 | H101: =IF(MAX(C105:C116)-MIN(C105:C116)<5,AVERAGEIF(C105:C116,">0",H105:H116), IF(FORECAST($C101,H$105:H$116,$C$105:$C$116)<0,0, IF(FORECAST($C101,H$105:H$116,$C$105:$C$116)>100,100, FORECAST($C101,H$105:H$116,$C$105:$C$116)))) -> 33.02495398 | I101: =IF(MAX(C105:C116)-MIN(C105:C116)<5,AVERAGEIF(C105:C116,">0",I105:I116), IF(FORECAST($C101,I$105:I$116,$C$105:$C$116)<0,0, IF(FORECAST($C101,I$105:I$116,$C$105:$C$116)>100,100, FORECAST($C101,I$105:I$116,$C$105:$C$116)))) -> 69.81143188 | M101: =IF(MAX(C105:C116)-MIN(C105:C116)<5,AVERAGEIF(C105:C116,">0",M105:M116), IF(FORECAST($C101,M$105:M$116,$C$105:$C$116)<0,0, IF(FORECAST($C101,M$105:M$116,$C$105:$C$116)>100,100, FORECAST($C101,M$105:M$116,$C$105:$C$116)))) -> 10.90149914 | N101: =IF(MAX(C105:C116)-MIN(C105:C116)<5,AVERAGEIF(C105:C116,">0",N105:N116), IF(FORECAST($C101,N$105:N$116,$C$105:$C$116)<0,0, IF(FORECAST($C101,N$105:N$116,$C$105:$C$116)>100,100, FORECAST($C101,N$105:N$116,$C$105:$C$116)))) -> 91.54094676 | R101: =IF(MAX(C105:C116)-MIN(C105:C116)<5,AVERAGEIF(C105:C116,">0",R105:R116), IF(FORECAST($C101,R$105:R$116,$C$105:$C$116)<0,0, IF(FORECAST($C101,R$105:R$116,$C$105:$C$116)>100,100, FORECAST($C101,R$105:R$116,$C$105:$C$116)))) -> 1.195318021 | S101: =IF(MAX(C105:C116)-MIN(C105:C116)<5,AVERAGEIF(C105:C116,">0",S105:S116), IF(FORECAST($C101,S$105:S$116,$C$105:$C$116)<0,0, IF(FORECAST($C101,S$105:S$116,$C$105:$C$116)>100,100, FORECAST($C101,S$105:S$116,$C$105:$C$116)))) -> 96.94463 | W101: =IF(MAX(C105:C116)-MIN(C105:C116)<5,AVERAGEIF(C105:C116,">0",W105:W116), IF(FORECAST($C101,W$105:W$116,$C$105:$C$116)<0,0, IF(FORECAST($C101,W$105:W$116,$C$105:$C$116)>100,100, FORECAST($C101,W$105:W$116,$C$105:$C$116)))) -> 0.2867633453 | X101: =IF(MAX(C105:C116)-MIN(C105:C116)<5,AVERAGEIF(C105:C116,">0",X105:X116), IF(FORECAST($C101,X$105:X$116,$C$105:$C$116)<0,0, IF(FORECAST($C101,X$105:X$116,$C$105:$C$116)>100,100, FORECAST($C101,X$105:X$116,$C$105:$C$116)))) -> 99.52334812 | AB101: =IF(MAX(C105:C116)-MIN(C105:C116)<5,AVERAGEIF(C105:C116,">0",AB105:AB116), IF(FORECAST($C101,AB$105:AB$116,$C$105:$C$116)<0,0, IF(FORECAST($C101,AB$105:AB$116,$C$105:$C$116)>100,100, FORECAST($C101,AB$105:AB$116,$C$105:$C$116)))) -> 0
C102: =MaxRegYear(C100,C105:C116) -> 2018 | D102: =IF(MAX(C105:C116)-MIN(C105:C116)<5,AVERAGEIF(C105:C116,">0",D105:D116), IF(FORECAST($C102,D$105:D$116,$C$105:$C$116)<0,0, IF(FORECAST($C102,D$105:D$116,$C$105:$C$116)>100,100, FORECAST($C102,D$105:D$116,$C$105:$C$116)))) -> 82.25994233 | H102: =IF(MAX(C105:C116)-MIN(C105:C116)<5,AVERAGEIF(C105:C116,">0",H105:H116), IF(FORECAST($C102,H$105:H$116,$C$105:$C$116)<0,0, IF(FORECAST($C102,H$105:H$116,$C$105:$C$116)>100,100, FORECAST($C102,H$105:H$116,$C$105:$C$116)))) -> 11.78806787 | I102: =IF(MAX(C105:C116)-MIN(C105:C116)<5,AVERAGEIF(C105:C116,">0",I105:I116), IF(FORECAST($C102,I$105:I$116,$C$105:$C$116)<0,0, IF(FORECAST($C102,I$105:I$116,$C$105:$C$116)>100,100, FORECAST($C102,I$105:I$116,$C$105:$C$116)))) -> 98.4529839 | M102: =IF(MAX(C105:C116)-MIN(C105:C116)<5,AVERAGEIF(C105:C116,">0",M105:M116), IF(FORECAST($C102,M$105:M$116,$C$105:$C$116)<0,0, IF(FORECAST($C102,M$105:M$116,$C$105:$C$116)>100,100, FORECAST($C102,M$105:M$116,$C$105:$C$116)))) -> 0.8982176169 | N102: =IF(MAX(C105:C116)-MIN(C105:C116)<5,AVERAGEIF(C105:C116,">0",N105:N116), IF(FORECAST($C102,N$105:N$116,$C$105:$C$116)<0,0, IF(FORECAST($C102,N$105:N$116,$C$105:$C$116)>100,100, FORECAST($C102,N$105:N$116,$C$105:$C$116)))) -> 98.86247863 | R102: =IF(MAX(C105:C116)-MIN(C105:C116)<5,AVERAGEIF(C105:C116,">0",R105:R116), IF(FORECAST($C102,R$105:R$116,$C$105:$C$116)<0,0, IF(FORECAST($C102,R$105:R$116,$C$105:$C$116)>100,100, FORECAST($C102,R$105:R$116,$C$105:$C$116)))) -> 1.363279539 | S102: =IF(MAX(C105:C116)-MIN(C105:C116)<5,AVERAGEIF(C105:C116,">0",S105:S116), IF(FORECAST($C102,S$105:S$116,$C$105:$C$116)<0,0, IF(FORECAST($C102,S$105:S$116,$C$105:$C$116)>100,100, FORECAST($C102,S$105:S$116,$C$105:$C$116)))) -> 99.92974577 | W102: =IF(MAX(C105:C116)-MIN(C105:C116)<5,AVERAGEIF(C105:C116,">0",W105:W116), IF(FORECAST($C102,W$105:W$116,$C$105:$C$116)<0,0, IF(FORECAST($C102,W$105:W$116,$C$105:$C$116)>100,100, FORECAST($C102,W$105:W$116,$C$105:$C$116)))) -> 0.2487715325 | X102: =IF(MAX(C105:C116)-MIN(C105:C116)<5,AVERAGEIF(C105:C116,">0",X105:X116), IF(FORECAST($C102,X$105:X$116,$C$105:$C$116)<0,0, IF(FORECAST($C102,X$105:X$116,$C$105:$C$116)>100,100, FORECAST($C102,X$105:X$116,$C$105:$C$116)))) -> 99.9060979 | AB102: =IF(MAX(C105:C116)-MIN(C105:C116)<5,AVERAGEIF(C105:C116,">0",AB105:AB116), IF(FORECAST($C102,AB$105:AB$116,$C$105:$C$116)<0,0, IF(FORECAST($C102,AB$105:AB$116,$C$105:$C$116)>100,100, FORECAST($C102,AB$105:AB$116,$C$105:$C$116)))) -> 0.09854112539
B104: Survey | C104: Year | D104: Improved | E104: % Improved < = 30min | H104: Surface water | I104: Improved | J104: % Improved < = 30min | M104: Surface water | N104: Improved | O104: % Improved < = 30min | R104: Surface water | S104: Improved | T104: % Improved < = 30min | W104: Surface water | X104: Improved | Y104: % Improved < = 30min | AB104: Surface water
B105: DHS03 | C105: 2003 | D105: =IF(ISERROR(INDIRECT(CONCATENATE($B105,"!C16"))),"",INDIRECT(CONCATENATE($B105,"!C16"))) -> 47.32518095 | E105: =IF(ISERROR(INDIRECT(CONCATENATE($B105,"!C23"))),"",INDIRECT(CONCATENATE($B105,"!C23"))) -> N/A | H105: =IF(ISERROR(INDIRECT(CONCATENATE($B105,"!C21"))),"",INDIRECT(CONCATENATE($B105,"!C21"))) -> 33.0800201 | I105: =IF(ISERROR(INDIRECT(CONCATENATE($B105,"!D16"))),"",INDIRECT(CONCATENATE($B105,"!D16"))) -> 73.01065242 | J105: =IF(ISERROR(INDIRECT(CONCATENATE($B105,"!D23"))),"",INDIRECT(CONCATENATE($B105,"!D23"))) -> N/A | M105: =IF(ISERROR(INDIRECT(CONCATENATE($B105,"!D21"))),"",INDIRECT(CONCATENATE($B105,"!D21"))) -> 10.95806142 | N105: =IF(ISERROR(INDIRECT(CONCATENATE($B105,"!E16"))),"",INDIRECT(CONCATENATE($B105,"!E16"))) -> 91.59723139 | O105: =IF(ISERROR(INDIRECT(CONCATENATE($B105,"!E23"))),"",INDIRECT(CONCATENATE($B105,"!E23"))) -> N/A | R105: =IF(ISERROR(INDIRECT(CONCATENATE($B105,"!E21"))),"",INDIRECT(CONCATENATE($B105,"!E21"))) -> 1.653140716 | S105: =IF(ISERROR(INDIRECT(CONCATENATE($B105,"!F16"))),"",INDIRECT(CONCATENATE($B105,"!F16"))) -> 96.82716289 | T105: =IF(ISERROR(INDIRECT(CONCATENATE($B105,"!F23"))),"",INDIRECT(CONCATENATE($B105,"!F23"))) -> N/A | W105: =IF(ISERROR(INDIRECT(CONCATENATE($B105,"!F21"))),"",INDIRECT(CONCATENATE($B105,"!F21"))) -> 0.3937234262 | X105: =IF(ISERROR(INDIRECT(CONCATENATE($B105,"!G16"))),"",INDIRECT(CONCATENATE($B105,"!G16"))) -> 99.64839036 | Y105: =IF(ISERROR(INDIRECT(CONCATENATE($B105,"!G23"))),"",INDIRECT(CONCATENATE($B105,"!G23"))) -> N/A | AB105: =IF(ISERROR(INDIRECT(CONCATENATE($B105,"!G221"))),"",INDIRECT(CONCATENATE($B105,"!G21"))) -> 0
B106: DHS08 | C106: 2008 | D106: 59.72198333 | E106: 99.82598594 | H106: 20.13087843 | I106: 81.88186958 | J106: 99.96648842 | M106: 4.778195114 | N106: 95.86393729 | O106: 100 | R106: 0.5526270571 | S106: 98.93536326 | T106: 99.90809536 | W106: 0.0900463856 | X106: 99.55093009 | Y106: 100 | AB106: 0.04544882803
B107: EDS16 | C107: 2016 | D107: 77.4406613 | E107: 98.96339954 | H107: 15.88247713 | I107: 94.97690591 | J107: 99.70042852 | M107: 2.845961096 | N107: 97.4979519 | O107: 99.91221171 | R107: 1.617308433 | S107: 99.28564493 | T107: 99.92400841 | W107: 0.3228847238 | X107: 99.91107654 | Y107: 99.98094406 | AB107: 0.08269865272
D111: =IF(ISERROR(INDIRECT(CONCATENATE($B111,"!C16"))),"",INDIRECT(CONCATENATE($B111,"!C16"))) ->  | E111: =IF(ISERROR(INDIRECT(CONCATENATE($B111,"!C23"))),"",INDIRECT(CONCATENATE($B111,"!C23"))) ->  | H111: =IF(ISERROR(INDIRECT(CONCATENATE($B111,"!C21"))),"",INDIRECT(CONCATENATE($B111,"!C21"))) ->  | I111: =IF(ISERROR(INDIRECT(CONCATENATE($B111,"!D16"))),"",INDIRECT(CONCATENATE($B111,"!D16"))) ->  | J111: =IF(ISERROR(INDIRECT(CONCATENATE($B111,"!D23"))),"",INDIRECT(CONCATENATE($B111,"!D23"))) ->  | M111: =IF(ISERROR(INDIRECT(CONCATENATE($B111,"!D21"))),"",INDIRECT(CONCATENATE($B111,"!D21"))) ->  | N111: =IF(ISERROR(INDIRECT(CONCATENATE($B111,"!E16"))),"",INDIRECT(CONCATENATE($B111,"!E16"))) ->  | O111: =IF(ISERROR(INDIRECT(CONCATENATE($B111,"!E23"))),"",INDIRECT(CONCATENATE($B111,"!E23"))) ->  | R111: =IF(ISERROR(INDIRECT(CONCATENATE($B111,"!E21"))),"",INDIRECT(CONCATENATE($B111,"!E21"))) ->  | S111: =IF(ISERROR(INDIRECT(CONCATENATE($B111,"!F16"))),"",INDIRECT(CONCATENATE($B111,"!F16"))) ->  | T111: =IF(ISERROR(INDIRECT(CONCATENATE($B111,"!F23"))),"",INDIRECT(CONCATENATE($B111,"!F23"))) ->  | W111: =IF(ISERROR(INDIRECT(CONCATENATE($B111,"!F21"))),"",INDIRECT(CONCATENATE($B111,"!F21"))) ->  | X111: =IF(ISERROR(INDIRECT(CONCATENATE($B111,"!G16"))),"",INDIRECT(CONCATENATE($B111,"!G16"))) ->  | Y111: =IF(ISERROR(INDIRECT(CONCATENATE($B111,"!G23"))),"",INDIRECT(CONCATENATE($B111,"!G23"))) ->  | AB111: =IF(ISERROR(INDIRECT(CONCATENATE($B111,"!G221"))),"",INDIRECT(CONCATENATE($B111,"!G21"))) -> 
D112: =IF(ISERROR(INDIRECT(CONCATENATE($B112,"!C16"))),"",INDIRECT(CONCATENATE($B112,"!C16"))) ->  | E112: =IF(ISERROR(INDIRECT(CONCATENATE($B112,"!C23"))),"",INDIRECT(CONCATENATE($B112,"!C23"))) ->  | H112: =IF(ISERROR(INDIRECT(CONCATENATE($B112,"!C21"))),"",INDIRECT(CONCATENATE($B112,"!C21"))) ->  | I112: =IF(ISERROR(INDIRECT(CONCATENATE($B112,"!D16"))),"",INDIRECT(CONCATENATE($B112,"!D16"))) ->  | J112: =IF(ISERROR(INDIRECT(CONCATENATE($B112,"!D23"))),"",INDIRECT(CONCATENATE($B112,"!D23"))) ->  | M112: =IF(ISERROR(INDIRECT(CONCATENATE($B112,"!D21"))),"",INDIRECT(CONCATENATE($B112,"!D21"))) ->  | N112: =IF(ISERROR(INDIRECT(CONCATENATE($B112,"!E16"))),"",INDIRECT(CONCATENATE($B112,"!E16"))) ->  | O112: =IF(ISERROR(INDIRECT(CONCATENATE($B112,"!E23"))),"",INDIRECT(CONCATENATE($B112,"!E23"))) ->  | R112: =IF(ISERROR(INDIRECT(CONCATENATE($B112,"!E21"))),"",INDIRECT(CONCATENATE($B112,"!E21"))) ->  | S112: =IF(ISERROR(INDIRECT(CONCATENATE($B112,"!F16"))),"",INDIRECT(CONCATENATE($B112,"!F16"))) ->  | T112: =IF(ISERROR(INDIRECT(CONCATENATE($B112,"!F23"))),"",INDIRECT(CONCATENATE($B112,"!F23"))) ->  | W112: =IF(ISERROR(INDIRECT(CONCATENATE($B112,"!F21"))),"",INDIRECT(CONCATENATE($B112,"!F21"))) ->  | X112: =IF(ISERROR(INDIRECT(CONCATENATE($B112,"!G16"))),"",INDIRECT(CONCATENATE($B112,"!G16"))) ->  | Y112: =IF(ISERROR(INDIRECT(CONCATENATE($B112,"!G23"))),"",INDIRECT(CONCATENATE($B112,"!G23"))) ->  | AB112: =IF(ISERROR(INDIRECT(CONCATENATE($B112,"!G221"))),"",INDIRECT(CONCATENATE($B112,"!G21"))) -> 
B118: =CONCATENATE("National use of drinking water sources, ",C99,"–",C100) -> National use of drinking water sources, 2000–2020 | S118: Data points used for regression
E153: =IF(ISERROR(INDIRECT(CONCATENATE($B153,"!M18"))),"",INDIRECT(CONCATENATE($B153,"!M18"))) ->  | F153: =IF(ISERROR(INDIRECT(CONCATENATE($B153,"!M19"))),"",INDIRECT(CONCATENATE($B153,"!M19"))) ->  | G153: =IF(ISERROR(INDIRECT(CONCATENATE($B153,"!M20"))),"",INDIRECT(CONCATENATE($B153,"!M20"))) ->  | H153: =IF(ISERROR(INDIRECT(CONCATENATE($B153,"!M21"))),"",INDIRECT(CONCATENATE($B153,"!M21"))) ->  | J153: =IF(ISERROR(INDIRECT(CONCATENATE($B153,"!N18"))),"",INDIRECT(CONCATENATE($B153,"!N18"))) ->  | K153: =IF(ISERROR(INDIRECT(CONCATENATE($B153,"!N19"))),"",INDIRECT(CONCATENATE($B153,"!N19"))) ->  | L153: =IF(ISERROR(INDIRECT(CONCATENATE($B153,"!N20"))),"",INDIRECT(CONCATENATE($B153,"!N20"))) ->  | M153: =IF(ISERROR(INDIRECT(CONCATENATE($B153,"!N21"))),"",INDIRECT(CONCATENATE($B153,"!N21"))) ->  | O153: =IF(ISERROR(INDIRECT(CONCATENATE($B153,"!O18"))),"",INDIRECT(CONCATENATE($B153,"!O18"))) ->  | P153: =IF(ISERROR(INDIRECT(CONCATENATE($B153,"!O19"))),"",INDIRECT(CONCATENATE($B153,"!O19"))) ->  | Q153: =IF(ISERROR(INDIRECT(CONCATENATE($B153,"!O20"))),"",INDIRECT(CONCATENATE($B153,"!O20"))) ->  | R153: =IF(ISERROR(INDIRECT(CONCATENATE($B153,"!O21"))),"",INDIRECT(CONCATENATE($B153,"!O21"))) ->  | T153: =IF(ISERROR(INDIRECT(CONCATENATE($B153,"!P18"))),"",INDIRECT(CONCATENATE($B153,"!P18"))) ->  | U153: =IF(ISERROR(INDIRECT(CONCATENATE($B153,"!P19"))),"",INDIRECT(CONCATENATE($B153,"!P19"))) ->  | V153: =IF(ISERROR(INDIRECT(CONCATENATE($B153,"!P20"))),"",INDIRECT(CONCATENATE($B153,"!P20"))) ->  | W153: =IF(ISERROR(INDIRECT(CONCATENATE($B153,"!P21"))),"",INDIRECT(CONCATENATE($B153,"!P21"))) ->  | Y153: =IF(ISERROR(INDIRECT(CONCATENATE($B153,"!Q18"))),"",INDIRECT(CONCATENATE($B153,"!Q18"))) ->  | Z153: =IF(ISERROR(INDIRECT(CONCATENATE($B153,"!Q19"))),"",INDIRECT(CONCATENATE($B153,"!Q19"))) ->  | AA153: =IF(ISERROR(INDIRECT(CONCATENATE($B153,"!Q20"))),"",INDIRECT(CONCATENATE($B153,"!Q20"))) ->  | AB153: =IF(ISERROR(INDIRECT(CONCATENATE($B153,"!Q21"))),"",INDIRECT(CONCATENATE($B153,"!Q1"))) -> 
A197: URBAN | D197: Poorest | I197: Poor | N197: Middle | S197: Rich | X197: Richest
D198: Improved | E198: Basic | F198: Limited | G198: Unimproved | H198: Surface water | I198: Improved | J198: Basic | K198: Limited | L198: Unimproved | M198: Surface water | N198: Improved | O198: Basic | P198: Limited | Q198: Unimproved | R198: Surface water | S198: Improved | T198: Basic | U198: Limited | V198: Unimproved | W198: Surface water | X198: Improved | Y198: Basic | Z198: Limited | AA198: Unimproved | AB198: Surface water
A199: Forecast period: | C199: 2000 | D199: =IF((D201+H201)>100,D201*100/(D201+H201),D201) -> 78.43916073 | E199: =D199*AVERAGEIF(E205:E216,">0")/100 -> 78.27723639 | F199: =D199*(100-AVERAGEIF(E205:E216,">0"))/100 -> 0.1619243362 | G199: =100-(E199+F199+H199) -> 18.64743301 | H199: =IF((D201+H201)>100,H201*100/(D201+H201),H201) -> 2.913406256 | I199: =IF((I201+M201)>100,I201*100/(I201+M201),I201) -> 93.91709802 | J199: =I199*AVERAGEIF(J205:J216,">0")/100 -> 93.88593873 | K199: =I199*(100-AVERAGEIF(J205:J216,">0"))/100 -> 0.03115929062 | L199: =100-(J199+K199+M199) -> 5.32489151 | M199: =IF((I201+M201)>100,M201*100/(I201+M201),M201) -> 0.7580104664 | N199: =IF((N201+R201)>100,N201*100/(N201+R201),N201) -> 97.00179451 | O199: =N199*AVERAGEIF(O205:O216,">0")/100 -> 96.91496443 | P199: =N199*(100-AVERAGEIF(O205:O216,">0"))/100 -> 0.08683008245 | Q199: =100-(O199+P199+R199) -> 2.462079792 | R199: =IF((N201+R201)>100,R201*100/(N201+R201),R201) -> 0.5361256964 | S199: =IF((S201+W201)>100,S201*100/(S201+W201),S201) -> 98.99896699 | T199: =S199*AVERAGEIF(T205:T216,">0")/100 -> 98.99003367 | U199: =S199*(100-AVERAGEIF(T205:T216,">0"))/100 -> 0.008933314364 | V199: =100-(T199+U199+W199) -> 0.9681464318 | W199: =IF((S201+W201)>100,W201*100/(S201+W201),W201) -> 0.03288658081 | X199: =IF((X201+AB201)>100,X201*100/(X201+AB201),X201) -> 99.66518531 | Y199: =X199*AVERAGEIF(Y205:Y216,">0")/100 -> 99.65143446 | Z199: =X199*(100-AVERAGEIF(Y205:Y216,">0"))/100 -> 0.01375084998 | AA199: =100-(Y199+Z199+AB199) -> 0.3296980653 | AB199: =IF((X201+AB201)>100,AB201*100/(X201+AB201),AB201) -> 0.005116621278
C200: 2020 | D200: =IF((D202+H202)>100,D202*100/(D202+H202),D202) -> 99.39749414 | E200: =D200*AVERAGEIF(E205:E216,">0")/100 -> 99.19230488 | F200: =D200*(100-AVERAGEIF(E205:E216,">0"))/100 -> 0.2051892588 | G200: =100-(E200+F200+H200) -> 0.6025058588 | H200: =IF((D202+H202)>100,H202*100/(D202+H202),H202) -> 0 | I200: =IF((I202+M202)>100,I202*100/(I202+M202),I202) -> 100 | J200: =I200*AVERAGEIF(J205:J216,">0")/100 -> 99.96682256 | K200: =I200*(100-AVERAGEIF(J205:J216,">0"))/100 -> 0.03317744189 | L200: =100-(J200+K200+M200) -> 0 | M200: =IF((I202+M202)>100,M202*100/(I202+M202),M202) -> 0 | N200: =IF((N202+R202)>100,N202*100/(N202+R202),N202) -> 100 | O200: =N200*AVERAGEIF(O205:O216,">0")/100 -> 99.91048611 | P200: =N200*(100-AVERAGEIF(O205:O216,">0"))/100 -> 0.0895138929 | Q200: =100-(O200+P200+R200) -> 0 | R200: =IF((N202+R202)>100,R202*100/(N202+R202),R202) -> 0 | S200: =IF((S202+W202)>100,S202*100/(S202+W202),S202) -> 99.99343143 | T200: =S200*AVERAGEIF(T205:T216,">0")/100 -> 99.98440838 | U200: =S200*(100-AVERAGEIF(T205:T216,">0"))/100 -> 0.009023051296 | V200: =100-(T200+U200+W200) -> 0 | W200: =IF((S202+W202)>100,W202*100/(S202+W202),W202) -> 0.006568565581 | X200: =IF((X202+AB202)>100,X202*100/(X202+AB202),X202) -> 99.91320553 | Y200: =X200*AVERAGEIF(Y205:Y216,">0")/100 -> 99.89942046 | Z200: =X200*(100-AVERAGEIF(Y205:Y216,">0"))/100 -> 0.01378506944 | AA200: =100-(Y200+Z200+AB200) -> 0.05492746234 | AB200: =IF((X202+AB202)>100,AB202*100/(X202+AB202),AB202) -> 0.03186700945
A201: Regression period: | C201: =MinRegYear(C199,C205:C216) -> 2001 | D201: =IF(MAX(C205:C216)-MIN(C205:C216)<5,AVERAGEIF(C205:C216,">0",D205:D216), IF(FORECAST($C201,D$205:D$216,$C$205:$C$216)<0,0, IF(FORECAST($C201,D$205:D$216,$C$205:$C$216)>100,100, FORECAST($C201,D$205:D$216,$C$205:$C$216)))) -> 78.43916073 | H201: =IF(MAX(C205:C216)-MIN(C205:C216)<5,AVERAGEIF(C205:C216,">0",H205:H216), IF(FORECAST($C201,H$205:H$216,$C$205:$C$216)<0,0, IF(FORECAST($C201,H$205:H$216,$C$205:$C$216)>100,100, FORECAST($C201,H$205:H$216,$C$205:$C$216)))) -> 2.913406256 | I201: =IF(MAX(C205:C216)-MIN(C205:C216)<5,AVERAGEIF(C205:C216,">0",I205:I216), IF(FORECAST($C201,I$205:I$216,$C$205:$C$216)<0,0, IF(FORECAST($C201,I$205:I$216,$C$205:$C$216)>100,100, FORECAST($C201,I$205:I$216,$C$205:$C$216)))) -> 93.91709802 | M201: =IF(MAX(C205:C216)-MIN(C205:C216)<5,AVERAGEIF(C205:C216,">0",M205:M216), IF(FORECAST($C201,M$205:M$216,$C$205:$C$216)<0,0, IF(FORECAST($C201,M$205:M$216,$C$205:$C$216)>100,100, FORECAST($C201,M$205:M$216,$C$205:$C$216)))) -> 0.7580104664 | N201: =IF(MAX(C205:C216)-MIN(C205:C216)<5,AVERAGEIF(C205:C216,">0",N205:N216), IF(FORECAST($C201,N$205:N$216,$C$205:$C$216)<0,0, IF(FORECAST($C201,N$205:N$216,$C$205:$C$216)>100,100, FORECAST($C201,N$205:N$216,$C$205:$C$216)))) -> 97.00179451 | R201: =IF(MAX(C205:C216)-MIN(C205:C216)<5,AVERAGEIF(C205:C216,">0",R205:R216), IF(FORECAST($C201,R$205:R$216,$C$205:$C$216)<0,0, IF(FORECAST($C201,R$205:R$216,$C$205:$C$216)>100,100, FORECAST($C201,R$205:R$216,$C$205:$C$216)))) -> 0.5361256964 | S201: =IF(MAX(C205:C216)-MIN(C205:C216)<5,AVERAGEIF(C205:C216,">0",S205:S216), IF(FORECAST($C201,S$205:S$216,$C$205:$C$216)<0,0, IF(FORECAST($C201,S$205:S$216,$C$205:$C$216)>100,100, FORECAST($C201,S$205:S$216,$C$205:$C$216)))) -> 98.99896699 | W201: =IF(MAX(C205:C216)-MIN(C205:C216)<5,AVERAGEIF(C205:C216,">0",W205:W216), IF(FORECAST($C201,W$205:W$216,$C$205:$C$216)<0,0, IF(FORECAST($C201,W$205:W$216,$C$205:$C$216)>100,100, FORECAST($C201,W$205:W$216,$C$205:$C$216)))) -> 0.03288658081 | X201: =IF(MAX(C205:C216)-MIN(C205:C216)<5,AVERAGEIF(C205:C216,">0",X205:X216), IF(FORECAST($C201,X$205:X$216,$C$205:$C$216)<0,0, IF(FORECAST($C201,X$205:X$216,$C$205:$C$216)>100,100, FORECAST($C201,X$205:X$216,$C$205:$C$216)))) -> 99.66518531 | AB201: =IF(MAX(C205:C216)-MIN(C205:C216)<5,AVERAGEIF(C205:C216,">0",AB205:AB216), IF(FORECAST($C201,AB$205:AB$216,$C$205:$C$216)<0,0, IF(FORECAST($C201,AB$205:AB$216,$C$205:$C$216)>100,100, FORECAST($C201,AB$205:AB$216,$C$205:$C$216)))) -> 0.005116621278
C202: =MaxRegYear(C200,C205:C216) -> 2018 | D202: =IF(MAX(C205:C216)-MIN(C205:C216)<5,AVERAGEIF(C205:C216,">0",D205:D216), IF(FORECAST($C202,D$205:D$216,$C$205:$C$216)<0,0, IF(FORECAST($C202,D$205:D$216,$C$205:$C$216)>100,100, FORECAST($C202,D$205:D$216,$C$205:$C$216)))) -> 99.39749414 | H202: =IF(MAX(C205:C216)-MIN(C205:C216)<5,AVERAGEIF(C205:C216,">0",H205:H216), IF(FORECAST($C202,H$205:H$216,$C$205:$C$216)<0,0, IF(FORECAST($C202,H$205:H$216,$C$205:$C$216)>100,100, FORECAST($C202,H$205:H$216,$C$205:$C$216)))) -> 0 | I202: =IF(MAX(C205:C216)-MIN(C205:C216)<5,AVERAGEIF(C205:C216,">0",I205:I216), IF(FORECAST($C202,I$205:I$216,$C$205:$C$216)<0,0, IF(FORECAST($C202,I$205:I$216,$C$205:$C$216)>100,100, FORECAST($C202,I$205:I$216,$C$205:$C$216)))) -> 100 | M202: =IF(MAX(C205:C216)-MIN(C205:C216)<5,AVERAGEIF(C205:C216,">0",M205:M216), IF(FORECAST($C202,M$205:M$216,$C$205:$C$216)<0,0, IF(FORECAST($C202,M$205:M$216,$C$205:$C$216)>100,100, FORECAST($C202,M$205:M$216,$C$205:$C$216)))) -> 0 | N202: =IF(MAX(C205:C216)-MIN(C205:C216)<5,AVERAGEIF(C205:C216,">0",N205:N216), IF(FORECAST($C202,N$205:N$216,$C$205:$C$216)<0,0, IF(FORECAST($C202,N$205:N$216,$C$205:$C$216)>100,100, FORECAST($C202,N$205:N$216,$C$205:$C$216)))) -> 100 | R202: =IF(MAX(C205:C216)-MIN(C205:C216)<5,AVERAGEIF(C205:C216,">0",R205:R216), IF(FORECAST($C202,R$205:R$216,$C$205:$C$216)<0,0, IF(FORECAST($C202,R$205:R$216,$C$205:$C$216)>100,100, FORECAST($C202,R$205:R$216,$C$205:$C$216)))) -> 0 | S202: =IF(MAX(C205:C216)-MIN(C205:C216)<5,AVERAGEIF(C205:C216,">0",S205:S216), IF(FORECAST($C202,S$205:S$216,$C$205:$C$216)<0,0, IF(FORECAST($C202,S$205:S$216,$C$205:$C$216)>100,100, FORECAST($C202,S$205:S$216,$C$205:$C$216)))) -> 99.99930464 | W202: =IF(MAX(C205:C216)-MIN(C205:C216)<5,AVERAGEIF(C205:C216,">0",W205:W216), IF(FORECAST($C202,W$205:W$216,$C$205:$C$216)<0,0, IF(FORECAST($C202,W$205:W$216,$C$205:$C$216)>100,100, FORECAST($C202,W$205:W$216,$C$205:$C$216)))) -> 0.006568951392 | X202: =IF(MAX(C205:C216)-MIN(C205:C216)<5,AVERAGEIF(C205:C216,">0",X205:X216), IF(FORECAST($C202,X$205:X$216,$C$205:$C$216)<0,0, IF(FORECAST($C202,X$205:X$216,$C$205:$C$216)>100,100, FORECAST($C202,X$205:X$216,$C$205:$C$216)))) -> 99.91320553 | AB202: =IF(MAX(C205:C216)-MIN(C205:C216)<5,AVERAGEIF(C205:C216,">0",AB205:AB216), IF(FORECAST($C202,AB$205:AB$216,$C$205:$C$216)<0,0, IF(FORECAST($C202,AB$205:AB$216,$C$205:$C$216)>100,100, FORECAST($C202,AB$205:AB$216,$C$205:$C$216)))) -> 0.03186700945
B204: Survey | C204: Year | D204: Improved | E204: % Improved < = 30min | H204: Surface water | I204: Improved | J204: % Improved < = 30min | M204: Surface water | N204: Improved | O204: % Improved < = 30min | R204: Surface water | S204: Improved | T204: % Improved < = 30min | W204: Surface water | X204: Improved | Y204: % Improved < = 30min | AB204: Surface water
B205: DHS03 | C205: 2003 | D205: =IF(ISERROR(INDIRECT(CONCATENATE($B205,"!H16"))),"",INDIRECT(CONCATENATE($B205,"!H16"))) -> 80.11140607 | E205: =IF(ISERROR(INDIRECT(CONCATENATE($B205,"!H23"))),"",INDIRECT(CONCATENATE($B205,"!H23"))) -> N/A | H205: =IF(ISERROR(INDIRECT(CONCATENATE($B205,"!H21"))),"",INDIRECT(CONCATENATE($B205,"!H21"))) -> 3.044919902 | I205: =IF(ISERROR(INDIRECT(CONCATENATE($B205,"!I16"))),"",INDIRECT(CONCATENATE($B205,"!I16"))) -> 93.97828433 | J205: =IF(ISERROR(INDIRECT(CONCATENATE($B205,"!I23"))),"",INDIRECT(CONCATENATE($B205,"!I23"))) -> N/A | M205: =IF(ISERROR(INDIRECT(CONCATENATE($B205,"!I21"))),"",INDIRECT(CONCATENATE($B205,"!I21"))) -> 0.6569280259 | N205: =IF(ISERROR(INDIRECT(CONCATENATE($B205,"!J16"))),"",INDIRECT(CONCATENATE($B205,"!J16"))) -> 96.90999366 | O205: =IF(ISERROR(INDIRECT(CONCATENATE($B205,"!J23"))),"",INDIRECT(CONCATENATE($B205,"!J23"))) -> N/A | R205: =IF(ISERROR(INDIRECT(CONCATENATE($B205,"!J21"))),"",INDIRECT(CONCATENATE($B205,"!J21"))) -> 0.5398917264 | S205: =IF(ISERROR(INDIRECT(CONCATENATE($B205,"!K16"))),"",INDIRECT(CONCATENATE($B205,"!K16"))) -> 99.04489183 | T205: =IF(ISERROR(INDIRECT(CONCATENATE($B205,"!K23"))),"",INDIRECT(CONCATENATE($B205,"!K23"))) -> N/A | W205: =IF(ISERROR(INDIRECT(CONCATENATE($B205,"!K21"))),"",INDIRECT(CONCATENATE($B205,"!K21"))) -> 0.01432616017 | X205: =IF(ISERROR(INDIRECT(CONCATENATE($B205,"!L16"))),"",INDIRECT(CONCATENATE($B205,"!L16"))) -> 99.84241222 | Y205: =IF(ISERROR(INDIRECT(CONCATENATE($B205,"!L23"))),"",INDIRECT(CONCATENATE($B205,"!L23"))) -> N/A | AB205: =IF(ISERROR(INDIRECT(CONCATENATE($B205,"!L221"))),"",INDIRECT(CONCATENATE($B205,"!L21"))) -> 0
B206: DHS08 | C206: 2008 | D206: 88.35840425 | E206: 99.91930461 | H206: 0.7959582668 | I206: 97.86950878 | J206: 100 | M206: 0.4265024775 | N206: 98.99626583 | O206: 99.84470523 | R206: 0.1285939327 | S206: 99.52748388 | T206: 100 | W206: 0.0471792819 | X206: 99.5267332 | Y206: 100 | AB206: 0.02956004137
B207: EDS16 | C207: 2016 | D207: 96.43590727 | E207: 99.66782933 | H207: 0.4418069836 | I207: 99.39073259 | J207: 99.93364512 | M207: 0.0297807095 | N207: 99.41981463 | O207: 99.97626699 | R207: 0 | S207: 99.83676664 | T207: 99.98195271 | W207: 0 | X207: 99.97655671 | Y207: 99.97240591 | AB207: 0.02355507635
B218: =CONCATENATE("Urban use of drinking water sources, ",C199,"–",C200) -> Urban use of drinking water sources, 2000–2020 | S218: Data points used for regression
E253: =IF(ISERROR(INDIRECT(CONCATENATE($B253,"!M18"))),"",INDIRECT(CONCATENATE($B253,"!M18"))) ->  | F253: =IF(ISERROR(INDIRECT(CONCATENATE($B253,"!M19"))),"",INDIRECT(CONCATENATE($B253,"!M19"))) ->  | G253: =IF(ISERROR(INDIRECT(CONCATENATE($B253,"!M20"))),"",INDIRECT(CONCATENATE($B253,"!M20"))) ->  | H253: =IF(ISERROR(INDIRECT(CONCATENATE($B253,"!M21"))),"",INDIRECT(CONCATENATE($B253,"!M21"))) ->  | J253: =IF(ISERROR(INDIRECT(CONCATENATE($B253,"!N18"))),"",INDIRECT(CONCATENATE($B253,"!N18"))) ->  | K253: =IF(ISERROR(INDIRECT(CONCATENATE($B253,"!N19"))),"",INDIRECT(CONCATENATE($B253,"!N19"))) ->  | L253: =IF(ISERROR(INDIRECT(CONCATENATE($B253,"!N20"))),"",INDIRECT(CONCATENATE($B253,"!N20"))) ->  | M253: =IF(ISERROR(INDIRECT(CONCATENATE($B253,"!N21"))),"",INDIRECT(CONCATENATE($B253,"!N21"))) ->  | O253: =IF(ISERROR(INDIRECT(CONCATENATE($B253,"!O18"))),"",INDIRECT(CONCATENATE($B253,"!O18"))) ->  | P253: =IF(ISERROR(INDIRECT(CONCATENATE($B253,"!O19"))),"",INDIRECT(CONCATENATE($B253,"!O19"))) ->  | Q253: =IF(ISERROR(INDIRECT(CONCATENATE($B253,"!O20"))),"",INDIRECT(CONCATENATE($B253,"!O20"))) ->  | R253: =IF(ISERROR(INDIRECT(CONCATENATE($B253,"!O21"))),"",INDIRECT(CONCATENATE($B253,"!O21"))) ->  | T253: =IF(ISERROR(INDIRECT(CONCATENATE($B253,"!P18"))),"",INDIRECT(CONCATENATE($B253,"!P18"))) ->  | U253: =IF(ISERROR(INDIRECT(CONCATENATE($B253,"!P19"))),"",INDIRECT(CONCATENATE($B253,"!P19"))) ->  | V253: =IF(ISERROR(INDIRECT(CONCATENATE($B253,"!P20"))),"",INDIRECT(CONCATENATE($B253,"!P20"))) ->  | W253: =IF(ISERROR(INDIRECT(CONCATENATE($B253,"!P21"))),"",INDIRECT(CONCATENATE($B253,"!P21"))) ->  | Y253: =IF(ISERROR(INDIRECT(CONCATENATE($B253,"!Q18"))),"",INDIRECT(CONCATENATE($B253,"!Q18"))) ->  | Z253: =IF(ISERROR(INDIRECT(CONCATENATE($B253,"!Q19"))),"",INDIRECT(CONCATENATE($B253,"!Q19"))) ->  | AA253: =IF(ISERROR(INDIRECT(CONCATENATE($B253,"!Q20"))),"",INDIRECT(CONCATENATE($B253,"!Q20"))) ->  | AB253: =IF(ISERROR(INDIRECT(CONCATENATE($B253,"!Q21"))),"",INDIRECT(CONCATENATE($B253,"!Q1"))) -> 
E254: =IF(ISERROR(INDIRECT(CONCATENATE($B254,"!M18"))),"",INDIRECT(CONCATENATE($B254,"!M18"))) ->  | F254: =IF(ISERROR(INDIRECT(CONCATENATE($B254,"!M19"))),"",INDIRECT(CONCATENATE($B254,"!M19"))) ->  | G254: =IF(ISERROR(INDIRECT(CONCATENATE($B254,"!M20"))),"",INDIRECT(CONCATENATE($B254,"!M20"))) ->  | H254: =IF(ISERROR(INDIRECT(CONCATENATE($B254,"!M21"))),"",INDIRECT(CONCATENATE($B254,"!M21"))) ->  | J254: =IF(ISERROR(INDIRECT(CONCATENATE($B254,"!N18"))),"",INDIRECT(CONCATENATE($B254,"!N18"))) ->  | K254: =IF(ISERROR(INDIRECT(CONCATENATE($B254,"!N19"))),"",INDIRECT(CONCATENATE($B254,"!N19"))) ->  | L254: =IF(ISERROR(INDIRECT(CONCATENATE($B254,"!N20"))),"",INDIRECT(CONCATENATE($B254,"!N20"))) ->  | M254: =IF(ISERROR(INDIRECT(CONCATENATE($B254,"!N21"))),"",INDIRECT(CONCATENATE($B254,"!N21"))) ->  | O254: =IF(ISERROR(INDIRECT(CONCATENATE($B254,"!O18"))),"",INDIRECT(CONCATENATE($B254,"!O18"))) ->  | P254: =IF(ISERROR(INDIRECT(CONCATENATE($B254,"!O19"))),"",INDIRECT(CONCATENATE($B254,"!O19"))) ->  | Q254: =IF(ISERROR(INDIRECT(CONCATENATE($B254,"!O20"))),"",INDIRECT(CONCATENATE($B254,"!O20"))) ->  | R254: =IF(ISERROR(INDIRECT(CONCATENATE($B254,"!O21"))),"",INDIRECT(CONCATENATE($B254,"!O21"))) ->  | T254: =IF(ISERROR(INDIRECT(CONCATENATE($B254,"!P18"))),"",INDIRECT(CONCATENATE($B254,"!P18"))) ->  | U254: =IF(ISERROR(INDIRECT(CONCATENATE($B254,"!P19"))),"",INDIRECT(CONCATENATE($B254,"!P19"))) ->  | V254: =IF(ISERROR(INDIRECT(CONCATENATE($B254,"!P20"))),"",INDIRECT(CONCATENATE($B254,"!P20"))) ->  | W254: =IF(ISERROR(INDIRECT(CONCATENATE($B254,"!P21"))),"",INDIRECT(CONCATENATE($B254,"!P21"))) ->  | Y254: =IF(ISERROR(INDIRECT(CONCATENATE($B254,"!Q18"))),"",INDIRECT(CONCATENATE($B254,"!Q18"))) ->  | Z254: =IF(ISERROR(INDIRECT(CONCATENATE($B254,"!Q19"))),"",INDIRECT(CONCATENATE($B254,"!Q19"))) ->  | AA254: =IF(ISERROR(INDIRECT(CONCATENATE($B254,"!Q20"))),"",INDIRECT(CONCATENATE($B254,"!Q20"))) ->  | AB254: =IF(ISERROR(INDIRECT(CONCATENATE($B254,"!Q21"))),"",INDIRECT(CONCATENATE($B254,"!Q1"))) -> 
E255: =IF(ISERROR(INDIRECT(CONCATENATE($B255,"!M18"))),"",INDIRECT(CONCATENATE($B255,"!M18"))) ->  | F255: =IF(ISERROR(INDIRECT(CONCATENATE($B255,"!M19"))),"",INDIRECT(CONCATENATE($B255,"!M19"))) ->  | G255: =IF(ISERROR(INDIRECT(CONCATENATE($B255,"!M20"))),"",INDIRECT(CONCATENATE($B255,"!M20"))) ->  | H255: =IF(ISERROR(INDIRECT(CONCATENATE($B255,"!M21"))),"",INDIRECT(CONCATENATE($B255,"!M21"))) ->  | J255: =IF(ISERROR(INDIRECT(CONCATENATE($B255,"!N18"))),"",INDIRECT(CONCATENATE($B255,"!N18"))) ->  | K255: =IF(ISERROR(INDIRECT(CONCATENATE($B255,"!N19"))),"",INDIRECT(CONCATENATE($B255,"!N19"))) ->  | L255: =IF(ISERROR(INDIRECT(CONCATENATE($B255,"!N20"))),"",INDIRECT(CONCATENATE($B255,"!N20"))) ->  | M255: =IF(ISERROR(INDIRECT(CONCATENATE($B255,"!N21"))),"",INDIRECT(CONCATENATE($B255,"!N21"))) ->  | O255: =IF(ISERROR(INDIRECT(CONCATENATE($B255,"!O18"))),"",INDIRECT(CONCATENATE($B255,"!O18"))) ->  | P255: =IF(ISERROR(INDIRECT(CONCATENATE($B255,"!O19"))),"",INDIRECT(CONCATENATE($B255,"!O19"))) ->  | Q255: =IF(ISERROR(INDIRECT(CONCATENATE($B255,"!O20"))),"",INDIRECT(CONCATENATE($B255,"!O20"))) ->  | R255: =IF(ISERROR(INDIRECT(CONCATENATE($B255,"!O21"))),"",INDIRECT(CONCATENATE($B255,"!O21"))) ->  | T255: =IF(ISERROR(INDIRECT(CONCATENATE($B255,"!P18"))),"",INDIRECT(CONCATENATE($B255,"!P18"))) ->  | U255: =IF(ISERROR(INDIRECT(CONCATENATE($B255,"!P19"))),"",INDIRECT(CONCATENATE($B255,"!P19"))) ->  | V255: =IF(ISERROR(INDIRECT(CONCATENATE($B255,"!P20"))),"",INDIRECT(CONCATENATE($B255,"!P20"))) ->  | W255: =IF(ISERROR(INDIRECT(CONCATENATE($B255,"!P21"))),"",INDIRECT(CONCATENATE($B255,"!P21"))) ->  | Y255: =IF(ISERROR(INDIRECT(CONCATENATE($B255,"!Q18"))),"",INDIRECT(CONCATENATE($B255,"!Q18"))) ->  | Z255: =IF(ISERROR(INDIRECT(CONCATENATE($B255,"!Q19"))),"",INDIRECT(CONCATENATE($B255,"!Q19"))) ->  | AA255: =IF(ISERROR(INDIRECT(CONCATENATE($B255,"!Q20"))),"",INDIRECT(CONCATENATE($B255,"!Q20"))) ->  | AB255: =IF(ISERROR(INDIRECT(CONCATENATE($B255,"!Q21"))),"",INDIRECT(CONCATENATE($B255,"!Q1"))) -> 
E256: =IF(ISERROR(INDIRECT(CONCATENATE($B256,"!M18"))),"",INDIRECT(CONCATENATE($B256,"!M18"))) ->  | F256: =IF(ISERROR(INDIRECT(CONCATENATE($B256,"!M19"))),"",INDIRECT(CONCATENATE($B256,"!M19"))) ->  | G256: =IF(ISERROR(INDIRECT(CONCATENATE($B256,"!M20"))),"",INDIRECT(CONCATENATE($B256,"!M20"))) ->  | H256: =IF(ISERROR(INDIRECT(CONCATENATE($B256,"!M21"))),"",INDIRECT(CONCATENATE($B256,"!M21"))) ->  | J256: =IF(ISERROR(INDIRECT(CONCATENATE($B256,"!N18"))),"",INDIRECT(CONCATENATE($B256,"!N18"))) ->  | K256: =IF(ISERROR(INDIRECT(CONCATENATE($B256,"!N19"))),"",INDIRECT(CONCATENATE($B256,"!N19"))) ->  | L256: =IF(ISERROR(INDIRECT(CONCATENATE($B256,"!N20"))),"",INDIRECT(CONCATENATE($B256,"!N20"))) ->  | M256: =IF(ISERROR(INDIRECT(CONCATENATE($B256,"!N21"))),"",INDIRECT(CONCATENATE($B256,"!N21"))) ->  | O256: =IF(ISERROR(INDIRECT(CONCATENATE($B256,"!O18"))),"",INDIRECT(CONCATENATE($B256,"!O18"))) ->  | P256: =IF(ISERROR(INDIRECT(CONCATENATE($B256,"!O19"))),"",INDIRECT(CONCATENATE($B256,"!O19"))) ->  | Q256: =IF(ISERROR(INDIRECT(CONCATENATE($B256,"!O20"))),"",INDIRECT(CONCATENATE($B256,"!O20"))) ->  | R256: =IF(ISERROR(INDIRECT(CONCATENATE($B256,"!O21"))),"",INDIRECT(CONCATENATE($B256,"!O21"))) ->  | T256: =IF(ISERROR(INDIRECT(CONCATENATE($B256,"!P18"))),"",INDIRECT(CONCATENATE($B256,"!P18"))) ->  | U256: =IF(ISERROR(INDIRECT(CONCATENATE($B256,"!P19"))),"",INDIRECT(CONCATENATE($B256,"!P19"))) ->  | V256: =IF(ISERROR(INDIRECT(CONCATENATE($B256,"!P20"))),"",INDIRECT(CONCATENATE($B256,"!P20"))) ->  | W256: =IF(ISERROR(INDIRECT(CONCATENATE($B256,"!P21"))),"",INDIRECT(CONCATENATE($B256,"!P21"))) ->  | Y256: =IF(ISERROR(INDIRECT(CONCATENATE($B256,"!Q18"))),"",INDIRECT(CONCATENATE($B256,"!Q18"))) ->  | Z256: =IF(ISERROR(INDIRECT(CONCATENATE($B256,"!Q19"))),"",INDIRECT(CONCATENATE($B256,"!Q19"))) ->  | AA256: =IF(ISERROR(INDIRECT(CONCATENATE($B256,"!Q20"))),"",INDIRECT(CONCATENATE($B256,"!Q20"))) ->  | AB256: =IF(ISERROR(INDIRECT(CONCATENATE($B256,"!Q21"))),"",INDIRECT(CONCATENATE($B256,"!Q1"))) -> 
E257: =IF(ISERROR(INDIRECT(CONCATENATE($B257,"!M18"))),"",INDIRECT(CONCATENATE($B257,"!M18"))) ->  | F257: =IF(ISERROR(INDIRECT(CONCATENATE($B257,"!M19"))),"",INDIRECT(CONCATENATE($B257,"!M19"))) ->  | G257: =IF(ISERROR(INDIRECT(CONCATENATE($B257,"!M20"))),"",INDIRECT(CONCATENATE($B257,"!M20"))) ->  | H257: =IF(ISERROR(INDIRECT(CONCATENATE($B257,"!M21"))),"",INDIRECT(CONCATENATE($B257,"!M21"))) ->  | J257: =IF(ISERROR(INDIRECT(CONCATENATE($B257,"!N18"))),"",INDIRECT(CONCATENATE($B257,"!N18"))) ->  | K257: =IF(ISERROR(INDIRECT(CONCATENATE($B257,"!N19"))),"",INDIRECT(CONCATENATE($B257,"!N19"))) ->  | L257: =IF(ISERROR(INDIRECT(CONCATENATE($B257,"!N20"))),"",INDIRECT(CONCATENATE($B257,"!N20"))) ->  | M257: =IF(ISERROR(INDIRECT(CONCATENATE($B257,"!N21"))),"",INDIRECT(CONCATENATE($B257,"!N21"))) ->  | O257: =IF(ISERROR(INDIRECT(CONCATENATE($B257,"!O18"))),"",INDIRECT(CONCATENATE($B257,"!O18"))) ->  | P257: =IF(ISERROR(INDIRECT(CONCATENATE($B257,"!O19"))),"",INDIRECT(CONCATENATE($B257,"!O19"))) ->  | Q257: =IF(ISERROR(INDIRECT(CONCATENATE($B257,"!O20"))),"",INDIRECT(CONCATENATE($B257,"!O20"))) ->  | R257: =IF(ISERROR(INDIRECT(CONCATENATE($B257,"!O21"))),"",INDIRECT(CONCATENATE($B257,"!O21"))) ->  | T257: =IF(ISERROR(INDIRECT(CONCATENATE($B257,"!P18"))),"",INDIRECT(CONCATENATE($B257,"!P18"))) ->  | U257: =IF(ISERROR(INDIRECT(CONCATENATE($B257,"!P19"))),"",INDIRECT(CONCATENATE($B257,"!P19"))) ->  | V257: =IF(ISERROR(INDIRECT(CONCATENATE($B257,"!P20"))),"",INDIRECT(CONCATENATE($B257,"!P20"))) ->  | W257: =IF(ISERROR(INDIRECT(CONCATENATE($B257,"!P21"))),"",INDIRECT(CONCATENATE($B257,"!P21"))) ->  | Y257: =IF(ISERROR(INDIRECT(CONCATENATE($B257,"!Q18"))),"",INDIRECT(CONCATENATE($B257,"!Q18"))) ->  | Z257: =IF(ISERROR(INDIRECT(CONCATENATE($B257,"!Q19"))),"",INDIRECT(CONCATENATE($B257,"!Q19"))) ->  | AA257: =IF(ISERROR(INDIRECT(CONCATENATE($B257,"!Q20"))),"",INDIRECT(CONCATENATE($B257,"!Q20"))) ->  | AB257: =IF(ISERROR(INDIRECT(CONCATENATE($B257,"!Q21"))),"",INDIRECT(CONCATENATE($B257,"!Q1"))) -> 
A297: RURAL | D297: Poorest | I297: Poor | N297: Middle | S297: Rich | X297: Richest
D298: Improved | E298: Basic | F298: Limited | G298: Unimproved | H298: Surface water | I298: Improved | J298: Basic | K298: Limited | L298: Unimproved | M298: Surface water | N298: Improved | O298: Basic | P298: Limited | Q298: Unimproved | R298: Surface water | S298: Improved | T298: Basic | U298: Limited | V298: Unimproved | W298: Surface water | X298: Improved | Y298: Basic | Z298: Limited | AA298: Unimproved | AB298: Surface water
A299: Forecast period: | C299: 2000 | D299: =IF((D301+H301)>100,D301*100/(D301+H301),D301) -> 37.80578929 | E299: =D299*AVERAGEIF(E305:E316,">0")/100 -> 37.4046777 | F299: =D299*(100-AVERAGEIF(E305:E316,">0"))/100 -> 0.4011115905 | G299: =100-(E299+F299+H299) -> 23.05660444 | H299: =IF((D301+H301)>100,H301*100/(D301+H301),H301) -> 39.13760627 | I299: =IF((I301+M301)>100,I301*100/(I301+M301),I301) -> 47.2689481 | J299: =I299*AVERAGEIF(J305:J316,">0")/100 -> 46.9010721 | K299: =I299*(100-AVERAGEIF(J305:J316,">0"))/100 -> 0.3678759932 | L299: =100-(J299+K299+M299) -> 23.75224954 | M299: =IF((I301+M301)>100,M301*100/(I301+M301),M301) -> 28.97880237 | N299: =IF((N301+R301)>100,N301*100/(N301+R301),N301) -> 56.51651704 | O299: =N299*AVERAGEIF(O305:O316,">0")/100 -> 56.42700093 | P299: =N299*(100-AVERAGEIF(O305:O316,">0"))/100 -> 0.08951610992 | Q299: =100-(O299+P299+R299) -> 20.22998451 | R299: =IF((N301+R301)>100,R301*100/(N301+R301),R301) -> 23.25349846 | S299: =IF((S301+W301)>100,S301*100/(S301+W301),S301) -> 69.07880455 | T299: =S299*AVERAGEIF(T305:T316,">0")/100 -> 68.99070261 | U299: =S299*(100-AVERAGEIF(T305:T316,">0"))/100 -> 0.08810194424 | V299: =100-(T299+U299+W299) -> 17.26032423 | W299: =IF((S301+W301)>100,W301*100/(S301+W301),W301) -> 13.66087122 | X299: =IF((X301+AB301)>100,X301*100/(X301+AB301),X301) -> 87.19882593 | Y299: =X299*AVERAGEIF(Y305:Y316,">0")/100 -> 87.11899028 | Z299: =X299*(100-AVERAGEIF(Y305:Y316,">0"))/100 -> 0.07983564536 | AA299: =100-(Y299+Z299+AB299) -> 11.16491475 | AB299: =IF((X301+AB301)>100,AB301*100/(X301+AB301),AB301) -> 1.636259318
C300: 2020 | D300: =IF((D302+H302)>100,D302*100/(D302+H302),D302) -> 72.56783473 | E300: =D300*AVERAGEIF(E305:E316,">0")/100 -> 71.79790504 | F300: =D300*(100-AVERAGEIF(E305:E316,">0"))/100 -> 0.7699296894 | G300: =100-(E300+F300+H300) -> 5.396272443 | H300: =IF((D302+H302)>100,H302*100/(D302+H302),H302) -> 22.03589283 | I300: =IF((I302+M302)>100,I302*100/(I302+M302),I302) -> 82.11072333 | J300: =I300*AVERAGEIF(J305:J316,">0")/100 -> 81.47168724 | K300: =I300*(100-AVERAGEIF(J305:J316,">0"))/100 -> 0.6390360927 | L300: =100-(J300+K300+M300) -> 5.279832927 | M300: =IF((I302+M302)>100,M302*100/(I302+M302),M302) -> 12.60944374 | N300: =IF((N302+R302)>100,N302*100/(N302+R302),N302) -> 88.20356095 | O300: =N300*AVERAGEIF(O305:O316,">0")/100 -> 88.06385596 | P300: =N300*(100-AVERAGEIF(O305:O316,">0"))/100 -> 0.1397049937 | Q300: =100-(O300+P300+R300) -> 5.747268463 | R300: =IF((N302+R302)>100,R302*100/(N302+R302),R302) -> 6.049170584 | S300: =IF((S302+W302)>100,S302*100/(S302+W302),S302) -> 94.56951529 | T300: =S300*AVERAGEIF(T305:T316,">0")/100 -> 94.44890292 | U300: =S300*(100-AVERAGEIF(T305:T316,">0"))/100 -> 0.1206123675 | V300: =100-(T300+U300+W300) -> 1.232571949 | W300: =IF((S302+W302)>100,W302*100/(S302+W302),W302) -> 4.197912762 | X300: =IF((X302+AB302)>100,X302*100/(X302+AB302),X302) -> 95.11735573 | Y300: =X300*AVERAGEIF(Y305:Y316,">0")/100 -> 95.03027021 | Z300: =X300*(100-AVERAGEIF(Y305:Y316,">0"))/100 -> 0.08708552436 | AA300: =100-(Y300+Z300+AB300) -> 0 | AB300: =IF((X302+AB302)>100,AB302*100/(X302+AB302),AB302) -> 4.882644268
A301: Regression period: | C301: =MinRegYear(C299,C305:C316) -> 2001 | D301: =IF(MAX(C305:C316)-MIN(C305:C316)<5,AVERAGEIF(C305:C316,">0",D305:D316), IF(FORECAST($C301,D$305:D$316,$C$305:$C$316)<0,0, IF(FORECAST($C301,D$305:D$316,$C$305:$C$316)>100,100, FORECAST($C301,D$305:D$316,$C$305:$C$316)))) -> 37.80578929 | H301: =IF(MAX(C305:C316)-MIN(C305:C316)<5,AVERAGEIF(C305:C316,">0",H305:H316), IF(FORECAST($C301,H$305:H$316,$C$305:$C$316)<0,0, IF(FORECAST($C301,H$305:H$316,$C$305:$C$316)>100,100, FORECAST($C301,H$305:H$316,$C$305:$C$316)))) -> 39.13760627 | I301: =IF(MAX(C305:C316)-MIN(C305:C316)<5,AVERAGEIF(C305:C316,">0",I305:I316), IF(FORECAST($C301,I$305:I$316,$C$305:$C$316)<0,0, IF(FORECAST($C301,I$305:I$316,$C$305:$C$316)>100,100, FORECAST($C301,I$305:I$316,$C$305:$C$316)))) -> 47.2689481 | M301: =IF(MAX(C305:C316)-MIN(C305:C316)<5,AVERAGEIF(C305:C316,">0",M305:M316), IF(FORECAST($C301,M$305:M$316,$C$305:$C$316)<0,0, IF(FORECAST($C301,M$305:M$316,$C$305:$C$316)>100,100, FORECAST($C301,M$305:M$316,$C$305:$C$316)))) -> 28.97880237 | N301: =IF(MAX(C305:C316)-MIN(C305:C316)<5,AVERAGEIF(C305:C316,">0",N305:N316), IF(FORECAST($C301,N$305:N$316,$C$305:$C$316)<0,0, IF(FORECAST($C301,N$305:N$316,$C$305:$C$316)>100,100, FORECAST($C301,N$305:N$316,$C$305:$C$316)))) -> 56.51651704 | R301: =IF(MAX(C305:C316)-MIN(C305:C316)<5,AVERAGEIF(C305:C316,">0",R305:R316), IF(FORECAST($C301,R$305:R$316,$C$305:$C$316)<0,0, IF(FORECAST($C301,R$305:R$316,$C$305:$C$316)>100,100, FORECAST($C301,R$305:R$316,$C$305:$C$316)))) -> 23.25349846 | S301: =IF(MAX(C305:C316)-MIN(C305:C316)<5,AVERAGEIF(C305:C316,">0",S305:S316), IF(FORECAST($C301,S$305:S$316,$C$305:$C$316)<0,0, IF(FORECAST($C301,S$305:S$316,$C$305:$C$316)>100,100, FORECAST($C301,S$305:S$316,$C$305:$C$316)))) -> 69.07880455 | W301: =IF(MAX(C305:C316)-MIN(C305:C316)<5,AVERAGEIF(C305:C316,">0",W305:W316), IF(FORECAST($C301,W$305:W$316,$C$305:$C$316)<0,0, IF(FORECAST($C301,W$305:W$316,$C$305:$C$316)>100,100, FORECAST($C301,W$305:W$316,$C$305:$C$316)))) -> 13.66087122 | X301: =IF(MAX(C305:C316)-MIN(C305:C316)<5,AVERAGEIF(C305:C316,">0",X305:X316), IF(FORECAST($C301,X$305:X$316,$C$305:$C$316)<0,0, IF(FORECAST($C301,X$305:X$316,$C$305:$C$316)>100,100, FORECAST($C301,X$305:X$316,$C$305:$C$316)))) -> 87.19882593 | AB301: =IF(MAX(C305:C316)-MIN(C305:C316)<5,AVERAGEIF(C305:C316,">0",AB305:AB316), IF(FORECAST($C301,AB$305:AB$316,$C$305:$C$316)<0,0, IF(FORECAST($C301,AB$305:AB$316,$C$305:$C$316)>100,100, FORECAST($C301,AB$305:AB$316,$C$305:$C$316)))) -> 1.636259318
C302: =MaxRegYear(C300,C305:C316) -> 2018 | D302: =IF(MAX(C305:C316)-MIN(C305:C316)<5,AVERAGEIF(C305:C316,">0",D305:D316), IF(FORECAST($C302,D$305:D$316,$C$305:$C$316)<0,0, IF(FORECAST($C302,D$305:D$316,$C$305:$C$316)>100,100, FORECAST($C302,D$305:D$316,$C$305:$C$316)))) -> 72.56783473 | H302: =IF(MAX(C305:C316)-MIN(C305:C316)<5,AVERAGEIF(C305:C316,">0",H305:H316), IF(FORECAST($C302,H$305:H$316,$C$305:$C$316)<0,0, IF(FORECAST($C302,H$305:H$316,$C$305:$C$316)>100,100, FORECAST($C302,H$305:H$316,$C$305:$C$316)))) -> 22.03589283 | I302: =IF(MAX(C305:C316)-MIN(C305:C316)<5,AVERAGEIF(C305:C316,">0",I305:I316), IF(FORECAST($C302,I$305:I$316,$C$305:$C$316)<0,0, IF(FORECAST($C302,I$305:I$316,$C$305:$C$316)>100,100, FORECAST($C302,I$305:I$316,$C$305:$C$316)))) -> 82.11072333 | M302: =IF(MAX(C305:C316)-MIN(C305:C316)<5,AVERAGEIF(C305:C316,">0",M305:M316), IF(FORECAST($C302,M$305:M$316,$C$305:$C$316)<0,0, IF(FORECAST($C302,M$305:M$316,$C$305:$C$316)>100,100, FORECAST($C302,M$305:M$316,$C$305:$C$316)))) -> 12.60944374 | N302: =IF(MAX(C305:C316)-MIN(C305:C316)<5,AVERAGEIF(C305:C316,">0",N305:N316), IF(FORECAST($C302,N$305:N$316,$C$305:$C$316)<0,0, IF(FORECAST($C302,N$305:N$316,$C$305:$C$316)>100,100, FORECAST($C302,N$305:N$316,$C$305:$C$316)))) -> 88.20356095 | R302: =IF(MAX(C305:C316)-MIN(C305:C316)<5,AVERAGEIF(C305:C316,">0",R305:R316), IF(FORECAST($C302,R$305:R$316,$C$305:$C$316)<0,0, IF(FORECAST($C302,R$305:R$316,$C$305:$C$316)>100,100, FORECAST($C302,R$305:R$316,$C$305:$C$316)))) -> 6.049170584 | S302: =IF(MAX(C305:C316)-MIN(C305:C316)<5,AVERAGEIF(C305:C316,">0",S305:S316), IF(FORECAST($C302,S$305:S$316,$C$305:$C$316)<0,0, IF(FORECAST($C302,S$305:S$316,$C$305:$C$316)>100,100, FORECAST($C302,S$305:S$316,$C$305:$C$316)))) -> 94.56951529 | W302: =IF(MAX(C305:C316)-MIN(C305:C316)<5,AVERAGEIF(C305:C316,">0",W305:W316), IF(FORECAST($C302,W$305:W$316,$C$305:$C$316)<0,0, IF(FORECAST($C302,W$305:W$316,$C$305:$C$316)>100,100, FORECAST($C302,W$305:W$316,$C$305:$C$316)))) -> 4.197912762 | X302: =IF(MAX(C305:C316)-MIN(C305:C316)<5,AVERAGEIF(C305:C316,">0",X305:X316), IF(FORECAST($C302,X$305:X$316,$C$305:$C$316)<0,0, IF(FORECAST($C302,X$305:X$316,$C$305:$C$316)>100,100, FORECAST($C302,X$305:X$316,$C$305:$C$316)))) -> 95.21679619 | AB302: =IF(MAX(C305:C316)-MIN(C305:C316)<5,AVERAGEIF(C305:C316,">0",AB305:AB316), IF(FORECAST($C302,AB$305:AB$316,$C$305:$C$316)<0,0, IF(FORECAST($C302,AB$305:AB$316,$C$305:$C$316)>100,100, FORECAST($C302,AB$305:AB$316,$C$305:$C$316)))) -> 4.88774883
B304: Survey | C304: Year | D304: Improved | E304: % Improved < = 30min | H304: Surface water | I304: Improved | J304: % Improved < = 30min | M304: Surface water | N304: Improved | O304: % Improved < = 30min | R304: Surface water | S304: Improved | T304: % Improved < = 30min | W304: Surface water | X304: Improved | Y304: % Improved < = 30min | AB304: Surface water
B305: DHS03 | C305: 2003 | D305: =IF(ISERROR(INDIRECT(CONCATENATE($B305,"!M16"))),"",INDIRECT(CONCATENATE($B305,"!M16"))) -> 41.79748668 | E305: =IF(ISERROR(INDIRECT(CONCATENATE($B305,"!M23"))),"",INDIRECT(CONCATENATE($B305,"!M23"))) -> N/A | H305: =IF(ISERROR(INDIRECT(CONCATENATE($B305,"!M21"))),"",INDIRECT(CONCATENATE($B305,"!M21"))) -> 38.92396836 | I305: =IF(ISERROR(INDIRECT(CONCATENATE($B305,"!N16"))),"",INDIRECT(CONCATENATE($B305,"!N16"))) -> 49.53237955 | J305: =IF(ISERROR(INDIRECT(CONCATENATE($B305,"!N23"))),"",INDIRECT(CONCATENATE($B305,"!N23"))) -> N/A | M305: =IF(ISERROR(INDIRECT(CONCATENATE($B305,"!N21"))),"",INDIRECT(CONCATENATE($B305,"!N21"))) -> 30.56872549 | N305: =IF(ISERROR(INDIRECT(CONCATENATE($B305,"!O16"))),"",INDIRECT(CONCATENATE($B305,"!O16"))) -> 58.49618561 | O305: =IF(ISERROR(INDIRECT(CONCATENATE($B305,"!O23"))),"",INDIRECT(CONCATENATE($B305,"!O23"))) -> N/A | R305: =IF(ISERROR(INDIRECT(CONCATENATE($B305,"!O21"))),"",INDIRECT(CONCATENATE($B305,"!O21"))) -> 25.38747706 | S305: =IF(ISERROR(INDIRECT(CONCATENATE($B305,"!P16"))),"",INDIRECT(CONCATENATE($B305,"!P16"))) -> 69.94267925 | T305: =IF(ISERROR(INDIRECT(CONCATENATE($B305,"!P23"))),"",INDIRECT(CONCATENATE($B305,"!P23"))) -> N/A | W305: =IF(ISERROR(INDIRECT(CONCATENATE($B305,"!P21"))),"",INDIRECT(CONCATENATE($B305,"!P21"))) -> 15.68259998 | X305: =IF(ISERROR(INDIRECT(CONCATENATE($B305,"!Q16"))),"",INDIRECT(CONCATENATE($B305,"!Q16"))) -> 86.2653429 | Y305: =IF(ISERROR(INDIRECT(CONCATENATE($B305,"!Q23"))),"",INDIRECT(CONCATENATE($B305,"!Q23"))) -> N/A | AB305: =IF(ISERROR(INDIRECT(CONCATENATE($B305,"!Q221"))),"",INDIRECT(CONCATENATE($B305,"!Q21"))) -> 3.318371942
B306: DHS08 | C306: 2008 | D306: 52.27874961 | E306: 99.93397678 | H306: 29.17344064 | I306: 64.59841293 | J306: 99.73427526 | M306: 16.52541695 | N306: 72.40497914 | O306: 99.99513454 | R306: 9.412585534 | S306: 83.04440728 | T306: 99.98938797 | W306: 4.669954679 | X306: 93.55010027 | Y306: 100 | AB306: 0.8632832167
B307: EDS16 | C307: 2016 | D307: 68.41696044 | E307: 97.94406467 | H307: 25.17181435 | I307: 76.86444037 | J307: 98.70920187 | M307: 16.7325819 | N307: 83.38303659 | O307: 99.68808688 | R307: 10.6719699 | S307: 90.23621287 | T307: 99.7555354 | W307: 7.270588236 | X307: 93.10052204 | Y307: 99.81688826 | AB307: 5.31746093
B318: =CONCATENATE("Rural use of drinking water sources, ",C299,"–",C300) -> Rural use of drinking water sources, 2000–2020 | S318: Data points used for regression

Sheet Sanitation
B4: Summary of trends in use of sanitation facilities by wealth quintile (%)
B5: =IF(ISERROR(INDIRECT(CONCATENATE($B105,"!A2"))),"",INDIRECT(CONCATENATE($B105,"!A2"))) -> Bolivia (Plurinational State of)
B7: =B118 -> National use of sanitation facilities, 2000–2020 | J7: =B218 -> Urban use of sanitation facilities, 2000–2020 | R7: =B318 -> Rural use of sanitation facilities, 2000–2020
B31: =IF(ISERROR(INDIRECT(CONCATENATE($B105,"!A2"))),"",INDIRECT(CONCATENATE($B105,"!A2"))) -> Bolivia (Plurinational State of) | F31: Poorest | J31: Poor | N31: Middle | R31: Rich | V31: Richest
F32: Basic | G32: Limited | H32: Unimproved | I32: Open defecation | J32: Basic | K32: Limited | L32: Unimproved | M32: Open defecation | N32: Basic | O32: Limited | P32: Unimproved | Q32: Open defecation | R32: Basic | S32: Limited | T32: Unimproved | U32: Open defecation | V32: Basic | W32: Limited | X32: Unimproved | Y32: Open defecation
B33: NATIONAL | D33: Estimate | E33: =C99 -> 2000 | F33: =E99 -> 9.141727594 | G33: =F99 -> 4.320537182 | H33: 12.4810418 | I33: 74.05669342 | J33: =J99 -> 14.53562641 | K33: =K99 -> 8.292190255 | L33: 20.06401424 | M33: 57.10816909 | N33: =O99 -> 25.91339052 | O33: =P99 -> 19.72884995 | P33: 16.07245981 | Q33: 38.28529971 | R33: =T99 -> 47.98483712 | S33: =U99 -> 24.14126446 | T33: 14.95055397 | U33: 12.92334446 | V33: =Y99 -> 80.64348879 | W33: =Z99 -> 9.166728371 | X33: 8.70181826 | Y33: 1.487964583
E34: =C100 -> 2020 | F34: =E100 -> 20.69069051 | G34: 9.778775044 | H34: 21.99072068 | I34: 47.53981377 | J34: =J100 -> 42.89979993 | K34: 24.47320073 | L34: 18.11310214 | M34: 14.5138972 | N34: =O100 -> 47.03076046 | O34: 35.806307 | P34: 13.34182162 | Q34: 3.821110911 | R34: =T100 -> 61.16460936 | S34: 30.77203339 | T34: 6.930585404 | U34: 1.132771849 | V34: =Y100 -> 87.71599854 | W34: 9.970659064 | X34: 2.029138256 | Y34: 0.284204138
B36: URBAN | D36: Estimate | E36: =C199 -> 2000 | F36: =E199 -> 16.93385853 | G36: =F199 -> 15.47090256 | H36: 17.93694079 | I36: 49.65829812 | J36: =J199 -> 28.44503285 | K36: =K199 -> 25.40052322 | L36: 14.46270347 | M36: 31.69174046 | N36: =O199 -> 46.5531998 | O36: =P199 -> 27.04336001 | P36: 14.13620366 | Q36: 12.26723652 | R36: =T199 -> 60.90359106 | S36: =U199 -> 19.07292441 | T36: 12.76199843 | U36: 7.261486099 | V36: =Y199 -> 88.63512123 | W36: =Z199 -> 5.074008806 | X36: 5.881028561 | Y36: 0.4098414015
E37: =C200 -> 2020 | F37: =E200 -> 37.85708862 | G37: 34.58652546 | H37: 15.64426269 | I37: 11.91212324 | J37: =J200 -> 46.58620076 | K37: 41.60001784 | L37: 10.67097628 | M37: 1.142805126 | N37: =O200 -> 58.86671751 | O37: 34.1964428 | P37: 6.090756226 | Q37: 0.8460834644 | R37: =T200 -> 73.17338267 | S37: 22.91540404 | T37: 3.911213286 | U37: 0 | V37: =Y200 -> 93.14240835 | W37: 5.332033099 | X37: 1.107226877 | Y37: 0.418331678
B39: RURAL | D39: Estimate | E39: =C299 -> 2000 | F39: =E299 -> 6.086664904 | G39: =F299 -> 2.900548958 | H39: 8.12453718 | I39: 82.88824896 | J39: =J299 -> 11.43109098 | K39: =K299 -> 4.410737408 | L39: 13.03721151 | M39: 71.1209601 | N39: =O299 -> 13.74240098 | O39: =P299 -> 5.316324114 | P39: 17.19429112 | Q39: 63.74698378 | R39: =T299 -> 16.15640126 | S39: =U299 -> 6.381405016 | T39: 18.90427996 | U39: 58.55791377 | V39: =Y299 -> 30.82251636 | W39: =Z299 -> 8.428128602 | X39: 24.53036734 | Y39: 36.2189877
E40: =C300 -> 2020 | F40: =E300 -> 15.39402396 | G40: 7.335892621 | H40: 21.31811128 | I40: 55.95197213 | J40: =J300 -> 16.40873043 | K40: 6.331381777 | L40: 20.13686835 | M40: 57.12301944 | N40: =O300 -> 25.10775284 | O40: 9.713073577 | P40: 25.92542333 | Q40: 39.25375026 | R40: =T300 -> 33.43936151 | S40: 13.20777479 | T40: 26.02410829 | U40: 27.32875541 | V40: =Y300 -> 50.14740454 | W40: 13.7123384 | X40: 24.04420969 | Y40: 12.09604737
A97: NATIONAL | D97: Poorest | I97: Poor | N97: Middle | S97: Rich | X97: Richest
D98: Improved | E98: Basic | F98: Limited | G98: Unimproved | H98: Open defecation | I98: Improved | J98: Basic | K98: Limited | L98: Unimproved | M98: Open defecation | N98: Improved | O98: Basic | P98: Limited | Q98: Unimproved | R98: Open defecation | S98: Improved | T98: Basic | U98: Limited | V98: Unimproved | W98: Open defecation | X98: Improved | Y98: Basic | Z98: Limited | AA98: Unimproved | AB98: Open defecation
A99: Forecast period: | C99: 2000 | D99: =IF((D101+H101)>100,D101*100/(D101+H101),D101) -> 13.46226478 | E99: =D99*AVERAGEIF(E105:E116,">0")/100 -> 9.141727594 | F99: =D99*(100-AVERAGEIF(E105:E116,">0"))/100 -> 4.320537182 | G99: =100-(E99+F99+H99) -> 12.4810418 | H99: =IF((D101+H101)>100,H101*100/(D101+H101),H101) -> 74.05669342 | I99: =IF((I101+M101)>100,I101*100/(I101+M101),I101) -> 22.82781667 | J99: =I99*AVERAGEIF(J105:J116,">0")/100 -> 14.53562641 | K99: =I99*(100-AVERAGEIF(J105:J116,">0"))/100 -> 8.292190255 | L99: =100-(J99+K99+M99) -> 20.06401424 | M99: =IF((I101+M101)>100,M101*100/(I101+M101),M101) -> 57.10816909 | N99: =IF((N101+R101)>100,N101*100/(N101+R101),N101) -> 45.64224047 | O99: =N99*AVERAGEIF(O105:O116,">0")/100 -> 25.91339052 | P99: =N99*(100-AVERAGEIF(O105:O116,">0"))/100 -> 19.72884995 | Q99: =100-(O99+P99+R99) -> 16.07245981 | R99: =IF((N101+R101)>100,R101*100/(N101+R101),R101) -> 38.28529971 | S99: =IF((S101+W101)>100,S101*100/(S101+W101),S101) -> 72.12610157 | T99: =S99*AVERAGEIF(T105:T116,">0")/100 -> 47.98483712 | U99: =S99*(100-AVERAGEIF(T105:T116,">0"))/100 -> 24.14126446 | V99: =100-(T99+U99+W99) -> 14.95055397 | W99: =IF((S101+W101)>100,W101*100/(S101+W101),W101) -> 12.92334446 | X99: =IF((X101+AB101)>100,X101*100/(X101+AB101),X101) -> 89.81021716 | Y99: =X99*AVERAGEIF(Y105:Y116,">0")/100 -> 80.64348879 | Z99: =X99*(100-AVERAGEIF(Y105:Y116,">0"))/100 -> 9.166728371 | AA99: =100-(Y99+Z99+AB99) -> 8.70181826 | AB99: =IF((X101+AB101)>100,AB101*100/(X101+AB101),AB101) -> 1.487964583
C100: 2020 | D100: =IF((D102+H102)>100,D102*100/(D102+H102),D102) -> 30.46946555 | E100: =D100*AVERAGEIF(E105:E116,">0")/100 -> 20.69069051 | F100: =D100*(100-AVERAGEIF(E105:E116,">0"))/100 -> 9.778775044 | G100: =100-(E100+F100+H100) -> 21.99072068 | H100: =IF((D102+H102)>100,H102*100/(D102+H102),H102) -> 47.53981377 | I100: =IF((I102+M102)>100,I102*100/(I102+M102),I102) -> 67.37300066 | J100: =I100*AVERAGEIF(J105:J116,">0")/100 -> 42.89979993 | K100: =I100*(100-AVERAGEIF(J105:J116,">0"))/100 -> 24.47320073 | L100: =100-(J100+K100+M100) -> 18.11310214 | M100: =IF((I102+M102)>100,M102*100/(I102+M102),M102) -> 14.5138972 | N100: =IF((N102+R102)>100,N102*100/(N102+R102),N102) -> 82.83706747 | O100: =N100*AVERAGEIF(O105:O116,">0")/100 -> 47.03076046 | P100: =N100*(100-AVERAGEIF(O105:O116,">0"))/100 -> 35.806307 | Q100: =100-(O100+P100+R100) -> 13.34182162 | R100: =IF((N102+R102)>100,R102*100/(N102+R102),R102) -> 3.821110911 | S100: =IF((S102+W102)>100,S102*100/(S102+W102),S102) -> 91.93664275 | T100: =S100*AVERAGEIF(T105:T116,">0")/100 -> 61.16460936 | U100: =S100*(100-AVERAGEIF(T105:T116,">0"))/100 -> 30.77203339 | V100: =100-(T100+U100+W100) -> 6.930585404 | W100: =IF((S102+W102)>100,W102*100/(S102+W102),W102) -> 1.132771849 | X100: =IF((X102+AB102)>100,X102*100/(X102+AB102),X102) -> 97.68665761 | Y100: =X100*AVERAGEIF(Y105:Y116,">0")/100 -> 87.71599854 | Z100: =X100*(100-AVERAGEIF(Y105:Y116,">0"))/100 -> 9.970659064 | AA100: =100-(Y100+Z100+AB100) -> 2.029138256 | AB100: =IF((X102+AB102)>100,AB102*100/(X102+AB102),AB102) -> 0.284204138
A101: Regression period: | C101: =MinRegYear(C99,C105:C116) -> 2001 | D101: =IF(MAX(C105:C116)-MIN(C105:C116)<5,AVERAGEIF(C105:C116,">0",D105:D116), IF(FORECAST($C101,D$105:D$116,$C$105:$C$116)<0,0, IF(FORECAST($C101,D$105:D$116,$C$105:$C$116)>100,100, FORECAST($C101,D$105:D$116,$C$105:$C$116)))) -> 13.46226478 | H101: =IF(MAX(C105:C116)-MIN(C105:C116)<5,AVERAGEIF(C105:C116,">0",H105:H116), IF(FORECAST($C101,H$105:H$116,$C$105:$C$116)<0,0, IF(FORECAST($C101,H$105:H$116,$C$105:$C$116)>100,100, FORECAST($C101,H$105:H$116,$C$105:$C$116)))) -> 74.05669342 | I101: =IF(MAX(C105:C116)-MIN(C105:C116)<5,AVERAGEIF(C105:C116,">0",I105:I116), IF(FORECAST($C101,I$105:I$116,$C$105:$C$116)<0,0, IF(FORECAST($C101,I$105:I$116,$C$105:$C$116)>100,100, FORECAST($C101,I$105:I$116,$C$105:$C$116)))) -> 22.82781667 | M101: =IF(MAX(C105:C116)-MIN(C105:C116)<5,AVERAGEIF(C105:C116,">0",M105:M116), IF(FORECAST($C101,M$105:M$116,$C$105:$C$116)<0,0, IF(FORECAST($C101,M$105:M$116,$C$105:$C$116)>100,100, FORECAST($C101,M$105:M$116,$C$105:$C$116)))) -> 57.10816909 | N101: =IF(MAX(C105:C116)-MIN(C105:C116)<5,AVERAGEIF(C105:C116,">0",N105:N116), IF(FORECAST($C101,N$105:N$116,$C$105:$C$116)<0,0, IF(FORECAST($C101,N$105:N$116,$C$105:$C$116)>100,100, FORECAST($C101,N$105:N$116,$C$105:$C$116)))) -> 45.64224047 | R101: =IF(MAX(C105:C116)-MIN(C105:C116)<5,AVERAGEIF(C105:C116,">0",R105:R116), IF(FORECAST($C101,R$105:R$116,$C$105:$C$116)<0,0, IF(FORECAST($C101,R$105:R$116,$C$105:$C$116)>100,100, FORECAST($C101,R$105:R$116,$C$105:$C$116)))) -> 38.28529971 | S101: =IF(MAX(C105:C116)-MIN(C105:C116)<5,AVERAGEIF(C105:C116,">0",S105:S116), IF(FORECAST($C101,S$105:S$116,$C$105:$C$116)<0,0, IF(FORECAST($C101,S$105:S$116,$C$105:$C$116)>100,100, FORECAST($C101,S$105:S$116,$C$105:$C$116)))) -> 72.12610157 | W101: =IF(MAX(C105:C116)-MIN(C105:C116)<5,AVERAGEIF(C105:C116,">0",W105:W116), IF(FORECAST($C101,W$105:W$116,$C$105:$C$116)<0,0, IF(FORECAST($C101,W$105:W$116,$C$105:$C$116)>100,100, FORECAST($C101,W$105:W$116,$C$105:$C$116)))) -> 12.92334446 | X101: =IF(MAX(C105:C116)-MIN(C105:C116)<5,AVERAGEIF(C105:C116,">0",X105:X116), IF(FORECAST($C101,X$105:X$116,$C$105:$C$116)<0,0, IF(FORECAST($C101,X$105:X$116,$C$105:$C$116)>100,100, FORECAST($C101,X$105:X$116,$C$105:$C$116)))) -> 89.81021716 | AB101: =IF(MAX(C105:C116)-MIN(C105:C116)<5,AVERAGEIF(C105:C116,">0",AB105:AB116), IF(FORECAST($C101,AB$105:AB$116,$C$105:$C$116)<0,0, IF(FORECAST($C101,AB$105:AB$116,$C$105:$C$116)>100,100, FORECAST($C101,AB$105:AB$116,$C$105:$C$116)))) -> 1.487964583
C102: =MaxRegYear(C100,C105:C116) -> 2018 | D102: =IF(MAX(C105:C116)-MIN(C105:C116)<5,AVERAGEIF(C105:C116,">0",D105:D116), IF(FORECAST($C102,D$105:D$116,$C$105:$C$116)<0,0, IF(FORECAST($C102,D$105:D$116,$C$105:$C$116)>100,100, FORECAST($C102,D$105:D$116,$C$105:$C$116)))) -> 30.46946555 | H102: =IF(MAX(C105:C116)-MIN(C105:C116)<5,AVERAGEIF(C105:C116,">0",H105:H116), IF(FORECAST($C102,H$105:H$116,$C$105:$C$116)<0,0, IF(FORECAST($C102,H$105:H$116,$C$105:$C$116)>100,100, FORECAST($C102,H$105:H$116,$C$105:$C$116)))) -> 47.53981377 | I102: =IF(MAX(C105:C116)-MIN(C105:C116)<5,AVERAGEIF(C105:C116,">0",I105:I116), IF(FORECAST($C102,I$105:I$116,$C$105:$C$116)<0,0, IF(FORECAST($C102,I$105:I$116,$C$105:$C$116)>100,100, FORECAST($C102,I$105:I$116,$C$105:$C$116)))) -> 67.37300066 | M102: =IF(MAX(C105:C116)-MIN(C105:C116)<5,AVERAGEIF(C105:C116,">0",M105:M116), IF(FORECAST($C102,M$105:M$116,$C$105:$C$116)<0,0, IF(FORECAST($C102,M$105:M$116,$C$105:$C$116)>100,100, FORECAST($C102,M$105:M$116,$C$105:$C$116)))) -> 14.5138972 | N102: =IF(MAX(C105:C116)-MIN(C105:C116)<5,AVERAGEIF(C105:C116,">0",N105:N116), IF(FORECAST($C102,N$105:N$116,$C$105:$C$116)<0,0, IF(FORECAST($C102,N$105:N$116,$C$105:$C$116)>100,100, FORECAST($C102,N$105:N$116,$C$105:$C$116)))) -> 82.83706747 | R102: =IF(MAX(C105:C116)-MIN(C105:C116)<5,AVERAGEIF(C105:C116,">0",R105:R116), IF(FORECAST($C102,R$105:R$116,$C$105:$C$116)<0,0, IF(FORECAST($C102,R$105:R$116,$C$105:$C$116)>100,100, FORECAST($C102,R$105:R$116,$C$105:$C$116)))) -> 3.821110911 | S102: =IF(MAX(C105:C116)-MIN(C105:C116)<5,AVERAGEIF(C105:C116,">0",S105:S116), IF(FORECAST($C102,S$105:S$116,$C$105:$C$116)<0,0, IF(FORECAST($C102,S$105:S$116,$C$105:$C$116)>100,100, FORECAST($C102,S$105:S$116,$C$105:$C$116)))) -> 91.93664275 | W102: =IF(MAX(C105:C116)-MIN(C105:C116)<5,AVERAGEIF(C105:C116,">0",W105:W116), IF(FORECAST($C102,W$105:W$116,$C$105:$C$116)<0,0, IF(FORECAST($C102,W$105:W$116,$C$105:$C$116)>100,100, FORECAST($C102,W$105:W$116,$C$105:$C$116)))) -> 1.132771849 | X102: =IF(MAX(C105:C116)-MIN(C105:C116)<5,AVERAGEIF(C105:C116,">0",X105:X116), IF(FORECAST($C102,X$105:X$116,$C$105:$C$116)<0,0, IF(FORECAST($C102,X$105:X$116,$C$105:$C$116)>100,100, FORECAST($C102,X$105:X$116,$C$105:$C$116)))) -> 97.68665761 | AB102: =IF(MAX(C105:C116)-MIN(C105:C116)<5,AVERAGEIF(C105:C116,">0",AB105:AB116), IF(FORECAST($C102,AB$105:AB$116,$C$105:$C$116)<0,0, IF(FORECAST($C102,AB$105:AB$116,$C$105:$C$116)>100,100, FORECAST($C102,AB$105:AB$116,$C$105:$C$116)))) -> 0.284204138
B104: Survey | C104: Year | D104: Improved | E104: Not shared | H104: Open defecation | I104: Improved | J104: Not shared | M104: Open defecation | N104: Improved | O104: Not shared | R104: Open defecation | S104: Improved | T104: Not shared | W104: Open defecation | X104: Improved | Y104: Not shared | AB104: Open defecation
B105: DHS03 | C105: 2003 | D105: =IF(ISERROR(INDIRECT(CONCATENATE($B105,"!C122"))),"",INDIRECT(CONCATENATE($B105,"!C122"))) -> 15.46311193 | E105: =IF(ISERROR(INDIRECT(CONCATENATE($B105,"!C129"))),"",INDIRECT(CONCATENATE($B105,"!C129"))) -> 28.59489131 | H105: =IF(ISERROR(INDIRECT(CONCATENATE($B105,"!C127"))),"",INDIRECT(CONCATENATE($B105,"!C127"))) -> 70.93706052 | I105: =IF(ISERROR(INDIRECT(CONCATENATE($B105,"!D122"))),"",INDIRECT(CONCATENATE($B105,"!D122"))) -> 28.06842655 | J105: =IF(ISERROR(INDIRECT(CONCATENATE($B105,"!D129"))),"",INDIRECT(CONCATENATE($B105,"!D129"))) -> 41.14173423 | M105: =IF(ISERROR(INDIRECT(CONCATENATE($B105,"!D127"))),"",INDIRECT(CONCATENATE($B105,"!D127"))) -> 52.09707828 | N105: =IF(ISERROR(INDIRECT(CONCATENATE($B105,"!E122"))),"",INDIRECT(CONCATENATE($B105,"!E122"))) -> 50.01810247 | O105: =IF(ISERROR(INDIRECT(CONCATENATE($B105,"!E129"))),"",INDIRECT(CONCATENATE($B105,"!E129"))) -> 38.36362744 | R105: =IF(ISERROR(INDIRECT(CONCATENATE($B105,"!E127"))),"",INDIRECT(CONCATENATE($B105,"!E127"))) -> 34.23068927 | S105: =IF(ISERROR(INDIRECT(CONCATENATE($B105,"!F122"))),"",INDIRECT(CONCATENATE($B105,"!F122"))) -> 74.45675348 | T105: =IF(ISERROR(INDIRECT(CONCATENATE($B105,"!F129"))),"",INDIRECT(CONCATENATE($B105,"!F129"))) -> 57.61720148 | W105: =IF(ISERROR(INDIRECT(CONCATENATE($B105,"!F127"))),"",INDIRECT(CONCATENATE($B105,"!F127"))) -> 11.53621827 | X105: =IF(ISERROR(INDIRECT(CONCATENATE($B105,"!G122"))),"",INDIRECT(CONCATENATE($B105,"!G122"))) -> 90.73685721 | Y105: =IF(ISERROR(INDIRECT(CONCATENATE($B105,"!G129"))),"",INDIRECT(CONCATENATE($B105,"!G129"))) -> 89.88521077 | AB105: =IF(ISERROR(INDIRECT(CONCATENATE($B105,"!G2127"))),"",INDIRECT(CONCATENATE($B105,"!G127"))) -> 1.346345707
B106: DHS08 | D106: 16.62155185 | E106: 93.05261763 | H106: 68.61221864 | I106: 8.651328737 | J106: 83.07965424 | M106: 45.69075991 | N106: 47.08367455 | O106: 60.09285117 | R106: 23.17052796 | S106: 71.42728483 | T106: 64.06669695 | W106: 4.188075392 | X106: 89.14042166 | Y106: 88.14758244 | AB106: 0.7275180343
B107: EDS16 | C107: 2016 | D107: 28.4686184 | E107: 82.07142868 | H107: 50.65944667 | I107: 62.13239078 | J107: 66.8037975 | M107: 19.52498801 | N107: 78.46120547 | O107: 71.86857719 | R107: 7.875721359 | S107: 89.60599084 | T107: 77.90336361 | W107: 2.519898038 | X107: 96.76001755 | Y107: 91.34687651 | AB107: 0.4258230139
B118: =CONCATENATE("National use of sanitation facilities, ",C99,"–",C100) -> National use of sanitation facilities, 2000–2020 | S118: Data points used for regression
A197: URBAN | D197: Poorest | I197: Poor | N197: Middle | S197: Rich | X197: Richest
D198: Improved | E198: Basic | F198: Limited | G198: Unimproved | H198: Open defecation | I198: Improved | J198: Basic | K198: Limited | L198: Unimproved | M198: Open defecation | N198: Improved | O198: Basic | P198: Limited | Q198: Unimproved | R198: Open defecation | S198: Improved | T198: Basic | U198: Limited | V198: Unimproved | W198: Open defecation | X198: Improved | Y198: Basic | Z198: Limited | AA198: Unimproved | AB198: Open defecation
A199: Forecast period: | C199: 2000 | D199: =IF((D201+H201)>100,D201*100/(D201+H201),D201) -> 32.40476109 | E199: =D199*AVERAGEIF(E205:E216,">0")/100 -> 16.93385853 | F199: =D199*(100-AVERAGEIF(E205:E216,">0"))/100 -> 15.47090256 | G199: =100-(E199+F199+H199) -> 17.93694079 | H199: =IF((D201+H201)>100,H201*100/(D201+H201),H201) -> 49.65829812 | I199: =IF((I201+M201)>100,I201*100/(I201+M201),I201) -> 53.84555607 | J199: =I199*AVERAGEIF(J205:J216,">0")/100 -> 28.44503285 | K199: =I199*(100-AVERAGEIF(J205:J216,">0"))/100 -> 25.40052322 | L199: =100-(J199+K199+M199) -> 14.46270347 | M199: =IF((I201+M201)>100,M201*100/(I201+M201),M201) -> 31.69174046 | N199: =IF((N201+R201)>100,N201*100/(N201+R201),N201) -> 73.59655981 | O199: =N199*AVERAGEIF(O205:O216,">0")/100 -> 46.5531998 | P199: =N199*(100-AVERAGEIF(O205:O216,">0"))/100 -> 27.04336001 | Q199: =100-(O199+P199+R199) -> 14.13620366 | R199: =IF((N201+R201)>100,R201*100/(N201+R201),R201) -> 12.26723652 | S199: =IF((S201+W201)>100,S201*100/(S201+W201),S201) -> 79.97651547 | T199: =S199*AVERAGEIF(T205:T216,">0")/100 -> 60.90359106 | U199: =S199*(100-AVERAGEIF(T205:T216,">0"))/100 -> 19.07292441 | V199: =100-(T199+U199+W199) -> 12.76199843 | W199: =IF((S201+W201)>100,W201*100/(S201+W201),W201) -> 7.261486099 | X199: =IF((X201+AB201)>100,X201*100/(X201+AB201),X201) -> 93.70913004 | Y199: =X199*AVERAGEIF(Y205:Y216,">0")/100 -> 88.63512123 | Z199: =X199*(100-AVERAGEIF(Y205:Y216,">0"))/100 -> 5.074008806 | AA199: =100-(Y199+Z199+AB199) -> 5.881028561 | AB199: =IF((X201+AB201)>100,AB201*100/(X201+AB201),AB201) -> 0.4098414015
C200: 2020 | D200: =IF((D202+H202)>100,D202*100/(D202+H202),D202) -> 72.44361408 | E200: =D200*AVERAGEIF(E205:E216,">0")/100 -> 37.85708862 | F200: =D200*(100-AVERAGEIF(E205:E216,">0"))/100 -> 34.58652546 | G200: =100-(E200+F200+H200) -> 15.64426269 | H200: =IF((D202+H202)>100,H202*100/(D202+H202),H202) -> 11.91212324 | I200: =IF((I202+M202)>100,I202*100/(I202+M202),I202) -> 88.1862186 | J200: =I200*AVERAGEIF(J205:J216,">0")/100 -> 46.58620076 | K200: =I200*(100-AVERAGEIF(J205:J216,">0"))/100 -> 41.60001784 | L200: =100-(J200+K200+M200) -> 10.67097628 | M200: =IF((I202+M202)>100,M202*100/(I202+M202),M202) -> 1.142805126 | N200: =IF((N202+R202)>100,N202*100/(N202+R202),N202) -> 93.06316031 | O200: =N200*AVERAGEIF(O205:O216,">0")/100 -> 58.86671751 | P200: =N200*(100-AVERAGEIF(O205:O216,">0"))/100 -> 34.1964428 | Q200: =100-(O200+P200+R200) -> 6.090756226 | R200: =IF((N202+R202)>100,R202*100/(N202+R202),R202) -> 0.8460834644 | S200: =IF((S202+W202)>100,S202*100/(S202+W202),S202) -> 96.08878671 | T200: =S200*AVERAGEIF(T205:T216,">0")/100 -> 73.17338267 | U200: =S200*(100-AVERAGEIF(T205:T216,">0"))/100 -> 22.91540404 | V200: =100-(T200+U200+W200) -> 3.911213286 | W200: =IF((S202+W202)>100,W202*100/(S202+W202),W202) -> 0 | X200: =IF((X202+AB202)>100,X202*100/(X202+AB202),X202) -> 98.47444144 | Y200: =X200*AVERAGEIF(Y205:Y216,">0")/100 -> 93.14240835 | Z200: =X200*(100-AVERAGEIF(Y205:Y216,">0"))/100 -> 5.332033099 | AA200: =100-(Y200+Z200+AB200) -> 1.107226877 | AB200: =IF((X202+AB202)>100,AB202*100/(X202+AB202),AB202) -> 0.418331678
A201: Regression period: | C201: =MinRegYear(C199,C205:C216) -> 2001 | D201: =IF(MAX(C205:C216)-MIN(C205:C216)<5,AVERAGEIF(C205:C216,">0",D205:D216), IF(FORECAST($C201,D$205:D$216,$C$205:$C$216)<0,0, IF(FORECAST($C201,D$205:D$216,$C$205:$C$216)>100,100, FORECAST($C201,D$205:D$216,$C$205:$C$216)))) -> 32.40476109 | H201: =IF(MAX(C205:C216)-MIN(C205:C216)<5,AVERAGEIF(C205:C216,">0",H205:H216), IF(FORECAST($C201,H$205:H$216,$C$205:$C$216)<0,0, IF(FORECAST($C201,H$205:H$216,$C$205:$C$216)>100,100, FORECAST($C201,H$205:H$216,$C$205:$C$216)))) -> 49.65829812 | I201: =IF(MAX(C205:C216)-MIN(C205:C216)<5,AVERAGEIF(C205:C216,">0",I205:I216), IF(FORECAST($C201,I$205:I$216,$C$205:$C$216)<0,0, IF(FORECAST($C201,I$205:I$216,$C$205:$C$216)>100,100, FORECAST($C201,I$205:I$216,$C$205:$C$216)))) -> 53.84555607 | M201: =IF(MAX(C205:C216)-MIN(C205:C216)<5,AVERAGEIF(C205:C216,">0",M205:M216), IF(FORECAST($C201,M$205:M$216,$C$205:$C$216)<0,0, IF(FORECAST($C201,M$205:M$216,$C$205:$C$216)>100,100, FORECAST($C201,M$205:M$216,$C$205:$C$216)))) -> 31.69174046 | N201: =IF(MAX(C205:C216)-MIN(C205:C216)<5,AVERAGEIF(C205:C216,">0",N205:N216), IF(FORECAST($C201,N$205:N$216,$C$205:$C$216)<0,0, IF(FORECAST($C201,N$205:N$216,$C$205:$C$216)>100,100, FORECAST($C201,N$205:N$216,$C$205:$C$216)))) -> 73.59655981 | R201: =IF(MAX(C205:C216)-MIN(C205:C216)<5,AVERAGEIF(C205:C216,">0",R205:R216), IF(FORECAST($C201,R$205:R$216,$C$205:$C$216)<0,0, IF(FORECAST($C201,R$205:R$216,$C$205:$C$216)>100,100, FORECAST($C201,R$205:R$216,$C$205:$C$216)))) -> 12.26723652 | S201: =IF(MAX(C205:C216)-MIN(C205:C216)<5,AVERAGEIF(C205:C216,">0",S205:S216), IF(FORECAST($C201,S$205:S$216,$C$205:$C$216)<0,0, IF(FORECAST($C201,S$205:S$216,$C$205:$C$216)>100,100, FORECAST($C201,S$205:S$216,$C$205:$C$216)))) -> 79.97651547 | W201: =IF(MAX(C205:C216)-MIN(C205:C216)<5,AVERAGEIF(C205:C216,">0",W205:W216), IF(FORECAST($C201,W$205:W$216,$C$205:$C$216)<0,0, IF(FORECAST($C201,W$205:W$216,$C$205:$C$216)>100,100, FORECAST($C201,W$205:W$216,$C$205:$C$216)))) -> 7.261486099 | X201: =IF(MAX(C205:C216)-MIN(C205:C216)<5,AVERAGEIF(C205:C216,">0",X205:X216), IF(FORECAST($C201,X$205:X$216,$C$205:$C$216)<0,0, IF(FORECAST($C201,X$205:X$216,$C$205:$C$216)>100,100, FORECAST($C201,X$205:X$216,$C$205:$C$216)))) -> 93.70913004 | AB201: =IF(MAX(C205:C216)-MIN(C205:C216)<5,AVERAGEIF(C205:C216,">0",AB205:AB216), IF(FORECAST($C201,AB$205:AB$216,$C$205:$C$216)<0,0, IF(FORECAST($C201,AB$205:AB$216,$C$205:$C$216)>100,100, FORECAST($C201,AB$205:AB$216,$C$205:$C$216)))) -> 0.4098414015
C202: =MaxRegYear(C200,C205:C216) -> 2018 | D202: =IF(MAX(C205:C216)-MIN(C205:C216)<5,AVERAGEIF(C205:C216,">0",D205:D216), IF(FORECAST($C202,D$205:D$216,$C$205:$C$216)<0,0, IF(FORECAST($C202,D$205:D$216,$C$205:$C$216)>100,100, FORECAST($C202,D$205:D$216,$C$205:$C$216)))) -> 72.44361408 | H202: =IF(MAX(C205:C216)-MIN(C205:C216)<5,AVERAGEIF(C205:C216,">0",H205:H216), IF(FORECAST($C202,H$205:H$216,$C$205:$C$216)<0,0, IF(FORECAST($C202,H$205:H$216,$C$205:$C$216)>100,100, FORECAST($C202,H$205:H$216,$C$205:$C$216)))) -> 11.91212324 | I202: =IF(MAX(C205:C216)-MIN(C205:C216)<5,AVERAGEIF(C205:C216,">0",I205:I216), IF(FORECAST($C202,I$205:I$216,$C$205:$C$216)<0,0, IF(FORECAST($C202,I$205:I$216,$C$205:$C$216)>100,100, FORECAST($C202,I$205:I$216,$C$205:$C$216)))) -> 88.1862186 | M202: =IF(MAX(C205:C216)-MIN(C205:C216)<5,AVERAGEIF(C205:C216,">0",M205:M216), IF(FORECAST($C202,M$205:M$216,$C$205:$C$216)<0,0, IF(FORECAST($C202,M$205:M$216,$C$205:$C$216)>100,100, FORECAST($C202,M$205:M$216,$C$205:$C$216)))) -> 1.142805126 | N202: =IF(MAX(C205:C216)-MIN(C205:C216)<5,AVERAGEIF(C205:C216,">0",N205:N216), IF(FORECAST($C202,N$205:N$216,$C$205:$C$216)<0,0, IF(FORECAST($C202,N$205:N$216,$C$205:$C$216)>100,100, FORECAST($C202,N$205:N$216,$C$205:$C$216)))) -> 93.06316031 | R202: =IF(MAX(C205:C216)-MIN(C205:C216)<5,AVERAGEIF(C205:C216,">0",R205:R216), IF(FORECAST($C202,R$205:R$216,$C$205:$C$216)<0,0, IF(FORECAST($C202,R$205:R$216,$C$205:$C$216)>100,100, FORECAST($C202,R$205:R$216,$C$205:$C$216)))) -> 0.8460834644 | S202: =IF(MAX(C205:C216)-MIN(C205:C216)<5,AVERAGEIF(C205:C216,">0",S205:S216), IF(FORECAST($C202,S$205:S$216,$C$205:$C$216)<0,0, IF(FORECAST($C202,S$205:S$216,$C$205:$C$216)>100,100, FORECAST($C202,S$205:S$216,$C$205:$C$216)))) -> 96.08878671 | W202: =IF(MAX(C205:C216)-MIN(C205:C216)<5,AVERAGEIF(C205:C216,">0",W205:W216), IF(FORECAST($C202,W$205:W$216,$C$205:$C$216)<0,0, IF(FORECAST($C202,W$205:W$216,$C$205:$C$216)>100,100, FORECAST($C202,W$205:W$216,$C$205:$C$216)))) -> 0 | X202: =IF(MAX(C205:C216)-MIN(C205:C216)<5,AVERAGEIF(C205:C216,">0",X205:X216), IF(FORECAST($C202,X$205:X$216,$C$205:$C$216)<0,0, IF(FORECAST($C202,X$205:X$216,$C$205:$C$216)>100,100, FORECAST($C202,X$205:X$216,$C$205:$C$216)))) -> 98.47444144 | AB202: =IF(MAX(C205:C216)-MIN(C205:C216)<5,AVERAGEIF(C205:C216,">0",AB205:AB216), IF(FORECAST($C202,AB$205:AB$216,$C$205:$C$216)<0,0, IF(FORECAST($C202,AB$205:AB$216,$C$205:$C$216)>100,100, FORECAST($C202,AB$205:AB$216,$C$205:$C$216)))) -> 0.418331678
B204: Survey | C204: Year | D204: Improved | E204: Not shared | H204: Open defecation | I204: Improved | J204: Not shared | M204: Open defecation | N204: Improved | O204: Not shared | R204: Open defecation | S204: Improved | T204: Not shared | W204: Open defecation | X204: Improved | Y204: Not shared | AB204: Open defecation
B205: DHS03 | C205: 2003 | D205: =IF(ISERROR(INDIRECT(CONCATENATE($B205,"!H122"))),"",INDIRECT(CONCATENATE($B205,"!H122"))) -> 37.11521439 | E205: =IF(ISERROR(INDIRECT(CONCATENATE($B205,"!H129"))),"",INDIRECT(CONCATENATE($B205,"!H129"))) -> 36.8153315 | H205: =IF(ISERROR(INDIRECT(CONCATENATE($B205,"!H127"))),"",INDIRECT(CONCATENATE($B205,"!H127"))) -> 45.21757166 | I205: =IF(ISERROR(INDIRECT(CONCATENATE($B205,"!I122"))),"",INDIRECT(CONCATENATE($B205,"!I122"))) -> 57.88563402 | J205: =IF(ISERROR(INDIRECT(CONCATENATE($B205,"!I129"))),"",INDIRECT(CONCATENATE($B205,"!I129"))) -> 36.40321165 | M205: =IF(ISERROR(INDIRECT(CONCATENATE($B205,"!I127"))),"",INDIRECT(CONCATENATE($B205,"!I127"))) -> 28.09774806 | N205: =IF(ISERROR(INDIRECT(CONCATENATE($B205,"!J122"))),"",INDIRECT(CONCATENATE($B205,"!J122"))) -> 75.88674811 | O205: =IF(ISERROR(INDIRECT(CONCATENATE($B205,"!J129"))),"",INDIRECT(CONCATENATE($B205,"!J129"))) -> 54.70681743 | R205: =IF(ISERROR(INDIRECT(CONCATENATE($B205,"!J127"))),"",INDIRECT(CONCATENATE($B205,"!J127"))) -> 10.92357146 | S205: =IF(ISERROR(INDIRECT(CONCATENATE($B205,"!K122"))),"",INDIRECT(CONCATENATE($B205,"!K122"))) -> 81.87207679 | T205: =IF(ISERROR(INDIRECT(CONCATENATE($B205,"!K129"))),"",INDIRECT(CONCATENATE($B205,"!K129"))) -> 72.83565021 | W205: =IF(ISERROR(INDIRECT(CONCATENATE($B205,"!K127"))),"",INDIRECT(CONCATENATE($B205,"!K127"))) -> 6.365505314 | X205: =IF(ISERROR(INDIRECT(CONCATENATE($B205,"!L122"))),"",INDIRECT(CONCATENATE($B205,"!L122"))) -> 94.26975491 | Y205: =IF(ISERROR(INDIRECT(CONCATENATE($B205,"!L129"))),"",INDIRECT(CONCATENATE($B205,"!L129"))) -> 95.54891189 | AB205: =IF(ISERROR(INDIRECT(CONCATENATE($B205,"!L2127"))),"",INDIRECT(CONCATENATE($B205,"!L127"))) -> 0.4108402575
B206: DHS08 | D206: 30.71452956 | E206: 61.65969083 | H206: 27.3496927 | I206: 63.32692815 | J206: 56.78795142 | M206: 13.80466783 | N206: 73.15211296 | O206: 60.51895662 | R206: 3.626429652 | S206: 82.03026759 | T206: 74.87457586 | W206: 1.80761653 | X206: 93.5192329 | Y206: 93.86422803 | AB206: 0.2266826394
B207: EDS16 | C207: 2016 | D207: 67.73316078 | E207: 58.29692686 | H207: 16.35284969 | I207: 84.14614065 | J207: 65.29006507 | M207: 4.736797517 | N207: 90.77297202 | O207: 74.53798634 | R207: 2.18974853 | S207: 94.19322539 | T207: 80.74530504 | W207: 0.5416302065 | X207: 97.91381657 | Y207: 94.34295043 | AB207: 0.417332822
B218: =CONCATENATE("Urban use of sanitation facilities, ",C199,"–",C200) -> Urban use of sanitation facilities, 2000–2020 | S218: Data points used for regression
A297: RURAL | D297: Poorest | I297: Poor | N297: Middle | S297: Rich | X297: Richest
D298: Improved | E298: Basic | F298: Limited | G298: Unimproved | H298: Open defecation | I298: Improved | J298: Basic | K298: Limited | L298: Unimproved | M298: Open defecation | N298: Improved | O298: Basic | P298: Limited | Q298: Unimproved | R298: Open defecation | S298: Improved | T298: Basic | U298: Limited | V298: Unimproved | W298: Open defecation | X298: Improved | Y298: Basic | Z298: Limited | AA298: Unimproved | AB298: Open defecation
A299: Forecast period: | C299: 2000 | D299: =IF((D301+H301)>100,D301*100/(D301+H301),D301) -> 8.987213862 | E299: =D299*AVERAGEIF(E305:E316,">0")/100 -> 6.086664904 | F299: =D299*(100-AVERAGEIF(E305:E316,">0"))/100 -> 2.900548958 | G299: =100-(E299+F299+H299) -> 8.12453718 | H299: =IF((D301+H301)>100,H301*100/(D301+H301),H301) -> 82.88824896 | I299: =IF((I301+M301)>100,I301*100/(I301+M301),I301) -> 15.84182839 | J299: =I299*AVERAGEIF(J305:J316,">0")/100 -> 11.43109098 | K299: =I299*(100-AVERAGEIF(J305:J316,">0"))/100 -> 4.410737408 | L299: =100-(J299+K299+M299) -> 13.03721151 | M299: =IF((I301+M301)>100,M301*100/(I301+M301),M301) -> 71.1209601 | N299: =IF((N301+R301)>100,N301*100/(N301+R301),N301) -> 19.05872509 | O299: =N299*AVERAGEIF(O305:O316,">0")/100 -> 13.74240098 | P299: =N299*(100-AVERAGEIF(O305:O316,">0"))/100 -> 5.316324114 | Q299: =100-(O299+P299+R299) -> 17.19429112 | R299: =IF((N301+R301)>100,R301*100/(N301+R301),R301) -> 63.74698378 | S299: =IF((S301+W301)>100,S301*100/(S301+W301),S301) -> 22.53780627 | T299: =S299*AVERAGEIF(T305:T316,">0")/100 -> 16.15640126 | U299: =S299*(100-AVERAGEIF(T305:T316,">0"))/100 -> 6.381405016 | V299: =100-(T299+U299+W299) -> 18.90427996 | W299: =IF((S301+W301)>100,W301*100/(S301+W301),W301) -> 58.55791377 | X299: =IF((X301+AB301)>100,X301*100/(X301+AB301),X301) -> 39.25064496 | Y299: =X299*AVERAGEIF(Y305:Y316,">0")/100 -> 30.82251636 | Z299: =X299*(100-AVERAGEIF(Y305:Y316,">0"))/100 -> 8.428128602 | AA299: =100-(Y299+Z299+AB299) -> 24.53036734 | AB299: =IF((X301+AB301)>100,AB301*100/(X301+AB301),AB301) -> 36.2189877
C300: 2020 | D300: =IF((D302+H302)>100,D302*100/(D302+H302),D302) -> 22.72991658 | E300: =D300*AVERAGEIF(E305:E316,">0")/100 -> 15.39402396 | F300: =D300*(100-AVERAGEIF(E305:E316,">0"))/100 -> 7.335892621 | G300: =100-(E300+F300+H300) -> 21.31811128 | H300: =IF((D302+H302)>100,H302*100/(D302+H302),H302) -> 55.95197213 | I300: =IF((I302+M302)>100,I302*100/(I302+M302),I302) -> 22.7401122 | J300: =I300*AVERAGEIF(J305:J316,">0")/100 -> 16.40873043 | K300: =I300*(100-AVERAGEIF(J305:J316,">0"))/100 -> 6.331381777 | L300: =100-(J300+K300+M300) -> 20.13686835 | M300: =IF((I302+M302)>100,M302*100/(I302+M302),M302) -> 57.12301944 | N300: =IF((N302+R302)>100,N302*100/(N302+R302),N302) -> 34.82082641 | O300: =N300*AVERAGEIF(O305:O316,">0")/100 -> 25.10775284 | P300: =N300*(100-AVERAGEIF(O305:O316,">0"))/100 -> 9.713073577 | Q300: =100-(O300+P300+R300) -> 25.92542333 | R300: =IF((N302+R302)>100,R302*100/(N302+R302),R302) -> 39.25375026 | S300: =IF((S302+W302)>100,S302*100/(S302+W302),S302) -> 46.6471363 | T300: =S300*AVERAGEIF(T305:T316,">0")/100 -> 33.43936151 | U300: =S300*(100-AVERAGEIF(T305:T316,">0"))/100 -> 13.20777479 | V300: =100-(T300+U300+W300) -> 26.02410829 | W300: =IF((S302+W302)>100,W302*100/(S302+W302),W302) -> 27.32875541 | X300: =IF((X302+AB302)>100,X302*100/(X302+AB302),X302) -> 63.85974294 | Y300: =X300*AVERAGEIF(Y305:Y316,">0")/100 -> 50.14740454 | Z300: =X300*(100-AVERAGEIF(Y305:Y316,">0"))/100 -> 13.7123384 | AA300: =100-(Y300+Z300+AB300) -> 24.04420969 | AB300: =IF((X302+AB302)>100,AB302*100/(X302+AB302),AB302) -> 12.09604737
A301: Regression period: | C301: =MinRegYear(C299,C305:C316) -> 2001 | D301: =IF(MAX(C305:C316)-MIN(C305:C316)<5,AVERAGEIF(C305:C316,">0",D305:D316), IF(FORECAST($C301,D$305:D$316,$C$305:$C$316)<0,0, IF(FORECAST($C301,D$305:D$316,$C$305:$C$316)>100,100, FORECAST($C301,D$305:D$316,$C$305:$C$316)))) -> 8.987213862 | H301: =IF(MAX(C305:C316)-MIN(C305:C316)<5,AVERAGEIF(C305:C316,">0",H305:H316), IF(FORECAST($C301,H$305:H$316,$C$305:$C$316)<0,0, IF(FORECAST($C301,H$305:H$316,$C$305:$C$316)>100,100, FORECAST($C301,H$305:H$316,$C$305:$C$316)))) -> 82.88824896 | I301: =IF(MAX(C305:C316)-MIN(C305:C316)<5,AVERAGEIF(C305:C316,">0",I305:I316), IF(FORECAST($C301,I$305:I$316,$C$305:$C$316)<0,0, IF(FORECAST($C301,I$305:I$316,$C$305:$C$316)>100,100, FORECAST($C301,I$305:I$316,$C$305:$C$316)))) -> 15.84182839 | M301: =IF(MAX(C305:C316)-MIN(C305:C316)<5,AVERAGEIF(C305:C316,">0",M305:M316), IF(FORECAST($C301,M$305:M$316,$C$305:$C$316)<0,0, IF(FORECAST($C301,M$305:M$316,$C$305:$C$316)>100,100, FORECAST($C301,M$305:M$316,$C$305:$C$316)))) -> 71.1209601 | N301: =IF(MAX(C305:C316)-MIN(C305:C316)<5,AVERAGEIF(C305:C316,">0",N305:N316), IF(FORECAST($C301,N$305:N$316,$C$305:$C$316)<0,0, IF(FORECAST($C301,N$305:N$316,$C$305:$C$316)>100,100, FORECAST($C301,N$305:N$316,$C$305:$C$316)))) -> 19.05872509 | R301: =IF(MAX(C305:C316)-MIN(C305:C316)<5,AVERAGEIF(C305:C316,">0",R305:R316), IF(FORECAST($C301,R$305:R$316,$C$305:$C$316)<0,0, IF(FORECAST($C301,R$305:R$316,$C$305:$C$316)>100,100, FORECAST($C301,R$305:R$316,$C$305:$C$316)))) -> 63.74698378 | S301: =IF(MAX(C305:C316)-MIN(C305:C316)<5,AVERAGEIF(C305:C316,">0",S305:S316), IF(FORECAST($C301,S$305:S$316,$C$305:$C$316)<0,0, IF(FORECAST($C301,S$305:S$316,$C$305:$C$316)>100,100, FORECAST($C301,S$305:S$316,$C$305:$C$316)))) -> 22.53780627 | W301: =IF(MAX(C305:C316)-MIN(C305:C316)<5,AVERAGEIF(C305:C316,">0",W305:W316), IF(FORECAST($C301,W$305:W$316,$C$305:$C$316)<0,0, IF(FORECAST($C301,W$305:W$316,$C$305:$C$316)>100,100, FORECAST($C301,W$305:W$316,$C$305:$C$316)))) -> 58.55791377 | X301: =IF(MAX(C305:C316)-MIN(C305:C316)<5,AVERAGEIF(C305:C316,">0",X305:X316), IF(FORECAST($C301,X$305:X$316,$C$305:$C$316)<0,0, IF(FORECAST($C301,X$305:X$316,$C$305:$C$316)>100,100, FORECAST($C301,X$305:X$316,$C$305:$C$316)))) -> 39.25064496 | AB301: =IF(MAX(C305:C316)-MIN(C305:C316)<5,AVERAGEIF(C305:C316,">0",AB305:AB316), IF(FORECAST($C301,AB$305:AB$316,$C$305:$C$316)<0,0, IF(FORECAST($C301,AB$305:AB$316,$C$305:$C$316)>100,100, FORECAST($C301,AB$305:AB$316,$C$305:$C$316)))) -> 36.2189877
C302: =MaxRegYear(C300,C305:C316) -> 2018 | D302: =IF(MAX(C305:C316)-MIN(C305:C316)<5,AVERAGEIF(C305:C316,">0",D305:D316), IF(FORECAST($C302,D$305:D$316,$C$305:$C$316)<0,0, IF(FORECAST($C302,D$305:D$316,$C$305:$C$316)>100,100, FORECAST($C302,D$305:D$316,$C$305:$C$316)))) -> 22.72991658 | H302: =IF(MAX(C305:C316)-MIN(C305:C316)<5,AVERAGEIF(C305:C316,">0",H305:H316), IF(FORECAST($C302,H$305:H$316,$C$305:$C$316)<0,0, IF(FORECAST($C302,H$305:H$316,$C$305:$C$316)>100,100, FORECAST($C302,H$305:H$316,$C$305:$C$316)))) -> 55.95197213 | I302: =IF(MAX(C305:C316)-MIN(C305:C316)<5,AVERAGEIF(C305:C316,">0",I305:I316), IF(FORECAST($C302,I$305:I$316,$C$305:$C$316)<0,0, IF(FORECAST($C302,I$305:I$316,$C$305:$C$316)>100,100, FORECAST($C302,I$305:I$316,$C$305:$C$316)))) -> 22.7401122 | M302: =IF(MAX(C305:C316)-MIN(C305:C316)<5,AVERAGEIF(C305:C316,">0",M305:M316), IF(FORECAST($C302,M$305:M$316,$C$305:$C$316)<0,0, IF(FORECAST($C302,M$305:M$316,$C$305:$C$316)>100,100, FORECAST($C302,M$305:M$316,$C$305:$C$316)))) -> 57.12301944 | N302: =IF(MAX(C305:C316)-MIN(C305:C316)<5,AVERAGEIF(C305:C316,">0",N305:N316), IF(FORECAST($C302,N$305:N$316,$C$305:$C$316)<0,0, IF(FORECAST($C302,N$305:N$316,$C$305:$C$316)>100,100, FORECAST($C302,N$305:N$316,$C$305:$C$316)))) -> 34.82082641 | R302: =IF(MAX(C305:C316)-MIN(C305:C316)<5,AVERAGEIF(C305:C316,">0",R305:R316), IF(FORECAST($C302,R$305:R$316,$C$305:$C$316)<0,0, IF(FORECAST($C302,R$305:R$316,$C$305:$C$316)>100,100, FORECAST($C302,R$305:R$316,$C$305:$C$316)))) -> 39.25375026 | S302: =IF(MAX(C305:C316)-MIN(C305:C316)<5,AVERAGEIF(C305:C316,">0",S305:S316), IF(FORECAST($C302,S$305:S$316,$C$305:$C$316)<0,0, IF(FORECAST($C302,S$305:S$316,$C$305:$C$316)>100,100, FORECAST($C302,S$305:S$316,$C$305:$C$316)))) -> 46.6471363 | W302: =IF(MAX(C305:C316)-MIN(C305:C316)<5,AVERAGEIF(C305:C316,">0",W305:W316), IF(FORECAST($C302,W$305:W$316,$C$305:$C$316)<0,0, IF(FORECAST($C302,W$305:W$316,$C$305:$C$316)>100,100, FORECAST($C302,W$305:W$316,$C$305:$C$316)))) -> 27.32875541 | X302: =IF(MAX(C305:C316)-MIN(C305:C316)<5,AVERAGEIF(C305:C316,">0",X305:X316), IF(FORECAST($C302,X$305:X$316,$C$305:$C$316)<0,0, IF(FORECAST($C302,X$305:X$316,$C$305:$C$316)>100,100, FORECAST($C302,X$305:X$316,$C$305:$C$316)))) -> 63.85974294 | AB302: =IF(MAX(C305:C316)-MIN(C305:C316)<5,AVERAGEIF(C305:C316,">0",AB305:AB316), IF(FORECAST($C302,AB$305:AB$316,$C$305:$C$316)<0,0, IF(FORECAST($C302,AB$305:AB$316,$C$305:$C$316)>100,100, FORECAST($C302,AB$305:AB$316,$C$305:$C$316)))) -> 12.09604737
B304: Survey | C304: Year | D304: Improved | E304: Not shared | H304: Open defecation | I304: Improved | J304: Not shared | M304: Open defecation | N304: Improved | O304: Not shared | R304: Open defecation | S304: Improved | T304: Not shared | W304: Open defecation | X304: Improved | Y304: Not shared | AB304: Open defecation
B305: DHS03 | C305: 2003 | D305: =IF(ISERROR(INDIRECT(CONCATENATE($B305,"!M122"))),"",INDIRECT(CONCATENATE($B305,"!M122"))) -> 10.60400242 | E305: =IF(ISERROR(INDIRECT(CONCATENATE($B305,"!M129"))),"",INDIRECT(CONCATENATE($B305,"!M129"))) -> 20.00336196 | H305: =IF(ISERROR(INDIRECT(CONCATENATE($B305,"!M127"))),"",INDIRECT(CONCATENATE($B305,"!M127"))) -> 79.71927521 | I305: =IF(ISERROR(INDIRECT(CONCATENATE($B305,"!N122"))),"",INDIRECT(CONCATENATE($B305,"!N122"))) -> 16.65339119 | J305: =IF(ISERROR(INDIRECT(CONCATENATE($B305,"!N129"))),"",INDIRECT(CONCATENATE($B305,"!N129"))) -> 31.2757557 | M305: =IF(ISERROR(INDIRECT(CONCATENATE($B305,"!N127"))),"",INDIRECT(CONCATENATE($B305,"!N127"))) -> 69.47414355 | N305: =IF(ISERROR(INDIRECT(CONCATENATE($B305,"!O122"))),"",INDIRECT(CONCATENATE($B305,"!O122"))) -> 20.91308996 | O305: =IF(ISERROR(INDIRECT(CONCATENATE($B305,"!O129"))),"",INDIRECT(CONCATENATE($B305,"!O129"))) -> 37.05744125 | R305: =IF(ISERROR(INDIRECT(CONCATENATE($B305,"!O127"))),"",INDIRECT(CONCATENATE($B305,"!O127"))) -> 60.8654269 | S305: =IF(ISERROR(INDIRECT(CONCATENATE($B305,"!P122"))),"",INDIRECT(CONCATENATE($B305,"!P122"))) -> 25.37419804 | T305: =IF(ISERROR(INDIRECT(CONCATENATE($B305,"!P129"))),"",INDIRECT(CONCATENATE($B305,"!P129"))) -> 42.04419464 | W305: =IF(ISERROR(INDIRECT(CONCATENATE($B305,"!P127"))),"",INDIRECT(CONCATENATE($B305,"!P127"))) -> 54.88389514 | X305: =IF(ISERROR(INDIRECT(CONCATENATE($B305,"!Q122"))),"",INDIRECT(CONCATENATE($B305,"!Q122"))) -> 42.14583296 | Y305: =IF(ISERROR(INDIRECT(CONCATENATE($B305,"!Q129"))),"",INDIRECT(CONCATENATE($B305,"!Q129"))) -> 59.29437596 | AB305: =IF(ISERROR(INDIRECT(CONCATENATE($B305,"!Q2127"))),"",INDIRECT(CONCATENATE($B305,"!Q127"))) -> 33.38099472
B306: DHS08 | D306: 1.365396109 | E306: 95.25025645 | H306: 78.43413032 | I306: 1.87826363 | J306: 93.25565658 | M306: 65.29648038 | N306: 3.130046489 | O306: 91.3768808 | R306: 57.91520337 | S306: 6.921916255 | T306: 87.90728265 | W306: 47.42874511 | X306: 24.16109093 | Y306: 87.19351782 | AB306: 31.92313985
B307: EDS16 | C307: 2016 | D307: 21.11312803 | E307: 87.92386232 | H307: 59.12094588 | I307: 21.9285494 | J307: 91.94153579 | M307: 58.76983599 | N307: 32.96646155 | O307: 87.88236618 | R307: 42.13530715 | S307: 43.81074453 | T307: 85.10584987 | W307: 31.00277404 | X307: 60.96455494 | Y307: 89.0943474 | AB307: 14.93404035
B318: =CONCATENATE("Rural use of sanitation facilities, ",C299,"–",C300) -> Rural use of sanitation facilities, 2000–2020 | S318: Data points used for regression

Sheet Hygiene
B4: Access to hygiene facilities by wealth quintile (%)
B5: =IF(ISERROR(INDIRECT(CONCATENATE($E$32,"!A2"))),"",INDIRECT(CONCATENATE($E$32,"!A2"))) -> Bolivia (Plurinational State of)
B7: =CONCATENATE("National ",IF(ISERROR(INDIRECT(CONCATENATE($E$32,"!A2"))),"",INDIRECT(CONCATENATE($E$32,"!A210")))) -> National Access to hygiene facilities | K7: =CONCATENATE("Urban ",IF(ISERROR(INDIRECT(CONCATENATE($E$32,"!A2"))),"",INDIRECT(CONCATENATE($E$32,"!A210")))) -> Urban Access to hygiene facilities | S7: =CONCATENATE("Rural ",IF(ISERROR(INDIRECT(CONCATENATE($E$32,"!A2"))),"",INDIRECT(CONCATENATE($E$32,"!A210")))) -> Rural Access to hygiene facilities
E32: =INDEX(B88:B100,A88) -> EDS16 | G32: =IF(ISERROR(INDIRECT(CONCATENATE($E$32,"!A2"))),"",INDIRECT(CONCATENATE($E$32,"!A2"))) -> Bolivia (Plurinational State of) | K32: Poorest | N32: Poor | Q32: Middle | T32: Rich | W32: Richest
K33: Basic | L33: Limited | M33: No facility | N33: Basic | O33: Limited | P33: No facility | Q33: Basic | R33: Limited | S33: No facility | T33: Basic | U33: Limited | V33: No facility | W33: Basic | X33: Limited | Y33: No facility
B34: >>> Select Survey : | G34: NATIONAL | J34: =IF(ISERROR(INDIRECT(CONCATENATE(#REF!,"!A2"))),"",INDIRECT(CONCATENATE(#REF!,"!A210"))) ->  | K34: =IF(ISERROR(INDIRECT(CONCATENATE($E$32,"!C222"))),"",INDIRECT(CONCATENATE($E$32,"!C222"))) -> 7.088033418 | L34: =IF(ISERROR(INDIRECT(CONCATENATE($E$32,"!C223"))),"",INDIRECT(CONCATENATE($E$32,"!C223"))) -> 42.92382308 | M34: =IF(ISERROR(INDIRECT(CONCATENATE($E$32,"!C224"))),"",INDIRECT(CONCATENATE($E$32,"!C224"))) -> 49.9881435 | N34: =IF(ISERROR(INDIRECT(CONCATENATE($E$32,"!D222"))),"",INDIRECT(CONCATENATE($E$32,"!D222"))) -> 12.3049331 | O34: =IF(ISERROR(INDIRECT(CONCATENATE($E$32,"!D223"))),"",INDIRECT(CONCATENATE($E$32,"!D223"))) -> 34.37157936 | P34: =IF(ISERROR(INDIRECT(CONCATENATE($E$32,"!D224"))),"",INDIRECT(CONCATENATE($E$32,"!D224"))) -> 53.32348754 | Q34: =IF(ISERROR(INDIRECT(CONCATENATE($E$32,"!E222"))),"",INDIRECT(CONCATENATE($E$32,"!E222"))) -> 20.90937879 | R34: =IF(ISERROR(INDIRECT(CONCATENATE($E$32,"!E223"))),"",INDIRECT(CONCATENATE($E$32,"!E223"))) -> 28.17430668 | S34: =IF(ISERROR(INDIRECT(CONCATENATE($E$32,"!E224"))),"",INDIRECT(CONCATENATE($E$32,"!E224"))) -> 50.91631454 | T34: =IF(ISERROR(INDIRECT(CONCATENATE($E$32,"!F222"))),"",INDIRECT(CONCATENATE($E$32,"!F222"))) -> 27.05949175 | U34: =IF(ISERROR(INDIRECT(CONCATENATE($E$32,"!F223"))),"",INDIRECT(CONCATENATE($E$32,"!F223"))) -> 19.01520364 | V34: =IF(ISERROR(INDIRECT(CONCATENATE($E$32,"!F224"))),"",INDIRECT(CONCATENATE($E$32,"!F224"))) -> 53.92530462 | W34: =IF(ISERROR(INDIRECT(CONCATENATE($E$32,"!G222"))),"",INDIRECT(CONCATENATE($E$32,"!G222"))) -> 40.73195938 | X34: =IF(ISERROR(INDIRECT(CONCATENATE($E$32,"!G223"))),"",INDIRECT(CONCATENATE($E$32,"!G223"))) -> 7.609205518 | Y34: =IF(ISERROR(INDIRECT(CONCATENATE($E$32,"!G224"))),"",INDIRECT(CONCATENATE($E$32,"!G224"))) -> 51.6588351
G37: URBAN | J37: =IF(ISERROR(INDIRECT(CONCATENATE(#REF!,"!A2"))),"",INDIRECT(CONCATENATE(#REF!,"!A210"))) ->  | K37: =IF(ISERROR(INDIRECT(CONCATENATE($E$32,"!H222"))),"",INDIRECT(CONCATENATE($E$32,"!H222"))) -> 13.54952129 | L37: =IF(ISERROR(INDIRECT(CONCATENATE($E$32,"!H223"))),"",INDIRECT(CONCATENATE($E$32,"!H223"))) -> 34.16453488 | M37: =IF(ISERROR(INDIRECT(CONCATENATE($E$32,"!H224"))),"",INDIRECT(CONCATENATE($E$32,"!H224"))) -> 52.28594383 | N37: =IF(ISERROR(INDIRECT(CONCATENATE($E$32,"!I222"))),"",INDIRECT(CONCATENATE($E$32,"!I222"))) -> 20.42172921 | O37: =IF(ISERROR(INDIRECT(CONCATENATE($E$32,"!I223"))),"",INDIRECT(CONCATENATE($E$32,"!I223"))) -> 26.3784681 | P37: =IF(ISERROR(INDIRECT(CONCATENATE($E$32,"!I224"))),"",INDIRECT(CONCATENATE($E$32,"!I224"))) -> 53.19980269 | Q37: =IF(ISERROR(INDIRECT(CONCATENATE($E$32,"!J222"))),"",INDIRECT(CONCATENATE($E$32,"!J222"))) -> 23.04671471 | R37: =IF(ISERROR(INDIRECT(CONCATENATE($E$32,"!J223"))),"",INDIRECT(CONCATENATE($E$32,"!J223"))) -> 22.15379791 | S37: =IF(ISERROR(INDIRECT(CONCATENATE($E$32,"!J224"))),"",INDIRECT(CONCATENATE($E$32,"!J224"))) -> 54.79948737 | T37: =IF(ISERROR(INDIRECT(CONCATENATE($E$32,"!K222"))),"",INDIRECT(CONCATENATE($E$32,"!K222"))) -> 34.74140994 | U37: =IF(ISERROR(INDIRECT(CONCATENATE($E$32,"!K223"))),"",INDIRECT(CONCATENATE($E$32,"!K223"))) -> 12.93980164 | V37: =IF(ISERROR(INDIRECT(CONCATENATE($E$32,"!K224"))),"",INDIRECT(CONCATENATE($E$32,"!K224"))) -> 52.31878842 | W37: =IF(ISERROR(INDIRECT(CONCATENATE($E$32,"!L222"))),"",INDIRECT(CONCATENATE($E$32,"!L222"))) -> 42.45079652 | X37: =IF(ISERROR(INDIRECT(CONCATENATE($E$32,"!L223"))),"",INDIRECT(CONCATENATE($E$32,"!L223"))) -> 5.849340328 | Y37: =IF(ISERROR(INDIRECT(CONCATENATE($E$32,"!L224"))),"",INDIRECT(CONCATENATE($E$32,"!L224"))) -> 51.69986315
G40: RURAL | J40: =IF(ISERROR(INDIRECT(CONCATENATE(#REF!,"!A2"))),"",INDIRECT(CONCATENATE(#REF!,"!A210"))) ->  | K40: =IF(ISERROR(INDIRECT(CONCATENATE($E$32,"!M222"))),"",INDIRECT(CONCATENATE($E$32,"!M222"))) -> 3.412422935 | L40: =IF(ISERROR(INDIRECT(CONCATENATE($E$32,"!M223"))),"",INDIRECT(CONCATENATE($E$32,"!M223"))) -> 42.23205356 | M40: =IF(ISERROR(INDIRECT(CONCATENATE($E$32,"!M224"))),"",INDIRECT(CONCATENATE($E$32,"!M224"))) -> 54.3555235 | N40: =IF(ISERROR(INDIRECT(CONCATENATE($E$32,"!N222"))),"",INDIRECT(CONCATENATE($E$32,"!N222"))) -> 6.618853306 | O40: =IF(ISERROR(INDIRECT(CONCATENATE($E$32,"!N223"))),"",INDIRECT(CONCATENATE($E$32,"!N223"))) -> 46.25271709 | P40: =IF(ISERROR(INDIRECT(CONCATENATE($E$32,"!N224"))),"",INDIRECT(CONCATENATE($E$32,"!N224"))) -> 47.1284296 | Q40: =IF(ISERROR(INDIRECT(CONCATENATE($E$32,"!O222"))),"",INDIRECT(CONCATENATE($E$32,"!O222"))) -> 8.789105796 | R40: =IF(ISERROR(INDIRECT(CONCATENATE($E$32,"!O223"))),"",INDIRECT(CONCATENATE($E$32,"!O223"))) -> 42.60129426 | S40: =IF(ISERROR(INDIRECT(CONCATENATE($E$32,"!O224"))),"",INDIRECT(CONCATENATE($E$32,"!O224"))) -> 48.60959994 | T40: =IF(ISERROR(INDIRECT(CONCATENATE($E$32,"!P222"))),"",INDIRECT(CONCATENATE($E$32,"!P222"))) -> 11.06088571 | U40: =IF(ISERROR(INDIRECT(CONCATENATE($E$32,"!P223"))),"",INDIRECT(CONCATENATE($E$32,"!P223"))) -> 37.93107299 | V40: =IF(ISERROR(INDIRECT(CONCATENATE($E$32,"!P224"))),"",INDIRECT(CONCATENATE($E$32,"!P224"))) -> 51.00804131 | W40: =IF(ISERROR(INDIRECT(CONCATENATE($E$32,"!Q222"))),"",INDIRECT(CONCATENATE($E$32,"!Q222"))) -> 20.68755367 | X40: =IF(ISERROR(INDIRECT(CONCATENATE($E$32,"!Q223"))),"",INDIRECT(CONCATENATE($E$32,"!Q223"))) -> 30.4776067 | Y40: =IF(ISERROR(INDIRECT(CONCATENATE($E$32,"!Q224"))),"",INDIRECT(CONCATENATE($E$32,"!Q224"))) -> 48.83483964
A88: 3 | B88: DHS03
B89: DHS08
B90: EDS16
B91: Template

Sheet DHS03
A2: =A1026 -> Bolivia (Plurinational State of)
A3: =A1034 -> 2003
A4: Use of drinking water sources
A5: by wealth quintile and sub-national region
A6: Notes:
A7: WHO/UNICEF JMP customised wealth index excludes water,
A8: sanitation and hygiene assets.
A9: Survey used for analysis: | B9: =A1025 -> DHS03
A10: Improved wells based on: | B10: DHS08
A11: Time to source based on: | B11: DHS08
A14: Use of drinking water sources | C14: NATIONAL wealth index quintile | H14: URBAN wealth index quintile | M14: RURAL wealth index quintile | R14: SUB-REGIONS: | BA14: Raw numbers of respondents: | BB14: Use of drinking water sources | BC14: NATIONAL wealth index quintile | BH14: URBAN wealth index quintile | BM14: RURAL wealth index quintile | BR14: SUB-REGIONS:
A15: Weighted percentage (used in graphs) | C15: Poorest | D15: Poor | E15: Middle | F15: Rich | G15: Richest | H15: Poorest | I15: Poor | J15: Middle | K15: Rich | L15: Richest | M15: Poorest | N15: Poor | O15: Middle | P15: Rich | Q15: Richest | R15: Beni | S15: Chuquisaca | T15: Cochabamba | U15: La Paz | V15: Oruro | W15: Pando | X15: Potosi | Y15: Santa Cruz | Z15: Tarija | BA15: Water data, raw numbers (weighted) | BC15: Poorest | BD15: Poor | BE15: Middle | BF15: Rich | BG15: Richest | BH15: Poorest | BI15: Poor | BJ15: Middle | BK15: Rich | BL15: Richest | BM15: Poorest | BN15: Poor | BO15: Middle | BP15: Rich | BQ15: Richest | BR15: Beni | BS15: Chuquisaca | BT15: Cochabamba | BU15: La Paz | BV15: Oruro | BW15: Pando | BX15: Potosi | BY15: Santa Cruz | BZ15: Tarija
A16: Water | B16: Improved | C16: =C58+C59+C60+C65+C66+(C61+C62)*'DHS08'!C24/100 -> 47.32518095 | D16: =D58+D59+D60+D65+D66+(D61+D62)*'DHS08'!D24/100 -> 73.01065242 | E16: =E58+E59+E60+E65+E66+(E61+E62)*'DHS08'!E24/100 -> 91.59723139 | F16: =F58+F59+F60+F65+F66+(F61+F62)*'DHS08'!F24/100 -> 96.82716289 | G16: =G58+G59+G60+G65+G66+(G61+G62)*'DHS08'!G24/100 -> 99.64839036 | H16: =H58+H59+H60+H65+H66+(H61+H62)*'DHS08'!H24/100 -> 80.11140607 | I16: =I58+I59+I60+I65+I66+(I61+I62)*'DHS08'!I24/100 -> 93.97828433 | J16: =J58+J59+J60+J65+J66+(J61+J62)*'DHS08'!J24/100 -> 96.90999366 | K16: =K58+K59+K60+K65+K66+(K61+K62)*'DHS08'!K24/100 -> 99.04489183 | L16: =L58+L59+L60+L65+L66+(L61+L62)*'DHS08'!L24/100 -> 99.84241222 | M16: =M58+M59+M60+M65+M66+(M61+M62)*'DHS08'!M24/100 -> 41.79748668 | N16: =N58+N59+N60+N65+N66+(N61+N62)*'DHS08'!N24/100 -> 49.53237955 | O16: =O58+O59+O60+O65+O66+(O61+O62)*'DHS08'!O24/100 -> 58.49618561 | P16: =P58+P59+P60+P65+P66+(P61+P62)*'DHS08'!P24/100 -> 69.94267925 | Q16: =Q58+Q59+Q60+Q65+Q66+(Q61+Q62)*'DHS08'!Q24/100 -> 86.2653429 | R16: =R58+R59+R60+R65+R66+(R61+R62)*'DHS08'!R24/100 -> 56.48223004 | S16: =S58+S59+S60+S65+S66+(S61+S62)*'DHS08'!S24/100 -> 66.91967546 | T16: =T58+T59+T60+T65+T66+(T61+T62)*'DHS08'!T24/100 -> 82.93930714 | U16: =U58+U59+U60+U65+U66+(U61+U62)*'DHS08'!U24/100 -> 82.8626923 | V16: =V58+V59+V60+V65+V66+(V61+V62)*'DHS08'!V24/100 -> 82.32622216 | W16: =W58+W59+W60+W65+W66+(W61+W62)*'DHS08'!W24/100 -> 52.98926698 | X16: =X58+X59+X60+X65+X66+(X61+X62)*'DHS08'!X24/100 -> 70.24721326 | Y16: =Y58+Y59+Y60+Y65+Y66+(Y61+Y62)*'DHS08'!Y24/100 -> 91.67443537 | Z16: =Z58+Z59+Z60+Z65+Z66+(Z61+Z62)*'DHS08'!Z24/100 -> 85.84695745 | BA16: Water | BB16: Improved | BC16: N/A | BD16: N/A | BE16: N/A | BF16: N/A | BG16: N/A | BH16: N/A | BI16: N/A | BJ16: N/A | BK16: N/A | BL16: N/A | BM16: N/A | BN16: N/A | BO16: N/A | BP16: N/A | BQ16: N/A | BR16: N/A | BS16: N/A | BT16: N/A | BU16: N/A | BV16: N/A | BW16: N/A | BX16: N/A | BY16: N/A | BZ16: N/A
B17: Not Improved | C17: =100-C16 -> 52.67481905 | D17: =100-D16 -> 26.98934758 | E17: 8.402768611 | F17: 3.172837109 | G17: 0.3516096434 | H17: 19.88859393 | I17: 6.021715666 | J17: 3.09000634 | K17: 0.955108173 | L17: 0.1575877834 | M17: 58.20251332 | N17: 50.46762045 | O17: 41.50381439 | P17: 30.05732075 | Q17: 13.7346571 | R17: 43.51776996 | S17: 33.08032454 | T17: 17.06069286 | U17: 17.1373077 | V17: 17.67377784 | W17: 47.01073302 | X17: 29.75278674 | Y17: 8.325564634 | Z17: 14.15304255 | BB17: Not Improved | BC17: N/A | BD17: N/A | BE17: N/A | BF17: N/A | BG17: N/A | BH17: N/A | BI17: N/A | BJ17: N/A | BK17: N/A | BL17: N/A | BM17: N/A | BN17: N/A | BO17: N/A | BP17: N/A | BQ17: N/A | BR17: N/A | BS17: N/A | BT17: N/A | BU17: N/A | BV17: N/A | BW17: N/A | BX17: N/A | BY17: N/A | BZ17: N/A
A18: Water ladder | B18: Basic | C18: =C16*'DHS08'!C23/100 -> 47.24282848 | D18: =D16*'DHS08'!D23/100 -> 72.9861854 | E18: =E16*'DHS08'!E23/100 -> 91.59723139 | F18: =F16*'DHS08'!F23/100 -> 96.73817424 | G18: =G16*'DHS08'!G23/100 -> 99.64839036 | H18: =H16*'DHS08'!H23/100 -> 80.04675986 | I18: =I16*'DHS08'!I23/100 -> 93.97828433 | J18: =J16*'DHS08'!J23/100 -> 96.75949751 | K18: =K16*'DHS08'!K23/100 -> 99.04489183 | L18: =L16*'DHS08'!L23/100 -> 99.84241222 | M18: =M16*'DHS08'!M23/100 -> 41.76989063 | N18: =N16*'DHS08'!N23/100 -> 49.40075977 | O18: =O16*'DHS08'!O23/100 -> 58.4933395 | P18: =P16*'DHS08'!P23/100 -> 69.93525691 | Q18: =Q16*'DHS08'!Q23/100 -> 86.2653429 | R18: =R16*'DHS08'!R23/100 -> 56.00235754 | S18: =S16*'DHS08'!S23/100 -> 66.79318614 | T18: =T16*'DHS08'!T23/100 -> 82.93930714 | U18: =U16*'DHS08'!U23/100 -> 82.8626923 | V18: =V16*'DHS08'!V23/100 -> 82.30868664 | W18: =W16*'DHS08'!W23/100 -> 52.98926698 | X18: =X16*'DHS08'!X23/100 -> 70.24721326 | Y18: =Y16*'DHS08'!Y23/100 -> 91.59805054 | Z18: =Z16*'DHS08'!Z23/100 -> 85.84695745 | BA18: Water ladder | BB18: Basic | BC18: N/A | BD18: N/A | BE18: N/A | BF18: N/A | BG18: N/A | BH18: N/A | BI18: N/A | BJ18: N/A | BK18: N/A | BL18: N/A | BM18: N/A | BN18: N/A | BO18: N/A | BP18: N/A | BQ18: N/A | BR18: N/A | BS18: N/A | BT18: N/A | BU18: N/A | BV18: N/A | BW18: N/A | BX18: N/A | BY18: N/A | BZ18: N/A
B19: Limited | C19: =C16*'DHS08'!C22/100 -> 0.08235246936 | D19: =D16*'DHS08'!D22/100 -> 0.0244670205 | E19: =E16*'DHS08'!E22/100 -> 0 | F19: =F16*'DHS08'!F22/100 -> 0.08898865122 | G19: =G16*'DHS08'!G22/100 -> 0 | H19: =H16*'DHS08'!H22/100 -> 0.06464621457 | I19: =I16*'DHS08'!I22/100 -> 0 | J19: =J16*'DHS08'!J22/100 -> 0.1504961539 | K19: =K16*'DHS08'!K22/100 -> 0 | L19: =L16*'DHS08'!L22/100 -> 0 | M19: =M16*'DHS08'!M22/100 -> 0.02759604865 | N19: =N16*'DHS08'!N22/100 -> 0.1316197875 | O19: =O16*'DHS08'!O22/100 -> 0.002846108419 | P19: =P16*'DHS08'!P22/100 -> 0.007422338956 | Q19: =Q16*'DHS08'!Q22/100 -> 0 | R19: =R16*'DHS08'!R22/100 -> 0.4798724905 | S19: =S16*'DHS08'!S22/100 -> 0.126489313 | T19: =T16*'DHS08'!T22/100 -> 0 | U19: =U16*'DHS08'!U22/100 -> 0 | V19: =V16*'DHS08'!V22/100 -> 0.01753552374 | W19: =W16*'DHS08'!W22/100 -> 0 | X19: =X16*'DHS08'!X22/100 -> 0 | Y19: =Y16*'DHS08'!Y22/100 -> 0.07638482325 | Z19: =Z16*'DHS08'!Z22/100 -> 0 | BB19: Limited | BC19: N/A | BD19: N/A | BE19: N/A | BF19: N/A | BG19: N/A | BH19: N/A | BI19: N/A | BJ19: N/A | BK19: N/A | BL19: N/A | BM19: N/A | BN19: N/A | BO19: N/A | BP19: N/A | BQ19: N/A | BR19: N/A | BS19: N/A | BT19: N/A | BU19: N/A | BV19: N/A | BW19: N/A | BX19: N/A | BY19: N/A | BZ19: N/A
B20: Unimproved | C20: =100-(C18+C19+C21) -> 19.59479895 | D20: =100-(D18+D19+D21) -> 16.03128616 | E20: 6.749627895 | F20: 2.779113683 | G20: 0.3516096434 | H20: 16.84367402 | I20: 5.36478764 | J20: 2.550114614 | K20: 0.9407820129 | L20: 0.1575877834 | M20: 19.27854496 | N20: 19.89889496 | O20: 16.11633732 | P20: 14.37472077 | Q20: 10.41628515 | R20: 32.67355749 | S20: 5.970646112 | T20: 6.520652962 | U20: 10.39167556 | V20: 16.32974103 | W20: 13.94970388 | X20: 11.13523559 | Y20: 5.642575039 | Z20: 2.923003941 | BB20: Unimproved | BC20: N/A | BD20: N/A | BE20: N/A | BF20: N/A | BG20: N/A | BH20: N/A | BI20: N/A | BJ20: N/A | BK20: N/A | BL20: N/A | BM20: N/A | BN20: N/A | BO20: N/A | BP20: N/A | BQ20: N/A | BR20: N/A | BS20: N/A | BT20: N/A | BU20: N/A | BV20: N/A | BW20: N/A | BX20: N/A | BY20: N/A | BZ20: N/A
B21: Surface water | C21: =C63+C64 -> 33.0800201 | D21: 10.95806142 | E21: 1.653140716 | F21: 0.3937234262 | G21: 0 | H21: 3.044919902 | I21: 0.6569280259 | J21: 0.5398917264 | K21: 0.01432616017 | L21: 0 | M21: 38.92396836 | N21: 30.56872549 | O21: 25.38747706 | P21: 15.68259998 | Q21: 3.318371942 | R21: 10.84421247 | S21: 27.10967843 | T21: 10.5400399 | U21: 6.745632143 | V21: 1.344036813 | W21: 33.06102914 | X21: 18.61755115 | Y21: 2.682989594 | Z21: 11.23003861 | BB21: Surface water | BC21: N/A | BD21: N/A | BE21: N/A | BF21: N/A | BG21: N/A | BH21: N/A | BI21: N/A | BJ21: N/A | BK21: N/A | BL21: N/A | BM21: N/A | BN21: N/A | BO21: N/A | BP21: N/A | BQ21: N/A | BR21: N/A | BS21: N/A | BT21: N/A | BU21: N/A | BV21: N/A | BW21: N/A | BX21: N/A | BY21: N/A | BZ21: N/A
A22: Improved water point at more than 30 minutes | B22: Yes | C22: N/A | D22: N/A | E22: N/A | F22: N/A | G22: N/A | H22: N/A | I22: N/A | J22: N/A | K22: N/A | L22: N/A | M22: N/A | N22: N/A | O22: N/A | P22: N/A | Q22: N/A | R22: N/A | S22: N/A | T22: N/A | U22: N/A | V22: N/A | W22: N/A | X22: N/A | Y22: N/A | Z22: N/A | BA22: Improved water point at more than 30 minutes | BB22: Yes | BC22: N/A | BD22: N/A | BE22: N/A | BF22: N/A | BG22: N/A | BH22: N/A | BI22: N/A | BJ22: N/A | BK22: N/A | BL22: N/A | BM22: N/A | BN22: N/A | BO22: N/A | BP22: N/A | BQ22: N/A | BR22: N/A | BS22: N/A | BT22: N/A | BU22: N/A | BV22: N/A | BW22: N/A | BX22: N/A | BY22: N/A | BZ22: N/A
B23: No | C23: N/A | D23: N/A | E23: N/A | F23: N/A | G23: N/A | H23: N/A | I23: N/A | J23: N/A | K23: N/A | L23: N/A | M23: N/A | N23: N/A | O23: N/A | P23: N/A | Q23: N/A | R23: N/A | S23: N/A | T23: N/A | U23: N/A | V23: N/A | W23: N/A | X23: N/A | Y23: N/A | Z23: N/A | BB23: No | BC23: N/A | BD23: N/A | BE23: N/A | BF23: N/A | BG23: N/A | BH23: N/A | BI23: N/A | BJ23: N/A | BK23: N/A | BL23: N/A | BM23: N/A | BN23: N/A | BO23: N/A | BP23: N/A | BQ23: N/A | BR23: N/A | BS23: N/A | BT23: N/A | BU23: N/A | BV23: N/A | BW23: N/A | BX23: N/A | BY23: N/A | BZ23: N/A
A24: Manually calculated ratios | B24: Improved wells
B25: Improved springs
B26: Other
C27: NATIONAL wealth index quintile | H27: URBAN wealth index quintile | M27: RURAL wealth index quintile | R27: SUB-REGIONS: | BA27: Raw numbers of respondents: | BB27: Use of drinking water sources | BC27: NATIONAL wealth index quintile | BH27: URBAN wealth index quintile | BM27: RURAL wealth index quintile | BR27: SUB-REGIONS:
A28: Percentage based on weighted population | C28: Poorest | D28: Poor | E28: Middle | F28: Rich | G28: Richest | H28: Poorest | I28: Poor | J28: Middle | K28: Rich | L28: Richest | M28: Poorest | N28: Poor | O28: Middle | P28: Rich | Q28: Richest | R28: Beni | S28: Chuquisaca | T28: Cochabamba | U28: La Paz | V28: Oruro | W28: Pando | X28: Potosi | Y28: Santa Cruz | Z28: Tarija | BA28: Water data, raw numbers (weighted) | BC28: Poorest | BD28: Poor | BE28: Middle | BF28: Rich | BG28: Richest | BH28: Poorest | BI28: Poor | BJ28: Middle | BK28: Rich | BL28: Richest | BM28: Poorest | BN28: Poor | BO28: Middle | BP28: Rich | BQ28: Richest | BR28: Beni | BS28: Chuquisaca | BT28: Cochabamba | BU28: La Paz | BV28: Oruro | BW28: Pando | BX28: Potosi | BY28: Santa Cruz | BZ28: Tarija
A29: Piped water | B29: Yes | C29: 42.98465198 | D29: 64.84034078 | E29: 84.65990029 | F29: 92.62426027 | G29: 97.31388223 | H29: 72.44727709 | I29: 88.61788421 | J29: 92.4767692 | K29: 96.09408863 | L29: 98.14225837 | M29: 37.8891115 | N29: 44.64818572 | O29: 54.1726333 | P29: 61.30969535 | Q29: 78.49264069 | R29: 50.12035649 | S29: 64.64922211 | T29: 73.76586102 | U29: 79.22490114 | V29: 75.67898694 | W29: 51.9326772 | X29: 68.72461626 | Y29: 85.73688022 | Z29: 81.52516028 | BA29: Piped water | BB29: Yes | BC29: N/A | BD29: N/A | BE29: N/A | BF29: N/A | BG29: N/A | BH29: N/A | BI29: N/A | BJ29: N/A | BK29: N/A | BL29: N/A | BM29: N/A | BN29: N/A | BO29: N/A | BP29: N/A | BQ29: N/A | BR29: N/A | BS29: N/A | BT29: N/A | BU29: N/A | BV29: N/A | BW29: N/A | BX29: N/A | BY29: N/A | BZ29: N/A
B30: No | C30: 57.01534802 | D30: 35.15965922 | E30: 15.34009971 | F30: 7.375739733 | G30: 2.686117774 | H30: 27.55272291 | I30: 11.38211579 | J30: 7.523230796 | K30: 3.905911369 | L30: 1.857741632 | M30: 62.1108885 | N30: 55.35181428 | O30: 45.8273667 | P30: 38.69030465 | Q30: 21.50735931 | R30: 49.87964351 | S30: 35.35077789 | T30: 26.23413898 | U30: 20.77509886 | V30: 24.32101306 | W30: 48.0673228 | X30: 31.27538374 | Y30: 14.26311978 | Z30: 18.47483972 | BB30: No | BC30: N/A | BD30: N/A | BE30: N/A | BF30: N/A | BG30: N/A | BH30: N/A | BI30: N/A | BJ30: N/A | BK30: N/A | BL30: N/A | BM30: N/A | BN30: N/A | BO30: N/A | BP30: N/A | BQ30: N/A | BR30: N/A | BS30: N/A | BT30: N/A | BU30: N/A | BV30: N/A | BW30: N/A | BX30: N/A | BY30: N/A | BZ30: N/A
A31: Piped water on premises | B31: Yes | C31: 29.21292449 | D31: 56.38048801 | E31: 78.12938356 | F31: 91.38094523 | G31: 97.13759345 | H31: 64.02546644 | I31: 82.68234323 | J31: 91.45173231 | K31: 95.75209195 | L31: 98.02685685 | M31: 20.6217693 | N31: 31.58447521 | O31: 44.85626345 | P31: 52.88003144 | Q31: 73.16916665 | R31: 45.64862185 | S31: 59.2417083 | T31: 68.47899582 | U31: 72.24775046 | V31: 67.44286786 | W31: 50.00245066 | X31: 53.12506011 | Y31: 82.73095049 | Z31: 79.75135377 | BA31: Piped water on premises | BB31: Yes | BC31: N/A | BD31: N/A | BE31: N/A | BF31: N/A | BG31: N/A | BH31: N/A | BI31: N/A | BJ31: N/A | BK31: N/A | BL31: N/A | BM31: N/A | BN31: N/A | BO31: N/A | BP31: N/A | BQ31: N/A | BR31: N/A | BS31: N/A | BT31: N/A | BU31: N/A | BV31: N/A | BW31: N/A | BX31: N/A | BY31: N/A | BZ31: N/A
B32: No | C32: 70.78707551 | D32: 43.61951199 | E32: 21.87061644 | F32: 8.619054771 | G32: 2.862406545 | H32: 35.97453356 | I32: 17.31765677 | J32: 8.548267691 | K32: 4.247908047 | L32: 1.973143145 | M32: 79.3782307 | N32: 68.41552479 | O32: 55.14373655 | P32: 47.11996856 | Q32: 26.83083335 | R32: 54.35137815 | S32: 40.7582917 | T32: 31.52100418 | U32: 27.75224954 | V32: 32.55713214 | W32: 49.99754934 | X32: 46.87493989 | Y32: 17.26904951 | Z32: 20.24864623 | BB32: No | BC32: N/A | BD32: N/A | BE32: N/A | BF32: N/A | BG32: N/A | BH32: N/A | BI32: N/A | BJ32: N/A | BK32: N/A | BL32: N/A | BM32: N/A | BN32: N/A | BO32: N/A | BP32: N/A | BQ32: N/A | BR32: N/A | BS32: N/A | BT32: N/A | BU32: N/A | BV32: N/A | BW32: N/A | BX32: N/A | BY32: N/A | BZ32: N/A
A33: Piped water into dwelling | B33: Yes | C33: N/A | D33: N/A | E33: N/A | F33: N/A | G33: N/A | H33: N/A | I33: N/A | J33: N/A | K33: N/A | L33: N/A | M33: N/A | N33: N/A | O33: N/A | P33: N/A | Q33: N/A | R33: N/A | S33: N/A | T33: N/A | U33: N/A | V33: N/A | W33: N/A | X33: N/A | Y33: N/A | Z33: N/A | BA33: Piped water into dwelling | BB33: Yes | BC33: N/A | BD33: N/A | BE33: N/A | BF33: N/A | BG33: N/A | BH33: N/A | BI33: N/A | BJ33: N/A | BK33: N/A | BL33: N/A | BM33: N/A | BN33: N/A | BO33: N/A | BP33: N/A | BQ33: N/A | BR33: N/A | BS33: N/A | BT33: N/A | BU33: N/A | BV33: N/A | BW33: N/A | BX33: N/A | BY33: N/A | BZ33: N/A
B34: No | C34: N/A | D34: N/A | E34: N/A | F34: N/A | G34: N/A | H34: N/A | I34: N/A | J34: N/A | K34: N/A | L34: N/A | M34: N/A | N34: N/A | O34: N/A | P34: N/A | Q34: N/A | R34: N/A | S34: N/A | T34: N/A | U34: N/A | V34: N/A | W34: N/A | X34: N/A | Y34: N/A | Z34: N/A | BB34: No | BC34: N/A | BD34: N/A | BE34: N/A | BF34: N/A | BG34: N/A | BH34: N/A | BI34: N/A | BJ34: N/A | BK34: N/A | BL34: N/A | BM34: N/A | BN34: N/A | BO34: N/A | BP34: N/A | BQ34: N/A | BR34: N/A | BS34: N/A | BT34: N/A | BU34: N/A | BV34: N/A | BW34: N/A | BX34: N/A | BY34: N/A | BZ34: N/A
A35: Water source on premises | B35: Yes | C35: 33.39900382 | D35: 64.10528936 | E35: 84.95253388 | F35: 96.10827938 | G35: 99.20687097 | H35: 73.51504706 | I35: 88.84508468 | J35: 96.29969177 | K35: 98.55682359 | L35: 99.58973107 | M35: 22.7272429 | N35: 35.32511664 | O35: 51.45547905 | P35: 59.71916257 | Q35: 80.53753608 | R35: 59.69034468 | S35: 59.71572388 | T35: 79.31586027 | U35: 76.10032718 | V35: 72.15788382 | W35: 54.38382817 | X35: 53.6360937 | Y35: 87.25081835 | Z35: 81.20180175 | BA35: Water source on premises | BB35: Yes | BC35: N/A | BD35: N/A | BE35: N/A | BF35: N/A | BG35: N/A | BH35: N/A | BI35: N/A | BJ35: N/A | BK35: N/A | BL35: N/A | BM35: N/A | BN35: N/A | BO35: N/A | BP35: N/A | BQ35: N/A | BR35: N/A | BS35: N/A | BT35: N/A | BU35: N/A | BV35: N/A | BW35: N/A | BX35: N/A | BY35: N/A | BZ35: N/A
B36: No | C36: 66.60099618 | D36: 35.89471064 | E36: 15.04746612 | F36: 3.891720621 | G36: 0.7931290328 | H36: 26.48495294 | I36: 11.15491532 | J36: 3.70030823 | K36: 1.443176409 | L36: 0.4102689264 | M36: 77.2727571 | N36: 64.67488336 | O36: 48.54452095 | P36: 40.28083743 | Q36: 19.46246392 | R36: 40.30965532 | S36: 40.28427612 | T36: 20.68413973 | U36: 23.89967282 | V36: 27.84211618 | W36: 45.61617183 | X36: 46.3639063 | Y36: 12.74918165 | Z36: 18.79819825 | BB36: No | BC36: N/A | BD36: N/A | BE36: N/A | BF36: N/A | BG36: N/A | BH36: N/A | BI36: N/A | BJ36: N/A | BK36: N/A | BL36: N/A | BM36: N/A | BN36: N/A | BO36: N/A | BP36: N/A | BQ36: N/A | BR36: N/A | BS36: N/A | BT36: N/A | BU36: N/A | BV36: N/A | BW36: N/A | BX36: N/A | BY36: N/A | BZ36: N/A
A37: Improved Water source on premises | B37: Yes | C37: N/A | D37: N/A | E37: N/A | F37: N/A | G37: N/A | H37: N/A | I37: N/A | J37: N/A | K37: N/A | L37: N/A | M37: N/A | N37: N/A | O37: N/A | P37: N/A | Q37: N/A | R37: N/A | S37: N/A | T37: N/A | U37: N/A | V37: N/A | W37: N/A | X37: N/A | Y37: N/A | Z37: N/A | BA37: Improved water source on premises | BB37: Yes | BC37: N/A | BD37: N/A | BE37: N/A | BF37: N/A | BG37: N/A | BH37: N/A | BI37: N/A | BJ37: N/A | BK37: N/A | BL37: N/A | BM37: N/A | BN37: N/A | BO37: N/A | BP37: N/A | BQ37: N/A | BR37: N/A | BS37: N/A | BT37: N/A | BU37: N/A | BV37: N/A | BW37: N/A | BX37: N/A | BY37: N/A | BZ37: N/A
B38: No | C38: N/A | D38: N/A | E38: N/A | F38: N/A | G38: N/A | H38: N/A | I38: N/A | J38: N/A | K38: N/A | L38: N/A | M38: N/A | N38: N/A | O38: N/A | P38: N/A | Q38: N/A | R38: N/A | S38: N/A | T38: N/A | U38: N/A | V38: N/A | W38: N/A | X38: N/A | Y38: N/A | Z38: N/A | BB38: No | BC38: N/A | BD38: N/A | BE38: N/A | BF38: N/A | BG38: N/A | BH38: N/A | BI38: N/A | BJ38: N/A | BK38: N/A | BL38: N/A | BM38: N/A | BN38: N/A | BO38: N/A | BP38: N/A | BQ38: N/A | BR38: N/A | BS38: N/A | BT38: N/A | BU38: N/A | BV38: N/A | BW38: N/A | BX38: N/A | BY38: N/A | BZ38: N/A
A39: Piped water on premises available when needed | B39: Yes | C39: N/A | D39: N/A | E39: N/A | F39: N/A | G39: N/A | H39: N/A | I39: N/A | J39: N/A | K39: N/A | L39: N/A | M39: N/A | N39: N/A | O39: N/A | P39: N/A | Q39: N/A | R39: N/A | S39: N/A | T39: N/A | U39: N/A | V39: N/A | W39: N/A | X39: N/A | Y39: N/A | Z39: N/A | BA39: Piped water on premises available when needed | BB39: Yes | BC39: N/A | BD39: N/A | BE39: N/A | BF39: N/A | BG39: N/A | BH39: N/A | BI39: N/A | BJ39: N/A | BK39: N/A | BL39: N/A | BM39: N/A | BN39: N/A | BO39: N/A | BP39: N/A | BQ39: N/A | BR39: N/A | BS39: N/A | BT39: N/A | BU39: N/A | BV39: N/A | BW39: N/A | BX39: N/A | BY39: N/A | BZ39: N/A
B40: No | C40: N/A | D40: N/A | E40: N/A | F40: N/A | G40: N/A | H40: N/A | I40: N/A | J40: N/A | K40: N/A | L40: N/A | M40: N/A | N40: N/A | O40: N/A | P40: N/A | Q40: N/A | R40: N/A | S40: N/A | T40: N/A | U40: N/A | V40: N/A | W40: N/A | X40: N/A | Y40: N/A | Z40: N/A | BB40: No | BC40: N/A | BD40: N/A | BE40: N/A | BF40: N/A | BG40: N/A | BH40: N/A | BI40: N/A | BJ40: N/A | BK40: N/A | BL40: N/A | BM40: N/A | BN40: N/A | BO40: N/A | BP40: N/A | BQ40: N/A | BR40: N/A | BS40: N/A | BT40: N/A | BU40: N/A | BV40: N/A | BW40: N/A | BX40: N/A | BY40: N/A | BZ40: N/A
A41: Water point at more than 30 minutes | B41: Yes | C41: 5.070091514 | D41: 2.401804251 | E41: 1.095328123 | F41: 0.2529083917 | G41: 0.1143938757 | H41: 1.491689078 | I41: 0.6220862368 | J41: 0.3211223709 | K41: 0.2226801275 | L41: 0 | M41: 5.708583217 | N41: 5.50179818 | O41: 3.703464491 | P41: 3.288405911 | Q41: 0.9007986058 | R41: 0.7509081369 | S41: 3.878055236 | T41: 1.215289658 | U41: 1.692959945 | V41: 2.048941595 | W41: 0.7457207166 | X41: 5.516319569 | Y41: 0.5289364249 | Z41: 1.6383912 | BA41: Water point at more than 30 minutes | BB41: Yes | BC41: N/A | BD41: N/A | BE41: N/A | BF41: N/A | BG41: N/A | BH41: N/A | BI41: N/A | BJ41: N/A | BK41: N/A | BL41: N/A | BM41: N/A | BN41: N/A | BO41: N/A | BP41: N/A | BQ41: N/A | BR41: N/A | BS41: N/A | BT41: N/A | BU41: N/A | BV41: N/A | BW41: N/A | BX41: N/A | BY41: N/A | BZ41: N/A
B42: No | C42: 94.92990849 | D42: 97.59819575 | E42: 98.90467188 | F42: 99.74709161 | G42: 99.88560612 | H42: 98.50831092 | I42: 99.37791376 | J42: 99.67887763 | K42: 99.77731987 | L42: 100 | M42: 94.29141678 | N42: 94.49820182 | O42: 96.29653551 | P42: 96.71159409 | Q42: 99.09920139 | R42: 99.24909186 | S42: 96.12194476 | T42: 98.78471034 | U42: 98.30704006 | V42: 97.95105841 | W42: 99.25427928 | X42: 94.48368043 | Y42: 99.47106358 | Z42: 98.3616088 | BB42: No | BC42: N/A | BD42: N/A | BE42: N/A | BF42: N/A | BG42: N/A | BH42: N/A | BI42: N/A | BJ42: N/A | BK42: N/A | BL42: N/A | BM42: N/A | BN42: N/A | BO42: N/A | BP42: N/A | BQ42: N/A | BR42: N/A | BS42: N/A | BT42: N/A | BU42: N/A | BV42: N/A | BW42: N/A | BX42: N/A | BY42: N/A | BZ42: N/A
A43: Water source available when needed | B43: Yes | C43: N/A | D43: N/A | E43: N/A | F43: N/A | G43: N/A | H43: N/A | I43: N/A | J43: N/A | K43: N/A | L43: N/A | M43: N/A | N43: N/A | O43: N/A | P43: N/A | Q43: N/A | R43: N/A | S43: N/A | T43: N/A | U43: N/A | V43: N/A | W43: N/A | X43: N/A | Y43: N/A | Z43: N/A | BA43: Water source available when needed | BB43: Yes | BC43: N/A | BD43: N/A | BE43: N/A | BF43: N/A | BG43: N/A | BH43: N/A | BI43: N/A | BJ43: N/A | BK43: N/A | BL43: N/A | BM43: N/A | BN43: N/A | BO43: N/A | BP43: N/A | BQ43: N/A | BR43: N/A | BS43: N/A | BT43: N/A | BU43: N/A | BV43: N/A | BW43: N/A | BX43: N/A | BY43: N/A | BZ43: N/A
B44: No | C44: N/A | D44: N/A | E44: N/A | F44: N/A | G44: N/A | H44: N/A | I44: N/A | J44: N/A | K44: N/A | L44: N/A | M44: N/A | N44: N/A | O44: N/A | P44: N/A | Q44: N/A | R44: N/A | S44: N/A | T44: N/A | U44: N/A | V44: N/A | W44: N/A | X44: N/A | Y44: N/A | Z44: N/A | BB44: No | BC44: N/A | BD44: N/A | BE44: N/A | BF44: N/A | BG44: N/A | BH44: N/A | BI44: N/A | BJ44: N/A | BK44: N/A | BL44: N/A | BM44: N/A | BN44: N/A | BO44: N/A | BP44: N/A | BQ44: N/A | BR44: N/A | BS44: N/A | BT44: N/A | BU44: N/A | BV44: N/A | BW44: N/A | BX44: N/A | BY44: N/A | BZ44: N/A
A45: Improved water source available when needed | B45: Yes | C45: N/A | D45: N/A | E45: N/A | F45: N/A | G45: N/A | H45: N/A | I45: N/A | J45: N/A | K45: N/A | L45: N/A | M45: N/A | N45: N/A | O45: N/A | P45: N/A | Q45: N/A | R45: N/A | S45: N/A | T45: N/A | U45: N/A | V45: N/A | W45: N/A | X45: N/A | Y45: N/A | Z45: N/A | BA45: Improved water source available when needed | BB45: Yes | BC45: N/A | BD45: N/A | BE45: N/A | BF45: N/A | BG45: N/A | BH45: N/A | BI45: N/A | BJ45: N/A | BK45: N/A | BL45: N/A | BM45: N/A | BN45: N/A | BO45: N/A | BP45: N/A | BQ45: N/A | BR45: N/A | BS45: N/A | BT45: N/A | BU45: N/A | BV45: N/A | BW45: N/A | BX45: N/A | BY45: N/A | BZ45: N/A
B46: No | C46: N/A | D46: N/A | E46: N/A | F46: N/A | G46: N/A | H46: N/A | I46: N/A | J46: N/A | K46: N/A | L46: N/A | M46: N/A | N46: N/A | O46: N/A | P46: N/A | Q46: N/A | R46: N/A | S46: N/A | T46: N/A | U46: N/A | V46: N/A | W46: N/A | X46: N/A | Y46: N/A | Z46: N/A | BB46: No | BC46: N/A | BD46: N/A | BE46: N/A | BF46: N/A | BG46: N/A | BH46: N/A | BI46: N/A | BJ46: N/A | BK46: N/A | BL46: N/A | BM46: N/A | BN46: N/A | BO46: N/A | BP46: N/A | BQ46: N/A | BR46: N/A | BS46: N/A | BT46: N/A | BU46: N/A | BV46: N/A | BW46: N/A | BX46: N/A | BY46: N/A | BZ46: N/A
A47: Microbiological quality at point of collection | B47: Not contaminated (No E. coli in 100 mL) | C47: N/A | D47: N/A | E47: N/A | F47: N/A | G47: N/A | H47: N/A | I47: N/A | J47: N/A | K47: N/A | L47: N/A | M47: N/A | N47: N/A | O47: N/A | P47: N/A | Q47: N/A | R47: N/A | S47: N/A | T47: N/A | U47: N/A | V47: N/A | W47: N/A | X47: N/A | Y47: N/A | Z47: N/A | BA47: Microbiological quality at point of collection | BB47: Not contaminated (No E. coli in 100 mL) | BC47: N/A | BD47: N/A | BE47: N/A | BF47: N/A | BG47: N/A | BH47: N/A | BI47: N/A | BJ47: N/A | BK47: N/A | BL47: N/A | BM47: N/A | BN47: N/A | BO47: N/A | BP47: N/A | BQ47: N/A | BR47: N/A | BS47: N/A | BT47: N/A | BU47: N/A | BV47: N/A | BW47: N/A | BX47: N/A | BY47: N/A | BZ47: N/A
B48: Contaminated (E. coli detected in 100 mL) | C48: N/A | D48: N/A | E48: N/A | F48: N/A | G48: N/A | H48: N/A | I48: N/A | J48: N/A | K48: N/A | L48: N/A | M48: N/A | N48: N/A | O48: N/A | P48: N/A | Q48: N/A | R48: N/A | S48: N/A | T48: N/A | U48: N/A | V48: N/A | W48: N/A | X48: N/A | Y48: N/A | Z48: N/A | BB48: Contaminated (E. coli detected in 100 mL) | BC48: N/A | BD48: N/A | BE48: N/A | BF48: N/A | BG48: N/A | BH48: N/A | BI48: N/A | BJ48: N/A | BK48: N/A | BL48: N/A | BM48: N/A | BN48: N/A | BO48: N/A | BP48: N/A | BQ48: N/A | BR48: N/A | BS48: N/A | BT48: N/A | BU48: N/A | BV48: N/A | BW48: N/A | BX48: N/A | BY48: N/A | BZ48: N/A
B49: Highly contaminated (>100 CFU/100 mL) | C49: N/A | D49: N/A | E49: N/A | F49: N/A | G49: N/A | H49: N/A | I49: N/A | J49: N/A | K49: N/A | L49: N/A | M49: N/A | N49: N/A | O49: N/A | P49: N/A | Q49: N/A | R49: N/A | S49: N/A | T49: N/A | U49: N/A | V49: N/A | W49: N/A | X49: N/A | Y49: N/A | Z49: N/A | BB49: Highly contaminated (>100 CFU/100 mL) | BC49: N/A | BD49: N/A | BE49: N/A | BF49: N/A | BG49: N/A | BH49: N/A | BI49: N/A | BJ49: N/A | BK49: N/A | BL49: N/A | BM49: N/A | BN49: N/A | BO49: N/A | BP49: N/A | BQ49: N/A | BR49: N/A | BS49: N/A | BT49: N/A | BU49: N/A | BV49: N/A | BW49: N/A | BX49: N/A | BY49: N/A | BZ49: N/A
A50: Microbiological quality of improved water sources at point of collection | B50: Not contaminated (No E. coli in 100 mL) | C50: N/A | D50: N/A | E50: N/A | F50: N/A | G50: N/A | H50: N/A | I50: N/A | J50: N/A | K50: N/A | L50: N/A | M50: N/A | N50: N/A | O50: N/A | P50: N/A | Q50: N/A | R50: N/A | S50: N/A | T50: N/A | U50: N/A | V50: N/A | W50: N/A | X50: N/A | Y50: N/A | Z50: N/A | BA50: Microbiological quality of improved water sources at point of collection | BB50: Not contaminated (No E. coli in 100 mL) | BC50: N/A | BD50: N/A | BE50: N/A | BF50: N/A | BG50: N/A | BH50: N/A | BI50: N/A | BJ50: N/A | BK50: N/A | BL50: N/A | BM50: N/A | BN50: N/A | BO50: N/A | BP50: N/A | BQ50: N/A | BR50: N/A | BS50: N/A | BT50: N/A | BU50: N/A | BV50: N/A | BW50: N/A | BX50: N/A | BY50: N/A | BZ50: N/A
B51: Contaminated (E. coli detected in 100 mL) | C51: N/A | D51: N/A | E51: N/A | F51: N/A | G51: N/A | H51: N/A | I51: N/A | J51: N/A | K51: N/A | L51: N/A | M51: N/A | N51: N/A | O51: N/A | P51: N/A | Q51: N/A | R51: N/A | S51: N/A | T51: N/A | U51: N/A | V51: N/A | W51: N/A | X51: N/A | Y51: N/A | Z51: N/A | BB51: Contaminated (E. coli detected in 100 mL) | BC51: N/A | BD51: N/A | BE51: N/A | BF51: N/A | BG51: N/A | BH51: N/A | BI51: N/A | BJ51: N/A | BK51: N/A | BL51: N/A | BM51: N/A | BN51: N/A | BO51: N/A | BP51: N/A | BQ51: N/A | BR51: N/A | BS51: N/A | BT51: N/A | BU51: N/A | BV51: N/A | BW51: N/A | BX51: N/A | BY51: N/A | BZ51: N/A
B52: Highly contaminated (>100 CFU/100 mL) | C52: N/A | D52: N/A | E52: N/A | F52: N/A | G52: N/A | H52: N/A | I52: N/A | J52: N/A | K52: N/A | L52: N/A | M52: N/A | N52: N/A | O52: N/A | P52: N/A | Q52: N/A | R52: N/A | S52: N/A | T52: N/A | U52: N/A | V52: N/A | W52: N/A | X52: N/A | Y52: N/A | Z52: N/A | BB52: Highly contaminated (>100 CFU/100 mL) | BC52: N/A | BD52: N/A | BE52: N/A | BF52: N/A | BG52: N/A | BH52: N/A | BI52: N/A | BJ52: N/A | BK52: N/A | BL52: N/A | BM52: N/A | BN52: N/A | BO52: N/A | BP52: N/A | BQ52: N/A | BR52: N/A | BS52: N/A | BT52: N/A | BU52: N/A | BV52: N/A | BW52: N/A | BX52: N/A | BY52: N/A | BZ52: N/A
A53: Microbiological quality of piped on premises at point of collection | B53: Not contaminated (No E. coli in 100 mL) | C53: N/A | D53: N/A | E53: N/A | F53: N/A | G53: N/A | H53: N/A | I53: N/A | J53: N/A | K53: N/A | L53: N/A | M53: N/A | N53: N/A | O53: N/A | P53: N/A | Q53: N/A | R53: N/A | S53: N/A | T53: N/A | U53: N/A | V53: N/A | W53: N/A | X53: N/A | Y53: N/A | Z53: N/A | BA53: Microbiological quality of piped on premises at point of collection | BB53: Not contaminated (No E. coli in 100 mL) | BC53: N/A | BD53: N/A | BE53: N/A | BF53: N/A | BG53: N/A | BH53: N/A | BI53: N/A | BJ53: N/A | BK53: N/A | BL53: N/A | BM53: N/A | BN53: N/A | BO53: N/A | BP53: N/A | BQ53: N/A | BR53: N/A | BS53: N/A | BT53: N/A | BU53: N/A | BV53: N/A | BW53: N/A | BX53: N/A | BY53: N/A | BZ53: N/A
B54: Contaminated (E. coli detected in 100 mL) | C54: N/A | D54: N/A | E54: N/A | F54: N/A | G54: N/A | H54: N/A | I54: N/A | J54: N/A | K54: N/A | L54: N/A | M54: N/A | N54: N/A | O54: N/A | P54: N/A | Q54: N/A | R54: N/A | S54: N/A | T54: N/A | U54: N/A | V54: N/A | W54: N/A | X54: N/A | Y54: N/A | Z54: N/A | BB54: Contaminated (E. coli detected in 100 mL) | BC54: N/A | BD54: N/A | BE54: N/A | BF54: N/A | BG54: N/A | BH54: N/A | BI54: N/A | BJ54: N/A | BK54: N/A | BL54: N/A | BM54: N/A | BN54: N/A | BO54: N/A | BP54: N/A | BQ54: N/A | BR54: N/A | BS54: N/A | BT54: N/A | BU54: N/A | BV54: N/A | BW54: N/A | BX54: N/A | BY54: N/A | BZ54: N/A
B55: Highly contaminated (>100 CFU/100 mL) | C55: N/A | D55: N/A | E55: N/A | F55: N/A | G55: N/A | H55: N/A | I55: N/A | J55: N/A | K55: N/A | L55: N/A | M55: N/A | N55: N/A | O55: N/A | P55: N/A | Q55: N/A | R55: N/A | S55: N/A | T55: N/A | U55: N/A | V55: N/A | W55: N/A | X55: N/A | Y55: N/A | Z55: N/A | BB55: Highly contaminated (>100 CFU/100 mL) | BC55: N/A | BD55: N/A | BE55: N/A | BF55: N/A | BG55: N/A | BH55: N/A | BI55: N/A | BJ55: N/A | BK55: N/A | BL55: N/A | BM55: N/A | BN55: N/A | BO55: N/A | BP55: N/A | BQ55: N/A | BR55: N/A | BS55: N/A | BT55: N/A | BU55: N/A | BV55: N/A | BW55: N/A | BX55: N/A | BY55: N/A | BZ55: N/A
C56: NATIONAL wealth index quintile | H56: URBAN wealth index quintile | M56: RURAL wealth index quintile | R56: SUB-REGIONS: | BA56: Raw numbers of respondents: | BB56: Use of drinking water sources | BC56: NATIONAL wealth index quintile | BH56: URBAN wealth index quintile | BM56: RURAL wealth index quintile | BR56: SUB-REGIONS:
A57: Percentage based on weighted population | C57: Poorest | D57: Poor | E57: Middle | F57: Rich | G57: Richest | H57: Poorest | I57: Poor | J57: Middle | K57: Rich | L57: Richest | M57: Poorest | N57: Poor | O57: Middle | P57: Rich | Q57: Richest | R57: Beni | S57: Chuquisaca | T57: Cochabamba | U57: La Paz | V57: Oruro | W57: Pando | X57: Potosi | Y57: Santa Cruz | Z57: Tarija | BA57: Water data, raw numbers (weighted) | BC57: Poorest | BD57: Poor | BE57: Middle | BF57: Rich | BG57: Richest | BH57: Poorest | BI57: Poor | BJ57: Middle | BK57: Rich | BL57: Richest | BM57: Poorest | BN57: Poor | BO57: Middle | BP57: Rich | BQ57: Richest | BR57: Beni | BS57: Chuquisaca | BT57: Cochabamba | BU57: La Paz | BV57: Oruro | BW57: Pando | BX57: Potosi | BY57: Santa Cruz | BZ57: Tarija
A58: Source of drinking water | B58: Piped into dwelling | C58: 1.158662152 | D58: 3.181714138 | E58: 10.7571602 | F58: 26.08645255 | G58: 69.27832464 | H58: 8.040442664 | I58: 11.43339815 | J58: 23.75110252 | K58: 43.37032498 | L58: 82.46839273 | M58: 0.3456286417 | N58: 1.328504561 | O58: 1.168503091 | P58: 1.880090256 | Q58: 10.79585886 | R58: 19.99719443 | S58: 20.34094636 | T58: 21.82927858 | U58: 16.77528415 | V58: 18.06667218 | W58: 10.22257926 | X58: 7.639575225 | Y58: 34.61707677 | Z58: 26.34976831
B59: Piped into yard/spot | C59: 28.15345231 | D59: 53.26743674 | E59: 67.37222336 | F59: 65.29449268 | G59: 27.94690384 | H59: 56.08607922 | I59: 71.24894508 | J59: 67.70062979 | K59: 52.38176698 | L59: 15.70155054 | M59: 20.40329453 | N59: 30.33178571 | O59: 43.73146616 | P59: 50.99994118 | Q59: 62.37330778 | R59: 25.96694898 | S59: 38.92152791 | T59: 46.70290193 | U59: 55.47940029 | V59: 49.40825878 | W59: 39.77987139 | X59: 45.5697183 | Y59: 48.27711403 | Z59: 53.40158546
B60: Pipedoutside dwelling | C60: 13.81848821 | D60: 8.47015558 | E60: 6.530516728 | F60: 1.243315038 | G60: 0.1764478146 | H60: 8.435103321 | I60: 5.935540977 | J60: 1.025036895 | K60: 0.3419966782 | L60: 0.1155699605 | M60: 17.37381267 | N60: 13.09506851 | O60: 9.325447277 | P60: 8.429663915 | Q60: 5.32347404 | R60: 4.50264311 | S60: 5.409409303 | T60: 5.290971283 | U60: 6.977820306 | V60: 8.240034629 | W60: 1.930226539 | X60: 15.62429032 | Y60: 3.011860867 | Z60: 1.773806504
B61: Well with electrical pump | C61: 4.239284208 | D61: 3.638293442 | E61: 3.139025793 | F61: 1.305737643 | G61: 0.6872637333 | H61: 1.339137973 | I61: 1.242786553 | J61: 0.4701082116 | K61: 1.056209948 | L61: 0.3688478023 | M61: 3.405978604 | N61: 6.005788162 | O61: 3.351024844 | P61: 4.933091707 | Q61: 9.137825177 | R61: 4.474392718 | S61: 0.6615263707 | T61: 1.53555368 | U61: 1.721585392 | V61: 3.106303478 | W61: 0.05871156118 | X61: 2.806331446 | Y61: 4.981136047 | Z61: 0.4291078916
B62: Well without electrical pump | C62: 17.59166831 | D62: 17.13988776 | E62: 5.808552029 | F62: 2.412976635 | G62: 0.3134253567 | H62: 16.05153343 | I62: 4.858253144 | J62: 2.30108544 | K62: 0.5763621787 | L62: 0.1035907982 | M62: 17.87420694 | N62: 16.92661339 | O62: 16.20780277 | P62: 16.23781614 | Q62: 7.411700508 | R62: 29.79952368 | S62: 5.764407444 | T62: 4.936207965 | U62: 11.4486265 | V62: 18.26789234 | W62: 12.93160513 | X62: 8.266829931 | Y62: 5.014534902 | Z62: 2.984641614
B63: River/ stream | C63: 29.82690306 | D63: 10.13510518 | E63: 1.633900658 | F63: 0.3732604915 | G63: 0 | H63: 2.980499807 | I63: 0.6259084656 | J63: 0.5210681358 | K63: 0 | L63: 0 | M63: 34.77241172 | N63: 27.9551119 | O63: 22.40894097 | P63: 14.84809669 | Q63: 3.318371942 | R63: 8.996688652 | S63: 25.48119565 | T63: 8.549585105 | U63: 6.2613377 | V63: 1.344036813 | W63: 28.52627862 | X63: 18.34722011 | Y63: 2.348066086 | Z63: 11.17075581
B64: Pond/ lake | C64: 3.253117042 | D64: 0.8229562377 | E64: 0.01924005749 | F64: 0.02046293467 | G64: 0 | H64: 0.06442009453 | I64: 0.03101956039 | J64: 0.01882359062 | K64: 0.01432616017 | L64: 0 | M64: 4.151556641 | N64: 2.613613583 | O64: 2.978536097 | P64: 0.8345032909 | Q64: 0 | R64: 1.847523821 | S64: 1.628482782 | T64: 1.990454795 | U64: 0.484294443 | V64: 0 | W64: 4.534750516 | X64: 0.2703310376 | Y64: 0.3349235089 | Z64: 0.05928280664
B65: Wather from neighbors | C65: 0.7813468554 | D65: 1.08989192 | E65: 1.029378197 | F65: 0.4005350128 | G65: 0 | H65: 2.687943631 | I65: 0.7067024446 | J65: 0.5884441088 | K65: 0.04265641601 | L65: 0 | M65: 0.3690451336 | N65: 0.457123936 | O65: 0.3151042889 | P65: 0.4660327346 | Q65: 0.5215464062 | R65: 1.31344562 | S65: 0.7065587637 | T65: 0.4294665872 | U65: 0.2246160463 | V65: 0.7556529067 | W65: 0.2962382871 | X65: 0.5517202498 | Y65: 0.9585495099 | Z65: 2.075873526
B66: Tanker truck | C66: 0.1533407536 | D66: 1.392473046 | E66: 3.357487447 | F66: 2.737964016 | G66: 1.495134467 | H66: 3.560944229 | I66: 3.698579775 | J66: 3.516156864 | K66: 2.013127573 | L66: 1.18793708 | M66: 0 | N66: 0.2724361793 | O66: 0.1233909942 | P66: 0.4092639071 | Q66: 0.4936123934 | R66: 2.270807722 | S66: 0.313491574 | T66: 7.923978035 | U66: 0.4096203462 | V66: 0.2085224785 | W66: 0 | X66: 0.3569993002 | Y66: 0.09222627007 | Z66: 1.380247915
B67: Other | C67: 1.023737093 | D67: 0.8620859496 | E67: 0.3525155281 | F67: 0.1248029999 | G67: 0.1025001503 | H67: 0.7538956351 | I67: 0.2188658523 | J67: 0.1075444453 | K67: 0.2032290933 | L67: 0.05411109276 | M67: 1.30406512 | N67: 1.013954063 | O67: 0.3897835052 | P67: 0.9615001796 | Q67: 0.6243028846 | R67: 0.8308312721 | S67: 0.7724538425 | T67: 0.8116020395 | U67: 0.2174148288 | V67: 0.6026264023 | W67: 1.719738686 | X67: 0.5669840841 | Y67: 0.3645120023 | Z67: 0.3749301648
A108: =A1026 -> Bolivia (Plurinational State of)
A109: =A1034 -> 2003
A110: Use of sanitation facilities
A111: by wealth quintile and sub-national region
A112: Notes:
A113: WHO/UNICEF JMP customised wealth index excludes water,
A114: sanitation and hygiene assets.
A115: Survey used for analysis: | B115: =A1025 -> DHS03
A116: =B1030 -> Ratio of Improved latrines based on: | B116: 50% Rule
A117: =B1029 -> Ratio of Shared improved based on: | B117: Shared among sanitation
A120: Use of sanitation facilities | C120: NATIONAL wealth index quintile | H120: URBAN wealth index quintile | M120: RURAL wealth index quintile | R120: SUB-REGIONS: | BA120: Raw numbers of respondents: | BB120: Use of sanitation facilities | BC120: NATIONAL wealth index quintile | BH120: URBAN wealth index quintile | BM120: RURAL wealth index quintile | BR120: SUB-REGIONS:
A121: Weighted percentage (used in graphs) | C121: Poorest | D121: Poor | E121: Middle | F121: Rich | G121: Richest | H121: Poorest | I121: Poor | J121: Middle | K121: Rich | L121: Richest | M121: Poorest | N121: Poor | O121: Middle | P121: Rich | Q121: Richest | R121: Beni | S121: Chuquisaca | T121: Cochabamba | U121: La Paz | V121: Oruro | W121: Pando | X121: Potosi | Y121: Santa Cruz | Z121: Tarija | BA121: Sanitation data, raw numbers (weighted) | BC121: Poorest | BD121: Poor | BE121: Middle | BF121: Rich | BG121: Richest | BH121: Poorest | BI121: Poor | BJ121: Middle | BK121: Rich | BL121: Richest | BM121: Poorest | BN121: Poor | BO121: Middle | BP121: Rich | BQ121: Richest | BR121: Beni | BS121: Chuquisaca | BT121: Cochabamba | BU121: La Paz | BV121: Oruro | BW121: Pando | BX121: Potosi | BY121: Santa Cruz | BZ121: Tarija
A122: Sanitation | B122: Improved | C122: =C135+C136+C137 -> 15.46311193 | D122: =D135+D136+D137 -> 28.06842655 | E122: 50.01810247 | F122: 74.45675348 | G122: 90.73685721 | H122: 37.11521439 | I122: 57.88563402 | J122: 75.88674811 | K122: 81.87207679 | L122: 94.26975491 | M122: 10.60400242 | N122: 16.65339119 | O122: 20.91308996 | P122: 25.37419804 | Q122: 42.14583296 | R122: 55.5838303 | S122: 40.07998677 | T122: 56.56526043 | U122: 46.58907809 | V122: 44.35445022 | W122: 48.04407391 | X122: 32.20397767 | Y122: 63.22699683 | Z122: 62.29394061 | BA122: Sanitation | BB122: Improved | BC122: N/A | BD122: N/A | BE122: N/A | BF122: N/A | BG122: N/A | BH122: N/A | BI122: N/A | BJ122: N/A | BK122: N/A | BL122: N/A | BM122: N/A | BN122: N/A | BO122: N/A | BP122: N/A | BQ122: N/A | BR122: N/A | BS122: N/A | BT122: N/A | BU122: N/A | BV122: N/A | BW122: N/A | BX122: N/A | BY122: N/A | BZ122: N/A
B123: Not Improved | C123: =100-C122 -> 84.53688807 | D123: =100-D122 -> 71.93157345 | E123: 49.98189753 | F123: 25.54324652 | G123: 9.26314279 | H123: 62.88478561 | I123: 42.11436598 | J123: 24.11325189 | K123: 18.12792321 | L123: 5.730245091 | M123: 89.39599758 | N123: 83.34660881 | O123: 79.08691004 | P123: 74.62580196 | Q123: 57.85416704 | R123: 44.4161697 | S123: 59.92001323 | T123: 43.43473957 | U123: 53.41092191 | V123: 55.64554978 | W123: 51.95592609 | X123: 67.79602233 | Y123: 36.77300317 | Z123: 37.70605939 | BB123: Not Improved | BC123: N/A | BD123: N/A | BE123: N/A | BF123: N/A | BG123: N/A | BH123: N/A | BI123: N/A | BJ123: N/A | BK123: N/A | BL123: N/A | BM123: N/A | BN123: N/A | BO123: N/A | BP123: N/A | BQ123: N/A | BR123: N/A | BS123: N/A | BT123: N/A | BU123: N/A | BV123: N/A | BW123: N/A | BX123: N/A | BY123: N/A | BZ123: N/A
A124: Sanitation ladder | B124: Basic | C124: =C122*C129/100 -> 4.421660049 | D124: =D122*D129/100 -> 11.54783745 | E124: 19.18875849 | F124: 42.89989767 | G124: 81.55901535 | H124: 13.66408921 | I124: 21.07222986 | J124: 41.51522474 | K124: 59.63205947 | L124: 90.07372506 | M124: 2.121156986 | N124: 5.208473945 | O124: 7.749856023 | P124: 10.66837721 | Q124: 24.99010864 | R124: 41.29118787 | S124: 13.65578871 | T124: 32.36092288 | U124: 19.05498587 | V124: 15.35319573 | W124: 29.23148061 | X124: 7.826238671 | Y124: 45.29186979 | Z124: 33.31838705 | BA124: Sanitation ladder | BB124: Basic | BC124: N/A | BD124: N/A | BE124: N/A | BF124: N/A | BG124: N/A | BH124: N/A | BI124: N/A | BJ124: N/A | BK124: N/A | BL124: N/A | BM124: N/A | BN124: N/A | BO124: N/A | BP124: N/A | BQ124: N/A | BR124: N/A | BS124: N/A | BT124: N/A | BU124: N/A | BV124: N/A | BW124: N/A | BX124: N/A | BY124: N/A | BZ124: N/A
B125: Limited | C125: =C122*C128/100 -> 11.04145188 | D125: =D122*D128/100 -> 16.5205891 | E125: 30.82934399 | F125: 31.55685581 | G125: 9.177841861 | H125: 23.45112517 | I125: 36.81340415 | J125: 34.37152337 | K125: 22.24001732 | L125: 4.196029854 | M125: 8.482845431 | N125: 11.44491725 | O125: 13.16323393 | P125: 14.70582083 | Q125: 17.15572431 | R125: 14.29264243 | S125: 26.42419806 | T125: 24.20433755 | U125: 27.53409222 | V125: 29.00125448 | W125: 18.8125933 | X125: 24.377739 | Y125: 17.93512703 | Z125: 28.97555357 | BB125: Limited | BC125: N/A | BD125: N/A | BE125: N/A | BF125: N/A | BG125: N/A | BH125: N/A | BI125: N/A | BJ125: N/A | BK125: N/A | BL125: N/A | BM125: N/A | BN125: N/A | BO125: N/A | BP125: N/A | BQ125: N/A | BR125: N/A | BS125: N/A | BT125: N/A | BU125: N/A | BV125: N/A | BW125: N/A | BX125: N/A | BY125: N/A | BZ125: N/A
B126: Unimproved | C126: =100-(C124+C125+C127) -> 13.59982755 | D126: =100-(D124+D125+D127) -> 19.83449517 | E126: 15.75120826 | F126: 14.00702826 | G126: 7.916797083 | H126: 17.66721395 | I126: 14.01661792 | J126: 13.18968044 | K126: 11.7624179 | L126: 5.319404833 | M126: 9.676722369 | N126: 13.87246526 | O126: 18.22148315 | P126: 19.74190682 | Q126: 24.47317232 | R126: 31.40333114 | S126: 5.835382624 | T126: 15.20528113 | U126: 9.039096997 | V126: 4.529285047 | W126: 27.16362004 | X126: 4.228443393 | Y126: 24.74904695 | Z126: 12.27017598 | BB126: Unimproved | BC126: N/A | BD126: N/A | BE126: N/A | BF126: N/A | BG126: N/A | BH126: N/A | BI126: N/A | BJ126: N/A | BK126: N/A | BL126: N/A | BM126: N/A | BN126: N/A | BO126: N/A | BP126: N/A | BQ126: N/A | BR126: N/A | BS126: N/A | BT126: N/A | BU126: N/A | BV126: N/A | BW126: N/A | BX126: N/A | BY126: N/A | BZ126: N/A
B127: Open defecation | C127: =C139 -> 70.93706052 | D127: =D139 -> 52.09707828 | E127: 34.23068927 | F127: 11.53621827 | G127: 1.346345707 | H127: 45.21757166 | I127: 28.09774806 | J127: 10.92357146 | K127: 6.365505314 | L127: 0.4108402575 | M127: 79.71927521 | N127: 69.47414355 | O127: 60.8654269 | P127: 54.88389514 | Q127: 33.38099472 | R127: 13.01283857 | S127: 54.08463061 | T127: 28.22945844 | U127: 44.37182491 | V127: 51.11626474 | W127: 24.79230605 | X127: 63.56757894 | Y127: 12.02395622 | Z127: 25.4358834 | BB127: Open defecation | BC127: N/A | BD127: N/A | BE127: N/A | BF127: N/A | BG127: N/A | BH127: N/A | BI127: N/A | BJ127: N/A | BK127: N/A | BL127: N/A | BM127: N/A | BN127: N/A | BO127: N/A | BP127: N/A | BQ127: N/A | BR127: N/A | BS127: N/A | BT127: N/A | BU127: N/A | BV127: N/A | BW127: N/A | BX127: N/A | BY127: N/A | BZ127: N/A
A128: Shared among Improved Sanitation | B128: Yes | C128: 71.40510869 | D128: 58.85826577 | E128: 61.63637256 | F128: 42.38279852 | G128: 10.11478923 | H128: 63.1846685 | I128: 63.59678835 | J128: 45.29318257 | K128: 27.16434979 | L128: 4.451088112 | M128: 79.99663804 | N128: 68.7242443 | O128: 62.94255875 | P128: 57.95580536 | Q128: 40.70562404 | R128: 25.71366952 | S128: 65.92865963 | T128: 42.79011069 | U128: 59.09988639 | V128: 65.38521917 | W128: 39.15694855 | X128: 75.697913 | Y128: 28.36624849 | Z128: 46.51424084 | BA128: Shared among improved sanitation facilities | BB128: Yes | BC128: N/A | BD128: N/A | BE128: N/A | BF128: N/A | BG128: N/A | BH128: N/A | BI128: N/A | BJ128: N/A | BK128: N/A | BL128: N/A | BM128: N/A | BN128: N/A | BO128: N/A | BP128: N/A | BQ128: N/A | BR128: N/A | BS128: N/A | BT128: N/A | BU128: N/A | BV128: N/A | BW128: N/A | BX128: N/A | BY128: N/A | BZ128: N/A
B129: No | C129: 28.59489131 | D129: 41.14173423 | E129: 38.36362744 | F129: 57.61720148 | G129: 89.88521077 | H129: 36.8153315 | I129: 36.40321165 | J129: 54.70681743 | K129: 72.83565021 | L129: 95.54891189 | M129: 20.00336196 | N129: 31.2757557 | O129: 37.05744125 | P129: 42.04419464 | Q129: 59.29437596 | R129: 74.28633048 | S129: 34.07134037 | T129: 57.20988931 | U129: 40.90011361 | V129: 34.61478083 | W129: 60.84305145 | X129: 24.302087 | Y129: 71.63375151 | Z129: 53.48575916 | BB129: No | BC129: N/A | BD129: N/A | BE129: N/A | BF129: N/A | BG129: N/A | BH129: N/A | BI129: N/A | BJ129: N/A | BK129: N/A | BL129: N/A | BM129: N/A | BN129: N/A | BO129: N/A | BP129: N/A | BQ129: N/A | BR129: N/A | BS129: N/A | BT129: N/A | BU129: N/A | BV129: N/A | BW129: N/A | BX129: N/A | BY129: N/A | BZ129: N/A
A130: Manually calculated ratios | B130: Improved latrines
B131: Other
B132: Other
C133: NATIONAL wealth index quintile | H133: URBAN wealth index quintile | M133: RURAL wealth index quintile | R133: SUB-REGIONS: | BA133: Raw numbers of respondents: | BB133: Use of sanitation facilities | BC133: NATIONAL wealth index quintile | BH133: URBAN wealth index quintile | BM133: RURAL wealth index quintile | BR133: SUB-REGIONS:
A134: Percentage based on weighted population | C134: Poorest | D134: Poor | E134: Middle | F134: Rich | G134: Richest | H134: Poorest | I134: Poor | J134: Middle | K134: Rich | L134: Richest | M134: Poorest | N134: Poor | O134: Middle | P134: Rich | Q134: Richest | R134: Beni | S134: Chuquisaca | T134: Cochabamba | U134: La Paz | V134: Oruro | W134: Pando | X134: Potosi | Y134: Santa Cruz | Z134: Tarija | BA134: Sanitation data, raw numbers (weighted) | BC134: Poorest | BD134: Poor | BE134: Middle | BF134: Rich | BG134: Richest | BH134: Poorest | BI134: Poor | BJ134: Middle | BK134: Rich | BL134: Richest | BM134: Poorest | BN134: Poor | BO134: Middle | BP134: Rich | BQ134: Richest | BR134: Beni | BS134: Chuquisaca | BT134: Cochabamba | BU134: La Paz | BV134: Oruro | BW134: Pando | BX134: Potosi | BY134: Santa Cruz | BZ134: Tarija
A135: Sanitation type | B135: Sewer connection | C135: =C153 -> 0.2549214485 | D135: =D153 -> 4.936185075 | E135: 27.70653834 | F135: 47.8264709 | G135: 66.75136709 | H135: 14.49871837 | I135: 37.73430811 | J135: 51.12637354 | K135: 53.15323049 | L135: 74.66382565 | M135: 0.03016358962 | N135: 0.4741790052 | O135: 0.7724805385 | P135: 2.281608849 | Q135: 8.28035385 | R135: 5.046549991 | S135: 33.71448778 | T135: 34.35946891 | U135: 34.24646304 | V135: 37.79995177 | W135: 2.806886335 | X135: 27.06884283 | Y135: 19.67820411 | Z135: 45.47176249 | BA135: Sanitation type | BB135: Sewer connection | BC135: N/A | BD135: N/A | BE135: N/A | BF135: N/A | BG135: N/A | BH135: N/A | BI135: N/A | BJ135: N/A | BK135: N/A | BL135: N/A | BM135: N/A | BN135: N/A | BO135: N/A | BP135: N/A | BQ135: N/A | BR135: N/A | BS135: N/A | BT135: N/A | BU135: N/A | BV135: N/A | BW135: N/A | BX135: N/A | BY135: N/A | BZ135: N/A
B136: Septic tank connection | C136: =C154 -> 1.608362927 | D136: 3.297746305 | E136: 6.56035587 | F136: 12.62325432 | G136: 16.06869304 | H136: 4.94928206 | I136: 6.134707988 | J136: 11.57069413 | K136: 16.9564284 | L136: 14.28652443 | M136: 0.897116459 | N136: 2.306746926 | O136: 1.919126269 | P136: 3.350682369 | Q136: 9.392306781 | R136: 19.13394917 | S136: 0.5301163612 | T136: 7.000510394 | U136: 3.303518058 | V136: 2.025213395 | W136: 18.07356754 | X136: 0.906691439 | Y136: 18.79974577 | Z136: 4.552002146 | BB136: Septic tank connection | BC136: N/A | BD136: N/A | BE136: N/A | BF136: N/A | BG136: N/A | BH136: N/A | BI136: N/A | BJ136: N/A | BK136: N/A | BL136: N/A | BM136: N/A | BN136: N/A | BO136: N/A | BP136: N/A | BQ136: N/A | BR136: N/A | BS136: N/A | BT136: N/A | BU136: N/A | BV136: N/A | BW136: N/A | BX136: N/A | BY136: N/A | BZ136: N/A
B137: Improved latrines | C137: =(100-(C135+C136+C139))/2 -> 13.59982755 | D137: =(100-(D135+D136+D139))/2 -> 19.83449517 | E137: 15.75120826 | F137: 14.00702826 | G137: 7.916797083 | H137: 17.66721395 | I137: 14.01661792 | J137: 13.18968044 | K137: 11.7624179 | L137: 5.319404833 | M137: 9.676722369 | N137: 13.87246526 | O137: 18.22148315 | P137: 19.74190682 | Q137: 24.47317232 | R137: 31.40333114 | S137: 5.835382624 | T137: 15.20528113 | U137: 9.039096997 | V137: 4.529285047 | W137: 27.16362004 | X137: 4.228443393 | Y137: 24.74904695 | Z137: 12.27017598 | BB137: Improved latrines | BC137: N/A | BD137: N/A | BE137: N/A | BF137: N/A | BG137: N/A | BH137: N/A | BI137: N/A | BJ137: N/A | BK137: N/A | BL137: N/A | BM137: N/A | BN137: N/A | BO137: N/A | BP137: N/A | BQ137: N/A | BR137: N/A | BS137: N/A | BT137: N/A | BU137: N/A | BV137: N/A | BW137: N/A | BX137: N/A | BY137: N/A | BZ137: N/A
B138: Unimproved facilities | C138: =(100-(C135+C136+C139))/2 -> 13.59982755 | D138: =(100-(D135+D136+D139))/2 -> 19.83449517 | E138: 15.75120826 | F138: 14.00702826 | G138: 7.916797083 | H138: 17.66721395 | I138: 14.01661792 | J138: 13.18968044 | K138: 11.7624179 | L138: 5.319404833 | M138: 9.676722369 | N138: 13.87246526 | O138: 18.22148315 | P138: 19.74190682 | Q138: 24.47317232 | R138: 31.40333114 | S138: 5.835382624 | T138: 15.20528113 | U138: 9.039096997 | V138: 4.529285047 | W138: 27.16362004 | X138: 4.228443393 | Y138: 24.74904695 | Z138: 12.27017598 | BB138: Unimproved facilities | BC138: N/A | BD138: N/A | BE138: N/A | BF138: N/A | BG138: N/A | BH138: N/A | BI138: N/A | BJ138: N/A | BK138: N/A | BL138: N/A | BM138: N/A | BN138: N/A | BO138: N/A | BP138: N/A | BQ138: N/A | BR138: N/A | BS138: N/A | BT138: N/A | BU138: N/A | BV138: N/A | BW138: N/A | BX138: N/A | BY138: N/A | BZ138: N/A
B139: Open defecation | C139: 70.93706052 | D139: 52.09707828 | E139: 34.23068927 | F139: 11.53621827 | G139: 1.346345707 | H139: 45.21757166 | I139: 28.09774806 | J139: 10.92357146 | K139: 6.365505314 | L139: 0.4108402575 | M139: 79.71927521 | N139: 69.47414355 | O139: 60.8654269 | P139: 54.88389514 | Q139: 33.38099472 | R139: 13.01283857 | S139: 54.08463061 | T139: 28.22945844 | U139: 44.37182491 | V139: 51.11626474 | W139: 24.79230605 | X139: 63.56757894 | Y139: 12.02395622 | Z139: 25.4358834 | BB139: Open defecation | BC139: N/A | BD139: N/A | BE139: N/A | BF139: N/A | BG139: N/A | BH139: N/A | BI139: N/A | BJ139: N/A | BK139: N/A | BL139: N/A | BM139: N/A | BN139: N/A | BO139: N/A | BP139: N/A | BQ139: N/A | BR139: N/A | BS139: N/A | BT139: N/A | BU139: N/A | BV139: N/A | BW139: N/A | BX139: N/A | BY139: N/A | BZ139: N/A
A140: Septic tank emptying practices | B140: Not emptied/treated and disposed in situ | C140: N/A | D140: N/A | E140: N/A | F140: N/A | G140: N/A | H140: N/A | I140: N/A | J140: N/A | K140: N/A | L140: N/A | M140: N/A | N140: N/A | O140: N/A | P140: N/A | Q140: N/A | R140: N/A | S140: N/A | T140: N/A | U140: N/A | V140: N/A | W140: N/A | X140: N/A | Y140: N/A | Z140: N/A | BA140: Septic tank emptying practices | BB140: Not emptied/treated and disposed in situ | BC140: N/A | BD140: N/A | BE140: N/A | BF140: N/A | BG140: N/A | BH140: N/A | BI140: N/A | BJ140: N/A | BK140: N/A | BL140: N/A | BM140: N/A | BN140: N/A | BO140: N/A | BP140: N/A | BQ140: N/A | BR140: N/A | BS140: N/A | BT140: N/A | BU140: N/A | BV140: N/A | BW140: N/A | BX140: N/A | BY140: N/A | BZ140: N/A
B141: Emptied and buried on site | C141: N/A | D141: N/A | E141: N/A | F141: N/A | G141: N/A | H141: N/A | I141: N/A | J141: N/A | K141: N/A | L141: N/A | M141: N/A | N141: N/A | O141: N/A | P141: N/A | Q141: N/A | R141: N/A | S141: N/A | T141: N/A | U141: N/A | V141: N/A | W141: N/A | X141: N/A | Y141: N/A | Z141: N/A | BB141: Emptied and buried on site | BC141: N/A | BD141: N/A | BE141: N/A | BF141: N/A | BG141: N/A | BH141: N/A | BI141: N/A | BJ141: N/A | BK141: N/A | BL141: N/A | BM141: N/A | BN141: N/A | BO141: N/A | BP141: N/A | BQ141: N/A | BR141: N/A | BS141: N/A | BT141: N/A | BU141: N/A | BV141: N/A | BW141: N/A | BX141: N/A | BY141: N/A | BZ141: N/A
B142: Emptied and discharged locally | C142: N/A | D142: N/A | E142: N/A | F142: N/A | G142: N/A | H142: N/A | I142: N/A | J142: N/A | K142: N/A | L142: N/A | M142: N/A | N142: N/A | O142: N/A | P142: N/A | Q142: N/A | R142: N/A | S142: N/A | T142: N/A | U142: N/A | V142: N/A | W142: N/A | X142: N/A | Y142: N/A | Z142: N/A | BB142: Emptied and discharged locally | BC142: N/A | BD142: N/A | BE142: N/A | BF142: N/A | BG142: N/A | BH142: N/A | BI142: N/A | BJ142: N/A | BK142: N/A | BL142: N/A | BM142: N/A | BN142: N/A | BO142: N/A | BP142: N/A | BQ142: N/A | BR142: N/A | BS142: N/A | BT142: N/A | BU142: N/A | BV142: N/A | BW142: N/A | BX142: N/A | BY142: N/A | BZ142: N/A
B143: Emptied and removed offsite | C143: N/A | D143: N/A | E143: N/A | F143: N/A | G143: N/A | H143: N/A | I143: N/A | J143: N/A | K143: N/A | L143: N/A | M143: N/A | N143: N/A | O143: N/A | P143: N/A | Q143: N/A | R143: N/A | S143: N/A | T143: N/A | U143: N/A | V143: N/A | W143: N/A | X143: N/A | Y143: N/A | Z143: N/A | BB143: Emptied and removed offsite | BC143: N/A | BD143: N/A | BE143: N/A | BF143: N/A | BG143: N/A | BH143: N/A | BI143: N/A | BJ143: N/A | BK143: N/A | BL143: N/A | BM143: N/A | BN143: N/A | BO143: N/A | BP143: N/A | BQ143: N/A | BR143: N/A | BS143: N/A | BT143: N/A | BU143: N/A | BV143: N/A | BW143: N/A | BX143: N/A | BY143: N/A | BZ143: N/A
A144: Latrine emptying practices | B144: Not emptied/treated and disposed in situ | C144: N/A | D144: N/A | E144: N/A | F144: N/A | G144: N/A | H144: N/A | I144: N/A | J144: N/A | K144: N/A | L144: N/A | M144: N/A | N144: N/A | O144: N/A | P144: N/A | Q144: N/A | R144: N/A | S144: N/A | T144: N/A | U144: N/A | V144: N/A | W144: N/A | X144: N/A | Y144: N/A | Z144: N/A | BA144: Latrine emptying practices | BB144: Not emptied/treated and disposed in situ | BC144: N/A | BD144: N/A | BE144: N/A | BF144: N/A | BG144: N/A | BH144: N/A | BI144: N/A | BJ144: N/A | BK144: N/A | BL144: N/A | BM144: N/A | BN144: N/A | BO144: N/A | BP144: N/A | BQ144: N/A | BR144: N/A | BS144: N/A | BT144: N/A | BU144: N/A | BV144: N/A | BW144: N/A | BX144: N/A | BY144: N/A | BZ144: N/A
B145: Emptied and buried on site | C145: N/A | D145: N/A | E145: N/A | F145: N/A | G145: N/A | H145: N/A | I145: N/A | J145: N/A | K145: N/A | L145: N/A | M145: N/A | N145: N/A | O145: N/A | P145: N/A | Q145: N/A | R145: N/A | S145: N/A | T145: N/A | U145: N/A | V145: N/A | W145: N/A | X145: N/A | Y145: N/A | Z145: N/A | BB145: Emptied and buried on site | BC145: N/A | BD145: N/A | BE145: N/A | BF145: N/A | BG145: N/A | BH145: N/A | BI145: N/A | BJ145: N/A | BK145: N/A | BL145: N/A | BM145: N/A | BN145: N/A | BO145: N/A | BP145: N/A | BQ145: N/A | BR145: N/A | BS145: N/A | BT145: N/A | BU145: N/A | BV145: N/A | BW145: N/A | BX145: N/A | BY145: N/A | BZ145: N/A
B146: Emptied and discharged locally | C146: N/A | D146: N/A | E146: N/A | F146: N/A | G146: N/A | H146: N/A | I146: N/A | J146: N/A | K146: N/A | L146: N/A | M146: N/A | N146: N/A | O146: N/A | P146: N/A | Q146: N/A | R146: N/A | S146: N/A | T146: N/A | U146: N/A | V146: N/A | W146: N/A | X146: N/A | Y146: N/A | Z146: N/A | BB146: Emptied and discharged locally | BC146: N/A | BD146: N/A | BE146: N/A | BF146: N/A | BG146: N/A | BH146: N/A | BI146: N/A | BJ146: N/A | BK146: N/A | BL146: N/A | BM146: N/A | BN146: N/A | BO146: N/A | BP146: N/A | BQ146: N/A | BR146: N/A | BS146: N/A | BT146: N/A | BU146: N/A | BV146: N/A | BW146: N/A | BX146: N/A | BY146: N/A | BZ146: N/A
B147: Emptied and removed offsite | C147: N/A | D147: N/A | E147: N/A | F147: N/A | G147: N/A | H147: N/A | I147: N/A | J147: N/A | K147: N/A | L147: N/A | M147: N/A | N147: N/A | O147: N/A | P147: N/A | Q147: N/A | R147: N/A | S147: N/A | T147: N/A | U147: N/A | V147: N/A | W147: N/A | X147: N/A | Y147: N/A | Z147: N/A | BB147: Emptied and removed offsite | BC147: N/A | BD147: N/A | BE147: N/A | BF147: N/A | BG147: N/A | BH147: N/A | BI147: N/A | BJ147: N/A | BK147: N/A | BL147: N/A | BM147: N/A | BN147: N/A | BO147: N/A | BP147: N/A | BQ147: N/A | BR147: N/A | BS147: N/A | BT147: N/A | BU147: N/A | BV147: N/A | BW147: N/A | BX147: N/A | BY147: N/A | BZ147: N/A
A148: Shared among improved sanitation facilities | B148: Yes | C148: N/A | D148: N/A | E148: N/A | F148: N/A | G148: N/A | H148: N/A | I148: N/A | J148: N/A | K148: N/A | L148: N/A | M148: N/A | N148: N/A | O148: N/A | P148: N/A | Q148: N/A | R148: N/A | S148: N/A | T148: N/A | U148: N/A | V148: N/A | W148: N/A | X148: N/A | Y148: N/A | Z148: N/A | BA148: Shared among improved sanitation facilities | BB148: Yes | BC148: N/A | BD148: N/A | BE148: N/A | BF148: N/A | BG148: N/A | BH148: N/A | BI148: N/A | BJ148: N/A | BK148: N/A | BL148: N/A | BM148: N/A | BN148: N/A | BO148: N/A | BP148: N/A | BQ148: N/A | BR148: N/A | BS148: N/A | BT148: N/A | BU148: N/A | BV148: N/A | BW148: N/A | BX148: N/A | BY148: N/A | BZ148: N/A
B149: No | C149: N/A | D149: N/A | E149: N/A | F149: N/A | G149: N/A | H149: N/A | I149: N/A | J149: N/A | K149: N/A | L149: N/A | M149: N/A | N149: N/A | O149: N/A | P149: N/A | Q149: N/A | R149: N/A | S149: N/A | T149: N/A | U149: N/A | V149: N/A | W149: N/A | X149: N/A | Y149: N/A | Z149: N/A | BB149: No | BC149: N/A | BD149: N/A | BE149: N/A | BF149: N/A | BG149: N/A | BH149: N/A | BI149: N/A | BJ149: N/A | BK149: N/A | BL149: N/A | BM149: N/A | BN149: N/A | BO149: N/A | BP149: N/A | BQ149: N/A | BR149: N/A | BS149: N/A | BT149: N/A | BU149: N/A | BV149: N/A | BW149: N/A | BX149: N/A | BY149: N/A | BZ149: N/A
B150: DK/missing | C150: N/A | D150: N/A | E150: N/A | F150: N/A | G150: N/A | H150: N/A | I150: N/A | J150: N/A | K150: N/A | L150: N/A | M150: N/A | N150: N/A | O150: N/A | P150: N/A | Q150: N/A | R150: N/A | S150: N/A | T150: N/A | U150: N/A | V150: N/A | W150: N/A | X150: N/A | Y150: N/A | Z150: N/A | BB150: DK/missing | BC150: N/A | BD150: N/A | BE150: N/A | BF150: N/A | BG150: N/A | BH150: N/A | BI150: N/A | BJ150: N/A | BK150: N/A | BL150: N/A | BM150: N/A | BN150: N/A | BO150: N/A | BP150: N/A | BQ150: N/A | BR150: N/A | BS150: N/A | BT150: N/A | BU150: N/A | BV150: N/A | BW150: N/A | BX150: N/A | BY150: N/A | BZ150: N/A
A151: Shared among all sanitation facilities | B151: Yes | C151: 71.40510869 | D151: 58.85826577 | E151: 61.63637256 | F151: 42.38279852 | G151: 10.11478923 | H151: 63.1846685 | I151: 63.59678835 | J151: 45.29318257 | K151: 27.16434979 | L151: 4.451088112 | M151: 79.99663804 | N151: 68.7242443 | O151: 62.94255875 | P151: 57.95580536 | Q151: 40.70562404 | R151: 25.71366952 | S151: 65.92865963 | T151: 42.79011069 | U151: 59.09988639 | V151: 65.38521917 | W151: 39.15694855 | X151: 75.697913 | Y151: 28.36624849 | Z151: 46.51424084 | BA151: Shared among all sanitation facilities | BB151: Yes | BC151: N/A | BD151: N/A | BE151: N/A | BF151: N/A | BG151: N/A | BH151: N/A | BI151: N/A | BJ151: N/A | BK151: N/A | BL151: N/A | BM151: N/A | BN151: N/A | BO151: N/A | BP151: N/A | BQ151: N/A | BR151: N/A | BS151: N/A | BT151: N/A | BU151: N/A | BV151: N/A | BW151: N/A | BX151: N/A | BY151: N/A | BZ151: N/A
B152: No | C152: 28.59489131 | D152: 41.14173423 | E152: 38.36362744 | F152: 57.61720148 | G152: 89.88521077 | H152: 36.8153315 | I152: 36.40321165 | J152: 54.70681743 | K152: 72.83565021 | L152: 95.54891189 | M152: 20.00336196 | N152: 31.2757557 | O152: 37.05744125 | P152: 42.04419464 | Q152: 59.29437596 | R152: 74.28633048 | S152: 34.07134037 | T152: 57.20988931 | U152: 40.90011361 | V152: 34.61478083 | W152: 60.84305145 | X152: 24.302087 | Y152: 71.63375151 | Z152: 53.48575916 | BB152: No | BC152: N/A | BD152: N/A | BE152: N/A | BF152: N/A | BG152: N/A | BH152: N/A | BI152: N/A | BJ152: N/A | BK152: N/A | BL152: N/A | BM152: N/A | BN152: N/A | BO152: N/A | BP152: N/A | BQ152: N/A | BR152: N/A | BS152: N/A | BT152: N/A | BU152: N/A | BV152: N/A | BW152: N/A | BX152: N/A | BY152: N/A | BZ152: N/A
A153: Type of toilet facility | B153: Flush toilet | C153: 0.2549214485 | D153: 4.936185075 | E153: 27.70653834 | F153: 47.8264709 | G153: 66.75136709 | H153: 14.49871837 | I153: 37.73430811 | J153: 51.12637354 | K153: 53.15323049 | L153: 74.66382565 | M153: 0.03016358962 | N153: 0.4741790052 | O153: 0.7724805385 | P153: 2.281608849 | Q153: 8.28035385 | R153: 5.046549991 | S153: 33.71448778 | T153: 34.35946891 | U153: 34.24646304 | V153: 37.79995177 | W153: 2.806886335 | X153: 27.06884283 | Y153: 19.67820411 | Z153: 45.47176249 | BA153: Type of toilet facility | BB153: Flush toilet | BC153: 41.774478 | BD153: 808.121655 | BE153: 4537.834745 | BF153: 7818.096634 | BG153: 10923.75632 | BH153: 1467.320919 | BI153: 3819.380796 | BJ153: 5156.728444 | BK153: 5394.443476 | BL153: 7552.116418 | BM153: 1.890134 | BN153: 29.567899 | BO153: 48.32537 | BP153: 142.676558 | BQ153: 517.133815 | BR153: 159.359665 | BS153: 1975.452065 | BT153: 5249.861563 | BU153: 7571.745017 | BV153: 1556.951368 | BW153: 12.255933 | BX153: 1941.068503 | BY153: 3907.038272 | BZ153: 1755.851443
B154: Camara s‚ptica | C154: 1.608362927 | D154: 3.297746305 | E154: 6.56035587 | F154: 12.62325432 | G154: 16.06869304 | H154: 4.94928206 | I154: 6.134707988 | J154: 11.57069413 | K154: 16.9564284 | L154: 14.28652443 | M154: 0.897116459 | N154: 2.306746926 | O154: 1.919126269 | P154: 3.350682369 | Q154: 9.392306781 | R154: 19.13394917 | S154: 0.5301163612 | T154: 7.000510394 | U154: 3.303518058 | V154: 2.025213395 | W154: 18.07356754 | X154: 0.906691439 | Y154: 18.79974577 | Z154: 4.552002146 | BB154: Camara s‚ptica | BC154: 263.565589 | BD154: 539.886605 | BE154: 1074.468793 | BF154: 2063.497896 | BG154: 2629.616362 | BH154: 500.884624 | BI154: 620.941182 | BJ154: 1167.047913 | BK154: 1720.883072 | BL154: 1445.057158 | BM154: 56.2158 | BN154: 143.839477 | BO154: 120.058024 | BP154: 209.529266 | BQ154: 586.578729 | BR154: 604.210745 | BS154: 31.061408 | BT154: 1069.623938 | BU154: 730.39357 | BV154: 83.417005 | BW154: 78.916068 | BX154: 65.017563 | BY154: 3732.623456 | BZ154: 175.771492
B155: Pit toilet | C155: 27.1743944 | D155: 39.60672574 | E155: 31.4711079 | F155: 27.98077121 | G155: 15.83153523 | H155: 35.2662222 | I155: 27.90499805 | J155: 26.3736673 | K155: 23.51974407 | L155: 10.63796124 | M155: 19.35344474 | N155: 27.67991428 | O155: 36.43166395 | P155: 39.45625999 | Q155: 48.91046519 | R155: 62.80057435 | S155: 11.62477146 | T155: 30.38523111 | U155: 17.99614793 | V155: 8.649615971 | W155: 54.32724007 | X155: 8.431657204 | Y155: 49.49210683 | Z155: 24.50191247 | BB155: Pit toilet | BC155: 4453.121336 | BD155: 6484.167888 | BE155: 5154.403814 | BF155: 4573.960175 | BG155: 2590.80586 | BH155: 3569.064812 | BI155: 2824.4804 | BJ155: 2660.111229 | BK155: 2386.984362 | BL155: 1076.011322 | BM155: 1212.740406 | BN155: 1726.008323 | BO155: 2279.117146 | BP155: 2467.330616 | BQ155: 3054.610457 | BR155: 1983.11292 | BS155: 681.136814 | BT155: 4642.628712 | BU155: 3978.870556 | BV155: 356.271127 | BW155: 237.213387 | BX155: 604.622234 | BY155: 9826.483885 | BZ155: 946.119438
B156: No facility/ bush/ field | C156: 70.96232122 | D156: 52.15934288 | E156: 34.26199789 | F156: 11.56950357 | G156: 1.348404639 | H156: 45.28577737 | I156: 28.22598585 | J156: 10.92926503 | K156: 6.370597034 | L156: 0.4116886832 | M156: 79.71927521 | N156: 69.53915979 | O156: 60.87672924 | P156: 54.9114488 | Q156: 33.41687417 | R156: 13.01892649 | S156: 54.13062439 | T156: 28.25478959 | U156: 44.45387098 | V156: 51.52521886 | W156: 24.79230605 | X156: 63.59280852 | Y156: 12.0299433 | Z156: 25.4743229 | BB156: No facility/ bush/ field | BC156: 11628.73483 | BD156: 8539.204638 | BE156: 5611.501609 | BF156: 1891.243389 | BG156: 220.6643 | BH156: 4583.078777 | BI156: 2856.970055 | BJ156: 1102.351838 | BK156: 646.542558 | BL156: 41.641596 | BM156: 4995.4304 | BN156: 4336.182814 | BO156: 3808.36839 | BP156: 3433.79476 | BQ156: 2086.987578 | BR156: 411.110911 | BS156: 3171.706313 | BT156: 4317.113697 | BU156: 9828.558812 | BV156: 2122.284718 | BW156: 108.252635 | BX156: 4560.150517 | BY156: 2388.502966 | BZ156: 983.668197
BB157: Total | BC157: 16387.19623 | BD157: 16371.38079 | BE157: 16378.20896 | BF157: 16346.79809 | BG157: 16364.84284 | BH157: 10120.34913 | BI157: 10121.77243 | BJ157: 10086.23942 | BK157: 10148.85347 | BL157: 10114.82649 | BM157: 6266.27674 | BN157: 6235.598513 | BO157: 6255.86893 | BP157: 6253.3312 | BQ157: 6245.310579 | BR157: 3157.794241 | BS157: 5859.3566 | BT157: 15279.22791 | BU157: 22109.56795 | BV157: 4118.924218 | BW157: 436.638023 | BX157: 7170.858817 | BY157: 19854.64858 | BZ157: 3861.41057
A208: =A1026 -> Bolivia (Plurinational State of)
A209: =A1034 -> 2003
A210: Access to hygiene facilities
A211: by wealth quintile and sub-national region
A212: Notes:
A213: WHO/UNICEF JMP customised wealth index excludes water,
A214: sanitation and hygiene assets.
A215: Survey used for analysis: | B215: =A1025 -> DHS03
A220: Access to handwashing | C220: NATIONAL wealth index quintile | H220: URBAN wealth index quintile | M220: RURAL wealth index quintile | R220: SUB-REGIONS: | BA220: Raw numbers of respondents: | BB220: Access to handwashing | BC220: NATIONAL wealth index quintile | BH220: URBAN wealth index quintile | BM220: RURAL wealth index quintile | BR220: SUB-REGIONS:
A221: Weighted percentage (used in graphs) | C221: Poorest | D221: Poor | E221: Middle | F221: Rich | G221: Richest | H221: Poorest | I221: Poor | J221: Middle | K221: Rich | L221: Richest | M221: Poorest | N221: Poor | O221: Middle | P221: Rich | Q221: Richest | R221: Beni | S221: Chuquisaca | T221: Cochabamba | U221: La Paz | V221: Oruro | W221: Pando | X221: Potosi | Y221: Santa Cruz | Z221: Tarija | BA221: Hygiene data, raw numbers (weighted) | BC221: Poorest | BD221: Poor | BE221: Middle | BF221: Rich | BG221: Richest | BH221: Poorest | BI221: Poor | BJ221: Middle | BK221: Rich | BL221: Richest | BM221: Poorest | BN221: Poor | BO221: Middle | BP221: Rich | BQ221: Richest | BR221: Beni | BS221: Chuquisaca | BT221: Cochabamba | BU221: La Paz | BV221: Oruro | BW221: Pando | BX221: Potosi | BY221: Santa Cruz | BZ221: Tarija
A222: Hygiene ladder | B222: Basic | C222: N/A | D222: N/A | E222: N/A | F222: N/A | G222: N/A | H222: N/A | I222: N/A | J222: N/A | K222: N/A | L222: N/A | M222: N/A | N222: N/A | O222: N/A | P222: N/A | Q222: N/A | R222: N/A | S222: N/A | T222: N/A | U222: N/A | V222: N/A | W222: N/A | X222: N/A | Y222: N/A | Z222: N/A | BA222: Hygiene ladder | BB222: Basic | BC222: N/A | BD222: N/A | BE222: N/A | BF222: N/A | BG222: N/A | BH222: N/A | BI222: N/A | BJ222: N/A | BK222: N/A | BL222: N/A | BM222: N/A | BN222: N/A | BO222: N/A | BP222: N/A | BQ222: N/A | BR222: N/A | BS222: N/A | BT222: N/A | BU222: N/A | BV222: N/A | BW222: N/A | BX222: N/A | BY222: N/A | BZ222: N/A
B223: Limited | C223: N/A | D223: N/A | E223: N/A | F223: N/A | G223: N/A | H223: N/A | I223: N/A | J223: N/A | K223: N/A | L223: N/A | M223: N/A | N223: N/A | O223: N/A | P223: N/A | Q223: N/A | R223: N/A | S223: N/A | T223: N/A | U223: N/A | V223: N/A | W223: N/A | X223: N/A | Y223: N/A | Z223: N/A | BB223: Limited | BC223: N/A | BD223: N/A | BE223: N/A | BF223: N/A | BG223: N/A | BH223: N/A | BI223: N/A | BJ223: N/A | BK223: N/A | BL223: N/A | BM223: N/A | BN223: N/A | BO223: N/A | BP223: N/A | BQ223: N/A | BR223: N/A | BS223: N/A | BT223: N/A | BU223: N/A | BV223: N/A | BW223: N/A | BX223: N/A | BY223: N/A | BZ223: N/A
B224: No facility | C224: N/A | D224: N/A | E224: N/A | F224: N/A | G224: N/A | H224: N/A | I224: N/A | J224: N/A | K224: N/A | L224: N/A | M224: N/A | N224: N/A | O224: N/A | P224: N/A | Q224: N/A | R224: N/A | S224: N/A | T224: N/A | U224: N/A | V224: N/A | W224: N/A | X224: N/A | Y224: N/A | Z224: N/A | BB224: No facility | BC224: N/A | BD224: N/A | BE224: N/A | BF224: N/A | BG224: N/A | BH224: N/A | BI224: N/A | BJ224: N/A | BK224: N/A | BL224: N/A | BM224: N/A | BN224: N/A | BO224: N/A | BP224: N/A | BQ224: N/A | BR224: N/A | BS224: N/A | BT224: N/A | BU224: N/A | BV224: N/A | BW224: N/A | BX224: N/A | BY224: N/A | BZ224: N/A
BA225: Observed handwashing place | BB225: Fixed | BC225: N/A | BD225: N/A | BE225: N/A | BF225: N/A | BG225: N/A | BH225: N/A | BI225: N/A | BJ225: N/A | BK225: N/A | BL225: N/A | BM225: N/A | BN225: N/A | BO225: N/A | BP225: N/A | BQ225: N/A | BR225: N/A | BS225: N/A | BT225: N/A | BU225: N/A | BV225: N/A | BW225: N/A | BX225: N/A | BY225: N/A | BZ225: N/A
BB226: Mobile | BC226: N/A | BD226: N/A | BE226: N/A | BF226: N/A | BG226: N/A | BH226: N/A | BI226: N/A | BJ226: N/A | BK226: N/A | BL226: N/A | BM226: N/A | BN226: N/A | BO226: N/A | BP226: N/A | BQ226: N/A | BR226: N/A | BS226: N/A | BT226: N/A | BU226: N/A | BV226: N/A | BW226: N/A | BX226: N/A | BY226: N/A | BZ226: N/A
BA227: Water / Soap | BB227: Water and soap | BC227: N/A | BD227: N/A | BE227: N/A | BF227: N/A | BG227: N/A | BH227: N/A | BI227: N/A | BJ227: N/A | BK227: N/A | BL227: N/A | BM227: N/A | BN227: N/A | BO227: N/A | BP227: N/A | BQ227: N/A | BR227: N/A | BS227: N/A | BT227: N/A | BU227: N/A | BV227: N/A | BW227: N/A | BX227: N/A | BY227: N/A | BZ227: N/A
BB228: Water only | BC228: N/A | BD228: N/A | BE228: N/A | BF228: N/A | BG228: N/A | BH228: N/A | BI228: N/A | BJ228: N/A | BK228: N/A | BL228: N/A | BM228: N/A | BN228: N/A | BO228: N/A | BP228: N/A | BQ228: N/A | BR228: N/A | BS228: N/A | BT228: N/A | BU228: N/A | BV228: N/A | BW228: N/A | BX228: N/A | BY228: N/A | BZ228: N/A
BB229: Soap only | BC229: N/A | BD229: N/A | BE229: N/A | BF229: N/A | BG229: N/A | BH229: N/A | BI229: N/A | BJ229: N/A | BK229: N/A | BL229: N/A | BM229: N/A | BN229: N/A | BO229: N/A | BP229: N/A | BQ229: N/A | BR229: N/A | BS229: N/A | BT229: N/A | BU229: N/A | BV229: N/A | BW229: N/A | BX229: N/A | BY229: N/A | BZ229: N/A
BB230: Neither | BC230: N/A | BD230: N/A | BE230: N/A | BF230: N/A | BG230: N/A | BH230: N/A | BI230: N/A | BJ230: N/A | BK230: N/A | BL230: N/A | BM230: N/A | BN230: N/A | BO230: N/A | BP230: N/A | BQ230: N/A | BR230: N/A | BS230: N/A | BT230: N/A | BU230: N/A | BV230: N/A | BW230: N/A | BX230: N/A | BY230: N/A | BZ230: N/A
BA259: Raw numbers of respondents: | BB259: Menstrual health and hygiene | BC259: NATIONAL wealth index quintile | BH259: URBAN wealth index quintile | BM259: RURAL wealth index quintile | BR259: SUB-REGIONS:
BA260: MHH data, raw numbers (weighted) | BC260: Poorest | BD260: Poor | BE260: Middle | BF260: Rich | BG260: Richest | BH260: Poorest | BI260: Poor | BJ260: Middle | BK260: Rich | BL260: Richest | BM260: Poorest | BN260: Poor | BO260: Middle | BP260: Rich | BQ260: Richest | BR260: Beni | BS260: Chuquisaca | BT260: Cochabamba | BU260: La Paz | BV260: Oruro | BW260: Pando | BX260: Potosi | BY260: Santa Cruz | BZ260: Tarija
BA261: Private place to wash and change | BB261: Yes | BC261: N/A | BD261: N/A | BE261: N/A | BF261: N/A | BG261: N/A | BH261: N/A | BI261: N/A | BJ261: N/A | BK261: N/A | BL261: N/A | BM261: N/A | BN261: N/A | BO261: N/A | BP261: N/A | BQ261: N/A | BR261: N/A | BS261: N/A | BT261: N/A | BU261: N/A | BV261: N/A | BW261: N/A | BX261: N/A | BY261: N/A | BZ261: N/A
BB262: No | BC262: N/A | BD262: N/A | BE262: N/A | BF262: N/A | BG262: N/A | BH262: N/A | BI262: N/A | BJ262: N/A | BK262: N/A | BL262: N/A | BM262: N/A | BN262: N/A | BO262: N/A | BP262: N/A | BQ262: N/A | BR262: N/A | BS262: N/A | BT262: N/A | BU262: N/A | BV262: N/A | BW262: N/A | BX262: N/A | BY262: N/A | BZ262: N/A
BB263: DK/not sure/missing | BC263: N/A | BD263: N/A | BE263: N/A | BF263: N/A | BG263: N/A | BH263: N/A | BI263: N/A | BJ263: N/A | BK263: N/A | BL263: N/A | BM263: N/A | BN263: N/A | BO263: N/A | BP263: N/A | BQ263: N/A | BR263: N/A | BS263: N/A | BT263: N/A | BU263: N/A | BV263: N/A | BW263: N/A | BX263: N/A | BY263: N/A | BZ263: N/A
BA264: Use of menstrual materials | BB264: Materials reusable | BC264: N/A | BD264: N/A | BE264: N/A | BF264: N/A | BG264: N/A | BH264: N/A | BI264: N/A | BJ264: N/A | BK264: N/A | BL264: N/A | BM264: N/A | BN264: N/A | BO264: N/A | BP264: N/A | BQ264: N/A | BR264: N/A | BS264: N/A | BT264: N/A | BU264: N/A | BV264: N/A | BW264: N/A | BX264: N/A | BY264: N/A | BZ264: N/A
BB265: Materials not reusable | BC265: N/A | BD265: N/A | BE265: N/A | BF265: N/A | BG265: N/A | BH265: N/A | BI265: N/A | BJ265: N/A | BK265: N/A | BL265: N/A | BM265: N/A | BN265: N/A | BO265: N/A | BP265: N/A | BQ265: N/A | BR265: N/A | BS265: N/A | BT265: N/A | BU265: N/A | BV265: N/A | BW265: N/A | BX265: N/A | BY265: N/A | BZ265: N/A
BB266: No materials used | BC266: N/A | BD266: N/A | BE266: N/A | BF266: N/A | BG266: N/A | BH266: N/A | BI266: N/A | BJ266: N/A | BK266: N/A | BL266: N/A | BM266: N/A | BN266: N/A | BO266: N/A | BP266: N/A | BQ266: N/A | BR266: N/A | BS266: N/A | BT266: N/A | BU266: N/A | BV266: N/A | BW266: N/A | BX266: N/A | BY266: N/A | BZ266: N/A
BB267: DK/not sure/missing | BC267: N/A | BD267: N/A | BE267: N/A | BF267: N/A | BG267: N/A | BH267: N/A | BI267: N/A | BJ267: N/A | BK267: N/A | BL267: N/A | BM267: N/A | BN267: N/A | BO267: N/A | BP267: N/A | BQ267: N/A | BR267: N/A | BS267: N/A | BT267: N/A | BU267: N/A | BV267: N/A | BW267: N/A | BX267: N/A | BY267: N/A | BZ267: N/A
BA268: Use of menstrual materials with private place to wash and change | BB268: Materials reusable | BC268: N/A | BD268: N/A | BE268: N/A | BF268: N/A | BG268: N/A | BH268: N/A | BI268: N/A | BJ268: N/A | BK268: N/A | BL268: N/A | BM268: N/A | BN268: N/A | BO268: N/A | BP268: N/A | BQ268: N/A | BR268: N/A | BS268: N/A | BT268: N/A | BU268: N/A | BV268: N/A | BW268: N/A | BX268: N/A | BY268: N/A | BZ268: N/A
BB269: Materials not reusable | BC269: N/A | BD269: N/A | BE269: N/A | BF269: N/A | BG269: N/A | BH269: N/A | BI269: N/A | BJ269: N/A | BK269: N/A | BL269: N/A | BM269: N/A | BN269: N/A | BO269: N/A | BP269: N/A | BQ269: N/A | BR269: N/A | BS269: N/A | BT269: N/A | BU269: N/A | BV269: N/A | BW269: N/A | BX269: N/A | BY269: N/A | BZ269: N/A
BB270: No materials used | BC270: N/A | BD270: N/A | BE270: N/A | BF270: N/A | BG270: N/A | BH270: N/A | BI270: N/A | BJ270: N/A | BK270: N/A | BL270: N/A | BM270: N/A | BN270: N/A | BO270: N/A | BP270: N/A | BQ270: N/A | BR270: N/A | BS270: N/A | BT270: N/A | BU270: N/A | BV270: N/A | BW270: N/A | BX270: N/A | BY270: N/A | BZ270: N/A
BA271: Awareness of menstruation before menarche | BB271: Yes | BC271: N/A | BD271: N/A | BE271: N/A | BF271: N/A | BG271: N/A | BH271: N/A | BI271: N/A | BJ271: N/A | BK271: N/A | BL271: N/A | BM271: N/A | BN271: N/A | BO271: N/A | BP271: N/A | BQ271: N/A | BR271: N/A | BS271: N/A | BT271: N/A | BU271: N/A | BV271: N/A | BW271: N/A | BX271: N/A | BY271: N/A | BZ271: N/A
BB272: No | BC272: N/A | BD272: N/A | BE272: N/A | BF272: N/A | BG272: N/A | BH272: N/A | BI272: N/A | BJ272: N/A | BK272: N/A | BL272: N/A | BM272: N/A | BN272: N/A | BO272: N/A | BP272: N/A | BQ272: N/A | BR272: N/A | BS272: N/A | BT272: N/A | BU272: N/A | BV272: N/A | BW272: N/A | BX272: N/A | BY272: N/A | BZ272: N/A
BB273: DK/not sure/missing | BC273: N/A | BD273: N/A | BE273: N/A | BF273: N/A | BG273: N/A | BH273: N/A | BI273: N/A | BJ273: N/A | BK273: N/A | BL273: N/A | BM273: N/A | BN273: N/A | BO273: N/A | BP273: N/A | BQ273: N/A | BR273: N/A | BS273: N/A | BT273: N/A | BU273: N/A | BV273: N/A | BW273: N/A | BX273: N/A | BY273: N/A | BZ273: N/A
BA274: Participation in (all) activities during menstruation | BB274: Yes | BC274: N/A | BD274: N/A | BE274: N/A | BF274: N/A | BG274: N/A | BH274: N/A | BI274: N/A | BJ274: N/A | BK274: N/A | BL274: N/A | BM274: N/A | BN274: N/A | BO274: N/A | BP274: N/A | BQ274: N/A | BR274: N/A | BS274: N/A | BT274: N/A | BU274: N/A | BV274: N/A | BW274: N/A | BX274: N/A | BY274: N/A | BZ274: N/A
BB275: No | BC275: N/A | BD275: N/A | BE275: N/A | BF275: N/A | BG275: N/A | BH275: N/A | BI275: N/A | BJ275: N/A | BK275: N/A | BL275: N/A | BM275: N/A | BN275: N/A | BO275: N/A | BP275: N/A | BQ275: N/A | BR275: N/A | BS275: N/A | BT275: N/A | BU275: N/A | BV275: N/A | BW275: N/A | BX275: N/A | BY275: N/A | BZ275: N/A
BB276: DK/not sure/missing/no such activity | BC276: N/A | BD276: N/A | BE276: N/A | BF276: N/A | BG276: N/A | BH276: N/A | BI276: N/A | BJ276: N/A | BK276: N/A | BL276: N/A | BM276: N/A | BN276: N/A | BO276: N/A | BP276: N/A | BQ276: N/A | BR276: N/A | BS276: N/A | BT276: N/A | BU276: N/A | BV276: N/A | BW276: N/A | BX276: N/A | BY276: N/A | BZ276: N/A
BA277: Participation in specific activities during menstruation | BB277: Did not go to school (amongst those usually attending school) | BC277: N/A | BD277: N/A | BE277: N/A | BF277: N/A | BG277: N/A | BH277: N/A | BI277: N/A | BJ277: N/A | BK277: N/A | BL277: N/A | BM277: N/A | BN277: N/A | BO277: N/A | BP277: N/A | BQ277: N/A | BR277: N/A | BS277: N/A | BT277: N/A | BU277: N/A | BV277: N/A | BW277: N/A | BX277: N/A | BY277: N/A | BZ277: N/A
BB278: Did not go to work (amongst those who usually work) | BC278: N/A | BD278: N/A | BE278: N/A | BF278: N/A | BG278: N/A | BH278: N/A | BI278: N/A | BJ278: N/A | BK278: N/A | BL278: N/A | BM278: N/A | BN278: N/A | BO278: N/A | BP278: N/A | BQ278: N/A | BR278: N/A | BS278: N/A | BT278: N/A | BU278: N/A | BV278: N/A | BW278: N/A | BX278: N/A | BY278: N/A | BZ278: N/A
BB279: Did not participate in social activities | BC279: N/A | BD279: N/A | BE279: N/A | BF279: N/A | BG279: N/A | BH279: N/A | BI279: N/A | BJ279: N/A | BK279: N/A | BL279: N/A | BM279: N/A | BN279: N/A | BO279: N/A | BP279: N/A | BQ279: N/A | BR279: N/A | BS279: N/A | BT279: N/A | BU279: N/A | BV279: N/A | BW279: N/A | BX279: N/A | BY279: N/A | BZ279: N/A
BB280: Did not cook food | BC280: N/A | BD280: N/A | BE280: N/A | BF280: N/A | BG280: N/A | BH280: N/A | BI280: N/A | BJ280: N/A | BK280: N/A | BL280: N/A | BM280: N/A | BN280: N/A | BO280: N/A | BP280: N/A | BQ280: N/A | BR280: N/A | BS280: N/A | BT280: N/A | BU280: N/A | BV280: N/A | BW280: N/A | BX280: N/A | BY280: N/A | BZ280: N/A
BB281: Did not eat with others | BC281: N/A | BD281: N/A | BE281: N/A | BF281: N/A | BG281: N/A | BH281: N/A | BI281: N/A | BJ281: N/A | BK281: N/A | BL281: N/A | BM281: N/A | BN281: N/A | BO281: N/A | BP281: N/A | BQ281: N/A | BR281: N/A | BS281: N/A | BT281: N/A | BU281: N/A | BV281: N/A | BW281: N/A | BX281: N/A | BY281: N/A | BZ281: N/A
BB282: Did not bathe in regular place | BC282: N/A | BD282: N/A | BE282: N/A | BF282: N/A | BG282: N/A | BH282: N/A | BI282: N/A | BJ282: N/A | BK282: N/A | BL282: N/A | BM282: N/A | BN282: N/A | BO282: N/A | BP282: N/A | BQ282: N/A | BR282: N/A | BS282: N/A | BT282: N/A | BU282: N/A | BV282: N/A | BW282: N/A | BX282: N/A | BY282: N/A | BZ282: N/A
BB283: Did not participate in other activities | BC283: N/A | BD283: N/A | BE283: N/A | BF283: N/A | BG283: N/A | BH283: N/A | BI283: N/A | BJ283: N/A | BK283: N/A | BL283: N/A | BM283: N/A | BN283: N/A | BO283: N/A | BP283: N/A | BQ283: N/A | BR283: N/A | BS283: N/A | BT283: N/A | BU283: N/A | BV283: N/A | BW283: N/A | BX283: N/A | BY283: N/A | BZ283: N/A
BB284: DK/not sure/missing/no such activity | BC284: N/A | BD284: N/A | BE284: N/A | BF284: N/A | BG284: N/A | BH284: N/A | BI284: N/A | BJ284: N/A | BK284: N/A | BL284: N/A | BM284: N/A | BN284: N/A | BO284: N/A | BP284: N/A | BQ284: N/A | BR284: N/A | BS284: N/A | BT284: N/A | BU284: N/A | BV284: N/A | BW284: N/A | BX284: N/A | BY284: N/A | BZ284: N/A
BA339: Raw numbers of respondents: | BB339: Basic water, sanitation and hygiene | BC339: NATIONAL wealth index quintile | BH339: URBAN wealth index quintile | BM339: RURAL wealth index quintile | BR339: SUB-REGIONS:
BA340: WatSan data, raw numbers (weighted) | BC340: Poorest | BD340: Poor | BE340: Middle | BF340: Rich | BG340: Richest | BH340: Poorest | BI340: Poor | BJ340: Middle | BK340: Rich | BL340: Richest | BM340: Poorest | BN340: Poor | BO340: Middle | BP340: Rich | BQ340: Richest | BR340: Beni | BS340: Chuquisaca | BT340: Cochabamba | BU340: La Paz | BV340: Oruro | BW340: Pando | BX340: Potosi | BY340: Santa Cruz | BZ340: Tarija
BA341: Use of Basic Water Sanitation and Hygiene | BB341: Yes | BC341: N/A | BD341: N/A | BE341: N/A | BF341: N/A | BG341: N/A | BH341: N/A | BI341: N/A | BJ341: N/A | BK341: N/A | BL341: N/A | BM341: N/A | BN341: N/A | BO341: N/A | BP341: N/A | BQ341: N/A | BR341: N/A | BS341: N/A | BT341: N/A | BU341: N/A | BV341: N/A | BW341: N/A | BX341: N/A | BY341: N/A | BZ341: N/A
BB342: No | BC342: N/A | BD342: N/A | BE342: N/A | BF342: N/A | BG342: N/A | BH342: N/A | BI342: N/A | BJ342: N/A | BK342: N/A | BL342: N/A | BM342: N/A | BN342: N/A | BO342: N/A | BP342: N/A | BQ342: N/A | BR342: N/A | BS342: N/A | BT342: N/A | BU342: N/A | BV342: N/A | BW342: N/A | BX342: N/A | BY342: N/A | BZ342: N/A
BA343: Use of Basic Water and Sanitation | BB343: Yes | BC343: N/A | BD343: N/A | BE343: N/A | BF343: N/A | BG343: N/A | BH343: N/A | BI343: N/A | BJ343: N/A | BK343: N/A | BL343: N/A | BM343: N/A | BN343: N/A | BO343: N/A | BP343: N/A | BQ343: N/A | BR343: N/A | BS343: N/A | BT343: N/A | BU343: N/A | BV343: N/A | BW343: N/A | BX343: N/A | BY343: N/A | BZ343: N/A
BB344: No | BC344: N/A | BD344: N/A | BE344: N/A | BF344: N/A | BG344: N/A | BH344: N/A | BI344: N/A | BJ344: N/A | BK344: N/A | BL344: N/A | BM344: N/A | BN344: N/A | BO344: N/A | BP344: N/A | BQ344: N/A | BR344: N/A | BS344: N/A | BT344: N/A | BU344: N/A | BV344: N/A | BW344: N/A | BX344: N/A | BY344: N/A | BZ344: N/A
BA345: Use of Basic Water and Hygiene | BB345: Yes | BC345: N/A | BD345: N/A | BE345: N/A | BF345: N/A | BG345: N/A | BH345: N/A | BI345: N/A | BJ345: N/A | BK345: N/A | BL345: N/A | BM345: N/A | BN345: N/A | BO345: N/A | BP345: N/A | BQ345: N/A | BR345: N/A | BS345: N/A | BT345: N/A | BU345: N/A | BV345: N/A | BW345: N/A | BX345: N/A | BY345: N/A | BZ345: N/A
BB346: No | BC346: N/A | BD346: N/A | BE346: N/A | BF346: N/A | BG346: N/A | BH346: N/A | BI346: N/A | BJ346: N/A | BK346: N/A | BL346: N/A | BM346: N/A | BN346: N/A | BO346: N/A | BP346: N/A | BQ346: N/A | BR346: N/A | BS346: N/A | BT346: N/A | BU346: N/A | BV346: N/A | BW346: N/A | BX346: N/A | BY346: N/A | BZ346: N/A
BA347: Use of Basic Sanitation and Hygiene | BB347: Yes | BC347: N/A | BD347: N/A | BE347: N/A | BF347: N/A | BG347: N/A | BH347: N/A | BI347: N/A | BJ347: N/A | BK347: N/A | BL347: N/A | BM347: N/A | BN347: N/A | BO347: N/A | BP347: N/A | BQ347: N/A | BR347: N/A | BS347: N/A | BT347: N/A | BU347: N/A | BV347: N/A | BW347: N/A | BX347: N/A | BY347: N/A | BZ347: N/A
BB348: No | BC348: N/A | BD348: N/A | BE348: N/A | BF348: N/A | BG348: N/A | BH348: N/A | BI348: N/A | BJ348: N/A | BK348: N/A | BL348: N/A | BM348: N/A | BN348: N/A | BO348: N/A | BP348: N/A | BQ348: N/A | BR348: N/A | BS348: N/A | BT348: N/A | BU348: N/A | BV348: N/A | BW348: N/A | BX348: N/A | BY348: N/A | BZ348: N/A
BA349: Use of Basic Water | BB349: Yes | BC349: N/A | BD349: N/A | BE349: N/A | BF349: N/A | BG349: N/A | BH349: N/A | BI349: N/A | BJ349: N/A | BK349: N/A | BL349: N/A | BM349: N/A | BN349: N/A | BO349: N/A | BP349: N/A | BQ349: N/A | BR349: N/A | BS349: N/A | BT349: N/A | BU349: N/A | BV349: N/A | BW349: N/A | BX349: N/A | BY349: N/A | BZ349: N/A
BB350: No | BC350: N/A | BD350: N/A | BE350: N/A | BF350: N/A | BG350: N/A | BH350: N/A | BI350: N/A | BJ350: N/A | BK350: N/A | BL350: N/A | BM350: N/A | BN350: N/A | BO350: N/A | BP350: N/A | BQ350: N/A | BR350: N/A | BS350: N/A | BT350: N/A | BU350: N/A | BV350: N/A | BW350: N/A | BX350: N/A | BY350: N/A | BZ350: N/A
BA351: Use of Basic Sanitation | BB351: Yes | BC351: N/A | BD351: N/A | BE351: N/A | BF351: N/A | BG351: N/A | BH351: N/A | BI351: N/A | BJ351: N/A | BK351: N/A | BL351: N/A | BM351: N/A | BN351: N/A | BO351: N/A | BP351: N/A | BQ351: N/A | BR351: N/A | BS351: N/A | BT351: N/A | BU351: N/A | BV351: N/A | BW351: N/A | BX351: N/A | BY351: N/A | BZ351: N/A
BB352: No | BC352: N/A | BD352: N/A | BE352: N/A | BF352: N/A | BG352: N/A | BH352: N/A | BI352: N/A | BJ352: N/A | BK352: N/A | BL352: N/A | BM352: N/A | BN352: N/A | BO352: N/A | BP352: N/A | BQ352: N/A | BR352: N/A | BS352: N/A | BT352: N/A | BU352: N/A | BV352: N/A | BW352: N/A | BX352: N/A | BY352: N/A | BZ352: N/A
BA353: Access to Basic Hygiene | BB353: Yes | BC353: N/A | BD353: N/A | BE353: N/A | BF353: N/A | BG353: N/A | BH353: N/A | BI353: N/A | BJ353: N/A | BK353: N/A | BL353: N/A | BM353: N/A | BN353: N/A | BO353: N/A | BP353: N/A | BQ353: N/A | BR353: N/A | BS353: N/A | BT353: N/A | BU353: N/A | BV353: N/A | BW353: N/A | BX353: N/A | BY353: N/A | BZ353: N/A
BB354: No | BC354: N/A | BD354: N/A | BE354: N/A | BF354: N/A | BG354: N/A | BH354: N/A | BI354: N/A | BJ354: N/A | BK354: N/A | BL354: N/A | BM354: N/A | BN354: N/A | BO354: N/A | BP354: N/A | BQ354: N/A | BR354: N/A | BS354: N/A | BT354: N/A | BU354: N/A | BV354: N/A | BW354: N/A | BX354: N/A | BY354: N/A | BZ354: N/A
C399: INITIAL (national) Wealth Index | H399: URBAN Wealth Index | M399: RURAL Wealth Index
C400: Component Matrix | H400: Component Matrix | M400: Component Matrix
E401: Component | J401: Component | O401: Component
B402: Note: The INITIAL (national) Wealth Index is based on the first component of the Principal Component Analysis (PCA) which has been obtained at national level. The final national-level (NATIONAL) Wealth Index is based on the URBAN and RURAL specific wealth indexes. Regression procedures are used to establish the relationships between the two sets of scores (urban and rural) and the initial (national) wealth factors. This allows best use of the available information for each area and a better precision of the FINAL (NATIONAL) Wealth Index. For dependency reasons, all WASH variables (contained in the generic MICS and DHS scripts) have been excluded from the sets of asset variables used in the PCAs. The PCA can extracts as many components as there are asset variables in the input. Only the first of the components is used to represent the Wealth Index. The scores represent the weights of the asset variables on the Wealth Index (correlations between the variables and the component). The communalities are the proportion of each variable's variance that can be explained by the component. Proportion of explained variance is the part of the model's total variance that is explained by the component. For more information on the procedure used: The DHS Wealth Index, DHS Comparative Reports No. 6, Shea Oscar Rutstein, Kiersten Johnson, ORC Macro International Inc., 2004. The DHS Wealth Index: Approaches for Rural and Urban Areas, Shea O. Rutstein, ORC Macro International Inc., 2008. MICS Methodological Paper No. 4, Review of options for reporting water, sanitation and hygiene coverage by wealth quintile, UNICEF, 2016. | E402: 1 | J402: 1 | O402: 1
C403: LPG, natural gas for cooking | E403: 0.7603091727 | H403: Has refrigerator | J403: 0.6932223242 | M403: Earth, mud, dung floor | O403: -0.7402311193
C404: Has television | E404: 0.7530047426 | H404: Has telephone | J404: 0.6489861324 | M404: LPG, natural gas for cooking | O404: 0.7203159925
C405: Wood, straw for cooking | E405: -0.7499340841 | H405: Number of rooms excluding kitchen and bathrooms | J405: 0.5892600409 | M405: Has television | O405: 0.6907938793
C406: Earth, mud, dung floor | E406: -0.7267215699 | H406: Has television | J406: 0.5392356639 | M406: Wood, straw for cooking | O406: -0.6707317431
C407: Has electricity | E407: 0.7181961697 | H407: Computer | J407: 0.533810852 | M407: Has electricity | O407: 0.6699607575
C408: Has refrigerator | E408: 0.6794048584 | H408: Earth, mud, dung floor | J408: -0.5256773237 | M408: Palm tree roof | O408: -0.5671474418
C409: Blocks/brick walls | E409: 0.6345890406 | H409: Blocks/brick walls | J409: 0.5252184115 | M409: Concrete, cement floor | O409: 0.5637040101
C410: Has telephone | E410: 0.599981235 | H410: Cellular phone | J410: 0.5084548563 | M410: Has refrigerator | O410: 0.5635249264
C411: Palm tree roof | E411: -0.5748718467 | H411: Has car/truck | J411: 0.4995659967 | M411: Blocks/brick walls | O411: 0.490595457
C412: Cellular phone | E412: 0.5471608808 | H412: Wood, straw for cooking | J412: -0.491453849 | M412: Cellular phone | O412: 0.390404072
C413: Solid waste collected by contractors | E413: 0.5037537033 | H413: LPG, natural gas for cooking | J413: 0.4894807226 | M413: Solid waste collected by town council | O413: 0.3718421394
C414: Solid waste thrown in street | E414: -0.4882921363 | H414: Terrazo, ceramic tile floor | J414: 0.4714587614 | M414: Has car/truck | O414: 0.337331429
C415: Computer | E415: 0.4568190719 | H415: Has electricity | J415: 0.4656128017 | M415: Zinc roof | O415: 0.3283455588
C416: Has car/truck | E416: 0.4333723141 | H416: memsleep | J416: -0.4107404774 | M416: Has telephone | O416: 0.3113248349
C417: Adobe walls | E417: -0.4313627381 | H417: Has an exclusively room for kitchen | J417: 0.3804995733 | M417: Terrazo, ceramic tile floor | O417: 0.2675493118
C418: Terrazo, ceramic tile floor | E418: 0.4183939 | H418: Adobe walls | J418: -0.3601434009 | M418: Number of rooms excluding kitchen and bathrooms | O418: 0.2594293358
C419: Number of rooms excluding kitchen and bathrooms | E419: 0.37066756 | H419: Electric water pump | J419: 0.3319096757 | M419: Has radio | O419: 0.2586532125
C420: Solid waste collected by town council | E420: 0.3344834975 | H420: Solid waste thrown in street | J420: -0.3267930783 | M420: Ceramic tile roof | O420: 0.2473377387
C421: memsleep | E421: -0.3339140132 | H421: Solid waste collected by contractors | J421: 0.3242443436 | M421: Solid waste thrown in street | O421: -0.2382959648
C422: Has radio | E422: 0.3059412518 | H422: Has radio | J422: 0.3072942844 | M422: Electric water pump | O422: 0.2300090464
C423: Concrete, cement floor | E423: 0.2999153591 | H423: Palm tree roof | J423: -0.3037455362 | M423: memsleep | O423: -0.2293405924
C424: Electric water pump | E424: 0.2717985775 | H424: Solid waste burnt | J424: -0.2919146941 | M424: Has bicycle | O424: 0.2216552988
C425: Solid waste burnt | E425: -0.2655951182 | H425: Ceramic tile roof | J425: 0.2514085376 | M425: Adobe walls | O425: -0.2012344615
... 179 more rows

Sheet DHS08
A2: =A1026 -> Bolivia (Plurinational State of)
A3: =A1034 -> 2008
A4: Use of drinking water sources
A5: by wealth quintile and sub-national region
A6: Notes:
A7: WHO/UNICEF JMP customised wealth index excludes water,
A8: sanitation and hygiene assets.
A9: Survey used for analysis: | B9: =A1025 -> DHS08
A10: =B1028 -> 
A11: =B1027 -> 
A14: Use of drinking water sources | C14: NATIONAL wealth index quintile | H14: URBAN wealth index quintile | M14: RURAL wealth index quintile | R14: SUB-REGIONS: | BA14: Raw numbers of respondents: | BB14: Use of drinking water sources | BC14: NATIONAL wealth index quintile | BH14: URBAN wealth index quintile | BM14: RURAL wealth index quintile | BR14: SUB-REGIONS:
A15: Weighted percentage (used in graphs) | C15: Poorest | D15: Poor | E15: Middle | F15: Rich | G15: Richest | H15: Poorest | I15: Poor | J15: Middle | K15: Rich | L15: Richest | M15: Poorest | N15: Poor | O15: Middle | P15: Rich | Q15: Richest | R15: Beni | S15: Chuquisaca | T15: Cochabamba | U15: La Paz | V15: Oruro | W15: Pando | X15: Potosí | Y15: Santa Cruz | Z15: Tarija | BA15: Water data, raw numbers (weighted) | BC15: Poorest | BD15: Poor | BE15: Middle | BF15: Rich | BG15: Richest | BH15: Poorest | BI15: Poor | BJ15: Middle | BK15: Rich | BL15: Richest | BM15: Poorest | BN15: Poor | BO15: Middle | BP15: Rich | BQ15: Richest | BR15: Beni | BS15: Chuquisaca | BT15: Cochabamba | BU15: La Paz | BV15: Oruro | BW15: Pando | BX15: Potosí | BY15: Santa Cruz | BZ15: Tarija
A16: Water | B16: Improved | C16: 59.72198333 | D16: 81.88186958 | E16: 95.86393729 | F16: 98.93536326 | G16: 99.55093009 | H16: 88.35840425 | I16: 97.86950878 | J16: 98.99626583 | K16: 99.52748388 | L16: 99.5267332 | M16: 52.27874961 | N16: 64.59841293 | O16: 72.40497914 | P16: 83.04440728 | Q16: 93.55010027 | R16: 60.1443772 | S16: 81.41674313 | T16: 87.80077206 | U16: 86.00131191 | V16: 84.55833371 | W16: 54.69346396 | X16: 85.41816185 | Y16: 95.56154301 | Z16: 92.8282055 | BA16: Water | BB16: Improved | BC16: N/A | BD16: N/A | BE16: N/A | BF16: N/A | BG16: N/A | BH16: N/A | BI16: N/A | BJ16: N/A | BK16: N/A | BL16: N/A | BM16: N/A | BN16: N/A | BO16: N/A | BP16: N/A | BQ16: N/A | BR16: N/A | BS16: N/A | BT16: N/A | BU16: N/A | BV16: N/A | BW16: N/A | BX16: N/A | BY16: N/A | BZ16: N/A
B17: Not Improved | C17: 40.27801667 | D17: 18.11813042 | E17: 4.136062714 | F17: 1.064636741 | G17: 0.449069907 | H17: 11.64159575 | I17: 2.130491217 | J17: 1.003734166 | K17: 0.4725161174 | L17: 0.4732668041 | M17: 47.72125039 | N17: 35.40158707 | O17: 27.59502086 | P17: 16.95559272 | Q17: 6.449899735 | R17: 39.8556228 | S17: 18.58325687 | T17: 12.19922794 | U17: 13.99868809 | V17: 15.44166629 | W17: 45.30653604 | X17: 14.58183815 | Y17: 4.438456993 | Z17: 7.171794497 | BB17: Not Improved | BC17: N/A | BD17: N/A | BE17: N/A | BF17: N/A | BG17: N/A | BH17: N/A | BI17: N/A | BJ17: N/A | BK17: N/A | BL17: N/A | BM17: N/A | BN17: N/A | BO17: N/A | BP17: N/A | BQ17: N/A | BR17: N/A | BS17: N/A | BT17: N/A | BU17: N/A | BV17: N/A | BW17: N/A | BX17: N/A | BY17: N/A | BZ17: N/A
A18: Water ladder | B18: Basic | C18: =C16*C23/100 -> 59.61805868 | D18: =D16*D23/100 -> 81.85442968 | E18: =E16*E23/100 -> 95.86393729 | F18: 98.84443707 | G18: 99.55093009 | H18: 88.28710309 | I18: 97.86950878 | J18: 98.84252981 | K18: 99.52748388 | L18: 99.5267332 | M18: 52.24423349 | N18: 64.42675896 | O18: 72.4014563 | P18: 83.03559458 | Q18: 93.55010027 | R18: 59.63339114 | S18: 81.26285195 | T18: 87.80077206 | U18: 86.00131191 | V18: 84.54032274 | W18: 54.69346396 | X18: 85.41816185 | Y18: 95.48191937 | Z18: 92.8282055 | BA18: Water ladder | BB18: Basic | BC18: N/A | BD18: N/A | BE18: N/A | BF18: N/A | BG18: N/A | BH18: N/A | BI18: N/A | BJ18: N/A | BK18: N/A | BL18: N/A | BM18: N/A | BN18: N/A | BO18: N/A | BP18: N/A | BQ18: N/A | BR18: N/A | BS18: N/A | BT18: N/A | BU18: N/A | BV18: N/A | BW18: N/A | BX18: N/A | BY18: N/A | BZ18: N/A
B19: Limited | C19: =C16*C22/100 -> 0.1039246486 | D19: =D16*D22/100 -> 0.02743990521 | E19: =E16*E22/100 -> 0 | F19: 0.09092618508 | G19: 0 | H19: 0.07130116222 | I19: 0 | J19: 0.1537360255 | K19: 0 | L19: 0 | M19: 0.03451611645 | N19: 0.1716539657 | O19: 0.003522835182 | P19: 0.008812698425 | Q19: 0 | R19: 0.5109860581 | S19: 0.1538911812 | T19: 0 | U19: 0 | V19: 0.01801096455 | W19: 0 | X19: 0 | Y19: 0.07962363273 | Z19: 0 | BB19: Limited | BC19: N/A | BD19: N/A | BE19: N/A | BF19: N/A | BG19: N/A | BH19: N/A | BI19: N/A | BJ19: N/A | BK19: N/A | BL19: N/A | BM19: N/A | BN19: N/A | BO19: N/A | BP19: N/A | BQ19: N/A | BR19: N/A | BS19: N/A | BT19: N/A | BU19: N/A | BV19: N/A | BW19: N/A | BX19: N/A | BY19: N/A | BZ19: N/A
B20: Unimproved | C20: =100-C18-C19-C21 -> 20.14713824 | D20: =100-D18-D19-D21 -> 13.3399353 | E20: =100-E18-E19-E21 -> 3.583435657 | F20: 0.9745903555 | G20: 0.4036210789 | H20: 10.84563748 | I20: 1.70398874 | J20: 0.8751402334 | K20: 0.4253368355 | L20: 0.4437067627 | M20: 18.54780975 | N20: 18.87617012 | O20: 18.18243533 | P20: 12.28563804 | Q20: 5.586616518 | R20: 34.28534827 | S20: 4.625419456 | T20: 5.860532769 | U20: 10.00489214 | V20: 11.18268241 | W20: 35.02007715 | X20: 6.189162559 | Y20: 3.107779817 | Z20: 1.676987992 | BB20: Unimproved | BC20: N/A | BD20: N/A | BE20: N/A | BF20: N/A | BG20: N/A | BH20: N/A | BI20: N/A | BJ20: N/A | BK20: N/A | BL20: N/A | BM20: N/A | BN20: N/A | BO20: N/A | BP20: N/A | BQ20: N/A | BR20: N/A | BS20: N/A | BT20: N/A | BU20: N/A | BV20: N/A | BW20: N/A | BX20: N/A | BY20: N/A | BZ20: N/A
B21: Surface water | C21: 20.13087843 | D21: 4.778195114 | E21: 0.5526270571 | F21: 0.0900463856 | G21: 0.04544882803 | H21: 0.7959582668 | I21: 0.4265024775 | J21: 0.1285939327 | K21: 0.0471792819 | L21: 0.02956004137 | M21: 29.17344064 | N21: 16.52541695 | O21: 9.412585534 | P21: 4.669954679 | Q21: 0.8632832167 | R21: 5.570274527 | S21: 13.95783741 | T21: 6.338695173 | U21: 3.993795952 | V21: 4.258983884 | W21: 10.28645889 | X21: 8.39267559 | Y21: 1.330677177 | Z21: 5.494806506 | BB21: Surface water | BC21: N/A | BD21: N/A | BE21: N/A | BF21: N/A | BG21: N/A | BH21: N/A | BI21: N/A | BJ21: N/A | BK21: N/A | BL21: N/A | BM21: N/A | BN21: N/A | BO21: N/A | BP21: N/A | BQ21: N/A | BR21: N/A | BS21: N/A | BT21: N/A | BU21: N/A | BV21: N/A | BW21: N/A | BX21: N/A | BY21: N/A | BZ21: N/A
A22: Improved water point at more than 30 minutes | B22: Yes | C22: 0.1740140612 | D22: 0.03351157631 | E22: 0 | F22: 0.0919046356 | G22: 0 | H22: 0.08069539375 | I22: 0 | J22: 0.1552947722 | K22: 0 | L22: 0 | M22: 0.06602322494 | N22: 0.2657247415 | O22: 0.00486545984 | P22: 0.01061203122 | Q22: 0 | R22: 0.8495990513 | S22: 0.1890166264 | T22: 0 | U22: 0 | V22: 0.02130004667 | W22: 0 | X22: 0 | Y22: 0.08332183661 | Z22: 0 | BA22: Improved water point at more than 30 minutes | BB22: Yes | BC22: N/A | BD22: N/A | BE22: N/A | BF22: N/A | BG22: N/A | BH22: N/A | BI22: N/A | BJ22: N/A | BK22: N/A | BL22: N/A | BM22: N/A | BN22: N/A | BO22: N/A | BP22: N/A | BQ22: N/A | BR22: N/A | BS22: N/A | BT22: N/A | BU22: N/A | BV22: N/A | BW22: N/A | BX22: N/A | BY22: N/A | BZ22: N/A
B23: No | C23: 99.82598594 | D23: 99.96648842 | E23: 100 | F23: 99.90809536 | G23: 100 | H23: 99.91930461 | I23: 100 | J23: 99.84470523 | K23: 100 | L23: 100 | M23: 99.93397678 | N23: 99.73427526 | O23: 99.99513454 | P23: 99.98938797 | Q23: 100 | R23: 99.15040095 | S23: 99.81098337 | T23: 100 | U23: 100 | V23: 99.97869995 | W23: 100 | X23: 100 | Y23: 99.91667816 | Z23: 100 | BB23: No | BC23: N/A | BD23: N/A | BE23: N/A | BF23: N/A | BG23: N/A | BH23: N/A | BI23: N/A | BJ23: N/A | BK23: N/A | BL23: N/A | BM23: N/A | BN23: N/A | BO23: N/A | BP23: N/A | BQ23: N/A | BR23: N/A | BS23: N/A | BT23: N/A | BU23: N/A | BV23: N/A | BW23: N/A | BX23: N/A | BY23: N/A | BZ23: N/A
A24: Manually calculated ratios | B24: Improved wells | C24: =C61/(C61+C62)*100 -> 14.93242525 | D24: 26.99457154 | E24: 28.50453504 | F24: 28.62289262 | G24: 75.10620476 | H24: 7.480407075 | I24: 15.65500236 | J24: 11.85855354 | K24: 54.82264413 | L24: 78.09732513 | M24: 15.53419588 | N24: 17.64952811 | O24: 19.59357624 | P24: 36.64314876 | Q24: 40.83224827 | R24: 7.09341222 | S24: 19.10604092 | T24: 11.78521035 | U24: 22.7479344 | V24: 26.4200873 | W24: 5.853217562 | X24: 4.55976257 | Y24: 47.19651073 | Z24: 25.35850178
B25: Improved springs
B26: Other
C27: NATIONAL wealth index quintile | H27: URBAN wealth index quintile | M27: RURAL wealth index quintile | R27: SUB-REGIONS: | BA27: Raw numbers of respondents: | BB27: Use of drinking water sources | BC27: NATIONAL wealth index quintile | BH27: URBAN wealth index quintile | BM27: RURAL wealth index quintile | BR27: SUB-REGIONS:
A28: Percentage based on weighted population | C28: Poorest | D28: Poor | E28: Middle | F28: Rich | G28: Richest | H28: Poorest | I28: Poor | J28: Middle | K28: Rich | L28: Richest | M28: Poorest | N28: Poor | O28: Middle | P28: Rich | Q28: Richest | R28: Beni | S28: Chuquisaca | T28: Cochabamba | U28: La Paz | V28: Oruro | W28: Pando | X28: Potosí | Y28: Santa Cruz | Z28: Tarija | BA28: Water data, raw numbers (weighted) | BC28: Poorest | BD28: Poor | BE28: Middle | BF28: Rich | BG28: Richest | BH28: Poorest | BI28: Poor | BJ28: Middle | BK28: Rich | BL28: Richest | BM28: Poorest | BN28: Poor | BO28: Middle | BP28: Rich | BQ28: Richest | BR28: Beni | BS28: Chuquisaca | BT28: Cochabamba | BU28: La Paz | BV28: Oruro | BW28: Pando | BX28: Potosí | BY28: Santa Cruz | BZ28: Tarija
A29: Piped water | B29: Yes | C29: 56.05455216 | D29: 76.65203383 | E29: 91.65578602 | F29: 96.22175102 | G29: 97.95581323 | H29: 83.13400815 | I29: 94.44942461 | J29: 96.06146819 | K29: 97.32393397 | L29: 97.92786783 | M29: 49.12161938 | N29: 60.59154222 | O29: 68.2439462 | P29: 77.28204469 | Q29: 90.27386493 | R29: 56.72087242 | S29: 78.61774612 | T29: 79.25419112 | U29: 83.49020793 | V29: 80.86858927 | W29: 51.86011757 | X29: 85.16626642 | Y29: 92.88059787 | Z29: 91.69137702 | BA29: Piped water | BB29: Yes | BC29: N/A | BD29: N/A | BE29: N/A | BF29: N/A | BG29: N/A | BH29: N/A | BI29: N/A | BJ29: N/A | BK29: N/A | BL29: N/A | BM29: N/A | BN29: N/A | BO29: N/A | BP29: N/A | BQ29: N/A | BR29: N/A | BS29: N/A | BT29: N/A | BU29: N/A | BV29: N/A | BW29: N/A | BX29: N/A | BY29: N/A | BZ29: N/A
B30: No | C30: 43.94544784 | D30: 23.34796617 | E30: 8.344213977 | F30: 3.778248982 | G30: 2.044186769 | H30: 16.86599185 | I30: 5.550575388 | J30: 3.93853181 | K30: 2.676066032 | L30: 2.072132169 | M30: 50.87838062 | N30: 39.40845778 | O30: 31.7560538 | P30: 22.71795531 | Q30: 9.726135066 | R30: 43.27912758 | S30: 21.38225388 | T30: 20.74580888 | U30: 16.50979207 | V30: 19.13141073 | W30: 48.13988243 | X30: 14.83373358 | Y30: 7.119402133 | Z30: 8.30862298 | BB30: No | BC30: N/A | BD30: N/A | BE30: N/A | BF30: N/A | BG30: N/A | BH30: N/A | BI30: N/A | BJ30: N/A | BK30: N/A | BL30: N/A | BM30: N/A | BN30: N/A | BO30: N/A | BP30: N/A | BQ30: N/A | BR30: N/A | BS30: N/A | BT30: N/A | BU30: N/A | BV30: N/A | BW30: N/A | BX30: N/A | BY30: N/A | BZ30: N/A
A31: Piped water on premises | B31: Yes | C31: 42.79260845 | D31: 68.7008352 | E31: 86.81360971 | F31: 95.0665533 | G31: 97.81549658 | H31: 76.15056378 | I31: 91.50986141 | J31: 95.16374672 | K31: 96.80515082 | L31: 97.8820464 | M31: 34.86524302 | N31: 47.94336812 | O31: 58.29199889 | P31: 69.39585582 | Q31: 84.5125383 | R31: 53.22052964 | S31: 70.48358093 | T31: 75.69795009 | U31: 78.35806474 | V31: 75.0086299 | W31: 51.31203555 | X31: 68.7115165 | Y31: 91.00100663 | Z31: 87.00722576 | BA31: Piped water on premises | BB31: Yes | BC31: N/A | BD31: N/A | BE31: N/A | BF31: N/A | BG31: N/A | BH31: N/A | BI31: N/A | BJ31: N/A | BK31: N/A | BL31: N/A | BM31: N/A | BN31: N/A | BO31: N/A | BP31: N/A | BQ31: N/A | BR31: N/A | BS31: N/A | BT31: N/A | BU31: N/A | BV31: N/A | BW31: N/A | BX31: N/A | BY31: N/A | BZ31: N/A
B32: No | C32: 57.20739155 | D32: 31.2991648 | E32: 13.18639029 | F32: 4.933446697 | G32: 2.184503418 | H32: 23.84943622 | I32: 8.490138593 | J32: 4.83625328 | K32: 3.194849177 | L32: 2.117953597 | M32: 65.13475698 | N32: 52.05663188 | O32: 41.70800111 | P32: 30.60414418 | Q32: 15.4874617 | R32: 46.77947036 | S32: 29.51641907 | T32: 24.30204991 | U32: 21.64193526 | V32: 24.9913701 | W32: 48.68796445 | X32: 31.2884835 | Y32: 8.998993371 | Z32: 12.99277424 | BB32: No | BC32: N/A | BD32: N/A | BE32: N/A | BF32: N/A | BG32: N/A | BH32: N/A | BI32: N/A | BJ32: N/A | BK32: N/A | BL32: N/A | BM32: N/A | BN32: N/A | BO32: N/A | BP32: N/A | BQ32: N/A | BR32: N/A | BS32: N/A | BT32: N/A | BU32: N/A | BV32: N/A | BW32: N/A | BX32: N/A | BY32: N/A | BZ32: N/A
A33: Piped water into dwelling | B33: Yes | C33: N/A | D33: N/A | E33: N/A | F33: N/A | G33: N/A | H33: N/A | I33: N/A | J33: N/A | K33: N/A | L33: N/A | M33: N/A | N33: N/A | O33: N/A | P33: N/A | Q33: N/A | R33: N/A | S33: N/A | T33: N/A | U33: N/A | V33: N/A | W33: N/A | X33: N/A | Y33: N/A | Z33: N/A | BA33: Piped water into dwelling | BB33: Yes | BC33: N/A | BD33: N/A | BE33: N/A | BF33: N/A | BG33: N/A | BH33: N/A | BI33: N/A | BJ33: N/A | BK33: N/A | BL33: N/A | BM33: N/A | BN33: N/A | BO33: N/A | BP33: N/A | BQ33: N/A | BR33: N/A | BS33: N/A | BT33: N/A | BU33: N/A | BV33: N/A | BW33: N/A | BX33: N/A | BY33: N/A | BZ33: N/A
B34: No | C34: N/A | D34: N/A | E34: N/A | F34: N/A | G34: N/A | H34: N/A | I34: N/A | J34: N/A | K34: N/A | L34: N/A | M34: N/A | N34: N/A | O34: N/A | P34: N/A | Q34: N/A | R34: N/A | S34: N/A | T34: N/A | U34: N/A | V34: N/A | W34: N/A | X34: N/A | Y34: N/A | Z34: N/A | BB34: No | BC34: N/A | BD34: N/A | BE34: N/A | BF34: N/A | BG34: N/A | BH34: N/A | BI34: N/A | BJ34: N/A | BK34: N/A | BL34: N/A | BM34: N/A | BN34: N/A | BO34: N/A | BP34: N/A | BQ34: N/A | BR34: N/A | BS34: N/A | BT34: N/A | BU34: N/A | BV34: N/A | BW34: N/A | BX34: N/A | BY34: N/A | BZ34: N/A
A35: Water source on premises | B35: Yes | C35: 61.99400021 | D35: 82.83992447 | E35: 96.10438986 | F35: 99.35053292 | G35: 99.60618561 | H35: 91.93469098 | I35: 98.09100138 | J35: 99.32663239 | K35: 99.52741199 | L35: 99.62397782 | M35: 53.08926281 | N35: 66.75976075 | O35: 74.25372937 | P35: 81.57778611 | Q35: 93.72186404 | R35: 76.56989855 | S35: 80.20079689 | T35: 89.47246973 | U35: 85.8751928 | V35: 82.44399197 | W35: 63.62028283 | X35: 86.48943335 | Y35: 95.47722788 | Z35: 93.03601122 | BA35: Water source on premises | BB35: Yes | BC35: N/A | BD35: N/A | BE35: N/A | BF35: N/A | BG35: N/A | BH35: N/A | BI35: N/A | BJ35: N/A | BK35: N/A | BL35: N/A | BM35: N/A | BN35: N/A | BO35: N/A | BP35: N/A | BQ35: N/A | BR35: N/A | BS35: N/A | BT35: N/A | BU35: N/A | BV35: N/A | BW35: N/A | BX35: N/A | BY35: N/A | BZ35: N/A
B36: No | C36: 38.00599979 | D36: 17.16007553 | E36: 3.895610142 | F36: 0.6494670804 | G36: 0.3938143897 | H36: 8.065309021 | I36: 1.908998616 | J36: 0.6733676127 | K36: 0.4725880078 | L36: 0.3760221828 | M36: 46.91073719 | N36: 33.24023925 | O36: 25.74627063 | P36: 18.42221389 | Q36: 6.278135961 | R36: 23.43010145 | S36: 19.79920311 | T36: 10.52753027 | U36: 14.1248072 | V36: 17.55600803 | W36: 36.37971717 | X36: 13.51056665 | Y36: 4.522772118 | Z36: 6.963988779 | BB36: No | BC36: N/A | BD36: N/A | BE36: N/A | BF36: N/A | BG36: N/A | BH36: N/A | BI36: N/A | BJ36: N/A | BK36: N/A | BL36: N/A | BM36: N/A | BN36: N/A | BO36: N/A | BP36: N/A | BQ36: N/A | BR36: N/A | BS36: N/A | BT36: N/A | BU36: N/A | BV36: N/A | BW36: N/A | BX36: N/A | BY36: N/A | BZ36: N/A
A37: Improved Water source on premises | B37: Yes | C37: 95.42556027 | D37: 95.37381025 | E37: 98.59486388 | F37: 99.62070753 | G37: 99.72579781 | H37: 97.83056108 | I37: 99.36733307 | J37: 99.52794385 | K37: 99.75652982 | L37: 99.66971073 | M37: 94.95040568 | N37: 95.18470998 | O37: 95.30016314 | P37: 94.43300731 | Q37: 97.96308523 | R37: 96.90930443 | S37: 97.60552313 | T37: 98.3462562 | U37: 97.36408594 | V37: 95.96605145 | W37: 98.3031471 | X37: 99.73499117 | Y37: 98.26454454 | Z37: 99.71110802 | BA37: Improved water source on premises | BB37: Yes | BC37: N/A | BD37: N/A | BE37: N/A | BF37: N/A | BG37: N/A | BH37: N/A | BI37: N/A | BJ37: N/A | BK37: N/A | BL37: N/A | BM37: N/A | BN37: N/A | BO37: N/A | BP37: N/A | BQ37: N/A | BR37: N/A | BS37: N/A | BT37: N/A | BU37: N/A | BV37: N/A | BW37: N/A | BX37: N/A | BY37: N/A | BZ37: N/A
B38: No | C38: 4.574439729 | D38: 4.626189748 | E38: 1.405136116 | F38: 0.3792924744 | G38: 0.274202193 | H38: 2.169438917 | I38: 0.6326669279 | J38: 0.4720561504 | K38: 0.2434701845 | L38: 0.3302892661 | M38: 5.049594319 | N38: 4.815290019 | O38: 4.699836858 | P38: 5.566992693 | Q38: 2.036914774 | R38: 3.090695567 | S38: 2.394476869 | T38: 1.653743805 | U38: 2.635914063 | V38: 4.033948554 | W38: 1.696852896 | X38: 0.2650088333 | Y38: 1.735455459 | Z38: 0.2888919763 | BB38: No | BC38: N/A | BD38: N/A | BE38: N/A | BF38: N/A | BG38: N/A | BH38: N/A | BI38: N/A | BJ38: N/A | BK38: N/A | BL38: N/A | BM38: N/A | BN38: N/A | BO38: N/A | BP38: N/A | BQ38: N/A | BR38: N/A | BS38: N/A | BT38: N/A | BU38: N/A | BV38: N/A | BW38: N/A | BX38: N/A | BY38: N/A | BZ38: N/A
A39: Piped water on premises available when needed | B39: Yes | C39: N/A | D39: N/A | E39: N/A | F39: N/A | G39: N/A | H39: N/A | I39: N/A | J39: N/A | K39: N/A | L39: N/A | M39: N/A | N39: N/A | O39: N/A | P39: N/A | Q39: N/A | R39: N/A | S39: N/A | T39: N/A | U39: N/A | V39: N/A | W39: N/A | X39: N/A | Y39: N/A | Z39: N/A | BA39: Piped water on premises available when needed | BB39: Yes | BC39: N/A | BD39: N/A | BE39: N/A | BF39: N/A | BG39: N/A | BH39: N/A | BI39: N/A | BJ39: N/A | BK39: N/A | BL39: N/A | BM39: N/A | BN39: N/A | BO39: N/A | BP39: N/A | BQ39: N/A | BR39: N/A | BS39: N/A | BT39: N/A | BU39: N/A | BV39: N/A | BW39: N/A | BX39: N/A | BY39: N/A | BZ39: N/A
B40: No | C40: N/A | D40: N/A | E40: N/A | F40: N/A | G40: N/A | H40: N/A | I40: N/A | J40: N/A | K40: N/A | L40: N/A | M40: N/A | N40: N/A | O40: N/A | P40: N/A | Q40: N/A | R40: N/A | S40: N/A | T40: N/A | U40: N/A | V40: N/A | W40: N/A | X40: N/A | Y40: N/A | Z40: N/A | BB40: No | BC40: N/A | BD40: N/A | BE40: N/A | BF40: N/A | BG40: N/A | BH40: N/A | BI40: N/A | BJ40: N/A | BK40: N/A | BL40: N/A | BM40: N/A | BN40: N/A | BO40: N/A | BP40: N/A | BQ40: N/A | BR40: N/A | BS40: N/A | BT40: N/A | BU40: N/A | BV40: N/A | BW40: N/A | BX40: N/A | BY40: N/A | BZ40: N/A
A41: Water point at more than 30 minutes | B41: Yes | C41: 2.838901942 | D41: 0.6623628146 | E41: 0.1467236414 | F41: 0.1520370783 | G41: 0.01050434814 | H41: 0.4434707166 | I41: 0.1348247486 | J41: 0.1537360255 | K41: 0 | L41: 0.01773602482 | M41: 4.756137851 | N41: 1.547187424 | O41: 1.008496692 | P41: 0.8724205477 | Q41: 0.05929263959 | R41: 0.8646476884 | S41: 3.012129813 | T41: 0.2592966007 | U41: 0.7552601647 | V41: 0.1298215209 | W41: 0.2428291565 | X41: 1.937400553 | Y41: 0.1870393686 | Z41: 0.5123788682 | BA41: Water point at more than 30 minutes | BB41: Yes | BC41: N/A | BD41: N/A | BE41: N/A | BF41: N/A | BG41: N/A | BH41: N/A | BI41: N/A | BJ41: N/A | BK41: N/A | BL41: N/A | BM41: N/A | BN41: N/A | BO41: N/A | BP41: N/A | BQ41: N/A | BR41: N/A | BS41: N/A | BT41: N/A | BU41: N/A | BV41: N/A | BW41: N/A | BX41: N/A | BY41: N/A | BZ41: N/A
B42: No | C42: 97.16109806 | D42: 99.33763719 | E42: 99.85327636 | F42: 99.84796292 | G42: 99.98949565 | H42: 99.55652928 | I42: 99.86517525 | J42: 99.84626397 | K42: 100 | L42: 99.98226398 | M42: 95.24386215 | N42: 98.45281258 | O42: 98.99150331 | P42: 99.12757945 | Q42: 99.94070736 | R42: 99.13535231 | S42: 96.98787019 | T42: 99.7407034 | U42: 99.24473984 | V42: 99.87017848 | W42: 99.75717084 | X42: 98.06259945 | Y42: 99.81296063 | Z42: 99.48762113 | BB42: No | BC42: N/A | BD42: N/A | BE42: N/A | BF42: N/A | BG42: N/A | BH42: N/A | BI42: N/A | BJ42: N/A | BK42: N/A | BL42: N/A | BM42: N/A | BN42: N/A | BO42: N/A | BP42: N/A | BQ42: N/A | BR42: N/A | BS42: N/A | BT42: N/A | BU42: N/A | BV42: N/A | BW42: N/A | BX42: N/A | BY42: N/A | BZ42: N/A
A43: Water source available when needed | B43: Yes | C43: N/A | D43: N/A | E43: N/A | F43: N/A | G43: N/A | H43: N/A | I43: N/A | J43: N/A | K43: N/A | L43: N/A | M43: N/A | N43: N/A | O43: N/A | P43: N/A | Q43: N/A | R43: N/A | S43: N/A | T43: N/A | U43: N/A | V43: N/A | W43: N/A | X43: N/A | Y43: N/A | Z43: N/A | BA43: Water source available when needed | BB43: Yes | BC43: N/A | BD43: N/A | BE43: N/A | BF43: N/A | BG43: N/A | BH43: N/A | BI43: N/A | BJ43: N/A | BK43: N/A | BL43: N/A | BM43: N/A | BN43: N/A | BO43: N/A | BP43: N/A | BQ43: N/A | BR43: N/A | BS43: N/A | BT43: N/A | BU43: N/A | BV43: N/A | BW43: N/A | BX43: N/A | BY43: N/A | BZ43: N/A
B44: No | C44: N/A | D44: N/A | E44: N/A | F44: N/A | G44: N/A | H44: N/A | I44: N/A | J44: N/A | K44: N/A | L44: N/A | M44: N/A | N44: N/A | O44: N/A | P44: N/A | Q44: N/A | R44: N/A | S44: N/A | T44: N/A | U44: N/A | V44: N/A | W44: N/A | X44: N/A | Y44: N/A | Z44: N/A | BB44: No | BC44: N/A | BD44: N/A | BE44: N/A | BF44: N/A | BG44: N/A | BH44: N/A | BI44: N/A | BJ44: N/A | BK44: N/A | BL44: N/A | BM44: N/A | BN44: N/A | BO44: N/A | BP44: N/A | BQ44: N/A | BR44: N/A | BS44: N/A | BT44: N/A | BU44: N/A | BV44: N/A | BW44: N/A | BX44: N/A | BY44: N/A | BZ44: N/A
A45: Improved water source available when needed | B45: Yes | C45: N/A | D45: N/A | E45: N/A | F45: N/A | G45: N/A | H45: N/A | I45: N/A | J45: N/A | K45: N/A | L45: N/A | M45: N/A | N45: N/A | O45: N/A | P45: N/A | Q45: N/A | R45: N/A | S45: N/A | T45: N/A | U45: N/A | V45: N/A | W45: N/A | X45: N/A | Y45: N/A | Z45: N/A | BA45: Improved water source available when needed | BB45: Yes | BC45: N/A | BD45: N/A | BE45: N/A | BF45: N/A | BG45: N/A | BH45: N/A | BI45: N/A | BJ45: N/A | BK45: N/A | BL45: N/A | BM45: N/A | BN45: N/A | BO45: N/A | BP45: N/A | BQ45: N/A | BR45: N/A | BS45: N/A | BT45: N/A | BU45: N/A | BV45: N/A | BW45: N/A | BX45: N/A | BY45: N/A | BZ45: N/A
B46: No | C46: N/A | D46: N/A | E46: N/A | F46: N/A | G46: N/A | H46: N/A | I46: N/A | J46: N/A | K46: N/A | L46: N/A | M46: N/A | N46: N/A | O46: N/A | P46: N/A | Q46: N/A | R46: N/A | S46: N/A | T46: N/A | U46: N/A | V46: N/A | W46: N/A | X46: N/A | Y46: N/A | Z46: N/A | BB46: No | BC46: N/A | BD46: N/A | BE46: N/A | BF46: N/A | BG46: N/A | BH46: N/A | BI46: N/A | BJ46: N/A | BK46: N/A | BL46: N/A | BM46: N/A | BN46: N/A | BO46: N/A | BP46: N/A | BQ46: N/A | BR46: N/A | BS46: N/A | BT46: N/A | BU46: N/A | BV46: N/A | BW46: N/A | BX46: N/A | BY46: N/A | BZ46: N/A
A47: Microbiological quality at point of collection | B47: Not contaminated (No E. coli in 100 mL) | C47: N/A | D47: N/A | E47: N/A | F47: N/A | G47: N/A | H47: N/A | I47: N/A | J47: N/A | K47: N/A | L47: N/A | M47: N/A | N47: N/A | O47: N/A | P47: N/A | Q47: N/A | R47: N/A | S47: N/A | T47: N/A | U47: N/A | V47: N/A | W47: N/A | X47: N/A | Y47: N/A | Z47: N/A | BA47: Microbiological quality at point of collection | BB47: Not contaminated (No E. coli in 100 mL) | BC47: N/A | BD47: N/A | BE47: N/A | BF47: N/A | BG47: N/A | BH47: N/A | BI47: N/A | BJ47: N/A | BK47: N/A | BL47: N/A | BM47: N/A | BN47: N/A | BO47: N/A | BP47: N/A | BQ47: N/A | BR47: N/A | BS47: N/A | BT47: N/A | BU47: N/A | BV47: N/A | BW47: N/A | BX47: N/A | BY47: N/A | BZ47: N/A
B48: Contaminated (E. coli detected in 100 mL) | C48: N/A | D48: N/A | E48: N/A | F48: N/A | G48: N/A | H48: N/A | I48: N/A | J48: N/A | K48: N/A | L48: N/A | M48: N/A | N48: N/A | O48: N/A | P48: N/A | Q48: N/A | R48: N/A | S48: N/A | T48: N/A | U48: N/A | V48: N/A | W48: N/A | X48: N/A | Y48: N/A | Z48: N/A | BB48: Contaminated (E. coli detected in 100 mL) | BC48: N/A | BD48: N/A | BE48: N/A | BF48: N/A | BG48: N/A | BH48: N/A | BI48: N/A | BJ48: N/A | BK48: N/A | BL48: N/A | BM48: N/A | BN48: N/A | BO48: N/A | BP48: N/A | BQ48: N/A | BR48: N/A | BS48: N/A | BT48: N/A | BU48: N/A | BV48: N/A | BW48: N/A | BX48: N/A | BY48: N/A | BZ48: N/A
B49: Highly contaminated (>100 CFU/100 mL) | C49: N/A | D49: N/A | E49: N/A | F49: N/A | G49: N/A | H49: N/A | I49: N/A | J49: N/A | K49: N/A | L49: N/A | M49: N/A | N49: N/A | O49: N/A | P49: N/A | Q49: N/A | R49: N/A | S49: N/A | T49: N/A | U49: N/A | V49: N/A | W49: N/A | X49: N/A | Y49: N/A | Z49: N/A | BB49: Highly contaminated (>100 CFU/100 mL) | BC49: N/A | BD49: N/A | BE49: N/A | BF49: N/A | BG49: N/A | BH49: N/A | BI49: N/A | BJ49: N/A | BK49: N/A | BL49: N/A | BM49: N/A | BN49: N/A | BO49: N/A | BP49: N/A | BQ49: N/A | BR49: N/A | BS49: N/A | BT49: N/A | BU49: N/A | BV49: N/A | BW49: N/A | BX49: N/A | BY49: N/A | BZ49: N/A
A50: Microbiological quality of improved water sources at point of collection | B50: Not contaminated (No E. coli in 100 mL) | C50: N/A | D50: N/A | E50: N/A | F50: N/A | G50: N/A | H50: N/A | I50: N/A | J50: N/A | K50: N/A | L50: N/A | M50: N/A | N50: N/A | O50: N/A | P50: N/A | Q50: N/A | R50: N/A | S50: N/A | T50: N/A | U50: N/A | V50: N/A | W50: N/A | X50: N/A | Y50: N/A | Z50: N/A | BA50: Microbiological quality of improved water sources at point of collection | BB50: Not contaminated (No E. coli in 100 mL) | BC50: N/A | BD50: N/A | BE50: N/A | BF50: N/A | BG50: N/A | BH50: N/A | BI50: N/A | BJ50: N/A | BK50: N/A | BL50: N/A | BM50: N/A | BN50: N/A | BO50: N/A | BP50: N/A | BQ50: N/A | BR50: N/A | BS50: N/A | BT50: N/A | BU50: N/A | BV50: N/A | BW50: N/A | BX50: N/A | BY50: N/A | BZ50: N/A
B51: Contaminated (E. coli detected in 100 mL) | C51: N/A | D51: N/A | E51: N/A | F51: N/A | G51: N/A | H51: N/A | I51: N/A | J51: N/A | K51: N/A | L51: N/A | M51: N/A | N51: N/A | O51: N/A | P51: N/A | Q51: N/A | R51: N/A | S51: N/A | T51: N/A | U51: N/A | V51: N/A | W51: N/A | X51: N/A | Y51: N/A | Z51: N/A | BB51: Contaminated (E. coli detected in 100 mL) | BC51: N/A | BD51: N/A | BE51: N/A | BF51: N/A | BG51: N/A | BH51: N/A | BI51: N/A | BJ51: N/A | BK51: N/A | BL51: N/A | BM51: N/A | BN51: N/A | BO51: N/A | BP51: N/A | BQ51: N/A | BR51: N/A | BS51: N/A | BT51: N/A | BU51: N/A | BV51: N/A | BW51: N/A | BX51: N/A | BY51: N/A | BZ51: N/A
B52: Highly contaminated (>100 CFU/100 mL) | C52: N/A | D52: N/A | E52: N/A | F52: N/A | G52: N/A | H52: N/A | I52: N/A | J52: N/A | K52: N/A | L52: N/A | M52: N/A | N52: N/A | O52: N/A | P52: N/A | Q52: N/A | R52: N/A | S52: N/A | T52: N/A | U52: N/A | V52: N/A | W52: N/A | X52: N/A | Y52: N/A | Z52: N/A | BB52: Highly contaminated (>100 CFU/100 mL) | BC52: N/A | BD52: N/A | BE52: N/A | BF52: N/A | BG52: N/A | BH52: N/A | BI52: N/A | BJ52: N/A | BK52: N/A | BL52: N/A | BM52: N/A | BN52: N/A | BO52: N/A | BP52: N/A | BQ52: N/A | BR52: N/A | BS52: N/A | BT52: N/A | BU52: N/A | BV52: N/A | BW52: N/A | BX52: N/A | BY52: N/A | BZ52: N/A
A53: Microbiological quality of piped on premises at point of collection | B53: Not contaminated (No E. coli in 100 mL) | C53: N/A | D53: N/A | E53: N/A | F53: N/A | G53: N/A | H53: N/A | I53: N/A | J53: N/A | K53: N/A | L53: N/A | M53: N/A | N53: N/A | O53: N/A | P53: N/A | Q53: N/A | R53: N/A | S53: N/A | T53: N/A | U53: N/A | V53: N/A | W53: N/A | X53: N/A | Y53: N/A | Z53: N/A | BA53: Microbiological quality of piped on premises at point of collection | BB53: Not contaminated (No E. coli in 100 mL) | BC53: N/A | BD53: N/A | BE53: N/A | BF53: N/A | BG53: N/A | BH53: N/A | BI53: N/A | BJ53: N/A | BK53: N/A | BL53: N/A | BM53: N/A | BN53: N/A | BO53: N/A | BP53: N/A | BQ53: N/A | BR53: N/A | BS53: N/A | BT53: N/A | BU53: N/A | BV53: N/A | BW53: N/A | BX53: N/A | BY53: N/A | BZ53: N/A
B54: Contaminated (E. coli detected in 100 mL) | C54: N/A | D54: N/A | E54: N/A | F54: N/A | G54: N/A | H54: N/A | I54: N/A | J54: N/A | K54: N/A | L54: N/A | M54: N/A | N54: N/A | O54: N/A | P54: N/A | Q54: N/A | R54: N/A | S54: N/A | T54: N/A | U54: N/A | V54: N/A | W54: N/A | X54: N/A | Y54: N/A | Z54: N/A | BB54: Contaminated (E. coli detected in 100 mL) | BC54: N/A | BD54: N/A | BE54: N/A | BF54: N/A | BG54: N/A | BH54: N/A | BI54: N/A | BJ54: N/A | BK54: N/A | BL54: N/A | BM54: N/A | BN54: N/A | BO54: N/A | BP54: N/A | BQ54: N/A | BR54: N/A | BS54: N/A | BT54: N/A | BU54: N/A | BV54: N/A | BW54: N/A | BX54: N/A | BY54: N/A | BZ54: N/A
B55: Highly contaminated (>100 CFU/100 mL) | C55: N/A | D55: N/A | E55: N/A | F55: N/A | G55: N/A | H55: N/A | I55: N/A | J55: N/A | K55: N/A | L55: N/A | M55: N/A | N55: N/A | O55: N/A | P55: N/A | Q55: N/A | R55: N/A | S55: N/A | T55: N/A | U55: N/A | V55: N/A | W55: N/A | X55: N/A | Y55: N/A | Z55: N/A | BB55: Highly contaminated (>100 CFU/100 mL) | BC55: N/A | BD55: N/A | BE55: N/A | BF55: N/A | BG55: N/A | BH55: N/A | BI55: N/A | BJ55: N/A | BK55: N/A | BL55: N/A | BM55: N/A | BN55: N/A | BO55: N/A | BP55: N/A | BQ55: N/A | BR55: N/A | BS55: N/A | BT55: N/A | BU55: N/A | BV55: N/A | BW55: N/A | BX55: N/A | BY55: N/A | BZ55: N/A
C56: NATIONAL wealth index quintile | H56: URBAN wealth index quintile | M56: RURAL wealth index quintile | R56: SUB-REGIONS: | BA56: Raw numbers of respondents: | BB56: Use of drinking water sources | BC56: NATIONAL wealth index quintile | BH56: URBAN wealth index quintile | BM56: RURAL wealth index quintile | BR56: SUB-REGIONS:
A57: Percentage based on weighted population | C57: Poorest | D57: Poor | E57: Middle | F57: Rich | G57: Richest | H57: Poorest | I57: Poor | J57: Middle | K57: Rich | L57: Richest | M57: Poorest | N57: Poor | O57: Middle | P57: Rich | Q57: Richest | R57: Beni | S57: Chuquisaca | T57: Cochabamba | U57: La Paz | V57: Oruro | W57: Pando | X57: Potosí | Y57: Santa Cruz | Z57: Tarija | BA57: Water data, raw numbers (weighted) | BC57: Poorest | BD57: Poor | BE57: Middle | BF57: Rich | BG57: Richest | BH57: Poorest | BI57: Poor | BJ57: Middle | BK57: Rich | BL57: Richest | BM57: Poorest | BN57: Poor | BO57: Middle | BP57: Rich | BQ57: Richest | BR57: Beni | BS57: Chuquisaca | BT57: Cochabamba | BU57: La Paz | BV57: Oruro | BW57: Pando | BX57: Potosí | BY57: Santa Cruz | BZ57: Tarija
A58: Source of drinking water | B58: Piped into dwelling | C58: 0.9709720558 | D58: 2.82448308 | E58: 13.56664554 | F58: 29.47438639 | G58: 74.27200086 | H58: 7.7136805 | I58: 18.62832994 | J58: 27.68119261 | K58: 53.77056557 | L58: 84.42136878 | M58: 0.9915327939 | N58: 1.00017196 | O58: 1.046213297 | P58: 3.080090245 | Q58: 11.89053258 | R58: 22.09154053 | S58: 18.80725179 | T58: 23.98305521 | U58: 28.15857446 | V58: 14.56145885 | W58: 15.68802091 | X58: 10.13256868 | Y58: 29.61356953 | Z58: 30.05512854
B59: Piped to yard/plot | C59: 42.17552113 | D59: 66.37203783 | E59: 73.39629465 | F59: 65.77984724 | G59: 23.67510103 | H59: 69.07075765 | I59: 73.0030129 | J59: 67.77170764 | K59: 43.0887095 | L59: 13.65557665 | M59: 34.18070397 | N59: 47.24349023 | O59: 57.71407552 | P59: 66.44767588 | Q59: 72.89080845 | R59: 31.89117645 | S59: 51.72046624 | T59: 52.14304554 | U59: 50.32889092 | V59: 60.77619404 | W59: 38.34506262 | X59: 59.10445831 | Y59: 61.68817047 | Z59: 56.95209722
B60: Public tap/standpipe | C60: 13.37161685 | D60: 8.008567591 | E60: 4.850505474 | F60: 1.157478306 | G60: 0.1405054374 | H60: 7.04157429 | I60: 2.943465542 | J60: 0.9004491821 | K60: 0.5190731995 | L60: 0.04591266582 | M60: 14.38190592 | N60: 12.72739615 | O60: 10.03189648 | P60: 7.901179239 | Q60: 5.779651258 | R60: 3.550472248 | S60: 8.139258834 | T60: 3.576355274 | U60: 5.140618414 | V60: 5.885663887 | W60: 0.5771464992 | X60: 16.580597 | Y60: 1.885802771 | Z60: 4.684151261
B61: Protected well | C61: 3.17321052 | D61: 4.001324358 | E61: 1.129333401 | F61: 0.2113460835 | G61: 0.2542705195 | H61: 0.676873264 | I61: 0.2232832026 | J61: 0.0618541104 | K61: 0.192091852 | L61: 0.2131076483 | M61: 3.070838062 | N61: 3.656488931 | O61: 3.966104228 | P61: 5.593443308 | Q61: 3.191006222 | R61: 2.145750107 | S61: 0.8695112833 | T61: 0.6100332316 | U61: 2.515250824 | V61: 3.705929391 | W61: 1.930239187 | X61: 0.2538219489 | Y61: 2.420498563 | Z61: 0.2604083121
B62: Unprotected well | C62: 18.0772593 | D62: 10.82137565 | E62: 2.832609494 | F62: 0.5270352054 | G62: 0.08427743445 | H62: 8.371742103 | I62: 1.202990633 | J62: 0.4597450053 | K62: 0.1582959395 | L62: 0.05976680412 | M62: 16.69740798 | N62: 17.06071613 | O62: 16.27575555 | P62: 9.671192774 | Q62: 4.623910559 | R62: 28.10414995 | S62: 3.681464435 | T62: 4.566227636 | U62: 8.541800683 | V62: 10.32100909 | W62: 31.04716455 | X62: 5.3127387 | Y62: 2.708055488 | Z62: 0.7664990119
B63: River/dam/ | C63: 18.4815833 | D63: 4.693348307 | E63: 0.5535776462 | F63: 0.0608178154 | G63: 0.01753080193 | H63: 0.7507593903 | I63: 0.4270686694 | J63: 0.07921224913 | K63: 0 | L63: 0.0296189002 | M63: 26.67362963 | N63: 15.06272873 | O63: 9.292829586 | P63: 4.534494487 | Q63: 0.8659679195 | R63: 4.330121175 | S63: 13.76632164 | T63: 5.315672268 | U63: 3.974261291 | V63: 3.583253528 | W63: 9.013312765 | X63: 8.044212302 | Y63: 1.135356458 | Z63: 5.448682285
B64: Lake/ pond/ stream | C64: 1.815772731 | D64: 0.1188752284 | E64: 0 | F64: 0.02940633972 | G64: 0.02797917498 | H64: 0.05173757209 | I64: 0 | J64: 0.0497724142 | K64: 0.04720566007 | L64: 0 | M64: 2.756687575 | N64: 1.566195439 | O64: 0.1953721404 | P64: 0.1443370209 | Q64: 0 | R64: 1.319926943 | S64: 0.2002562271 | T64: 1.05887482 | U64: 0.02613002226 | V64: 0.6944122544 | W64: 1.784452195 | X64: 0.4126510594 | Y64: 0.1997182417 | Z64: 0.04612422054
B65: Tanker truck | C65: 0.5245494355 | D65: 1.26624536 | E65: 3.08605642 | F65: 2.507623369 | G65: 1.342992484 | H65: 4.591010513 | I65: 3.201341209 | J65: 2.88186087 | K65: 2.012690078 | L65: 1.388941317 | M65: 0.1140911746 | N65: 0.375478871 | O65: 0.2283564493 | P65: 0.1798726094 | Q65: 0.09564958604 | R65: 1.326783727 | S65: 1.931238475 | T65: 7.984887511 | U65: 0 | V65: 0 | W65: 1.053357943 | X65: 0 | Y65: 0.2693063653 | Z65: 0.8764201706
B66: Other | C66: 1.409514671 | D66: 1.893742596 | E66: 0.5849773681 | F66: 0.2520592481 | G66: 0.1853422526 | H66: 1.73186472 | I66: 0.3705078992 | J66: 0.1142059228 | K66: 0.2113682029 | L66: 0.1857072351 | M66: 1.133202903 | N66: 1.307333549 | O66: 1.24939675 | P66: 2.447714442 | Q66: 0.6624734266 | R66: 5.240078873 | S66: 0.8842310781 | T66: 0.7618485045 | U66: 1.314473384 | V66: 0.472078961 | W66: 0.561243335 | X66: 0.1589520017 | Y66: 0.07952210884 | Z66: 0.9104889798
A108: =A1026 -> Bolivia (Plurinational State of)
A109: =A1034 -> 2008
A110: Use of sanitation facilities
A111: by wealth quintile and sub-national region
A112: Notes:
A113: WHO/UNICEF JMP customised wealth index excludes water,
A114: sanitation and hygiene assets.
A115: Survey used for analysis: | B115: =A1025 -> DHS08
A116: =B1030 -> Ratio of Improved latrines based on: | B116: 50% Rule
A117: =B1029 -> Ratio of Shared improved based on: | B117: Shared among sanitation
A120: Use of sanitation facilities | C120: NATIONAL wealth index quintile | H120: URBAN wealth index quintile | M120: RURAL wealth index quintile | R120: SUB-REGIONS: | BA120: Raw numbers of respondents: | BB120: Use of sanitation facilities | BC120: NATIONAL wealth index quintile | BH120: URBAN wealth index quintile | BM120: RURAL wealth index quintile | BR120: SUB-REGIONS:
A121: Weighted percentage (used in graphs) | C121: Poorest | D121: Poor | E121: Middle | F121: Rich | G121: Richest | H121: Poorest | I121: Poor | J121: Middle | K121: Rich | L121: Richest | M121: Poorest | N121: Poor | O121: Middle | P121: Rich | Q121: Richest | R121: Beni | S121: Chuquisaca | T121: Cochabamba | U121: La Paz | V121: Oruro | W121: Pando | X121: Potosí | Y121: Santa Cruz | Z121: Tarija | BA121: Sanitation data, raw numbers (weighted) | BC121: Poorest | BD121: Poor | BE121: Middle | BF121: Rich | BG121: Richest | BH121: Poorest | BI121: Poor | BJ121: Middle | BK121: Rich | BL121: Richest | BM121: Poorest | BN121: Poor | BO121: Middle | BP121: Rich | BQ121: Richest | BR121: Beni | BS121: Chuquisaca | BT121: Cochabamba | BU121: La Paz | BV121: Oruro | BW121: Pando | BX121: Potosí | BY121: Santa Cruz | BZ121: Tarija
A122: Sanitation | B122: Improved | C122: =C135+C136+C137 -> 16.62155185 | D122: =D135+D136+D137 -> 8.651328737 | E122: 47.08367455 | F122: 71.42728483 | G122: 89.14042166 | H122: 30.71452956 | I122: 63.32692815 | J122: 73.15211296 | K122: 82.03026759 | L122: 93.5192329 | M122: 1.365396109 | N122: 1.87826363 | O122: 3.130046489 | P122: 6.921916255 | Q122: 24.16109093 | R122: 29.43002819 | S122: 36.14406129 | T122: 44.68072412 | U122: 48.87416702 | V122: 40.73082628 | W122: 29.71835588 | X122: 28.96561749 | Y122: 46.70479577 | Z122: 51.02034929 | BA122: Sanitation | BB122: Improved | BC122: N/A | BD122: N/A | BE122: N/A | BF122: N/A | BG122: N/A | BH122: N/A | BI122: N/A | BJ122: N/A | BK122: N/A | BL122: N/A | BM122: N/A | BN122: N/A | BO122: N/A | BP122: N/A | BQ122: N/A | BR122: N/A | BS122: N/A | BT122: N/A | BU122: N/A | BV122: N/A | BW122: N/A | BX122: N/A | BY122: N/A | BZ122: N/A
B123: Not Improved | C123: =100-C122 -> 83.37844815 | D123: =100-D122 -> 91.34867126 | E123: 52.91632545 | F123: 28.57271517 | G123: 10.85957834 | H123: 69.28547044 | I123: 36.67307185 | J123: 26.84788704 | K123: 17.96973241 | L123: 6.480767102 | M123: 98.63460389 | N123: 98.12173637 | O123: 96.86995351 | P123: 93.07808374 | Q123: 75.83890907 | R123: 70.56997181 | S123: 63.85593871 | T123: 55.31927588 | U123: 51.12583298 | V123: 59.26917372 | W123: 70.28164412 | X123: 71.03438251 | Y123: 53.29520423 | Z123: 48.97965071 | BB123: Not Improved | BC123: N/A | BD123: N/A | BE123: N/A | BF123: N/A | BG123: N/A | BH123: N/A | BI123: N/A | BJ123: N/A | BK123: N/A | BL123: N/A | BM123: N/A | BN123: N/A | BO123: N/A | BP123: N/A | BQ123: N/A | BR123: N/A | BS123: N/A | BT123: N/A | BU123: N/A | BV123: N/A | BW123: N/A | BX123: N/A | BY123: N/A | BZ123: N/A
A124: Sanitation ladder | B124: Basic | C124: =C122*C129/100 -> 15.46678908 | D124: =D122*D129/100 -> 7.187494002 | E124: 28.29392247 | F124: 45.76110212 | G124: 78.57512668 | H124: 18.93848397 | I124: 35.9620652 | J124: 44.27089551 | K124: 61.41981493 | L124: 87.78110602 | M124: 1.300543296 | N124: 1.75158708 | O124: 2.86013885 | P124: 6.084868487 | Q124: 21.06690512 | R124: 22.44502247 | S124: 27.5114908 | T124: 35.85724605 | U124: 36.23653531 | V124: 29.94322925 | W124: 22.91530963 | X124: 20.37740415 | Y124: 34.38474126 | Z124: 40.38229465 | BA124: Sanitation ladder | BB124: Basic | BC124: N/A | BD124: N/A | BE124: N/A | BF124: N/A | BG124: N/A | BH124: N/A | BI124: N/A | BJ124: N/A | BK124: N/A | BL124: N/A | BM124: N/A | BN124: N/A | BO124: N/A | BP124: N/A | BQ124: N/A | BR124: N/A | BS124: N/A | BT124: N/A | BU124: N/A | BV124: N/A | BW124: N/A | BX124: N/A | BY124: N/A | BZ124: N/A
B125: Limited | C125: =C122*C128/100 -> 1.141893101 | D125: =D122*D128/100 -> 1.453529227 | E125: 18.74327533 | F125: 25.51123364 | G125: 10.46797849 | H125: 11.76820333 | I125: 27.27006868 | J125: 28.78752356 | K125: 20.41892206 | L125: 5.609326283 | M125: 0.06485281361 | N125: 0.1234228436 | O125: 0.2699076397 | P125: 0.8196846456 | Q125: 3.071606665 | R125: 6.985005723 | S125: 8.587192125 | T125: 8.740580351 | U125: 12.57014283 | V125: 10.76061136 | W125: 6.551095801 | X125: 8.58821334 | Y125: 12.24434439 | Z125: 10.63805464 | BB125: Limited | BC125: N/A | BD125: N/A | BE125: N/A | BF125: N/A | BG125: N/A | BH125: N/A | BI125: N/A | BJ125: N/A | BK125: N/A | BL125: N/A | BM125: N/A | BN125: N/A | BO125: N/A | BP125: N/A | BQ125: N/A | BR125: N/A | BS125: N/A | BT125: N/A | BU125: N/A | BV125: N/A | BW125: N/A | BX125: N/A | BY125: N/A | BZ125: N/A
B126: Unimproved | C126: =100-C124-C125-C127 -> 14.77909918 | D126: =100-D124-D125-D127 -> 45.66821686 | E126: 29.79227423 | F126: 24.53958885 | G126: 10.2293768 | H126: 41.94362 | I126: 22.96319829 | J126: 23.31515128 | K126: 16.35364648 | L126: 6.382885057 | M126: 20.20047357 | N126: 32.8285097 | O126: 38.95475015 | P126: 45.66670176 | Q126: 43.93834837 | R126: 60.65599636 | S126: 15.45480124 | T126: 26.33318328 | U126: 23.3894029 | V126: 9.268421183 | W126: 56.560455 | X126: 10.26779332 | Y126: 47.02435334 | Z126: 28.5895376 | BB126: Unimproved | BC126: N/A | BD126: N/A | BE126: N/A | BF126: N/A | BG126: N/A | BH126: N/A | BI126: N/A | BJ126: N/A | BK126: N/A | BL126: N/A | BM126: N/A | BN126: N/A | BO126: N/A | BP126: N/A | BQ126: N/A | BR126: N/A | BS126: N/A | BT126: N/A | BU126: N/A | BV126: N/A | BW126: N/A | BX126: N/A | BY126: N/A | BZ126: N/A
B127: Open defecation | C127: =C139 -> 68.61221864 | D127: =D139 -> 45.69075991 | E127: 23.17052796 | F127: 4.188075392 | G127: 0.7275180343 | H127: 27.3496927 | I127: 13.80466783 | J127: 3.626429652 | K127: 1.80761653 | L127: 0.2266826394 | M127: 78.43413032 | N127: 65.29648038 | O127: 57.91520337 | P127: 47.42874511 | Q127: 31.92313985 | R127: 9.91397545 | S127: 48.44651584 | T127: 29.06899032 | U127: 27.80391895 | V127: 50.02773821 | W127: 13.97313956 | X127: 60.76658919 | Y127: 6.346561012 | Z127: 20.39011312 | BB127: Open defecation | BC127: N/A | BD127: N/A | BE127: N/A | BF127: N/A | BG127: N/A | BH127: N/A | BI127: N/A | BJ127: N/A | BK127: N/A | BL127: N/A | BM127: N/A | BN127: N/A | BO127: N/A | BP127: N/A | BQ127: N/A | BR127: N/A | BS127: N/A | BT127: N/A | BU127: N/A | BV127: N/A | BW127: N/A | BX127: N/A | BY127: N/A | BZ127: N/A
A128: Shared among Improved Sanitation | B128: Yes | C128: 6.869954813 | D128: 16.80122523 | E128: 39.80843788 | F128: 35.71637043 | G128: 11.74324542 | H128: 38.31477641 | I128: 43.06235827 | J128: 39.35296247 | K128: 24.89193643 | L128: 5.998045652 | M128: 4.749743548 | N128: 6.571113961 | O128: 8.623119197 | P128: 11.84187464 | Q128: 12.7130297 | R128: 23.73428145 | S128: 23.75823806 | T128: 19.56230684 | U128: 25.71940066 | V128: 26.41883885 | W128: 22.04393752 | X128: 29.64968153 | Y128: 26.21646063 | Z128: 20.85061115 | BA128: Shared among improved sanitation facilities | BB128: Yes | BC128: N/A | BD128: N/A | BE128: N/A | BF128: N/A | BG128: N/A | BH128: N/A | BI128: N/A | BJ128: N/A | BK128: N/A | BL128: N/A | BM128: N/A | BN128: N/A | BO128: N/A | BP128: N/A | BQ128: N/A | BR128: N/A | BS128: N/A | BT128: N/A | BU128: N/A | BV128: N/A | BW128: N/A | BX128: N/A | BY128: N/A | BZ128: N/A
B129: No | C129: 93.05261763 | D129: 83.07965424 | E129: 60.09285117 | F129: 64.06669695 | G129: 88.14758244 | H129: 61.65969083 | I129: 56.78795142 | J129: 60.51895662 | K129: 74.87457586 | L129: 93.86422803 | M129: 95.25025645 | N129: 93.25565658 | O129: 91.3768808 | P129: 87.90728265 | Q129: 87.19351782 | R129: 76.26571855 | S129: 76.11621333 | T129: 80.25215963 | U129: 74.14251234 | V129: 73.51490747 | W129: 77.10826846 | X129: 70.35031847 | Y129: 73.62143585 | Z129: 79.14938885 | BB129: No | BC129: N/A | BD129: N/A | BE129: N/A | BF129: N/A | BG129: N/A | BH129: N/A | BI129: N/A | BJ129: N/A | BK129: N/A | BL129: N/A | BM129: N/A | BN129: N/A | BO129: N/A | BP129: N/A | BQ129: N/A | BR129: N/A | BS129: N/A | BT129: N/A | BU129: N/A | BV129: N/A | BW129: N/A | BX129: N/A | BY129: N/A | BZ129: N/A
A130: Manually calculated ratios | B130: Improved latrines
B131: Other
B132: Other
C133: NATIONAL wealth index quintile | H133: URBAN wealth index quintile | M133: RURAL wealth index quintile | R133: SUB-REGIONS: | BA133: Raw numbers of respondents: | BB133: Use of sanitation facilities | BC133: NATIONAL wealth index quintile | BH133: URBAN wealth index quintile | BM133: RURAL wealth index quintile | BR133: SUB-REGIONS:
A134: Percentage based on weighted population | C134: Poorest | D134: Poor | E134: Middle | F134: Rich | G134: Richest | H134: Poorest | I134: Poor | J134: Middle | K134: Rich | L134: Richest | M134: Poorest | N134: Poor | O134: Middle | P134: Rich | Q134: Richest | R134: Beni | S134: Chuquisaca | T134: Cochabamba | U134: La Paz | V134: Oruro | W134: Pando | X134: Potosí | Y134: Santa Cruz | Z134: Tarija | BA134: Sanitation data, raw numbers (weighted) | BC134: Poorest | BD134: Poor | BE134: Middle | BF134: Rich | BG134: Richest | BH134: Poorest | BI134: Poor | BJ134: Middle | BK134: Rich | BL134: Richest | BM134: Poorest | BN134: Poor | BO134: Middle | BP134: Rich | BQ134: Richest | BR134: Beni | BS134: Chuquisaca | BT134: Cochabamba | BU134: La Paz | BV134: Oruro | BW134: Pando | BX134: Potosí | BY134: Santa Cruz | BZ134: Tarija
A135: Sanitation type | B135: Sewer connection | C135: 0.4084085973 | D135: 6.083995824 | E135: 39.74166171 | F135: 56.17427929 | G135: 69.27176133 | H135: 26.38558437 | I135: 54.32713615 | J135: 58.3443105 | K135: 64.66583286 | L135: 72.21360269 | M135: 0 | N135: 0.5624946607 | O135: 1.318578777 | P135: 4.51968868 | Q135: 14.06705171 | R135: 14.39820531 | S135: 35.29768251 | T135: 37.07804456 | U135: 46.54465322 | V135: 38.77904146 | W135: 13.84725112 | X135: 27.39288182 | Y135: 18.12153836 | Z135: 45.91670896 | BA135: Sanitation type | BB135: Sewer connection | BC135: N/A | BD135: N/A | BE135: N/A | BF135: N/A | BG135: N/A | BH135: N/A | BI135: N/A | BJ135: N/A | BK135: N/A | BL135: N/A | BM135: N/A | BN135: N/A | BO135: N/A | BP135: N/A | BQ135: N/A | BR135: N/A | BS135: N/A | BT135: N/A | BU135: N/A | BV135: N/A | BW135: N/A | BX135: N/A | BY135: N/A | BZ135: N/A
B136: Septic tank connection | C136: 1.446913733 | D136: 2.567332913 | E136: 7.342012833 | F136: 15.25300554 | G136: 19.86866033 | H136: 4.328945189 | I136: 8.999792001 | J136: 14.80780246 | K136: 17.36443473 | L136: 21.30563021 | M136: 1.365396109 | N136: 1.315768969 | O136: 1.811467712 | P136: 2.402227575 | Q136: 10.09403922 | R136: 15.03182288 | S136: 0.846378785 | T136: 7.602679561 | U136: 2.329513795 | V136: 1.951784817 | W136: 15.87110476 | X136: 1.572735673 | Y136: 28.58325741 | Z136: 5.103640324 | BB136: Septic tank connection | BC136: N/A | BD136: N/A | BE136: N/A | BF136: N/A | BG136: N/A | BH136: N/A | BI136: N/A | BJ136: N/A | BK136: N/A | BL136: N/A | BM136: N/A | BN136: N/A | BO136: N/A | BP136: N/A | BQ136: N/A | BR136: N/A | BS136: N/A | BT136: N/A | BU136: N/A | BV136: N/A | BW136: N/A | BX136: N/A | BY136: N/A | BZ136: N/A
B137: Improved latrines | C137: =(100-(C135+C136+C139))/2 -> 14.76622952 | D137: 0 | E137: 0 | F137: 0 | G137: 0 | H137: 0 | I137: 0 | J137: 0 | K137: 0 | L137: 0 | M137: 0 | N137: 0 | O137: 0 | P137: 0 | Q137: 0 | R137: 0 | S137: 0 | T137: 0 | U137: 0 | V137: 0 | W137: 0 | X137: 0 | Y137: 0 | Z137: 0 | BB137: Improved latrines | BC137: N/A | BD137: N/A | BE137: N/A | BF137: N/A | BG137: N/A | BH137: N/A | BI137: N/A | BJ137: N/A | BK137: N/A | BL137: N/A | BM137: N/A | BN137: N/A | BO137: N/A | BP137: N/A | BQ137: N/A | BR137: N/A | BS137: N/A | BT137: N/A | BU137: N/A | BV137: N/A | BW137: N/A | BX137: N/A | BY137: N/A | BZ137: N/A
B138: Unimproved facilities | C138: =(100-(C135+C136+C139))/2 -> 14.76622952 | D138: 45.65791135 | E138: 29.74579749 | F138: 24.38463977 | G138: 10.1320603 | H138: 41.93577774 | I138: 22.86840401 | J138: 23.22145739 | K138: 16.16211588 | L138: 6.254084462 | M138: 20.20047357 | N138: 32.82525599 | O138: 38.95475015 | P138: 45.64933864 | Q138: 43.91576923 | R138: 60.65599636 | S138: 15.40942287 | T138: 26.25028555 | U138: 23.32191403 | V138: 9.241435511 | W138: 56.30850456 | X138: 10.26779332 | Y138: 46.94864322 | Z138: 28.5895376 | BB138: Unimproved facilities | BC138: N/A | BD138: N/A | BE138: N/A | BF138: N/A | BG138: N/A | BH138: N/A | BI138: N/A | BJ138: N/A | BK138: N/A | BL138: N/A | BM138: N/A | BN138: N/A | BO138: N/A | BP138: N/A | BQ138: N/A | BR138: N/A | BS138: N/A | BT138: N/A | BU138: N/A | BV138: N/A | BW138: N/A | BX138: N/A | BY138: N/A | BZ138: N/A
B139: Open defecation | C139: 68.61221864 | D139: 45.69075991 | E139: 23.17052796 | F139: 4.188075392 | G139: 0.7275180343 | H139: 27.3496927 | I139: 13.80466783 | J139: 3.626429652 | K139: 1.80761653 | L139: 0.2266826394 | M139: 78.43413032 | N139: 65.29648038 | O139: 57.91520337 | P139: 47.42874511 | Q139: 31.92313985 | R139: 9.91397545 | S139: 48.44651584 | T139: 29.06899032 | U139: 27.80391895 | V139: 50.02773821 | W139: 13.97313956 | X139: 60.76658919 | Y139: 6.346561012 | Z139: 20.39011312 | BB139: Open defecation | BC139: N/A | BD139: N/A | BE139: N/A | BF139: N/A | BG139: N/A | BH139: N/A | BI139: N/A | BJ139: N/A | BK139: N/A | BL139: N/A | BM139: N/A | BN139: N/A | BO139: N/A | BP139: N/A | BQ139: N/A | BR139: N/A | BS139: N/A | BT139: N/A | BU139: N/A | BV139: N/A | BW139: N/A | BX139: N/A | BY139: N/A | BZ139: N/A
A140: Septic tank emptying practices | B140: Not emptied/treated and disposed in situ | C140: N/A | D140: N/A | E140: N/A | F140: N/A | G140: N/A | H140: N/A | I140: N/A | J140: N/A | K140: N/A | L140: N/A | M140: N/A | N140: N/A | O140: N/A | P140: N/A | Q140: N/A | R140: N/A | S140: N/A | T140: N/A | U140: N/A | V140: N/A | W140: N/A | X140: N/A | Y140: N/A | Z140: N/A | BA140: Septic tank emptying practices | BB140: Not emptied/treated and disposed in situ | BC140: N/A | BD140: N/A | BE140: N/A | BF140: N/A | BG140: N/A | BH140: N/A | BI140: N/A | BJ140: N/A | BK140: N/A | BL140: N/A | BM140: N/A | BN140: N/A | BO140: N/A | BP140: N/A | BQ140: N/A | BR140: N/A | BS140: N/A | BT140: N/A | BU140: N/A | BV140: N/A | BW140: N/A | BX140: N/A | BY140: N/A | BZ140: N/A
B141: Emptied and buried on site | C141: N/A | D141: N/A | E141: N/A | F141: N/A | G141: N/A | H141: N/A | I141: N/A | J141: N/A | K141: N/A | L141: N/A | M141: N/A | N141: N/A | O141: N/A | P141: N/A | Q141: N/A | R141: N/A | S141: N/A | T141: N/A | U141: N/A | V141: N/A | W141: N/A | X141: N/A | Y141: N/A | Z141: N/A | BB141: Emptied and buried on site | BC141: N/A | BD141: N/A | BE141: N/A | BF141: N/A | BG141: N/A | BH141: N/A | BI141: N/A | BJ141: N/A | BK141: N/A | BL141: N/A | BM141: N/A | BN141: N/A | BO141: N/A | BP141: N/A | BQ141: N/A | BR141: N/A | BS141: N/A | BT141: N/A | BU141: N/A | BV141: N/A | BW141: N/A | BX141: N/A | BY141: N/A | BZ141: N/A
B142: Emptied and discharged locally | C142: N/A | D142: N/A | E142: N/A | F142: N/A | G142: N/A | H142: N/A | I142: N/A | J142: N/A | K142: N/A | L142: N/A | M142: N/A | N142: N/A | O142: N/A | P142: N/A | Q142: N/A | R142: N/A | S142: N/A | T142: N/A | U142: N/A | V142: N/A | W142: N/A | X142: N/A | Y142: N/A | Z142: N/A | BB142: Emptied and discharged locally | BC142: N/A | BD142: N/A | BE142: N/A | BF142: N/A | BG142: N/A | BH142: N/A | BI142: N/A | BJ142: N/A | BK142: N/A | BL142: N/A | BM142: N/A | BN142: N/A | BO142: N/A | BP142: N/A | BQ142: N/A | BR142: N/A | BS142: N/A | BT142: N/A | BU142: N/A | BV142: N/A | BW142: N/A | BX142: N/A | BY142: N/A | BZ142: N/A
B143: Emptied and removed offsite | C143: N/A | D143: N/A | E143: N/A | F143: N/A | G143: N/A | H143: N/A | I143: N/A | J143: N/A | K143: N/A | L143: N/A | M143: N/A | N143: N/A | O143: N/A | P143: N/A | Q143: N/A | R143: N/A | S143: N/A | T143: N/A | U143: N/A | V143: N/A | W143: N/A | X143: N/A | Y143: N/A | Z143: N/A | BB143: Emptied and removed offsite | BC143: N/A | BD143: N/A | BE143: N/A | BF143: N/A | BG143: N/A | BH143: N/A | BI143: N/A | BJ143: N/A | BK143: N/A | BL143: N/A | BM143: N/A | BN143: N/A | BO143: N/A | BP143: N/A | BQ143: N/A | BR143: N/A | BS143: N/A | BT143: N/A | BU143: N/A | BV143: N/A | BW143: N/A | BX143: N/A | BY143: N/A | BZ143: N/A
A144: Latrine emptying practices | B144: Not emptied/treated and disposed in situ | C144: N/A | D144: N/A | E144: N/A | F144: N/A | G144: N/A | H144: N/A | I144: N/A | J144: N/A | K144: N/A | L144: N/A | M144: N/A | N144: N/A | O144: N/A | P144: N/A | Q144: N/A | R144: N/A | S144: N/A | T144: N/A | U144: N/A | V144: N/A | W144: N/A | X144: N/A | Y144: N/A | Z144: N/A | BA144: Latrine emptying practices | BB144: Not emptied/treated and disposed in situ | BC144: N/A | BD144: N/A | BE144: N/A | BF144: N/A | BG144: N/A | BH144: N/A | BI144: N/A | BJ144: N/A | BK144: N/A | BL144: N/A | BM144: N/A | BN144: N/A | BO144: N/A | BP144: N/A | BQ144: N/A | BR144: N/A | BS144: N/A | BT144: N/A | BU144: N/A | BV144: N/A | BW144: N/A | BX144: N/A | BY144: N/A | BZ144: N/A
B145: Emptied and buried on site | C145: N/A | D145: N/A | E145: N/A | F145: N/A | G145: N/A | H145: N/A | I145: N/A | J145: N/A | K145: N/A | L145: N/A | M145: N/A | N145: N/A | O145: N/A | P145: N/A | Q145: N/A | R145: N/A | S145: N/A | T145: N/A | U145: N/A | V145: N/A | W145: N/A | X145: N/A | Y145: N/A | Z145: N/A | BB145: Emptied and buried on site | BC145: N/A | BD145: N/A | BE145: N/A | BF145: N/A | BG145: N/A | BH145: N/A | BI145: N/A | BJ145: N/A | BK145: N/A | BL145: N/A | BM145: N/A | BN145: N/A | BO145: N/A | BP145: N/A | BQ145: N/A | BR145: N/A | BS145: N/A | BT145: N/A | BU145: N/A | BV145: N/A | BW145: N/A | BX145: N/A | BY145: N/A | BZ145: N/A
B146: Emptied and discharged locally | C146: N/A | D146: N/A | E146: N/A | F146: N/A | G146: N/A | H146: N/A | I146: N/A | J146: N/A | K146: N/A | L146: N/A | M146: N/A | N146: N/A | O146: N/A | P146: N/A | Q146: N/A | R146: N/A | S146: N/A | T146: N/A | U146: N/A | V146: N/A | W146: N/A | X146: N/A | Y146: N/A | Z146: N/A | BB146: Emptied and discharged locally | BC146: N/A | BD146: N/A | BE146: N/A | BF146: N/A | BG146: N/A | BH146: N/A | BI146: N/A | BJ146: N/A | BK146: N/A | BL146: N/A | BM146: N/A | BN146: N/A | BO146: N/A | BP146: N/A | BQ146: N/A | BR146: N/A | BS146: N/A | BT146: N/A | BU146: N/A | BV146: N/A | BW146: N/A | BX146: N/A | BY146: N/A | BZ146: N/A
B147: Emptied and removed offsite | C147: N/A | D147: N/A | E147: N/A | F147: N/A | G147: N/A | H147: N/A | I147: N/A | J147: N/A | K147: N/A | L147: N/A | M147: N/A | N147: N/A | O147: N/A | P147: N/A | Q147: N/A | R147: N/A | S147: N/A | T147: N/A | U147: N/A | V147: N/A | W147: N/A | X147: N/A | Y147: N/A | Z147: N/A | BB147: Emptied and removed offsite | BC147: N/A | BD147: N/A | BE147: N/A | BF147: N/A | BG147: N/A | BH147: N/A | BI147: N/A | BJ147: N/A | BK147: N/A | BL147: N/A | BM147: N/A | BN147: N/A | BO147: N/A | BP147: N/A | BQ147: N/A | BR147: N/A | BS147: N/A | BT147: N/A | BU147: N/A | BV147: N/A | BW147: N/A | BX147: N/A | BY147: N/A | BZ147: N/A
A148: Shared among improved sanitation facilities | B148: Yes | C148: N/A | D148: N/A | E148: N/A | F148: N/A | G148: N/A | H148: N/A | I148: N/A | J148: N/A | K148: N/A | L148: N/A | M148: N/A | N148: N/A | O148: N/A | P148: N/A | Q148: N/A | R148: N/A | S148: N/A | T148: N/A | U148: N/A | V148: N/A | W148: N/A | X148: N/A | Y148: N/A | Z148: N/A | BA148: Shared among improved sanitation facilities | BB148: Yes | BC148: N/A | BD148: N/A | BE148: N/A | BF148: N/A | BG148: N/A | BH148: N/A | BI148: N/A | BJ148: N/A | BK148: N/A | BL148: N/A | BM148: N/A | BN148: N/A | BO148: N/A | BP148: N/A | BQ148: N/A | BR148: N/A | BS148: N/A | BT148: N/A | BU148: N/A | BV148: N/A | BW148: N/A | BX148: N/A | BY148: N/A | BZ148: N/A
B149: No | C149: N/A | D149: N/A | E149: N/A | F149: N/A | G149: N/A | H149: N/A | I149: N/A | J149: N/A | K149: N/A | L149: N/A | M149: N/A | N149: N/A | O149: N/A | P149: N/A | Q149: N/A | R149: N/A | S149: N/A | T149: N/A | U149: N/A | V149: N/A | W149: N/A | X149: N/A | Y149: N/A | Z149: N/A | BB149: No | BC149: N/A | BD149: N/A | BE149: N/A | BF149: N/A | BG149: N/A | BH149: N/A | BI149: N/A | BJ149: N/A | BK149: N/A | BL149: N/A | BM149: N/A | BN149: N/A | BO149: N/A | BP149: N/A | BQ149: N/A | BR149: N/A | BS149: N/A | BT149: N/A | BU149: N/A | BV149: N/A | BW149: N/A | BX149: N/A | BY149: N/A | BZ149: N/A
B150: DK/missing | C150: N/A | D150: N/A | E150: N/A | F150: N/A | G150: N/A | H150: N/A | I150: N/A | J150: N/A | K150: N/A | L150: N/A | M150: N/A | N150: N/A | O150: N/A | P150: N/A | Q150: N/A | R150: N/A | S150: N/A | T150: N/A | U150: N/A | V150: N/A | W150: N/A | X150: N/A | Y150: N/A | Z150: N/A | BB150: DK/missing | BC150: N/A | BD150: N/A | BE150: N/A | BF150: N/A | BG150: N/A | BH150: N/A | BI150: N/A | BJ150: N/A | BK150: N/A | BL150: N/A | BM150: N/A | BN150: N/A | BO150: N/A | BP150: N/A | BQ150: N/A | BR150: N/A | BS150: N/A | BT150: N/A | BU150: N/A | BV150: N/A | BW150: N/A | BX150: N/A | BY150: N/A | BZ150: N/A
A151: Shared among all sanitation facilities | B151: Yes | C151: 6.869954813 | D151: 16.80122523 | E151: 39.80843788 | F151: 35.71637043 | G151: 11.74324542 | H151: 38.31477641 | I151: 43.06235827 | J151: 39.35296247 | K151: 24.89193643 | L151: 5.998045652 | M151: 4.749743548 | N151: 6.571113961 | O151: 8.623119197 | P151: 11.84187464 | Q151: 12.7130297 | R151: 23.73428145 | S151: 23.75823806 | T151: 19.56230684 | U151: 25.71940066 | V151: 26.41883885 | W151: 22.04393752 | X151: 29.64968153 | Y151: 26.21646063 | Z151: 20.85061115 | BA151: Shared among all sanitation facilities | BB151: Yes | BC151: N/A | BD151: N/A | BE151: N/A | BF151: N/A | BG151: N/A | BH151: N/A | BI151: N/A | BJ151: N/A | BK151: N/A | BL151: N/A | BM151: N/A | BN151: N/A | BO151: N/A | BP151: N/A | BQ151: N/A | BR151: N/A | BS151: N/A | BT151: N/A | BU151: N/A | BV151: N/A | BW151: N/A | BX151: N/A | BY151: N/A | BZ151: N/A
B152: No | C152: 93.05261763 | D152: 83.07965424 | E152: 60.09285117 | F152: 64.06669695 | G152: 88.14758244 | H152: 61.65969083 | I152: 56.78795142 | J152: 60.51895662 | K152: 74.87457586 | L152: 93.86422803 | M152: 95.25025645 | N152: 93.25565658 | O152: 91.3768808 | P152: 87.90728265 | Q152: 87.19351782 | R152: 76.26571855 | S152: 76.11621333 | T152: 80.25215963 | U152: 74.14251234 | V152: 73.51490747 | W152: 77.10826846 | X152: 70.35031847 | Y152: 73.62143585 | Z152: 79.14938885 | BB152: No | BC152: N/A | BD152: N/A | BE152: N/A | BF152: N/A | BG152: N/A | BH152: N/A | BI152: N/A | BJ152: N/A | BK152: N/A | BL152: N/A | BM152: N/A | BN152: N/A | BO152: N/A | BP152: N/A | BQ152: N/A | BR152: N/A | BS152: N/A | BT152: N/A | BU152: N/A | BV152: N/A | BW152: N/A | BX152: N/A | BY152: N/A | BZ152: N/A
A153: Main source sanitation services,sewer,septic,open pit,surfac | B153: Sewage system | C153: 1.275911185 | D153: 11.11159439 | E153: 51.23215648 | F153: 58.5398448 | G153: 69.65968484 | H153: 35.86886274 | I153: 62.8406579 | J153: 60.45984056 | K153: 65.7374085 | L153: 72.33225931 | M153: 0 | N153: 1.604448039 | O153: 3.093956366 | P153: 8.547732213 | Q153: 20.36032129 | R153: 15.81856827 | S153: 66.96952599 | T153: 51.91985315 | U153: 64.27606436 | V153: 77.48185413 | W153: 15.5537048 | X153: 69.00726051 | Y153: 19.26983156 | Z153: 57.42307233 | BA153: Main source sanitation services,sewer,septic,open pit,surfac | BB153: Sewage system | BC153: 63.424366 | BD153: 944.995114 | BE153: 6171.485474 | BF153: 8729.36552 | BG153: 10752.79857 | BH153: 2427.052682 | BI153: 4991.46586 | BJ153: 5362.372786 | BK153: 5944.835026 | BL153: 6638.915048 | BM153: 0 | BN153: 35.62848 | BO153: 83.586759 | BP153: 286.327691 | BQ153: 891.884715 | BR153: 375.000218 | BS153: 1692.484393 | BT153: 5347.806426 | BU153: 10651.93528 | BV153: 1682.875054 | BW153: 63.295231 | BX153: 2243.163272 | BY153: 2972.632638 | BZ153: 1632.876534
B154: Septic system | C154: 4.520309877 | D154: 4.688885861 | E154: 9.464806808 | F154: 15.89532769 | G154: 19.9799253 | H154: 5.884817202 | I154: 10.41013553 | J154: 15.34472459 | K154: 17.65218027 | L154: 21.34063822 | M154: 6.111807128 | N154: 3.753071965 | O154: 4.250487083 | P154: 4.543144337 | Q154: 14.60987603 | R154: 16.51469134 | S154: 1.605816077 | T154: 10.64592297 | U154: 3.216953361 | V154: 3.899732969 | W154: 17.82696623 | X154: 3.961984759 | Y154: 30.3944701 | Z154: 6.382572142 | BB154: Septic system | BC154: 224.700427 | BD154: 398.770336 | BE154: 1140.141695 | BF154: 2370.285161 | BG154: 3084.138448 | BH154: 398.193873 | BI154: 826.882433 | BJ154: 1360.971726 | BK154: 1596.340683 | BL154: 1958.72057 | BM154: 86.583844 | BN154: 83.340966 | BO154: 114.831755 | BP154: 152.183994 | BQ154: 639.986223 | BR154: 391.502742 | BS154: 40.582916 | BT154: 1096.542687 | BU154: 533.118811 | BV154: 84.700649 | BW154: 72.546185 | BX154: 128.789038 | BY154: 4688.758879 | BZ154: 181.49416
B155: Open pit | C155: 92.1472879 | D155: 83.19839842 | E155: 38.33221818 | F155: 25.27866298 | G155: 10.16888807 | H155: 56.93334193 | I155: 26.43088569 | J155: 23.89163075 | K155: 16.34541721 | L155: 6.264360761 | M155: 90.25064418 | N155: 93.48129691 | O155: 91.19593402 | P155: 86.17078052 | Q155: 63.56265618 | R155: 66.6396262 | S155: 28.87729758 | T155: 36.72582251 | U155: 32.05246263 | V155: 18.33639324 | W155: 62.51218862 | X155: 25.78199995 | Y155: 49.9236008 | Z155: 35.75384914 | BB155: Open pit | BC155: 4580.556533 | BD155: 7075.679442 | BE155: 4617.543823 | BF155: 3769.512709 | BG155: 1569.688484 | BH155: 3852.372495 | BI155: 2099.418879 | BJ155: 2119.023626 | BK155: 1478.1661 | BL155: 574.965573 | BM155: 1278.549459 | BN155: 2075.851905 | BO155: 2463.76214 | BP155: 2886.506035 | BQ155: 2784.364779 | BR155: 1579.781047 | BS155: 729.80023 | BT155: 3782.803257 | BU155: 5311.786914 | BV155: 398.259168 | BW155: 254.391058 | BX155: 838.074645 | BY155: 7701.391923 | BZ155: 1016.692749
B156: Surface water (street/stream) | C156: 2.056491034 | D156: 1.001121322 | E156: 0.9708185277 | F156: 0.2861645316 | G156: 0.1915017858 | H156: 1.312978133 | I156: 0.3183208846 | J156: 0.3038041002 | K156: 0.2649940179 | L156: 0.06274171087 | M156: 3.637548688 | N156: 1.161183089 | O156: 1.459622533 | P156: 0.7383429302 | Q156: 1.467146499 | R156: 1.027114185 | S156: 2.547360345 | T156: 0.7084013707 | U156: 0.4545196487 | V156: 0.2820196672 | W156: 4.107140359 | X156: 1.248754784 | Y156: 0.4120975416 | Z156: 0.440506388 | BB156: Surface water (street/stream) | BC156: 102.226269 | BD156: 85.141225 | BE156: 116.945935 | BF156: 42.672385 | BG156: 29.560572 | BH156: 88.842156 | BI156: 25.284392 | BJ156: 26.945338 | BK156: 23.96422 | BL156: 5.75866 | BM156: 51.531886 | BN156: 25.785309 | BO156: 39.433367 | BP156: 24.732645 | BQ156: 64.268413 | BR156: 24.349109 | BS156: 64.378052 | BT156: 72.966181 | BU156: 75.323745 | BV156: 6.125355 | BW156: 16.713857 | BX156: 40.592263 | BY156: 63.57163 | BZ156: 12.526194
BB157: Total | BC157: 4970.907595 | BD157: 8504.586117 | BE157: 12046.11693 | BF157: 14911.83577 | BG157: 15436.18608 | BH157: 6766.461206 | BI157: 7943.051564 | BJ157: 8869.313476 | BK157: 9043.306029 | BL157: 9178.359851 | BM157: 1416.665189 | BN157: 2220.60666 | BO157: 2701.614021 | BP157: 3349.750365 | BQ157: 4380.50413 | BR157: 2370.633116 | BS157: 2527.245591 | BT157: 10300.11855 | BU157: 16572.16475 | BV157: 2171.960226 | BW157: 406.946331 | BX157: 3250.619218 | BY157: 15426.35507 | BZ157: 2843.589637
A208: =A1026 -> Bolivia (Plurinational State of)
A209: =A1034 -> 2008
A210: Access to hygiene facilities
A211: by wealth quintile and sub-national region
A212: Notes:
A213: WHO/UNICEF JMP customised wealth index excludes water,
A214: sanitation and hygiene assets.
A215: Survey used for analysis: | B215: =A1025 -> DHS08
A220: Access to handwashing | C220: NATIONAL wealth index quintile | H220: URBAN wealth index quintile | M220: RURAL wealth index quintile | R220: SUB-REGIONS: | BA220: Raw numbers of respondents: | BB220: Access to handwashing | BC220: NATIONAL wealth index quintile | BH220: URBAN wealth index quintile | BM220: RURAL wealth index quintile | BR220: SUB-REGIONS:
A221: Weighted percentage (used in graphs) | C221: Poorest | D221: Poor | E221: Middle | F221: Rich | G221: Richest | H221: Poorest | I221: Poor | J221: Middle | K221: Rich | L221: Richest | M221: Poorest | N221: Poor | O221: Middle | P221: Rich | Q221: Richest | R221: Beni | S221: Chuquisaca | T221: Cochabamba | U221: La Paz | V221: Oruro | W221: Pando | X221: Potosí | Y221: Santa Cruz | Z221: Tarija | BA221: Hygiene data, raw numbers (weighted) | BC221: Poorest | BD221: Poor | BE221: Middle | BF221: Rich | BG221: Richest | BH221: Poorest | BI221: Poor | BJ221: Middle | BK221: Rich | BL221: Richest | BM221: Poorest | BN221: Poor | BO221: Middle | BP221: Rich | BQ221: Richest | BR221: Beni | BS221: Chuquisaca | BT221: Cochabamba | BU221: La Paz | BV221: Oruro | BW221: Pando | BX221: Potosí | BY221: Santa Cruz | BZ221: Tarija
A222: Hygiene ladder | B222: Basic | C222: N/A | D222: N/A | E222: N/A | F222: N/A | G222: N/A | H222: N/A | I222: N/A | J222: N/A | K222: N/A | L222: N/A | M222: N/A | N222: N/A | O222: N/A | P222: N/A | Q222: N/A | R222: N/A | S222: N/A | T222: N/A | U222: N/A | V222: N/A | W222: N/A | X222: N/A | Y222: N/A | Z222: N/A | BA222: Hygiene ladder | BB222: Basic | BC222: N/A | BD222: N/A | BE222: N/A | BF222: N/A | BG222: N/A | BH222: N/A | BI222: N/A | BJ222: N/A | BK222: N/A | BL222: N/A | BM222: N/A | BN222: N/A | BO222: N/A | BP222: N/A | BQ222: N/A | BR222: N/A | BS222: N/A | BT222: N/A | BU222: N/A | BV222: N/A | BW222: N/A | BX222: N/A | BY222: N/A | BZ222: N/A
B223: Limited | C223: N/A | D223: N/A | E223: N/A | F223: N/A | G223: N/A | H223: N/A | I223: N/A | J223: N/A | K223: N/A | L223: N/A | M223: N/A | N223: N/A | O223: N/A | P223: N/A | Q223: N/A | R223: N/A | S223: N/A | T223: N/A | U223: N/A | V223: N/A | W223: N/A | X223: N/A | Y223: N/A | Z223: N/A | BB223: Limited | BC223: N/A | BD223: N/A | BE223: N/A | BF223: N/A | BG223: N/A | BH223: N/A | BI223: N/A | BJ223: N/A | BK223: N/A | BL223: N/A | BM223: N/A | BN223: N/A | BO223: N/A | BP223: N/A | BQ223: N/A | BR223: N/A | BS223: N/A | BT223: N/A | BU223: N/A | BV223: N/A | BW223: N/A | BX223: N/A | BY223: N/A | BZ223: N/A
B224: No facility | C224: N/A | D224: N/A | E224: N/A | F224: N/A | G224: N/A | H224: N/A | I224: N/A | J224: N/A | K224: N/A | L224: N/A | M224: N/A | N224: N/A | O224: N/A | P224: N/A | Q224: N/A | R224: N/A | S224: N/A | T224: N/A | U224: N/A | V224: N/A | W224: N/A | X224: N/A | Y224: N/A | Z224: N/A | BB224: No facility | BC224: N/A | BD224: N/A | BE224: N/A | BF224: N/A | BG224: N/A | BH224: N/A | BI224: N/A | BJ224: N/A | BK224: N/A | BL224: N/A | BM224: N/A | BN224: N/A | BO224: N/A | BP224: N/A | BQ224: N/A | BR224: N/A | BS224: N/A | BT224: N/A | BU224: N/A | BV224: N/A | BW224: N/A | BX224: N/A | BY224: N/A | BZ224: N/A
BA225: Observed handwashing place | BB225: Fixed | BC225: N/A | BD225: N/A | BE225: N/A | BF225: N/A | BG225: N/A | BH225: N/A | BI225: N/A | BJ225: N/A | BK225: N/A | BL225: N/A | BM225: N/A | BN225: N/A | BO225: N/A | BP225: N/A | BQ225: N/A | BR225: N/A | BS225: N/A | BT225: N/A | BU225: N/A | BV225: N/A | BW225: N/A | BX225: N/A | BY225: N/A | BZ225: N/A
BB226: Mobile | BC226: N/A | BD226: N/A | BE226: N/A | BF226: N/A | BG226: N/A | BH226: N/A | BI226: N/A | BJ226: N/A | BK226: N/A | BL226: N/A | BM226: N/A | BN226: N/A | BO226: N/A | BP226: N/A | BQ226: N/A | BR226: N/A | BS226: N/A | BT226: N/A | BU226: N/A | BV226: N/A | BW226: N/A | BX226: N/A | BY226: N/A | BZ226: N/A
BA227: Water / Soap | BB227: Water and soap | BC227: N/A | BD227: N/A | BE227: N/A | BF227: N/A | BG227: N/A | BH227: N/A | BI227: N/A | BJ227: N/A | BK227: N/A | BL227: N/A | BM227: N/A | BN227: N/A | BO227: N/A | BP227: N/A | BQ227: N/A | BR227: N/A | BS227: N/A | BT227: N/A | BU227: N/A | BV227: N/A | BW227: N/A | BX227: N/A | BY227: N/A | BZ227: N/A
BB228: Water only | BC228: N/A | BD228: N/A | BE228: N/A | BF228: N/A | BG228: N/A | BH228: N/A | BI228: N/A | BJ228: N/A | BK228: N/A | BL228: N/A | BM228: N/A | BN228: N/A | BO228: N/A | BP228: N/A | BQ228: N/A | BR228: N/A | BS228: N/A | BT228: N/A | BU228: N/A | BV228: N/A | BW228: N/A | BX228: N/A | BY228: N/A | BZ228: N/A
BB229: Soap only | BC229: N/A | BD229: N/A | BE229: N/A | BF229: N/A | BG229: N/A | BH229: N/A | BI229: N/A | BJ229: N/A | BK229: N/A | BL229: N/A | BM229: N/A | BN229: N/A | BO229: N/A | BP229: N/A | BQ229: N/A | BR229: N/A | BS229: N/A | BT229: N/A | BU229: N/A | BV229: N/A | BW229: N/A | BX229: N/A | BY229: N/A | BZ229: N/A
BB230: Neither | BC230: N/A | BD230: N/A | BE230: N/A | BF230: N/A | BG230: N/A | BH230: N/A | BI230: N/A | BJ230: N/A | BK230: N/A | BL230: N/A | BM230: N/A | BN230: N/A | BO230: N/A | BP230: N/A | BQ230: N/A | BR230: N/A | BS230: N/A | BT230: N/A | BU230: N/A | BV230: N/A | BW230: N/A | BX230: N/A | BY230: N/A | BZ230: N/A
BA259: Raw numbers of respondents: | BB259: Menstrual health and hygiene | BC259: NATIONAL wealth index quintile | BH259: URBAN wealth index quintile | BM259: RURAL wealth index quintile | BR259: SUB-REGIONS:
BA260: MHH data, raw numbers (weighted) | BC260: Poorest | BD260: Poor | BE260: Middle | BF260: Rich | BG260: Richest | BH260: Poorest | BI260: Poor | BJ260: Middle | BK260: Rich | BL260: Richest | BM260: Poorest | BN260: Poor | BO260: Middle | BP260: Rich | BQ260: Richest | BR260: Beni | BS260: Chuquisaca | BT260: Cochabamba | BU260: La Paz | BV260: Oruro | BW260: Pando | BX260: Potosí | BY260: Santa Cruz | BZ260: Tarija
BA261: Private place to wash and change | BB261: Yes | BC261: N/A | BD261: N/A | BE261: N/A | BF261: N/A | BG261: N/A | BH261: N/A | BI261: N/A | BJ261: N/A | BK261: N/A | BL261: N/A | BM261: N/A | BN261: N/A | BO261: N/A | BP261: N/A | BQ261: N/A | BR261: N/A | BS261: N/A | BT261: N/A | BU261: N/A | BV261: N/A | BW261: N/A | BX261: N/A | BY261: N/A | BZ261: N/A
BB262: No | BC262: N/A | BD262: N/A | BE262: N/A | BF262: N/A | BG262: N/A | BH262: N/A | BI262: N/A | BJ262: N/A | BK262: N/A | BL262: N/A | BM262: N/A | BN262: N/A | BO262: N/A | BP262: N/A | BQ262: N/A | BR262: N/A | BS262: N/A | BT262: N/A | BU262: N/A | BV262: N/A | BW262: N/A | BX262: N/A | BY262: N/A | BZ262: N/A
BB263: DK/not sure/missing | BC263: N/A | BD263: N/A | BE263: N/A | BF263: N/A | BG263: N/A | BH263: N/A | BI263: N/A | BJ263: N/A | BK263: N/A | BL263: N/A | BM263: N/A | BN263: N/A | BO263: N/A | BP263: N/A | BQ263: N/A | BR263: N/A | BS263: N/A | BT263: N/A | BU263: N/A | BV263: N/A | BW263: N/A | BX263: N/A | BY263: N/A | BZ263: N/A
BA264: Use of menstrual materials | BB264: Materials reusable | BC264: N/A | BD264: N/A | BE264: N/A | BF264: N/A | BG264: N/A | BH264: N/A | BI264: N/A | BJ264: N/A | BK264: N/A | BL264: N/A | BM264: N/A | BN264: N/A | BO264: N/A | BP264: N/A | BQ264: N/A | BR264: N/A | BS264: N/A | BT264: N/A | BU264: N/A | BV264: N/A | BW264: N/A | BX264: N/A | BY264: N/A | BZ264: N/A
BB265: Materials not reusable | BC265: N/A | BD265: N/A | BE265: N/A | BF265: N/A | BG265: N/A | BH265: N/A | BI265: N/A | BJ265: N/A | BK265: N/A | BL265: N/A | BM265: N/A | BN265: N/A | BO265: N/A | BP265: N/A | BQ265: N/A | BR265: N/A | BS265: N/A | BT265: N/A | BU265: N/A | BV265: N/A | BW265: N/A | BX265: N/A | BY265: N/A | BZ265: N/A
BB266: No materials used | BC266: N/A | BD266: N/A | BE266: N/A | BF266: N/A | BG266: N/A | BH266: N/A | BI266: N/A | BJ266: N/A | BK266: N/A | BL266: N/A | BM266: N/A | BN266: N/A | BO266: N/A | BP266: N/A | BQ266: N/A | BR266: N/A | BS266: N/A | BT266: N/A | BU266: N/A | BV266: N/A | BW266: N/A | BX266: N/A | BY266: N/A | BZ266: N/A
BB267: DK/not sure/missing | BC267: N/A | BD267: N/A | BE267: N/A | BF267: N/A | BG267: N/A | BH267: N/A | BI267: N/A | BJ267: N/A | BK267: N/A | BL267: N/A | BM267: N/A | BN267: N/A | BO267: N/A | BP267: N/A | BQ267: N/A | BR267: N/A | BS267: N/A | BT267: N/A | BU267: N/A | BV267: N/A | BW267: N/A | BX267: N/A | BY267: N/A | BZ267: N/A
BA268: Use of menstrual materials with private place to wash and change | BB268: Materials reusable | BC268: N/A | BD268: N/A | BE268: N/A | BF268: N/A | BG268: N/A | BH268: N/A | BI268: N/A | BJ268: N/A | BK268: N/A | BL268: N/A | BM268: N/A | BN268: N/A | BO268: N/A | BP268: N/A | BQ268: N/A | BR268: N/A | BS268: N/A | BT268: N/A | BU268: N/A | BV268: N/A | BW268: N/A | BX268: N/A | BY268: N/A | BZ268: N/A
BB269: Materials not reusable | BC269: N/A | BD269: N/A | BE269: N/A | BF269: N/A | BG269: N/A | BH269: N/A | BI269: N/A | BJ269: N/A | BK269: N/A | BL269: N/A | BM269: N/A | BN269: N/A | BO269: N/A | BP269: N/A | BQ269: N/A | BR269: N/A | BS269: N/A | BT269: N/A | BU269: N/A | BV269: N/A | BW269: N/A | BX269: N/A | BY269: N/A | BZ269: N/A
BB270: No materials used | BC270: N/A | BD270: N/A | BE270: N/A | BF270: N/A | BG270: N/A | BH270: N/A | BI270: N/A | BJ270: N/A | BK270: N/A | BL270: N/A | BM270: N/A | BN270: N/A | BO270: N/A | BP270: N/A | BQ270: N/A | BR270: N/A | BS270: N/A | BT270: N/A | BU270: N/A | BV270: N/A | BW270: N/A | BX270: N/A | BY270: N/A | BZ270: N/A
BA271: Awareness of menstruation before menarche | BB271: Yes | BC271: N/A | BD271: N/A | BE271: N/A | BF271: N/A | BG271: N/A | BH271: N/A | BI271: N/A | BJ271: N/A | BK271: N/A | BL271: N/A | BM271: N/A | BN271: N/A | BO271: N/A | BP271: N/A | BQ271: N/A | BR271: N/A | BS271: N/A | BT271: N/A | BU271: N/A | BV271: N/A | BW271: N/A | BX271: N/A | BY271: N/A | BZ271: N/A
BB272: No | BC272: N/A | BD272: N/A | BE272: N/A | BF272: N/A | BG272: N/A | BH272: N/A | BI272: N/A | BJ272: N/A | BK272: N/A | BL272: N/A | BM272: N/A | BN272: N/A | BO272: N/A | BP272: N/A | BQ272: N/A | BR272: N/A | BS272: N/A | BT272: N/A | BU272: N/A | BV272: N/A | BW272: N/A | BX272: N/A | BY272: N/A | BZ272: N/A
BB273: DK/not sure/missing | BC273: N/A | BD273: N/A | BE273: N/A | BF273: N/A | BG273: N/A | BH273: N/A | BI273: N/A | BJ273: N/A | BK273: N/A | BL273: N/A | BM273: N/A | BN273: N/A | BO273: N/A | BP273: N/A | BQ273: N/A | BR273: N/A | BS273: N/A | BT273: N/A | BU273: N/A | BV273: N/A | BW273: N/A | BX273: N/A | BY273: N/A | BZ273: N/A
BA274: Participation in (all) activities during menstruation | BB274: Yes | BC274: N/A | BD274: N/A | BE274: N/A | BF274: N/A | BG274: N/A | BH274: N/A | BI274: N/A | BJ274: N/A | BK274: N/A | BL274: N/A | BM274: N/A | BN274: N/A | BO274: N/A | BP274: N/A | BQ274: N/A | BR274: N/A | BS274: N/A | BT274: N/A | BU274: N/A | BV274: N/A | BW274: N/A | BX274: N/A | BY274: N/A | BZ274: N/A
BB275: No | BC275: N/A | BD275: N/A | BE275: N/A | BF275: N/A | BG275: N/A | BH275: N/A | BI275: N/A | BJ275: N/A | BK275: N/A | BL275: N/A | BM275: N/A | BN275: N/A | BO275: N/A | BP275: N/A | BQ275: N/A | BR275: N/A | BS275: N/A | BT275: N/A | BU275: N/A | BV275: N/A | BW275: N/A | BX275: N/A | BY275: N/A | BZ275: N/A
BB276: DK/not sure/missing/no such activity | BC276: N/A | BD276: N/A | BE276: N/A | BF276: N/A | BG276: N/A | BH276: N/A | BI276: N/A | BJ276: N/A | BK276: N/A | BL276: N/A | BM276: N/A | BN276: N/A | BO276: N/A | BP276: N/A | BQ276: N/A | BR276: N/A | BS276: N/A | BT276: N/A | BU276: N/A | BV276: N/A | BW276: N/A | BX276: N/A | BY276: N/A | BZ276: N/A
BA277: Participation in specific activities during menstruation | BB277: Did not go to school (amongst those usually attending school) | BC277: N/A | BD277: N/A | BE277: N/A | BF277: N/A | BG277: N/A | BH277: N/A | BI277: N/A | BJ277: N/A | BK277: N/A | BL277: N/A | BM277: N/A | BN277: N/A | BO277: N/A | BP277: N/A | BQ277: N/A | BR277: N/A | BS277: N/A | BT277: N/A | BU277: N/A | BV277: N/A | BW277: N/A | BX277: N/A | BY277: N/A | BZ277: N/A
BB278: Did not go to work (amongst those who usually work) | BC278: N/A | BD278: N/A | BE278: N/A | BF278: N/A | BG278: N/A | BH278: N/A | BI278: N/A | BJ278: N/A | BK278: N/A | BL278: N/A | BM278: N/A | BN278: N/A | BO278: N/A | BP278: N/A | BQ278: N/A | BR278: N/A | BS278: N/A | BT278: N/A | BU278: N/A | BV278: N/A | BW278: N/A | BX278: N/A | BY278: N/A | BZ278: N/A
BB279: Did not participate in social activities | BC279: N/A | BD279: N/A | BE279: N/A | BF279: N/A | BG279: N/A | BH279: N/A | BI279: N/A | BJ279: N/A | BK279: N/A | BL279: N/A | BM279: N/A | BN279: N/A | BO279: N/A | BP279: N/A | BQ279: N/A | BR279: N/A | BS279: N/A | BT279: N/A | BU279: N/A | BV279: N/A | BW279: N/A | BX279: N/A | BY279: N/A | BZ279: N/A
BB280: Did not cook food | BC280: N/A | BD280: N/A | BE280: N/A | BF280: N/A | BG280: N/A | BH280: N/A | BI280: N/A | BJ280: N/A | BK280: N/A | BL280: N/A | BM280: N/A | BN280: N/A | BO280: N/A | BP280: N/A | BQ280: N/A | BR280: N/A | BS280: N/A | BT280: N/A | BU280: N/A | BV280: N/A | BW280: N/A | BX280: N/A | BY280: N/A | BZ280: N/A
BB281: Did not eat with others | BC281: N/A | BD281: N/A | BE281: N/A | BF281: N/A | BG281: N/A | BH281: N/A | BI281: N/A | BJ281: N/A | BK281: N/A | BL281: N/A | BM281: N/A | BN281: N/A | BO281: N/A | BP281: N/A | BQ281: N/A | BR281: N/A | BS281: N/A | BT281: N/A | BU281: N/A | BV281: N/A | BW281: N/A | BX281: N/A | BY281: N/A | BZ281: N/A
BB282: Did not bathe in regular place | BC282: N/A | BD282: N/A | BE282: N/A | BF282: N/A | BG282: N/A | BH282: N/A | BI282: N/A | BJ282: N/A | BK282: N/A | BL282: N/A | BM282: N/A | BN282: N/A | BO282: N/A | BP282: N/A | BQ282: N/A | BR282: N/A | BS282: N/A | BT282: N/A | BU282: N/A | BV282: N/A | BW282: N/A | BX282: N/A | BY282: N/A | BZ282: N/A
BB283: Did not participate in other activities | BC283: N/A | BD283: N/A | BE283: N/A | BF283: N/A | BG283: N/A | BH283: N/A | BI283: N/A | BJ283: N/A | BK283: N/A | BL283: N/A | BM283: N/A | BN283: N/A | BO283: N/A | BP283: N/A | BQ283: N/A | BR283: N/A | BS283: N/A | BT283: N/A | BU283: N/A | BV283: N/A | BW283: N/A | BX283: N/A | BY283: N/A | BZ283: N/A
BB284: DK/not sure/missing/no such activity | BC284: N/A | BD284: N/A | BE284: N/A | BF284: N/A | BG284: N/A | BH284: N/A | BI284: N/A | BJ284: N/A | BK284: N/A | BL284: N/A | BM284: N/A | BN284: N/A | BO284: N/A | BP284: N/A | BQ284: N/A | BR284: N/A | BS284: N/A | BT284: N/A | BU284: N/A | BV284: N/A | BW284: N/A | BX284: N/A | BY284: N/A | BZ284: N/A
BA339: Raw numbers of respondents: | BB339: Basic water, sanitation and hygiene | BC339: NATIONAL wealth index quintile | BH339: URBAN wealth index quintile | BM339: RURAL wealth index quintile | BR339: SUB-REGIONS:
BA340: WatSan data, raw numbers (weighted) | BC340: Poorest | BD340: Poor | BE340: Middle | BF340: Rich | BG340: Richest | BH340: Poorest | BI340: Poor | BJ340: Middle | BK340: Rich | BL340: Richest | BM340: Poorest | BN340: Poor | BO340: Middle | BP340: Rich | BQ340: Richest | BR340: Beni | BS340: Chuquisaca | BT340: Cochabamba | BU340: La Paz | BV340: Oruro | BW340: Pando | BX340: Potosí | BY340: Santa Cruz | BZ340: Tarija
BA341: Use of Basic Water Sanitation and Hygiene | BB341: Yes | BC341: N/A | BD341: N/A | BE341: N/A | BF341: N/A | BG341: N/A | BH341: N/A | BI341: N/A | BJ341: N/A | BK341: N/A | BL341: N/A | BM341: N/A | BN341: N/A | BO341: N/A | BP341: N/A | BQ341: N/A | BR341: N/A | BS341: N/A | BT341: N/A | BU341: N/A | BV341: N/A | BW341: N/A | BX341: N/A | BY341: N/A | BZ341: N/A
BB342: No | BC342: N/A | BD342: N/A | BE342: N/A | BF342: N/A | BG342: N/A | BH342: N/A | BI342: N/A | BJ342: N/A | BK342: N/A | BL342: N/A | BM342: N/A | BN342: N/A | BO342: N/A | BP342: N/A | BQ342: N/A | BR342: N/A | BS342: N/A | BT342: N/A | BU342: N/A | BV342: N/A | BW342: N/A | BX342: N/A | BY342: N/A | BZ342: N/A
BA343: Use of Basic Water and Sanitation | BB343: Yes | BC343: N/A | BD343: N/A | BE343: N/A | BF343: N/A | BG343: N/A | BH343: N/A | BI343: N/A | BJ343: N/A | BK343: N/A | BL343: N/A | BM343: N/A | BN343: N/A | BO343: N/A | BP343: N/A | BQ343: N/A | BR343: N/A | BS343: N/A | BT343: N/A | BU343: N/A | BV343: N/A | BW343: N/A | BX343: N/A | BY343: N/A | BZ343: N/A
BB344: No | BC344: N/A | BD344: N/A | BE344: N/A | BF344: N/A | BG344: N/A | BH344: N/A | BI344: N/A | BJ344: N/A | BK344: N/A | BL344: N/A | BM344: N/A | BN344: N/A | BO344: N/A | BP344: N/A | BQ344: N/A | BR344: N/A | BS344: N/A | BT344: N/A | BU344: N/A | BV344: N/A | BW344: N/A | BX344: N/A | BY344: N/A | BZ344: N/A
BA345: Use of Basic Water and Hygiene | BB345: Yes | BC345: N/A | BD345: N/A | BE345: N/A | BF345: N/A | BG345: N/A | BH345: N/A | BI345: N/A | BJ345: N/A | BK345: N/A | BL345: N/A | BM345: N/A | BN345: N/A | BO345: N/A | BP345: N/A | BQ345: N/A | BR345: N/A | BS345: N/A | BT345: N/A | BU345: N/A | BV345: N/A | BW345: N/A | BX345: N/A | BY345: N/A | BZ345: N/A
BB346: No | BC346: N/A | BD346: N/A | BE346: N/A | BF346: N/A | BG346: N/A | BH346: N/A | BI346: N/A | BJ346: N/A | BK346: N/A | BL346: N/A | BM346: N/A | BN346: N/A | BO346: N/A | BP346: N/A | BQ346: N/A | BR346: N/A | BS346: N/A | BT346: N/A | BU346: N/A | BV346: N/A | BW346: N/A | BX346: N/A | BY346: N/A | BZ346: N/A
BA347: Use of Basic Sanitation and Hygiene | BB347: Yes | BC347: N/A | BD347: N/A | BE347: N/A | BF347: N/A | BG347: N/A | BH347: N/A | BI347: N/A | BJ347: N/A | BK347: N/A | BL347: N/A | BM347: N/A | BN347: N/A | BO347: N/A | BP347: N/A | BQ347: N/A | BR347: N/A | BS347: N/A | BT347: N/A | BU347: N/A | BV347: N/A | BW347: N/A | BX347: N/A | BY347: N/A | BZ347: N/A
BB348: No | BC348: N/A | BD348: N/A | BE348: N/A | BF348: N/A | BG348: N/A | BH348: N/A | BI348: N/A | BJ348: N/A | BK348: N/A | BL348: N/A | BM348: N/A | BN348: N/A | BO348: N/A | BP348: N/A | BQ348: N/A | BR348: N/A | BS348: N/A | BT348: N/A | BU348: N/A | BV348: N/A | BW348: N/A | BX348: N/A | BY348: N/A | BZ348: N/A
BA349: Use of Basic Water | BB349: Yes | BC349: N/A | BD349: N/A | BE349: N/A | BF349: N/A | BG349: N/A | BH349: N/A | BI349: N/A | BJ349: N/A | BK349: N/A | BL349: N/A | BM349: N/A | BN349: N/A | BO349: N/A | BP349: N/A | BQ349: N/A | BR349: N/A | BS349: N/A | BT349: N/A | BU349: N/A | BV349: N/A | BW349: N/A | BX349: N/A | BY349: N/A | BZ349: N/A
BB350: No | BC350: N/A | BD350: N/A | BE350: N/A | BF350: N/A | BG350: N/A | BH350: N/A | BI350: N/A | BJ350: N/A | BK350: N/A | BL350: N/A | BM350: N/A | BN350: N/A | BO350: N/A | BP350: N/A | BQ350: N/A | BR350: N/A | BS350: N/A | BT350: N/A | BU350: N/A | BV350: N/A | BW350: N/A | BX350: N/A | BY350: N/A | BZ350: N/A
BA351: Use of Basic Sanitation | BB351: Yes | BC351: N/A | BD351: N/A | BE351: N/A | BF351: N/A | BG351: N/A | BH351: N/A | BI351: N/A | BJ351: N/A | BK351: N/A | BL351: N/A | BM351: N/A | BN351: N/A | BO351: N/A | BP351: N/A | BQ351: N/A | BR351: N/A | BS351: N/A | BT351: N/A | BU351: N/A | BV351: N/A | BW351: N/A | BX351: N/A | BY351: N/A | BZ351: N/A
BB352: No | BC352: N/A | BD352: N/A | BE352: N/A | BF352: N/A | BG352: N/A | BH352: N/A | BI352: N/A | BJ352: N/A | BK352: N/A | BL352: N/A | BM352: N/A | BN352: N/A | BO352: N/A | BP352: N/A | BQ352: N/A | BR352: N/A | BS352: N/A | BT352: N/A | BU352: N/A | BV352: N/A | BW352: N/A | BX352: N/A | BY352: N/A | BZ352: N/A
BA353: Access to Basic Hygiene | BB353: Yes | BC353: N/A | BD353: N/A | BE353: N/A | BF353: N/A | BG353: N/A | BH353: N/A | BI353: N/A | BJ353: N/A | BK353: N/A | BL353: N/A | BM353: N/A | BN353: N/A | BO353: N/A | BP353: N/A | BQ353: N/A | BR353: N/A | BS353: N/A | BT353: N/A | BU353: N/A | BV353: N/A | BW353: N/A | BX353: N/A | BY353: N/A | BZ353: N/A
BB354: No | BC354: N/A | BD354: N/A | BE354: N/A | BF354: N/A | BG354: N/A | BH354: N/A | BI354: N/A | BJ354: N/A | BK354: N/A | BL354: N/A | BM354: N/A | BN354: N/A | BO354: N/A | BP354: N/A | BQ354: N/A | BR354: N/A | BS354: N/A | BT354: N/A | BU354: N/A | BV354: N/A | BW354: N/A | BX354: N/A | BY354: N/A | BZ354: N/A
C399: INITIAL (national) Wealth Index | H399: URBAN Wealth Index | M399: RURAL Wealth Index
C400: Component Matrix | H400: Component Matrix | M400: Component Matrix
E401: Component | J401: Component | O401: Component
B402: Note: The INITIAL (national) Wealth Index is based on the first component of the Principal Component Analysis (PCA) which has been obtained at national level. The final national-level (NATIONAL) Wealth Index is based on the URBAN and RURAL specific wealth indexes. Regression procedures are used to establish the relationships between the two sets of scores (urban and rural) and the initial (national) wealth factors. This allows best use of the available information for each area and a better precision of the FINAL (NATIONAL) Wealth Index. For dependency reasons, all WASH variables (contained in the generic MICS and DHS scripts) have been excluded from the sets of asset variables used in the PCAs. The PCA can extracts as many components as there are asset variables in the input. Only the first of the components is used to represent the Wealth Index. The scores represent the weights of the asset variables on the Wealth Index (correlations between the variables and the component). The communalities are the proportion of each variable's variance that can be explained by the component. Proportion of explained variance is the part of the model's total variance that is explained by the component. For more information on the procedure used: The DHS Wealth Index, DHS Comparative Reports No. 6, Shea Oscar Rutstein, Kiersten Johnson, ORC Macro International Inc., 2004. The DHS Wealth Index: Approaches for Rural and Urban Areas, Shea O. Rutstein, ORC Macro International Inc., 2008. MICS Methodological Paper No. 4, Review of options for reporting water, sanitation and hygiene coverage by wealth quintile, UNICEF, 2016. | E402: 1 | J402: 1 | O402: 1
C403: LPG for cooking | E403: 0.7823248111 | H403: Has refrigerator | J403: 0.6297543781 | M403: Earth, mud, dung floor | O403: -0.7275536387
C404: Wood for cooking | E404: -0.7786490572 | H404: Has telephone | J404: 0.6009552562 | M404: LPG for cooking | O404: 0.7235331516
C405: Earth, mud, dung floor | E405: -0.7474828455 | H405: Household has computer | J405: 0.5682519833 | M405: Has television | O405: 0.6696400073
C406: Has television | E406: 0.7453193795 | H406: Wood walls | J406: 0.5328962435 | M406: Wood for cooking | O406: -0.663692751
C407: Has electricity | E407: 0.6938876392 | H407: Earth, mud, dung floor | J407: -0.5195952902 | M407: Has electricity | O407: 0.6204216549
C408: Has a mobile telephone | E408: 0.6696608687 | H408: Terrazo, ceramic tile floor | J408: 0.4951554528 | M408: Wood walls | O408: 0.5949432484
C409: Wood walls | E409: 0.6555319933 | H409: Interior walls smoothly finished (plaster) | J409: 0.4677952072 | M409: Has refrigerator | O409: 0.5915433813
C410: Has refrigerator | E410: 0.6518685464 | H410: Access to Internet in close proximity to home | J410: 0.457754481 | M410: Has a mobile telephone | O410: 0.5564743419
C411: Access to Internet in close proximity to home | E411: 0.5978531709 | H411: Has car/truck | J411: 0.4535400011 | M411: Corrugated roof | O411: -0.5372530528
C412: Corrugated roof | E412: -0.569009566 | H412: Wood for cooking | J412: -0.4386713805 | M412: Concrete, cement floor | O412: 0.5263575483
C413: Has telephone | E413: 0.5681699765 | H413: Has television | J413: 0.4312422734 | M413: Interior walls smoothly finished (plaster) | O413: 0.3834001208
C414: Household has computer | E414: 0.5122769394 | H414: Access to Internet at home | J414: 0.4049306664 | M414: Has car/truck | O414: 0.3689050851
C415: Trash thrown in canal/gorge | E415: -0.4960753256 | H415: Has a mobile telephone | J415: 0.4027433246 | M415: Terrazo, ceramic tile floor | O415: 0.3195692843
C416: Interior walls smoothly finished (plaster) | E416: 0.4646052724 | H416: Number of members per sleeping room | J416: -0.3971762193 | M416: Cement shingle roof | O416: 0.290469596
C417: Cane/palm/trunk walls | E417: -0.4562046483 | H417: LPG for cooking | J417: 0.3856805405 | M417: Cane/palm/trunk walls | O417: -0.2893945914
C418: Terrazo, ceramic tile floor | E418: 0.4365361187 | H418: Cane/palm/trunk walls | J418: -0.3560407064 | M418: Has telephone | O418: 0.2808432654
C419: Trash collected by government | E419: 0.4319816563 | H419: Has electricity | J419: 0.3364160908 | M419: Trash thrown in canal/gorge | O419: -0.2545102128
C420: Trash collected by govt. contractor | E420: 0.4303254771 | H420: Stone, rock walls | J420: -0.3214762538 | M420: Trash collected by government | O420: 0.2522101669
C421: Has car/truck | E421: 0.3953875639 | H421: Household has electric water pump | J421: 0.31183893 | M421: Household has computer | O421: 0.2465534371
C422: Trash is burned | E422: -0.3492311159 | H422: Has radio | J422: 0.2834958069 | M422: Ceramic tile roof | O422: 0.2311438058
C423: Number of members per sleeping room | E423: -0.3364208477 | H423: Trash is burned | J423: -0.26423878 | M423: Access to Internet in close proximity to home | O423: 0.2245429047
C424: Access to Internet at home | E424: 0.3029812515 | H424: Ceramic tile roof | J424: -0.2515253246 | M424: Has motorcycle/scooter | O424: 0.200134995
C425: Parquet, wood tile floor | E425: 0.2965602226 | H425: Trash thrown in canal/gorge | J425: -0.2486735833 | M425: Number of members per sleeping room | O425: -0.1975656302
C426: Household has electric water pump | E426: 0.2498636288 | H426: Corrugated roof | J426: -0.2426563359 | M426: Trash collected by govt. contractor | O426: 0.189507757
... 188 more rows

Sheet EDS16
A2: =A1026 -> Bolivia (Plurinational State of)
A3: =A1034 -> 2016
A4: Use of drinking water sources
A5: by wealth quintile and sub-national region
A6: Notes:
A7: WHO/UNICEF JMP customised wealth index excludes water,
A8: sanitation and hygiene assets.
A9: Survey used for analysis: | B9: =A1025 -> EDS16
A10: =B1028 -> 
A11: =B1027 -> 
A14: Use of drinking water sources | C14: NATIONAL wealth index quintile | H14: URBAN wealth index quintile | M14: RURAL wealth index quintile | R14: SUB-REGIONS: | BA14: Raw numbers of respondents: | BB14: Use of drinking water sources | BC14: NATIONAL wealth index quintile | BH14: URBAN wealth index quintile | BM14: RURAL wealth index quintile | BR14: SUB-REGIONS:
A15: Weighted percentage (used in graphs) | C15: Poorest | D15: Poor | E15: Middle | F15: Rich | G15: Richest | H15: Poorest | I15: Poor | J15: Middle | K15: Rich | L15: Richest | M15: Poorest | N15: Poor | O15: Middle | P15: Rich | Q15: Richest | R15: Beni | S15: Chuquisaca | T15: Cochabamba | U15: La Paz | V15: Oruro | W15: Pando | X15: Potos? | Y15: Santa Cruz | Z15: Tarija | BA15: Water data, raw numbers (weighted) | BC15: Poorest | BD15: Poor | BE15: Middle | BF15: Rich | BG15: Richest | BH15: Poorest | BI15: Poor | BJ15: Middle | BK15: Rich | BL15: Richest | BM15: Poorest | BN15: Poor | BO15: Middle | BP15: Rich | BQ15: Richest | BR15: Beni | BS15: Chuquisaca | BT15: Cochabamba | BU15: La Paz | BV15: Oruro | BW15: Pando | BX15: Potos? | BY15: Santa Cruz | BZ15: Tarija
A16: Water | B16: Improved | C16: 77.4406613 | D16: 94.97690591 | E16: 97.4979519 | F16: 99.28564493 | G16: 99.91107654 | H16: 96.43590727 | I16: 99.39073259 | J16: 99.41981463 | K16: 99.83676664 | L16: 99.97655671 | M16: 68.41696044 | N16: 76.86444037 | O16: 83.38303659 | P16: 90.23621287 | Q16: 93.10052204 | R16: 87.77138124 | S16: 89.65334562 | T16: 93.93763901 | U16: 89.95540709 | V16: 94.73685452 | W16: 78.8238833 | X16: 92.8931794 | Y16: 99.22091183 | Z16: 97.14373059 | BA16: Water | BB16: Improved | BC16: N/A | BD16: N/A | BE16: N/A | BF16: N/A | BG16: N/A | BH16: N/A | BI16: N/A | BJ16: N/A | BK16: N/A | BL16: N/A | BM16: N/A | BN16: N/A | BO16: N/A | BP16: N/A | BQ16: N/A | BR16: N/A | BS16: N/A | BT16: N/A | BU16: N/A | BV16: N/A | BW16: N/A | BX16: N/A | BY16: N/A | BZ16: N/A
B17: Not Improved | C17: 22.5593387 | D17: 5.023094092 | E17: 2.502048099 | F17: 0.7143550704 | G17: 0.0889234592 | H17: 3.56409273 | I17: 0.6092674053 | J17: 0.5801853724 | K17: 0.1632333594 | L17: 0.02344328662 | M17: 31.58303956 | N17: 23.13555963 | O17: 16.61696341 | P17: 9.763787134 | Q17: 6.899477957 | R17: 12.22861876 | S17: 10.34665438 | T17: 6.062360986 | U17: 10.04459291 | V17: 5.263145484 | W17: 21.1761167 | X17: 7.106820599 | Y17: 0.7790881694 | Z17: 2.856269414 | BB17: Not Improved | BC17: N/A | BD17: N/A | BE17: N/A | BF17: N/A | BG17: N/A | BH17: N/A | BI17: N/A | BJ17: N/A | BK17: N/A | BL17: N/A | BM17: N/A | BN17: N/A | BO17: N/A | BP17: N/A | BQ17: N/A | BR17: N/A | BS17: N/A | BT17: N/A | BU17: N/A | BV17: N/A | BW17: N/A | BX17: N/A | BY17: N/A | BZ17: N/A
A18: Water ladder | B18: Basic | C18: =C16*C23/100 -> 76.63791105 | D18: =D16*D23/100 -> 94.69238218 | E18: =E16*E23/100 -> 97.41236012 | F18: 99.21019619 | G18: 99.89203755 | H18: 96.11557547 | I18: 99.32478199 | J18: 99.39621931 | K18: 99.81874881 | L18: 99.94896909 | M18: 67.01035198 | N18: 75.87227562 | O18: 83.12295396 | P18: 90.01561727 | Q18: 92.93004405 | R18: 87.46624 | S18: 89.18143086 | T18: 93.89024882 | U18: 89.70337083 | V18: 94.50518148 | W18: 78.21382645 | X18: 92.37619288 | Y18: 98.95918717 | Z18: 96.95719841 | BA18: Water ladder | BB18: Basic | BC18: N/A | BD18: N/A | BE18: N/A | BF18: N/A | BG18: N/A | BH18: N/A | BI18: N/A | BJ18: N/A | BK18: N/A | BL18: N/A | BM18: N/A | BN18: N/A | BO18: N/A | BP18: N/A | BQ18: N/A | BR18: N/A | BS18: N/A | BT18: N/A | BU18: N/A | BV18: N/A | BW18: N/A | BX18: N/A | BY18: N/A | BZ18: N/A
B19: Limited | C19: =C16*C22/100 -> 0.8027502503 | D19: =D16*D22/100 -> 0.2845237241 | E19: =E16*E22/100 -> 0.08559178129 | F19: 0.07544873643 | G19: 0.01903899036 | H19: 0.3203317956 | I19: 0.0659506051 | J19: 0.02359531812 | K19: 0.01801782885 | L19: 0.02758762007 | M19: 1.406608463 | N19: 0.992164756 | O19: 0.2600826307 | P19: 0.2205955981 | Q19: 0.1704779894 | R19: 0.3051412392 | S19: 0.4719147588 | T19: 0.0473901948 | U19: 0.2520362556 | V19: 0.2316730379 | W19: 0.6100568547 | X19: 0.516986522 | Y19: 0.2617246575 | Z19: 0.1865321801 | BB19: Limited | BC19: N/A | BD19: N/A | BE19: N/A | BF19: N/A | BG19: N/A | BH19: N/A | BI19: N/A | BJ19: N/A | BK19: N/A | BL19: N/A | BM19: N/A | BN19: N/A | BO19: N/A | BP19: N/A | BQ19: N/A | BR19: N/A | BS19: N/A | BT19: N/A | BU19: N/A | BV19: N/A | BW19: N/A | BX19: N/A | BY19: N/A | BZ19: N/A
B20: Unimproved | C20: =100-C18-C19-C21 -> 6.676861573 | D20: =100-D18-D19-D21 -> 2.177132996 | E20: =100-E18-E19-E21 -> 0.8847396665 | F20: 0.3914703466 | G20: 0.006224806481 | H20: 3.122285747 | I20: 0.5794866958 | J20: 0.5801853724 | K20: 0.1632333594 | L20: -0.0001117897286 | M20: 6.411225207 | N20: 6.402977726 | O20: 5.944993511 | P20: 2.493198898 | Q20: 1.582017026 | R20: 6.105766444 | S20: 2.921926922 | T20: 0.7247002686 | U20: 2.924767927 | V20: 2.942844295 | W20: 6.976321935 | X20: 3.211609172 | Y20: 0.5421439409 | Z20: 1.199055988 | BB20: Unimproved | BC20: N/A | BD20: N/A | BE20: N/A | BF20: N/A | BG20: N/A | BH20: N/A | BI20: N/A | BJ20: N/A | BK20: N/A | BL20: N/A | BM20: N/A | BN20: N/A | BO20: N/A | BP20: N/A | BQ20: N/A | BR20: N/A | BS20: N/A | BT20: N/A | BU20: N/A | BV20: N/A | BW20: N/A | BX20: N/A | BY20: N/A | BZ20: N/A
B21: Surface water | C21: 15.88247713 | D21: 2.845961096 | E21: 1.617308433 | F21: 0.3228847238 | G21: 0.08269865272 | H21: 0.4418069836 | I21: 0.0297807095 | J21: 0 | K21: 0 | L21: 0.02355507635 | M21: 25.17181435 | N21: 16.7325819 | O21: 10.6719699 | P21: 7.270588236 | Q21: 5.31746093 | R21: 6.122852313 | S21: 7.424727461 | T21: 5.337660718 | U21: 7.119824985 | V21: 2.32030119 | W21: 14.19979476 | X21: 3.895211427 | Y21: 0.2369442285 | Z21: 1.657213426 | BB21: Surface water | BC21: N/A | BD21: N/A | BE21: N/A | BF21: N/A | BG21: N/A | BH21: N/A | BI21: N/A | BJ21: N/A | BK21: N/A | BL21: N/A | BM21: N/A | BN21: N/A | BO21: N/A | BP21: N/A | BQ21: N/A | BR21: N/A | BS21: N/A | BT21: N/A | BU21: N/A | BV21: N/A | BW21: N/A | BX21: N/A | BY21: N/A | BZ21: N/A
A22: Improved water point at more than 30 minutes | B22: Yes | C22: 1.036600459 | D22: 0.2995714815 | E22: 0.08778828645 | F22: 0.07599158618 | G22: 0.01905593556 | H22: 0.3321706661 | I22: 0.06635488378 | J22: 0.0237330136 | K22: 0.01804728804 | L22: 0.02759408903 | M22: 2.055935332 | N22: 1.290798126 | O22: 0.3119131196 | P22: 0.2444646014 | Q22: 0.1831117438 | R22: 0.3476545941 | S22: 0.5263771871 | T22: 0.05044856918 | U22: 0.2801791063 | V22: 0.2445437302 | W22: 0.7739492513 | X22: 0.5565387311 | Y22: 0.2637797342 | Z22: 0.1920166942 | BA22: Improved water point at more than 30 minutes | BB22: Yes | BC22: N/A | BD22: N/A | BE22: N/A | BF22: N/A | BG22: N/A | BH22: N/A | BI22: N/A | BJ22: N/A | BK22: N/A | BL22: N/A | BM22: N/A | BN22: N/A | BO22: N/A | BP22: N/A | BQ22: N/A | BR22: N/A | BS22: N/A | BT22: N/A | BU22: N/A | BV22: N/A | BW22: N/A | BX22: N/A | BY22: N/A | BZ22: N/A
B23: No | C23: 98.96339954 | D23: 99.70042852 | E23: 99.91221171 | F23: 99.92400841 | G23: 99.98094406 | H23: 99.66782933 | I23: 99.93364512 | J23: 99.97626699 | K23: 99.98195271 | L23: 99.97240591 | M23: 97.94406467 | N23: 98.70920187 | O23: 99.68808688 | P23: 99.7555354 | Q23: 99.81688826 | R23: 99.65234541 | S23: 99.47362281 | T23: 99.94955143 | U23: 99.71982089 | V23: 99.75545627 | W23: 99.22605075 | X23: 99.44346127 | Y23: 99.73622027 | Z23: 99.80798331 | BB23: No | BC23: N/A | BD23: N/A | BE23: N/A | BF23: N/A | BG23: N/A | BH23: N/A | BI23: N/A | BJ23: N/A | BK23: N/A | BL23: N/A | BM23: N/A | BN23: N/A | BO23: N/A | BP23: N/A | BQ23: N/A | BR23: N/A | BS23: N/A | BT23: N/A | BU23: N/A | BV23: N/A | BW23: N/A | BX23: N/A | BY23: N/A | BZ23: N/A
A24: Manually calculated ratios | B24: Improved wells
B25: Improved springs
B26: Other
C27: NATIONAL wealth index quintile | H27: URBAN wealth index quintile | M27: RURAL wealth index quintile | R27: SUB-REGIONS: | BA27: Raw numbers of respondents: | BB27: Use of drinking water sources | BC27: NATIONAL wealth index quintile | BH27: URBAN wealth index quintile | BM27: RURAL wealth index quintile | BR27: SUB-REGIONS:
A28: Percentage based on weighted population | C28: Poorest | D28: Poor | E28: Middle | F28: Rich | G28: Richest | H28: Poorest | I28: Poor | J28: Middle | K28: Rich | L28: Richest | M28: Poorest | N28: Poor | O28: Middle | P28: Rich | Q28: Richest | R28: Beni | S28: Chuquisaca | T28: Cochabamba | U28: La Paz | V28: Oruro | W28: Pando | X28: Potos? | Y28: Santa Cruz | Z28: Tarija | BA28: Water data, raw numbers (weighted) | BC28: Poorest | BD28: Poor | BE28: Middle | BF28: Rich | BG28: Richest | BH28: Poorest | BI28: Poor | BJ28: Middle | BK28: Rich | BL28: Richest | BM28: Poorest | BN28: Poor | BO28: Middle | BP28: Rich | BQ28: Richest | BR28: Beni | BS28: Chuquisaca | BT28: Cochabamba | BU28: La Paz | BV28: Oruro | BW28: Pando | BX28: Potos? | BY28: Santa Cruz | BZ28: Tarija
A29: Piped water | B29: Yes | C29: 38.84491678 | D29: 67.21536005 | E29: 76.25324096 | F29: 82.30304954 | G29: 89.50060701 | H29: 77.19873331 | I29: 83.67314464 | J29: 86.88437568 | K29: 89.01790074 | L29: 90.07147743 | M29: 28.61838896 | N29: 37.1252394 | O29: 39.02844893 | P29: 43.75730288 | Q29: 45.48277723 | R29: 49.34772126 | S29: 84.90387346 | T29: 26.67875275 | U29: 69.97951865 | V29: 80.81644491 | W29: 45.81432181 | X29: 90.12527695 | Y29: 93.28677368 | Z29: 71.05575112 | BA29: Piped water | BB29: Yes | BC29: N/A | BD29: N/A | BE29: N/A | BF29: N/A | BG29: N/A | BH29: N/A | BI29: N/A | BJ29: N/A | BK29: N/A | BL29: N/A | BM29: N/A | BN29: N/A | BO29: N/A | BP29: N/A | BQ29: N/A | BR29: N/A | BS29: N/A | BT29: N/A | BU29: N/A | BV29: N/A | BW29: N/A | BX29: N/A | BY29: N/A | BZ29: N/A
B30: No | C30: 61.15508322 | D30: 32.78463995 | E30: 23.74675904 | F30: 17.69695046 | G30: 10.49939299 | H30: 22.80126669 | I30: 16.32685536 | J30: 13.11562432 | K30: 10.98209926 | L30: 9.928522568 | M30: 71.38161104 | N30: 62.8747606 | O30: 60.97155107 | P30: 56.24269712 | Q30: 54.51722277 | R30: 50.65227874 | S30: 15.09612654 | T30: 73.32124725 | U30: 30.02048135 | V30: 19.18355509 | W30: 54.18567819 | X30: 9.874723045 | Y30: 6.713226318 | Z30: 28.94424888 | BB30: No | BC30: N/A | BD30: N/A | BE30: N/A | BF30: N/A | BG30: N/A | BH30: N/A | BI30: N/A | BJ30: N/A | BK30: N/A | BL30: N/A | BM30: N/A | BN30: N/A | BO30: N/A | BP30: N/A | BQ30: N/A | BR30: N/A | BS30: N/A | BT30: N/A | BU30: N/A | BV30: N/A | BW30: N/A | BX30: N/A | BY30: N/A | BZ30: N/A
A31: Piped water on premises | B31: Yes | C31: 35.2414794 | D31: 65.09901727 | E31: 75.64913209 | F31: 81.93101153 | G31: 89.45837801 | H31: 74.59617577 | I31: 83.16088189 | J31: 86.71586607 | K31: 88.99782905 | L31: 90.07147743 | M31: 24.55885223 | N31: 33.04981549 | O31: 36.40615725 | P31: 41.82174091 | Q31: 43.8740431 | R31: 48.1256075 | S31: 81.99403954 | T31: 26.58721716 | U31: 69.15832507 | V31: 78.61694877 | W31: 42.51614832 | X31: 80.70612502 | Y31: 93.28408962 | Z31: 70.84878182 | BA31: Piped water on premises | BB31: Yes | BC31: N/A | BD31: N/A | BE31: N/A | BF31: N/A | BG31: N/A | BH31: N/A | BI31: N/A | BJ31: N/A | BK31: N/A | BL31: N/A | BM31: N/A | BN31: N/A | BO31: N/A | BP31: N/A | BQ31: N/A | BR31: N/A | BS31: N/A | BT31: N/A | BU31: N/A | BV31: N/A | BW31: N/A | BX31: N/A | BY31: N/A | BZ31: N/A
B32: No | C32: 64.7585206 | D32: 34.90098273 | E32: 24.35086791 | F32: 18.06898847 | G32: 10.54162199 | H32: 25.40382423 | I32: 16.83911811 | J32: 13.28413393 | K32: 11.00217095 | L32: 9.928522568 | M32: 75.44114777 | N32: 66.95018451 | O32: 63.59384275 | P32: 58.17825909 | Q32: 56.1259569 | R32: 51.8743925 | S32: 18.00596046 | T32: 73.41278284 | U32: 30.84167493 | V32: 21.38305123 | W32: 57.48385168 | X32: 19.29387498 | Y32: 6.715910376 | Z32: 29.15121818 | BB32: No | BC32: N/A | BD32: N/A | BE32: N/A | BF32: N/A | BG32: N/A | BH32: N/A | BI32: N/A | BJ32: N/A | BK32: N/A | BL32: N/A | BM32: N/A | BN32: N/A | BO32: N/A | BP32: N/A | BQ32: N/A | BR32: N/A | BS32: N/A | BT32: N/A | BU32: N/A | BV32: N/A | BW32: N/A | BX32: N/A | BY32: N/A | BZ32: N/A
A33: Piped water into dwelling | B33: Yes | C33: N/A | D33: N/A | E33: N/A | F33: N/A | G33: N/A | H33: N/A | I33: N/A | J33: N/A | K33: N/A | L33: N/A | M33: N/A | N33: N/A | O33: N/A | P33: N/A | Q33: N/A | R33: N/A | S33: N/A | T33: N/A | U33: N/A | V33: N/A | W33: N/A | X33: N/A | Y33: N/A | Z33: N/A | BA33: Piped water into dwelling | BB33: Yes | BC33: N/A | BD33: N/A | BE33: N/A | BF33: N/A | BG33: N/A | BH33: N/A | BI33: N/A | BJ33: N/A | BK33: N/A | BL33: N/A | BM33: N/A | BN33: N/A | BO33: N/A | BP33: N/A | BQ33: N/A | BR33: N/A | BS33: N/A | BT33: N/A | BU33: N/A | BV33: N/A | BW33: N/A | BX33: N/A | BY33: N/A | BZ33: N/A
B34: No | C34: N/A | D34: N/A | E34: N/A | F34: N/A | G34: N/A | H34: N/A | I34: N/A | J34: N/A | K34: N/A | L34: N/A | M34: N/A | N34: N/A | O34: N/A | P34: N/A | Q34: N/A | R34: N/A | S34: N/A | T34: N/A | U34: N/A | V34: N/A | W34: N/A | X34: N/A | Y34: N/A | Z34: N/A | BB34: No | BC34: N/A | BD34: N/A | BE34: N/A | BF34: N/A | BG34: N/A | BH34: N/A | BI34: N/A | BJ34: N/A | BK34: N/A | BL34: N/A | BM34: N/A | BN34: N/A | BO34: N/A | BP34: N/A | BQ34: N/A | BR34: N/A | BS34: N/A | BT34: N/A | BU34: N/A | BV34: N/A | BW34: N/A | BX34: N/A | BY34: N/A | BZ34: N/A
A35: Water source on premises | B35: Yes | C35: 58.9312385 | D35: 87.44325808 | E35: 94.04189041 | F35: 96.99719959 | G35: 98.55188111 | H35: 87.29593734 | I35: 95.35791458 | J35: 96.64911646 | K35: 97.71021666 | L35: 99.01603182 | M35: 35.60666909 | N35: 62.7953447 | O35: 75.60483151 | P35: 81.72618626 | Q35: 92.04633956 | R35: 51.42377945 | S35: 81.99403954 | T35: 89.07075453 | U35: 88.02634512 | V35: 86.63575852 | W35: 46.23065375 | X35: 81.99425048 | Y35: 93.78964958 | Z35: 93.71974017 | BA35: Water source on premises | BB35: Yes | BC35: N/A | BD35: N/A | BE35: N/A | BF35: N/A | BG35: N/A | BH35: N/A | BI35: N/A | BJ35: N/A | BK35: N/A | BL35: N/A | BM35: N/A | BN35: N/A | BO35: N/A | BP35: N/A | BQ35: N/A | BR35: N/A | BS35: N/A | BT35: N/A | BU35: N/A | BV35: N/A | BW35: N/A | BX35: N/A | BY35: N/A | BZ35: N/A
B36: No | C36: 41.0687615 | D36: 12.55674192 | E36: 5.958109587 | F36: 3.002800408 | G36: 1.448118891 | H36: 12.70406266 | I36: 4.642085421 | J36: 3.35088354 | K36: 2.289783338 | L36: 0.9839681834 | M36: 64.39333091 | N36: 37.2046553 | O36: 24.39516849 | P36: 18.27381374 | Q36: 7.953660436 | R36: 48.57622055 | S36: 18.00596046 | T36: 10.92924547 | U36: 11.97365488 | V36: 13.36424148 | W36: 53.76934625 | X36: 18.00574952 | Y36: 6.210350421 | Z36: 6.280259833 | BB36: No | BC36: N/A | BD36: N/A | BE36: N/A | BF36: N/A | BG36: N/A | BH36: N/A | BI36: N/A | BJ36: N/A | BK36: N/A | BL36: N/A | BM36: N/A | BN36: N/A | BO36: N/A | BP36: N/A | BQ36: N/A | BR36: N/A | BS36: N/A | BT36: N/A | BU36: N/A | BV36: N/A | BW36: N/A | BX36: N/A | BY36: N/A | BZ36: N/A
A37: Improved Water source on premises | B37: Yes | C37: 69.96888425 | D37: 90.2055924 | E37: 94.86131585 | F37: 97.29562784 | G37: 98.55743791 | H37: 90.21892902 | I37: 95.88447741 | J37: 97.17252586 | K37: 97.85456537 | L37: 99.01580109 | M37: 46.45086573 | N37: 73.87462236 | O37: 83.50057681 | P37: 85.20884125 | Q37: 92.67537677 | R37: 58.29612003 | S37: 91.45675376 | T37: 92.20691973 | U37: 93.23925389 | V37: 89.55783203 | W37: 57.55270796 | X37: 87.74835327 | Y37: 94.50394222 | Z37: 95.3016617 | BA37: Improved water source on premises | BB37: Yes | BC37: N/A | BD37: N/A | BE37: N/A | BF37: N/A | BG37: N/A | BH37: N/A | BI37: N/A | BJ37: N/A | BK37: N/A | BL37: N/A | BM37: N/A | BN37: N/A | BO37: N/A | BP37: N/A | BQ37: N/A | BR37: N/A | BS37: N/A | BT37: N/A | BU37: N/A | BV37: N/A | BW37: N/A | BX37: N/A | BY37: N/A | BZ37: N/A
B38: No | C38: 30.03111575 | D38: 9.794407604 | E38: 5.138684155 | F38: 2.704372161 | G38: 1.442562086 | H38: 9.781070983 | I38: 4.115522589 | J38: 2.827474139 | K38: 2.14543463 | L38: 0.984198912 | M38: 53.54913427 | N38: 26.12537764 | O38: 16.49942319 | P38: 14.79115875 | Q38: 7.324623234 | R38: 41.70387997 | S38: 8.543246238 | T38: 7.793080275 | U38: 6.760746107 | V38: 10.44216797 | W38: 42.44729204 | X38: 12.25164673 | Y38: 5.496057782 | Z38: 4.6983383 | BB38: No | BC38: N/A | BD38: N/A | BE38: N/A | BF38: N/A | BG38: N/A | BH38: N/A | BI38: N/A | BJ38: N/A | BK38: N/A | BL38: N/A | BM38: N/A | BN38: N/A | BO38: N/A | BP38: N/A | BQ38: N/A | BR38: N/A | BS38: N/A | BT38: N/A | BU38: N/A | BV38: N/A | BW38: N/A | BX38: N/A | BY38: N/A | BZ38: N/A
A39: Piped water on premises available when needed | B39: Yes | C39: N/A | D39: N/A | E39: N/A | F39: N/A | G39: N/A | H39: N/A | I39: N/A | J39: N/A | K39: N/A | L39: N/A | M39: N/A | N39: N/A | O39: N/A | P39: N/A | Q39: N/A | R39: N/A | S39: N/A | T39: N/A | U39: N/A | V39: N/A | W39: N/A | X39: N/A | Y39: N/A | Z39: N/A | BA39: Piped water on premises available when needed | BB39: Yes | BC39: N/A | BD39: N/A | BE39: N/A | BF39: N/A | BG39: N/A | BH39: N/A | BI39: N/A | BJ39: N/A | BK39: N/A | BL39: N/A | BM39: N/A | BN39: N/A | BO39: N/A | BP39: N/A | BQ39: N/A | BR39: N/A | BS39: N/A | BT39: N/A | BU39: N/A | BV39: N/A | BW39: N/A | BX39: N/A | BY39: N/A | BZ39: N/A
B40: No | C40: N/A | D40: N/A | E40: N/A | F40: N/A | G40: N/A | H40: N/A | I40: N/A | J40: N/A | K40: N/A | L40: N/A | M40: N/A | N40: N/A | O40: N/A | P40: N/A | Q40: N/A | R40: N/A | S40: N/A | T40: N/A | U40: N/A | V40: N/A | W40: N/A | X40: N/A | Y40: N/A | Z40: N/A | BB40: No | BC40: N/A | BD40: N/A | BE40: N/A | BF40: N/A | BG40: N/A | BH40: N/A | BI40: N/A | BJ40: N/A | BK40: N/A | BL40: N/A | BM40: N/A | BN40: N/A | BO40: N/A | BP40: N/A | BQ40: N/A | BR40: N/A | BS40: N/A | BT40: N/A | BU40: N/A | BV40: N/A | BW40: N/A | BX40: N/A | BY40: N/A | BZ40: N/A
A41: Water point at more than 30 minutes | B41: Yes | C41: 2.096414468 | D41: 0.4080540422 | E41: 0.2952356309 | F41: 0.07544475702 | G41: 0.01903886345 | H41: 0.4475499979 | I41: 0.09698120953 | J41: 0.02359385301 | K41: 0.01801754332 | L41: 0.02758758922 | M41: 3.647001626 | N41: 2.273804424 | O41: 0.7867487734 | P41: 0.4227733669 | Q41: 0.7697370906 | R41: 0.6966051874 | S41: 1.44008604 | T41: 0.1006627809 | U41: 0.8110085113 | V41: 0.2478557982 | W41: 2.010811439 | X41: 1.305361696 | Y41: 0.2952898375 | Z41: 0.4541030777 | BA41: Water point at more than 30 minutes | BB41: Yes | BC41: N/A | BD41: N/A | BE41: N/A | BF41: N/A | BG41: N/A | BH41: N/A | BI41: N/A | BJ41: N/A | BK41: N/A | BL41: N/A | BM41: N/A | BN41: N/A | BO41: N/A | BP41: N/A | BQ41: N/A | BR41: N/A | BS41: N/A | BT41: N/A | BU41: N/A | BV41: N/A | BW41: N/A | BX41: N/A | BY41: N/A | BZ41: N/A
B42: No | C42: 97.90358553 | D42: 99.59194596 | E42: 99.70476437 | F42: 99.92455524 | G42: 99.98096114 | H42: 99.55245 | I42: 99.90301879 | J42: 99.97640615 | K42: 99.98198246 | L42: 99.97241241 | M42: 96.35299837 | N42: 97.72619558 | O42: 99.21325123 | P42: 99.57722663 | Q42: 99.23026291 | R42: 99.30339481 | S42: 98.55991396 | T42: 99.89933722 | U42: 99.18899149 | V42: 99.7521442 | W42: 97.98918856 | X42: 98.6946383 | Y42: 99.70471016 | Z42: 99.54589692 | BB42: No | BC42: N/A | BD42: N/A | BE42: N/A | BF42: N/A | BG42: N/A | BH42: N/A | BI42: N/A | BJ42: N/A | BK42: N/A | BL42: N/A | BM42: N/A | BN42: N/A | BO42: N/A | BP42: N/A | BQ42: N/A | BR42: N/A | BS42: N/A | BT42: N/A | BU42: N/A | BV42: N/A | BW42: N/A | BX42: N/A | BY42: N/A | BZ42: N/A
A43: Water source available when needed | B43: Yes | C43: N/A | D43: N/A | E43: N/A | F43: N/A | G43: N/A | H43: N/A | I43: N/A | J43: N/A | K43: N/A | L43: N/A | M43: N/A | N43: N/A | O43: N/A | P43: N/A | Q43: N/A | R43: N/A | S43: N/A | T43: N/A | U43: N/A | V43: N/A | W43: N/A | X43: N/A | Y43: N/A | Z43: N/A | BA43: Water source available when needed | BB43: Yes | BC43: N/A | BD43: N/A | BE43: N/A | BF43: N/A | BG43: N/A | BH43: N/A | BI43: N/A | BJ43: N/A | BK43: N/A | BL43: N/A | BM43: N/A | BN43: N/A | BO43: N/A | BP43: N/A | BQ43: N/A | BR43: N/A | BS43: N/A | BT43: N/A | BU43: N/A | BV43: N/A | BW43: N/A | BX43: N/A | BY43: N/A | BZ43: N/A
B44: No | C44: N/A | D44: N/A | E44: N/A | F44: N/A | G44: N/A | H44: N/A | I44: N/A | J44: N/A | K44: N/A | L44: N/A | M44: N/A | N44: N/A | O44: N/A | P44: N/A | Q44: N/A | R44: N/A | S44: N/A | T44: N/A | U44: N/A | V44: N/A | W44: N/A | X44: N/A | Y44: N/A | Z44: N/A | BB44: No | BC44: N/A | BD44: N/A | BE44: N/A | BF44: N/A | BG44: N/A | BH44: N/A | BI44: N/A | BJ44: N/A | BK44: N/A | BL44: N/A | BM44: N/A | BN44: N/A | BO44: N/A | BP44: N/A | BQ44: N/A | BR44: N/A | BS44: N/A | BT44: N/A | BU44: N/A | BV44: N/A | BW44: N/A | BX44: N/A | BY44: N/A | BZ44: N/A
A45: Improved water source available when needed | B45: Yes | C45: N/A | D45: N/A | E45: N/A | F45: N/A | G45: N/A | H45: N/A | I45: N/A | J45: N/A | K45: N/A | L45: N/A | M45: N/A | N45: N/A | O45: N/A | P45: N/A | Q45: N/A | R45: N/A | S45: N/A | T45: N/A | U45: N/A | V45: N/A | W45: N/A | X45: N/A | Y45: N/A | Z45: N/A | BA45: Improved water source available when needed | BB45: Yes | BC45: N/A | BD45: N/A | BE45: N/A | BF45: N/A | BG45: N/A | BH45: N/A | BI45: N/A | BJ45: N/A | BK45: N/A | BL45: N/A | BM45: N/A | BN45: N/A | BO45: N/A | BP45: N/A | BQ45: N/A | BR45: N/A | BS45: N/A | BT45: N/A | BU45: N/A | BV45: N/A | BW45: N/A | BX45: N/A | BY45: N/A | BZ45: N/A
B46: No | C46: N/A | D46: N/A | E46: N/A | F46: N/A | G46: N/A | H46: N/A | I46: N/A | J46: N/A | K46: N/A | L46: N/A | M46: N/A | N46: N/A | O46: N/A | P46: N/A | Q46: N/A | R46: N/A | S46: N/A | T46: N/A | U46: N/A | V46: N/A | W46: N/A | X46: N/A | Y46: N/A | Z46: N/A | BB46: No | BC46: N/A | BD46: N/A | BE46: N/A | BF46: N/A | BG46: N/A | BH46: N/A | BI46: N/A | BJ46: N/A | BK46: N/A | BL46: N/A | BM46: N/A | BN46: N/A | BO46: N/A | BP46: N/A | BQ46: N/A | BR46: N/A | BS46: N/A | BT46: N/A | BU46: N/A | BV46: N/A | BW46: N/A | BX46: N/A | BY46: N/A | BZ46: N/A
